Workbook

Sheet Setup (hidden)
A1: Do not move any of these cells. The VBA code references some of these by direct cell reference! | E1: Index | F1: Type | G1: Direct Allocation Flag | H1: Program Type Flag | I1: Print Forms
E2: 1 | F2: CR | G2: 0 | H2: 1 | I2: ID | J2: Worksheet Name | K2: 1=Print, 0=Don't
A3: FiscalYear (YYYYYYYY) | B3: 20192020 | C3: MH1900_INFO Drop Down Items | E3: 2 | F3: NR | G3: 0 | H3: 1 | I3: 1 | J3: HOME | K3: 0
A4: FiscalYear (YYYY-YYYY) | B4: =MID(FiscalYear,1,4)&" - "&MID(FiscalYear,5,4) -> 2019 - 2020 | C4: Yes | E4: 3 | F4: TBS | G4: 1 | H4: 2 | I4: 2 | J4: Medi-Cal | K4: 0
A5: Rounding Error | B5: 5 | C5: No | E5: 4 | F5: ASO | G5: 1 | H5: 2 | I5: 3 | J5: Non Medi-Cal | K5: 0
A6: CurrentProtection | B6: OFF | C6: MH1991 Hospital Admin Periods | E6: 5 | F6: MAA | G6: 1 | H6: 1 | I6: 4 | J6: MH1900_INFO | K6: 0
A7: Medi-Cal? | B7: TRUE | C7: Period 1 / Period 3 | D7: Period 2/ Period 4 | E7: 6 | F7: MHS | G7: 1 | H7: 2 | I7: 5 | J7: MH1901_Schedule_A | K7: 0
A8: Affordable Care Act Period 1 | B8: ="07/01/"&MID(FiscalYear,3,2)&" - 12/31/"&MID(FiscalYear,3,2) -> 07/01/19 - 12/31/19 | C8: ="07/01/"&MID(FiscalYear,3,2)&" - 06/30/"&MID(FiscalYear,7,2) -> 07/01/19 - 06/30/20 | E8: 7 | F8: ISA | G8: 0 | H8: 1 | I8: 6 | J8: MH1901_Schedule_B | K8: 0
A9: Affordable Care Act Period 2 | B9: ="01/01/"&MID(FiscalYear,7,2)&" - 06/30/"&MID(FiscalYear,7,2) -> 01/01/20 - 06/30/20 | E9: 8 | F9: FBG | G9: 1 | H9: 2 | I9: 7 | J9: MH1901_Schedule_C | K9: 1
A10: MCAP Period 1 | B10: ="07/01/"&MID(FiscalYear,3,2)&" - 09/30/"&MID(FiscalYear,3,2) -> 07/01/19 - 09/30/19 | C10: MH1992 Rollover Period | E10: 9 | F10: HOSP | G10: 0 | H10: 1 | I10: 8 | J10: MH1960 | K10: 0
A11: Entire Fiscal Year | B11: ="07/01/"&MID(FiscalYear,3,2)&" - 06/30/"&MID(FiscalYear,7,2) -> 07/01/19 - 06/30/20 | C11: =TEXT(VALUE(MID(FiscalYear,3,2))-1,"00")&"-"&TEXT(VALUE(MID(FiscalYear,7,2))-1,"00") -> 18-19 | E11: Settlement Type for MH1901_Schedule_C | I11: 9 | J11: MH1960_HOSP_COSTS | K11: 0
A12: Date Detail Template Last Revised | B12: (Rev. 02/2019) | I12: 10 | J12: MH1960_HOSP_05 | K12: 0
A13: SD/MC Sharing Ratio FFP | B13: 0.5 | C13: MH1991 Hospital Admin Rates | I13: 11 | J13: MH1961 | K13: 0
A14: MCAP Period 2 | B14: ="10/01/"&MID(FiscalYear,3,2)&" - 02/29/"&MID(FiscalYear,7,2) -> 10/01/19 - 02/29/20 | C14: 07/01/18-06/30/19 | D14: 514.95 | I14: 12 | J14: MH1962 | K14: 0
I15: 13 | J15: MH1963 | K15: 0
A16: CurrentReCalcMode | B16: ON | I16: 14 | J16: MH1964 | K16: 0
I17: 15 | J17: MH1965 | K17: 0
A18: Healthy Family Ratio FFP | B18: 0.65 | I18: 16 | J18: MH1966_HOSPINPT | K18: 0
I19: 17 | J19: MH1966_MODE5(OTHR) | K19: 0
A20: Healthy Family Admin FFP | B20: 0.65 | I20: 18 | J20: MH1966_MODE10 | K20: 1
I21: 19 | J21: MH1966_MODE15_(1) | K21: 0
A22: SD/MC Admin/UR | B22: 0.5 | I22: 20 | J22: MH1966_MODE15_(2) | K22: 0
A23: SD/MC Skilled UR & MAA | B23: 0.75 | I23: 21 | J23: MH1966_MODE45 | K23: 0
A24: Enhanced SDMC Ratio FMAP | B24: 0.65 | I24: 22 | J24: MH1966_MODE55 | K24: 0
A25: Refugee FMAP | B25: 1 | I25: 23 | J25: MH1966_MODE60 | K25: 0
A26: Affordable Care Act FMAP - 07/01/18 - 12/31/18 | B26: 0.93 | I26: 24 | J26: MH1968 | K26: 0
A27: Affordable Care Act FMAP - 01/01 /19 - 06/30/19 | B27: 0.9 | I27: 25 | J27: MH1969 | K27: 0
A28: SB75 SGF | B28: 1 | I28: 26 | J28: MH1979 | K28: 0
A29: Enhanced Childern Ratio | B29: 0.88 | I29: 27 | J29: MH1979B | K29: 0
A30: ACA 6% SGF - 07/01/18 - 12/31/18 | B30: 0.07 | I30: 28 | J30: MH1991 | K30: 0
A31: ACA 7% SGF - 01/01/19 - 06/30/19 | B31: 0.1 | I31: 29 | J31: MH1992_INST | K31: 0
A32: Enhanced Childern Ratio- E2, E4, E5 | B32: 0.65 | I32: 30 | J32: MH1992 | K32: 0
I33: 31 | J33: MH1960_PHYS_05 | K33: 0
I34: 32 | J34: MH1960_HOSP_10 | K34: 0
I35: 33 | J35: MH1960_PHYS_10 | K35: 0
I36: 34 | J36: MH1960_HOSP_15 | K36: 0
I37: 35 | J37: MH1960_PHYS_15 | K37: 0
I38: 36 | J38: MH1960_PHYS_05_ADMIN | K38: 0
I39: 37 | J39: MH1960_HOSP_05_ADMIN | K39: 0

Sheet Errors (hidden)
B1: # of Data | C1: =COUNT(A:A) -> 175
A2: Date | B2: Number | C2: SheetName | D2: Cell | E2: Error # | F2: Error Msg | G2: Procedure Name
A3: 2015-08-05 | B3: 1 | C3: MH1900_INFO | D3: $C$44 | E3: 1004 | F3: Application-defined or object-defined error | G3: cboYN1_Change
A4: 2015-08-05 | B4: 2 | C4: MH1900_INFO | D4: $B$6 | E4: 1004 | F4: Application-defined or object-defined error | G4: cboYN1_Change
A5: 2015-08-05 | B5: 3 | C5: MH1900_INFO | D5: $E$19 | E5: 1004 | F5: Application-defined or object-defined error | G5: cboYN1_Change
A6: 2015-08-05 | B6: 4 | C6: MH1900_INFO | D6: $E$19 | E6: 1004 | F6: Application-defined or object-defined error | G6: cboYN1_Change
A7: 2015-08-05 | B7: 5 | C7: MH1900_INFO | D7: $E$19 | E7: 1004 | F7: Application-defined or object-defined error | G7: cboYN1_Change
A8: 2015-08-05 | B8: 6 | C8: MH1900_INFO | D8: $B$43 | E8: 1004 | F8: Application-defined or object-defined error | G8: cboYN1_Change
A9: 2015-08-05 | B9: 7 | C9: MH1900_INFO | D9: $B$43 | E9: 1004 | F9: Application-defined or object-defined error | G9: cboYN1_Change
A10: 2015-08-05 | B10: 8 | C10: MH1969_INST | D10: $D$3 | E10: 1004 | F10: The password you supplied is not correct. Verify that the CAPS LOCK key is off and be sure to use the correct capitalization. | G10: MH1969InstCheckBoxClick
A11: 2015-08-07 | B11: 9 | C11: HOME | D11: $B$40 | E11: 13 | F11: Type mismatch | G11: formIsRelevant
A12: 2015-08-07 | B12: 10 | C12: HOME | D12: $B$40 | E12: 13 | F12: Type mismatch | G12: formIsRelevant
A13: 2015-08-07 | B13: 11 | C13: HOME | D13: $B$40 | E13: 13 | F13: Type mismatch | G13: formIsRelevant
A14: 2015-08-07 | B14: 12 | C14: HOME | D14: $B$40 | E14: 13 | F14: Type mismatch | G14: formIsRelevant
A15: 2016-02-19 | B15: 13 | C15: MH1979 | D15: $B$74 | E15: 0 | G15: ShowEverything
A16: 2016-02-19 | B16: 14 | C16: MH1979 | D16: $B$74 | E16: 20 | F16: Resume without error | G16: ShowEverything
A17: 2016-02-19 | B17: 15 | C17: MH1979 | D17: $B$74 | E17: 0 | G17: ShowEverything
A18: 2016-02-19 | B18: 16 | C18: MH1979 | D18: $B$74 | E18: 20 | F18: Resume without error | G18: ShowEverything
A19: 2016-02-19 | B19: 17 | C19: MH1979 | D19: $B$74 | E19: 0 | G19: ShowEverything
A20: 2016-02-19 | B20: 18 | C20: MH1979 | D20: $B$74 | E20: 20 | F20: Resume without error | G20: ShowEverything
A21: 2016-02-19 | B21: 19 | C21: MH1979 | D21: $B$74 | E21: 0 | G21: ShowEverything
A22: 2016-02-19 | B22: 20 | C22: MH1979 | D22: $B$74 | E22: 20 | F22: Resume without error | G22: ShowEverything
A23: 2016-02-19 | B23: 21 | C23: MH1979 | D23: $B$74 | E23: 1004 | F23: The password you supplied is not correct. Verify that the CAPS LOCK key is off and be sure to use the correct capitalization. | G23: Fix Passords
A24: 2016-02-19 | B24: 22 | C24: MH1979 | D24: $B$74 | E24: 1004 | F24: The password you supplied is not correct. Verify that the CAPS LOCK key is off and be sure to use the correct capitalization. | G24: Fix Passords
A25: 2016-02-19 | B25: 23 | C25: MH1979 | D25: $B$74 | E25: 1004 | F25: The password you supplied is not correct. Verify that the CAPS LOCK key is off and be sure to use the correct capitalization. | G25: Fix Passords
A26: 2016-02-19 | B26: 24 | C26: MH1979 | D26: $B$74 | E26: 1004 | F26: The password you supplied is not correct. Verify that the CAPS LOCK key is off and be sure to use the correct capitalization. | G26: Fix Passords
A27: 2016-02-19 | B27: 25 | C27: MH1979 | D27: $B$74 | E27: 0 | G27: Fix Passords
A28: 2016-02-19 | B28: 26 | C28: MH1979 | D28: $B$74 | E28: 20 | F28: Resume without error | G28: Fix Passords
A29: 2016-02-19 | B29: 27 | C29: MH1979 | D29: $B$74 | E29: 1004 | F29: The password you supplied is not correct. Verify that the CAPS LOCK key is off and be sure to use the correct capitalization. | G29: Fix Passords
A30: 2016-02-19 | B30: 28 | C30: MH1979 | D30: $B$74 | E30: 1004 | F30: The password you supplied is not correct. Verify that the CAPS LOCK key is off and be sure to use the correct capitalization. | G30: Fix Passords
A31: 2016-02-19 | B31: 29 | C31: MH1979 | D31: $B$74 | E31: 1004 | F31: The password you supplied is not correct. Verify that the CAPS LOCK key is off and be sure to use the correct capitalization. | G31: Fix Passords
A32: 2016-02-19 | B32: 30 | C32: MH1979 | D32: $B$74 | E32: 1004 | F32: The password you supplied is not correct. Verify that the CAPS LOCK key is off and be sure to use the correct capitalization. | G32: Fix Passords
A33: 2016-02-19 | B33: 31 | C33: MH1979 | D33: $B$74 | E33: 0 | G33: Fix Passords
A34: 2016-02-19 | B34: 32 | C34: MH1979 | D34: $B$74 | E34: 20 | F34: Resume without error | G34: Fix Passords
A35: 2016-02-19 | B35: 33 | C35: MH1979 | D35: $B$74 | E35: 0 | G35: Fix Passords
A36: 2016-02-19 | B36: 34 | C36: MH1979 | D36: $B$74 | E36: 20 | F36: Resume without error | G36: Fix Passords
A37: 2016-05-26 | B37: 35 | C37: Crosschecks | D37: $D$12 | E37: 1004 | F37: The password you supplied is not correct. Verify that the CAPS LOCK key is off and be sure to use the correct capitalization. | G37: UnProtectAll
A38: 2016-05-26 | B38: 36 | C38: Crosschecks | D38: $D$12 | E38: 1004 | F38: The password you supplied is not correct. Verify that the CAPS LOCK key is off and be sure to use the correct capitalization. | G38: UnProtectAll
A39: 2016-05-26 | B39: 37 | C39: Crosschecks | D39: $D$12 | E39: 1004 | F39: The password you supplied is not correct. Verify that the CAPS LOCK key is off and be sure to use the correct capitalization. | G39: UnProtectAll
A40: 2016-05-26 | B40: 38 | C40: Crosschecks | D40: $D$12 | E40: 1004 | F40: The password you supplied is not correct. Verify that the CAPS LOCK key is off and be sure to use the correct capitalization. | G40: UnProtectAll
A41: 2016-05-26 | B41: 39 | C41: Crosschecks | D41: $D$12 | E41: 1004 | F41: The password you supplied is not correct. Verify that the CAPS LOCK key is off and be sure to use the correct capitalization. | G41: UnProtectAll
A42: 2016-05-26 | B42: 40 | C42: Crosschecks | D42: $D$12 | E42: 1004 | F42: The password you supplied is not correct. Verify that the CAPS LOCK key is off and be sure to use the correct capitalization. | G42: UnProtectAll
A43: 2016-05-26 | B43: 41 | C43: Crosschecks | D43: $D$12 | E43: 1004 | F43: The password you supplied is not correct. Verify that the CAPS LOCK key is off and be sure to use the correct capitalization. | G43: UnProtectAll
A44: 2016-05-26 | B44: 42 | C44: Crosschecks | D44: $D$12 | E44: 1004 | F44: The password you supplied is not correct. Verify that the CAPS LOCK key is off and be sure to use the correct capitalization. | G44: UnProtectAll
A45: 2016-05-26 | B45: 43 | C45: Crosschecks | D45: $D$12 | E45: 1004 | F45: The password you supplied is not correct. Verify that the CAPS LOCK key is off and be sure to use the correct capitalization. | G45: UnProtectAll
A46: 2016-05-26 | B46: 44 | C46: Crosschecks | D46: $D$12 | E46: 1004 | F46: The password you supplied is not correct. Verify that the CAPS LOCK key is off and be sure to use the correct capitalization. | G46: UnProtectAll
A47: 2016-05-26 | B47: 45 | C47: Crosschecks | D47: $D$12 | E47: 1004 | F47: The password you supplied is not correct. Verify that the CAPS LOCK key is off and be sure to use the correct capitalization. | G47: UnProtectAll
A48: 2016-05-26 | B48: 46 | C48: Crosschecks | D48: $D$12 | E48: 1004 | F48: The password you supplied is not correct. Verify that the CAPS LOCK key is off and be sure to use the correct capitalization. | G48: UnProtectAll
A49: 2016-05-26 | B49: 47 | C49: Crosschecks | D49: $D$12 | E49: 1004 | F49: The password you supplied is not correct. Verify that the CAPS LOCK key is off and be sure to use the correct capitalization. | G49: UnProtectAll
A50: 2016-05-26 | B50: 48 | C50: Crosschecks | D50: $D$12 | E50: 1004 | F50: The password you supplied is not correct. Verify that the CAPS LOCK key is off and be sure to use the correct capitalization. | G50: UnProtectAll
A51: 2016-05-26 | B51: 49 | C51: Crosschecks | D51: $D$12 | E51: 1004 | F51: The password you supplied is not correct. Verify that the CAPS LOCK key is off and be sure to use the correct capitalization. | G51: UnProtectAll
A52: 2016-05-26 | B52: 50 | C52: Crosschecks | D52: $D$12 | E52: 1004 | F52: The password you supplied is not correct. Verify that the CAPS LOCK key is off and be sure to use the correct capitalization. | G52: UnProtectAll
A53: 2016-05-26 | B53: 51 | C53: Crosschecks | D53: $D$12 | E53: 1004 | F53: The password you supplied is not correct. Verify that the CAPS LOCK key is off and be sure to use the correct capitalization. | G53: UnProtectAll
A54: 2016-05-26 | B54: 52 | C54: Crosschecks | D54: $D$12 | E54: 1004 | F54: The password you supplied is not correct. Verify that the CAPS LOCK key is off and be sure to use the correct capitalization. | G54: UnProtectAll
A55: 2016-05-26 | B55: 53 | C55: Crosschecks | D55: $D$12 | E55: 1004 | F55: The password you supplied is not correct. Verify that the CAPS LOCK key is off and be sure to use the correct capitalization. | G55: UnProtectAll
A56: 2016-05-26 | B56: 54 | C56: Crosschecks | D56: $D$12 | E56: 1004 | F56: The password you supplied is not correct. Verify that the CAPS LOCK key is off and be sure to use the correct capitalization. | G56: UnProtectAll
A57: 2016-05-26 | B57: 55 | C57: Crosschecks | D57: $D$12 | E57: 1004 | F57: The password you supplied is not correct. Verify that the CAPS LOCK key is off and be sure to use the correct capitalization. | G57: UnProtectAll
A58: 2016-05-26 | B58: 56 | C58: Crosschecks | D58: $D$12 | E58: 1004 | F58: The password you supplied is not correct. Verify that the CAPS LOCK key is off and be sure to use the correct capitalization. | G58: UnProtectAll
A59: 2016-05-26 | B59: 57 | C59: Crosschecks | D59: $D$12 | E59: 1004 | F59: The password you supplied is not correct. Verify that the CAPS LOCK key is off and be sure to use the correct capitalization. | G59: UnProtectAll
A60: 2016-05-26 | B60: 58 | C60: Crosschecks | D60: $D$12 | E60: 1004 | F60: The password you supplied is not correct. Verify that the CAPS LOCK key is off and be sure to use the correct capitalization. | G60: UnProtectAll
A61: 2016-05-26 | B61: 59 | C61: Crosschecks | D61: $D$12 | E61: 1004 | F61: The password you supplied is not correct. Verify that the CAPS LOCK key is off and be sure to use the correct capitalization. | G61: UnProtectAll
A62: 2016-05-26 | B62: 60 | C62: Crosschecks | D62: $D$12 | E62: 1004 | F62: The password you supplied is not correct. Verify that the CAPS LOCK key is off and be sure to use the correct capitalization. | G62: UnProtectAll
A63: 2016-09-16 | B63: 61 | C63: MH1968 | D63: $B$4 | E63: 1004 | F63: The password you supplied is not correct. Verify that the CAPS LOCK key is off and be sure to use the correct capitalization. | G63: UnProtectAll
A64: 2016-09-16 | B64: 62 | C64: MH1968 | D64: $B$4 | E64: 1004 | F64: The password you supplied is not correct. Verify that the CAPS LOCK key is off and be sure to use the correct capitalization. | G64: UnProtectAll
A65: 2016-09-16 | B65: 63 | C65: MH1968 | D65: $B$4 | E65: 1004 | F65: The password you supplied is not correct. Verify that the CAPS LOCK key is off and be sure to use the correct capitalization. | G65: UnProtectAll
A66: 2016-09-16 | B66: 64 | C66: MH1968 | D66: $B$4 | E66: 1004 | F66: The password you supplied is not correct. Verify that the CAPS LOCK key is off and be sure to use the correct capitalization. | G66: UnProtectAll
A67: 2016-09-16 | B67: 65 | C67: MH1968 | D67: $B$4 | E67: 1004 | F67: The password you supplied is not correct. Verify that the CAPS LOCK key is off and be sure to use the correct capitalization. | G67: UnProtectAll
A68: 2016-09-16 | B68: 66 | C68: MH1968 | D68: $B$4 | E68: 1004 | F68: The password you supplied is not correct. Verify that the CAPS LOCK key is off and be sure to use the correct capitalization. | G68: UnProtectAll
A69: 2016-09-20 | B69: 67 | C69: MH1968 | D69: $K$28 | E69: 1004 | F69: The password you supplied is not correct. Verify that the CAPS LOCK key is off and be sure to use the correct capitalization. | G69: UnProtectAll
A70: 2016-09-29 | B70: 68 | C70: MH1968 | D70: $J$49 | E70: 1004 | F70: The password you supplied is not correct. Verify that the CAPS LOCK key is off and be sure to use the correct capitalization. | G70: UnProtectAll
A71: 2016-09-29 | B71: 69 | C71: MH1968 | D71: $J$50 | E71: 1004 | F71: The password you supplied is not correct. Verify that the CAPS LOCK key is off and be sure to use the correct capitalization. | G71: UnProtectAll
A72: 2017-03-23 | B72: 70 | C72: HOME | D72: $L$12 | E72: 0 | G72: Fix Passords
A73: 2017-03-23 | B73: 71 | C73: HOME | D73: $L$12 | E73: 20 | F73: Resume without error | G73: Fix Passords
A74: 2017-11-17 | B74: 72 | C74: DMH | D74: $F$15 | E74: 0 | G74: ShowEverything
A75: 2017-11-17 | B75: 73 | C75: DMH | D75: $F$15 | E75: 20 | F75: Resume without error | G75: ShowEverything
A76: 2017-11-17 | B76: 74 | C76: DMH | D76: $F$15 | E76: 0 | G76: ShowEverything
A77: 2017-11-17 | B77: 75 | C77: DMH | D77: $F$15 | E77: 20 | F77: Resume without error | G77: ShowEverything
A78: 2017-11-17 | B78: 76 | C78: DMH | D78: $F$15 | E78: 0 | G78: ShowEverything
A79: 2017-11-17 | B79: 77 | C79: DMH | D79: $F$15 | E79: 20 | F79: Resume without error | G79: ShowEverything
A80: 2017-11-17 | B80: 78 | C80: DMH | D80: $A$1 | E80: 0 | G80: ShowEverything
A81: 2017-11-17 | B81: 79 | C81: DMH | D81: $A$1 | E81: 20 | F81: Resume without error | G81: ShowEverything
A82: 2017-11-17 | B82: 80 | C82: DMH | D82: $A$1 | E82: 0 | G82: ShowEverything
A83: 2017-11-17 | B83: 81 | C83: DMH | D83: $A$1 | E83: 20 | F83: Resume without error | G83: ShowEverything
A84: 2017-11-17 | B84: 82 | C84: DMH | D84: $A$1 | E84: 0 | G84: ShowEverything
A85: 2017-11-17 | B85: 83 | C85: DMH | D85: $A$1 | E85: 20 | F85: Resume without error | G85: ShowEverything
A86: 2017-11-17 | B86: 84 | C86: DMH | D86: $K$12 | E86: 0 | G86: ShowEverything
A87: 2017-11-17 | B87: 85 | C87: DMH | D87: $K$12 | E87: 20 | F87: Resume without error | G87: ShowEverything
A88: 2017-11-17 | B88: 86 | C88: DMH | D88: $K$12 | E88: 0 | G88: ShowEverything
A89: 2017-11-17 | B89: 87 | C89: DMH | D89: $K$12 | E89: 20 | F89: Resume without error | G89: ShowEverything
A90: 2017-11-17 | B90: 88 | C90: DMH | D90: $K$12 | E90: 0 | G90: ShowEverything
A91: 2017-11-17 | B91: 89 | C91: DMH | D91: $K$12 | E91: 20 | F91: Resume without error | G91: ShowEverything
A92: 2017-11-17 | B92: 90 | C92: DMH | D92: $D$16 | E92: 0 | G92: ShowEverything
A93: 2017-11-17 | B93: 91 | C93: DMH | D93: $D$16 | E93: 20 | F93: Resume without error | G93: ShowEverything
A94: 2017-11-17 | B94: 92 | C94: DMH | D94: $D$16 | E94: 0 | G94: ShowEverything
A95: 2017-11-17 | B95: 93 | C95: DMH | D95: $D$16 | E95: 20 | F95: Resume without error | G95: ShowEverything
A96: 2017-11-17 | B96: 94 | C96: DMH | D96: $D$16 | E96: 0 | G96: ShowEverything
A97: 2017-11-17 | B97: 95 | C97: DMH | D97: $D$16 | E97: 20 | F97: Resume without error | G97: ShowEverything
A98: 2017-11-17 | B98: 96 | C98: DMH | D98: $A$1 | E98: 0 | G98: ShowEverything
A99: 2017-11-17 | B99: 97 | C99: DMH | D99: $A$1 | E99: 20 | F99: Resume without error | G99: ShowEverything
A100: 2017-11-17 | B100: 98 | C100: DMH | D100: $A$1 | E100: 0 | G100: ShowEverything
A101: 2017-11-17 | B101: 99 | C101: DMH | D101: $A$1 | E101: 20 | F101: Resume without error | G101: ShowEverything
A102: 2017-11-17 | B102: 100 | C102: DMH | D102: $A$1 | E102: 0 | G102: ShowEverything
A103: 2017-11-17 | B103: 101 | C103: DMH | D103: $A$1 | E103: 20 | F103: Resume without error | G103: ShowEverything
A104: 2017-11-17 | B104: 102 | C104: DMH | D104: $A$1 | E104: 0 | G104: ShowEverything
A105: 2017-11-17 | B105: 103 | C105: DMH | D105: $A$1 | E105: 20 | F105: Resume without error | G105: ShowEverything
A106: 2017-11-17 | B106: 104 | C106: DMH | D106: $A$1 | E106: 0 | G106: ShowEverything
A107: 2017-11-17 | B107: 105 | C107: DMH | D107: $A$1 | E107: 20 | F107: Resume without error | G107: ShowEverything
A108: 2017-11-17 | B108: 106 | C108: DMH | D108: $A$1 | E108: 0 | G108: ShowEverything
A109: 2017-11-17 | B109: 107 | C109: DMH | D109: $A$1 | E109: 20 | F109: Resume without error | G109: ShowEverything
A110: 2017-11-17 | B110: 108 | C110: DMH | D110: $B$15 | E110: 0 | G110: ShowEverything
A111: 2017-11-17 | B111: 109 | C111: DMH | D111: $B$15 | E111: 20 | F111: Resume without error | G111: ShowEverything
A112: 2017-11-17
A113: 2017-11-17 | B113: 1 | C113: DMH | D113: $E$15 | E113: 0 | G113: ShowEverything
A114: 2017-11-17 | B114: 2 | C114: DMH | D114: $E$15 | E114: 20 | F114: Resume without error | G114: ShowEverything
A115: 2017-11-17 | B115: 3 | C115: DMH | D115: $E$15 | E115: 0 | G115: ShowEverything
A116: 2017-12-20 | B116: 4 | C116: MH1900_INFO | D116: $B$11 | E116: 1004 | F116: We can't do that to a merged cell. | G116: cboYN1_Change
A117: 2017-12-20 | B117: 5 | C117: MH1900_INFO | D117: $B$11 | E117: 1004 | F117: Unable to set the Locked property of the Range class | G117: cboYN1_Change
A118: 2017-12-20 | B118: 6 | C118: MH1900_INFO | D118: $B$11 | E118: 1004 | F118: Unable to set the Locked property of the Range class | G118: cboYN1_Change
A119: 2017-12-20 | B119: 7 | C119: MH1900_INFO | D119: $D$12 | E119: 1004 | F119: Unable to set the Locked property of the Range class | G119: cboYN1_Change
A120: 2017-12-28 | B120: 8 | C120: MH1900_INFO | D120: $B$52 | E120: 1004 | F120: We can't do that to a merged cell. | G120: cboYN1_Change
A121: 2017-12-28 | B121: 9 | C121: MH1900_INFO | D121: $B$52 | E121: 1004 | F121: Unable to set the Locked property of the Range class | G121: cboYN1_Change
A122: 2017-12-28 | B122: 10 | C122: MH1900_INFO | D122: $B$11 | E122: 1004 | F122: We can't do that to a merged cell. | G122: cboYN1_Change
A123: 2017-12-28 | B123: 11 | C123: MH1900_INFO | D123: $B$11 | E123: 1004 | F123: Unable to set the Locked property of the Range class | G123: cboYN1_Change
A124: 2018-01-02 | B124: 12 | C124: MH1900_INFO | D124: $B$46 | E124: 1004 | F124: We can't do that to a merged cell. | G124: cboYN1_Change
A125: 2018-01-02 | B125: 13 | C125: MH1900_INFO | D125: $B$46 | E125: 1004 | F125: Unable to set the Locked property of the Range class | G125: cboYN1_Change
A126: 2018-01-02 | B126: 14 | C126: MH1900_INFO | D126: $B$46 | E126: 1004 | F126: We can't do that to a merged cell. | G126: cboYN1_Change
A127: 2018-01-02 | B127: 15 | C127: MH1900_INFO | D127: $B$46 | E127: 1004 | F127: Unable to set the Locked property of the Range class | G127: cboYN1_Change
A128: 2018-01-02 | B128: 16 | C128: MH1900_INFO | D128: $E$29 | E128: 1004 | F128: We can't do that to a merged cell. | G128: cboYN1_Change
A129: 2018-01-02 | B129: 17 | C129: MH1900_INFO | D129: $B$12 | E129: 1004 | F129: Unable to set the Locked property of the Range class | G129: cboYN1_Change
A130: 2018-01-02 | B130: 18 | C130: MH1900_INFO | D130: $B$11 | E130: 1004 | F130: We can't do that to a merged cell. | G130: cboYN1_Change
A131: 2018-01-02 | B131: 19 | C131: MH1900_INFO | D131: $B$11 | E131: 1004 | F131: Unable to set the Locked property of the Range class | G131: cboYN1_Change
A132: 2018-04-24 | B132: 20 | C132: MH1963 | D132: $B$15 | E132: 1004 | F132: The password you supplied is not correct. Verify that the CAPS LOCK key is off and be sure to use the correct capitalization. | G132: InsertMH1963_Rows
A133: 2018-04-24 | B133: 21 | C133: MH1991 | D133: $I$24 | E133: 1004 | F133: The password you supplied is not correct. Verify that the CAPS LOCK key is off and be sure to use the correct capitalization. | G133: Clear (New)
A134: 2018-04-24 | B134: 22 | C134: HOME | D134: $G$30 | E134: 1004 | F134: The password you supplied is not correct. Verify that the CAPS LOCK key is off and be sure to use the correct capitalization. | G134: Clear (New)
A135: 2018-04-24 | B135: 23 | C135: MH1979 | D135: $E$34 | E135: 1004 | F135: The password you supplied is not correct. Verify that the CAPS LOCK key is off and be sure to use the correct capitalization. | G135: Clear (New)
A136: 2018-04-24 | B136: 24 | C136: MH1979 | D136: $E$34 | E136: 1004 | F136: The password you supplied is not correct. Verify that the CAPS LOCK key is off and be sure to use the correct capitalization. | G136: Clear (New)
A137: 2018-12-21 | B137: 25 | C137: DMH | D137: $H$20 | E137: 1004 | F137: The password you supplied is not correct. Verify that the CAPS LOCK key is off and be sure to use the correct capitalization. | G137: ProtectUnProtect_Toggle
A138: 2018-12-21 | B138: 26 | C138: DMH | D138: $H$20 | E138: 0 | G138: ShowEverything
A139: 2018-12-21 | B139: 27 | C139: DMH | D139: $H$20 | E139: 20 | F139: Resume without error | G139: ShowEverything
A140: 2018-12-21 | B140: 28 | C140: DMH | D140: $H$20 | E140: 0 | G140: ShowEverything
A141: 2018-12-21 | B141: 29 | C141: DMH | D141: $H$20 | E141: 20 | F141: Resume without error | G141: ShowEverything
A142: 2018-12-21 | B142: 30 | C142: DMH | D142: $H$20 | E142: 0 | G142: ShowEverything
A143: 2018-12-21 | B143: 31 | C143: DMH | D143: $H$20 | E143: 20 | F143: Resume without error | G143: ShowEverything
A144: 2018-12-21 | B144: 32 | C144: DMH | D144: $H$20 | E144: 0 | G144: ShowEverything
A145: 2018-12-21 | B145: 33 | C145: DMH | D145: $H$20 | E145: 20 | F145: Resume without error | G145: ShowEverything
A146: 2019-03-21 | B146: 34 | C146: Setup | D146: $A$1 | E146: 1004 | F146: The password you supplied is not correct. Verify that the CAPS LOCK key is off and be sure to use the correct capitalization. | G146: ProtectUnProtect_Toggle
A147: 2019-03-21 | B147: 35 | C147: MH1992 | D147: $A$1 | E147: 1004 | F147: The password you supplied is not correct. Verify that the CAPS LOCK key is off and be sure to use the correct capitalization. | G147: ProtectUnProtect_Toggle
A148: 2019-04-19 | B148: 36 | C148: DMH | D148: $I$21 | E148: 0 | G148: ShowEverything
A149: 2019-04-19 | B149: 37 | C149: DMH | D149: $I$21 | E149: 20 | F149: Resume without error | G149: ShowEverything
A150: 2019-04-19 | B150: 38 | C150: DMH | D150: $I$21 | E150: 0 | G150: ShowEverything
A151: 2019-04-19 | B151: 39 | C151: DMH | D151: $I$21 | E151: 20 | F151: Resume without error | G151: ShowEverything
A152: 2019-04-19 | B152: 40 | C152: DMH | D152: $I$21 | E152: 0 | G152: ShowEverything
A153: 2019-04-19 | B153: 41 | C153: DMH | D153: $I$21 | E153: 20 | F153: Resume without error | G153: ShowEverything
A154: 2019-04-19 | B154: 42 | C154: Medi-Cal | D154: $A$1 | E154: 1004 | F154: The password you supplied is not correct. Verify that the CAPS LOCK key is off and be sure to use the correct capitalization. | G154: ProtectUnProtect_Toggle
A155: 2019-04-23 | B155: 43 | C155: Medi-Cal | D155: $A$1 | E155: 1004 | F155: The password you supplied is not correct. Verify that the CAPS LOCK key is off and be sure to use the correct capitalization. | G155: ProtectUnProtect_Toggle
A156: 2019-04-23 | B156: 44 | C156: Medi-Cal | D156: $F$69 | E156: 1004 | F156: The password you supplied is not correct. Verify that the CAPS LOCK key is off and be sure to use the correct capitalization. | G156: ProtectUnProtect_Toggle
A157: 2019-04-30 | B157: 45 | C157: Medi-Cal | D157: $A$1 | E157: 1004 | F157: The password you supplied is not correct. Verify that the CAPS LOCK key is off and be sure to use the correct capitalization. | G157: ProtectUnProtect_Toggle
A158: 2019-05-16 | B158: 46 | C158: DMH | D158: $A$34 | E158: 0 | G158: ShowEverything
A159: 2019-05-16 | B159: 47 | C159: DMH | D159: $A$34 | E159: 20 | F159: Resume without error | G159: ShowEverything
A160: 2019-05-16 | B160: 48 | C160: DMH | D160: $A$34 | E160: 0 | G160: ShowEverything
A161: 2019-05-16 | B161: 49 | C161: DMH | D161: $A$34 | E161: 20 | F161: Resume without error | G161: ShowEverything
A162: 2019-05-16 | B162: 50 | C162: DMH | D162: $A$34 | E162: 0 | G162: ShowEverything
A163: 2019-05-16 | B163: 51 | C163: DMH | D163: $A$34 | E163: 20 | F163: Resume without error | G163: ShowEverything
A164: 2019-05-16 | B164: 52 | C164: Medi-Cal | D164: $A$1 | E164: 1004 | F164: The password you supplied is not correct. Verify that the CAPS LOCK key is off and be sure to use the correct capitalization. | G164: ProtectUnProtect_Toggle
A165: 2020-04-13 | B165: 53 | C165: Medi-Cal | D165: $A$1 | E165: 1004 | F165: The password you supplied is not correct. Verify that the CAPS LOCK key is off and be sure to use the correct capitalization. | G165: ProtectUnProtect_Toggle
A166: 2020-04-13 | B166: 54 | C166: MH1969 | D166: $H$1 | E166: 1004 | F166: The password you supplied is not correct. Verify that the CAPS LOCK key is off and be sure to use the correct capitalization. | G166: ProtectUnProtect_Toggle
A167: 2020-04-13 | B167: 55 | C167: Errors | D167: $A$16 | E167: 1004 | F167: The password you supplied is not correct. Verify that the CAPS LOCK key is off and be sure to use the correct capitalization. | G167: ProtectUnProtect_Toggle
A168: 2020-06-16 | B168: 56 | C168: DMH | D168: $A$57 | E168: 0 | G168: ShowEverything
A169: 2020-06-16 | B169: 57 | C169: DMH | D169: $A$57 | E169: 20 | F169: Resume without error | G169: ShowEverything
A170: 2020-06-16 | B170: 58 | C170: DMH | D170: $A$57 | E170: 0 | G170: ShowEverything
A171: 2020-06-16 | B171: 59 | C171: DMH | D171: $A$57 | E171: 20 | F171: Resume without error | G171: ShowEverything
A172: 2020-06-16 | B172: 60 | C172: DMH | D172: $A$57 | E172: 0 | G172: ShowEverything
A173: 2020-06-16 | B173: 61 | C173: DMH | D173: $A$57 | E173: 20 | F173: Resume without error | G173: ShowEverything
A174: 2020-06-22 | B174: 62 | C174: Medi-Cal | D174: $A$57 | E174: 1004 | F174: The password you supplied is not correct. Verify that the CAPS LOCK key is off and be sure to use the correct capitalization. | G174: ProtectUnProtect_Toggle
A175: 2020-06-22 | B175: 63 | C175: Medi-Cal | D175: $A$57 | E175: 1004 | F175: The password you supplied is not correct. Verify that the CAPS LOCK key is off and be sure to use the correct capitalization. | G175: ProtectUnProtect_Toggle
A176: 2020-07-08 | B176: 64 | C176: MH1963 | D176: $AB$11 | E176: 1004 | F176: The password you supplied is not correct. Verify that the CAPS LOCK key is off and be sure to use the correct capitalization. | G176: InsertMH1963_Rows
A177: 2020-07-21 | B177: 65 | C177: MH1900_INFO | D177: $B$7 | E177: 1004 | F177: Application-defined or object-defined error | G177: cboYN1_Change

Sheet DMH (hidden)
K5: Protection
K6: =ProtectionStatus -> OFF

Sheet HOME
A1: ="DETAIL COST AND FINANCIAL REPORT (FY"&FiscalYear_with_Dash&")" -> DETAIL COST AND FINANCIAL REPORT (FY2019 - 2020)

Sheet Medi-Cal
A1: ="DETAIL COST AND FINANCIAL REPORT (FY"&FiscalYear_with_Dash&")" -> DETAIL COST AND FINANCIAL REPORT (FY2019 - 2020)
E42: YES

Sheet Non Medi-Cal
A1: ="DETAIL COST AND FINANCIAL REPORT (FY"&FiscalYear_with_Dash&")" -> DETAIL COST AND FINANCIAL REPORT (FY2019 - 2020)

Sheet MH1900_INFO
A1: State of California Health and Human Services Agency | F1: Department of Health Care Services
A2: ="DETAIL COST REPORT "&CHAR(10)&"INFORMATION SHEET"&CHAR(10)&"MH1900 "&Revision_Date -> DETAIL COST REPORT INFORMATION SHEET MH1900 (Rev. 02/2019) | E2: ="FISCAL YEAR "&FiscalYear_with_Dash -> FISCAL YEAR 2019 - 2020
A3: SECTION I : ALL LEGAL ENTITIES :
A4: All Legal Entities are to complete Section I.
A5: Name of Preparer: | B5: John Doe
A6: Date: | B6: 2020-07-21
A7: Legal Entity Name: | B7: Vermont Mental Health Hospital
A8: Legal Entity Number: | B8: 00055
A9: County: | B9: Los Angeles
A10: County Code: | B10: 19
A11: Is this a County Legal Entity Report? (Yes or No) | B11: 2
A12: Are you reporting SD/MC? (Yes or No) | B12: 1
A13: SECTION II:COUNTY LEGALENTITY ONLY:
A15: Only County Legal Entities are to Complete Section II.
A17: Address:
A20: Phone Number:
A21: County Population : Over 125,000? (Yes or No): | B21: 1
A24: Contract Provider Other Medi-Cal Direct Service Gross Reimbursement (Used to populate MH1979 Line2 (07/01/2019 - 02/29/2020) and MH 1979 Line 10 (03/03/2020 - 06/30/2020))
A25: Inpatient Services - 07/01/19 - 02/29/20 | E25: Inpatient Services - 03/01/20 - 06/30/20
A26: Outpatient Services - 07/01/19 - 02/29/20 | E26: Outpatient Services - 03/01/20 - 06/30/20
A28: Contract Provider SD/MC Enhanced (Children) Direct Service Gross Reimbursement ( Used to populate MH1979 Line 18 (07/01/2019 - 09/30/2019) and MH 1979 Line 24 (10/01/2019 - 12/31/2019) and Line 30 (01/01/2020 - 06/30/2020)
A29: Inpatient Services - 07/01/19 - 09/30/20 | E29: Inpatient Services - 10/01/19 - 12/31/19 | H29: Inpatient Services - 10/01/19 - 12/31/19
A30: Outpatient Services - 07/01/19 - 09/30/20 | E30: Outpatient Services - 10/01/19 - 12/31/19 | H30: Outpatient Services - 10/01/19 - 12/31/19
A32: Contract Provider Healthy Families Direct Service Gross Reimbursement (Used to populate MH1979 Line8)
A33: Inpatient Services
A34: Outpatient Services
A36: Contract Providers Affordable Care Act (New Adult Group Service (Reimbursement Used to populate MH1979 Line2)
A37: InpatientServices (07/01/16-12/31/16)
A38: OutpatientServices (07/01/16-12/31/16)
A39: InpatientServices (01/01/17-06/30/17)
A40: OutpatientServices (01/01/17-06/30/17)
A41: TotalStateShareofSD/MCCost:
B43: ='MH1979'!T65 -> 0
A45: Fee For Service - Mental Health Specialty Provider Numbers For Individual and Group
A46: Legal Entity Number (FFS):
A47: Psychiatrist:
A48: Psychologist:
A49: Mixed Specialty Group:
A50: RN:
A51: LCSW:
A52: MFCC (MFT):
A54: Adjust Medi-Cal FFP Due to Costs in Excess of FFP
A55: Adjustments by Mode of Service (Used to Calculate FFP on the MH1992) | D55: Adjustments by Settlement Group (Used to Populate Col.I - MH1979)
A56: Mode of Services | B56: SD/MC | E56: Settlement Group | F56: AdjustmentstoFFP
A57: Mode 05 - Hospital Inpatient Services | E57: SD/MC 07/01/19 - 12/31/19
A58: Mode 05 - Other 24 Hour Services | E58: SD/MC 01/01/20 - 06/30/20
A59: Mode10 - Day Services | E59: SD/MC Non CHIP Children - 07/01/19 - 12/31/19
A60: Mode15 - Outpatient Services | E60: SD/MC Non CHIP Children - 01/01/20 - 06/30/20
A61: MAA | E61: SD/MC Enhanced Children 07/01/19 - 09/30/19
A62: Total Adjustments to FFP | B62: =SUM(B57:B61) -> 0 | E62: SD/MC Enhanced Children 10/01/19 - 12/31/19
A63: Cross Checks | B63: =IF(B62=F77,"OK","ERROR") -> OK | E63: SD/MC Enhanced Children 01/01/20 - 06/30/20
E64: SD/MC Enhanced-BCCTP-07/01/19 - 12/31/19
A65: DisableMH1992 Line11&12Macro | B65: 2 | E65: SD/MC Enhanced-BCCTP-01/01/20 - 06/30/20
E66: SD/MC Enhanced Pregnancy 07/01/19 - 12/31/19
E67: SD/MC Enhanced Pregnancy 01/01/20 - 06/30/20
E68: ="SD/MC Enhanced-Refugee-"&Entire_FiscalYear -> SD/MC Enhanced-Refugee-07/01/19 - 06/30/20
E69: ="Affordable Care Act-"&ACA_Period1 -> Affordable Care Act-07/01/19 - 12/31/19
E70: Affordable Care Act 01/01/20 - 02/29/20
E71: Affordable Care Act 03/01/20 - 06/30/20
E72: MAASFC01-09
E73: MAASFC11-19,31-39
E74: ="MCAP "&MCAP_Period1 -> MCAP 07/01/19 - 09/30/19
E75: MCAP 10/01/19 - 12/31/19
E76: MCAP 01/01/20 - 06/30/20
E77: Total Adjustments to FFP | F77: =SUM(F57:F76) -> 0

Sheet MH1901_Schedule_A
A1: State of California Health and Human Services Agency | J1: Department of Health Care Services
A2: DETAIL COST REPORT
A3: SCHEDULE OF STATEWIDE MAXIMUM ALLOWANCES AND PUBLISHED CHARGES
A4: ="MH1901 SCHEDULE A "&Revision_Date -> MH1901 SCHEDULE A (Rev. 02/2019) | I4: FISCAL YEAR 2019-20
B5: ="Entity Name:"&Legal_Entity_Name -> Entity Name:Vermont Mental Health Hospital | J5: ="Entity Number: "&Legal_Entity_Number -> Entity Number: 00055
D9: A | E9: B | F9: C | G9: D | H9: E | I9: F | J9: G
E10: SERVICE | G10: STATE | I10: COUNTY | J10: RATE
E11: FUNCTION | G11: APPROVED | H11: PUBLISHED | I11: NONM/C | J11: FOR
B12: SERVICE FUNCTION | D12: MODE | E12: CODE | F12: SMA | G12: (NR) | H12: CHARGE | I12: CONTRACTRATE | J12: ALLOCATION
B13: A. 24-HOUR SERVICES
A14: 1 | B14: Hospital Inpatient | D14: 05 | E14: 10-18 | H14: 1351 | J14: =IF(H14>0,H14,I14) -> 1351
A15: 2 | B15: Hospital Administrative Day | D15: 05 | E15: 19 | F15: 569.54 | H15: 600 | J15: =IF(H15>0,H15,I15) -> 600
A16: 3 | B16: Psychiatric Health Facility (PHF) | D16: 05 | E16: 20-29 | J16: 0
A17: 4 | B17: SNF Intensive | D17: 05 | E17: 30-34 | J17: 0
A18: 5 | B18: IMD Basic (No Patch) | D18: 05 | E18: 35 | J18: 0
A19: 6 | B19: IMD (With Patch) | D19: 05 | E19: 36-39 | J19: 0
A20: 7 | B20: Adult Crisis Residential | D20: 05 | E20: 40-49 | J20: 0
A21: 8 | B21: Jail Inpatient | D21: 05 | E21: 50-59 | J21: 0
A22: 9 | B22: Residential Other | D22: 05 | E22: 60-64 | J22: 0
A23: 10 | B23: Adult Residential | D23: 05 | E23: 65-79 | J23: 0
A24: 11 | B24: Semi-Supervised Living | D24: 05 | E24: 80-84 | J24: 0
A25: 12 | B25: Independent Living | D25: 05 | E25: 85-89 | J25: 0
A26: 13 | B26: MH Rehab Centers | D26: 05 | E26: 90-94 | J26: 0
A27: 14 | B27: Therapeutic Foster Care | D27: 05 | E27: 95-98 | J27: 0
B28: B. DAY SERVICES
A29: 15 | B29: Crisis Stabilization
B30: Emergency Room | D30: 10 | E30: 20-24 | J30: =IF(H30>0,H30,I30) -> 0
A31: 16 | B31: Urgent Care | D31: 10 | E31: 25-29 | J31: =IF(H31>0,H31,I31) -> 0
A32: 17 | B32: Vocational Services | D32: 10 | E32: 30-39 | J32: 0
A33: 18 | B33: Socialization | D33: 10 | E33: 40-49 | J33: 0
A34: 19 | B34: SNF Augmentation | D34: 10 | E34: 60-69 | J34: 0
A35: 20 | B35: Day Treatment Intensive | D35: 10 | E35: 81-84
B36: Half Day | J36: =IF(H35>0,H35,I35) -> 0
A37: 21 | B37: Full Day | D37: 10 | E37: 85-89 | H37: 245 | J37: =IF(H37>0,H37,I37) -> 245
A38: 22 | B38: Day Rehabilitation | D38: 10 | E38: 91-94
B39: Half Day | J39: =IF(H38>0,H38,I39) -> 0
A40: 23 | B40: Full Day | D40: 10 | E40: 95-99 | J40: =IF(H40>0,H40,I40) -> 0
B41: C. OUTPATIENT SERVICES
A42: 24 | B42: Case Management , Brokerage | D42: 15 | E42: 01-09 | H42: 3 | J42: =IF(H42>0,H42,I42) -> 3
A43: 25 | B43: Mental Health Services | D43: 15 | E43: 10-19 | H43: 4 | J43: =IF(H43>0,H43,I43) -> 4
A44: 26 | B44: Mental Health Services | D44: 15 | E44: 30-59 | H44: 4 | J44: 4
A45: 27 | B45: Medication Support | D45: 15 | E45: 60-69 | H45: 6 | J45: 6
A46: 28 | B46: Crisis Intervention | D46: 15 | E46: 70-79 | H46: 5 | J46: 5
A48: 29 | B48: Mental Health Promotion | D48: 45 | E48: 10-19 | H48: 50 | J48: 50
A49: 30 | B49: Community Client Services | D49: 45 | E49: 20-29 | H49: 50 | J49: 50
B50: E. MEDI-CAL ADMINISTRATIVE ACTIVITIES
A51: 31 | B51: Medi-Cal Outreach | D51: 55 | E51: 01-03
A52: 32 | B52: Medi-Cal Eligibility Intake | D52: 55 | E52: 04-06 | I52: Quarter1
A53: 33 | B53: Medi-Cal Contract Administration | D53: 55 | E53: 07-08 | I53: Quarter2
A54: 34 | B54: MAA Coordination and Claims Administration | D54: 55 | E54: 09 | I54: Quarter3
A55: 35 | B55: Referral-Crisis,Non-Open Case | D55: 55 | E55: 11-13 | I55: Quarter4
A56: 36 | B56: MH Services Contract Administration | D56: 55 | E56: 14-16 | H56: =IF(SUM(H52:H55)=0,"",AVERAGE(H52:H55)) ->  | I56: Average
A57: 37 | B57: Discounted Mental Health Outreach | D57: 55 | E57: 17-19
A58: 38 | B58: SPMP Case Management,Non-Open Case | D58: 55 | E58: 21-23
A59: 39 | B59: SPMP Program Planning and Development | D59: 55 | E59: 24-26
A61: 41 | B61: Non-SPMP Case Management , Non-Open Case | D61: 55 | E61: 31-34
A62: 42 | B62: Non-SPMP Program Planning and Development | D62: 55 | E62: 35-39
B63: F. SUPPORT SERVICES
A64: 43 | B64: Conservatorship
B65: Investigation | D65: 60 | E65: 20-29 | J65: =IF(H65>0,H65,I65) -> 0
A66: 44 | B66: Administration | D66: 60 | E66: 30-39 | J66: 0
A67: 45 | B67: Life Support / Board & Care | D67: 60 | E67: 40-49 | J67: 0
A68: 46 | B68: Case Management Support | D68: 60 | E68: 60-69 | J68: 0
A69: 47 | B69: Client Housing Support Expenditures | D69: 60 | E69: 70 | J69: 0
A70: 48 | B70: Client Housing Operating Expenditures | D70: 60 | E70: 71 | J70: 0
A71: 49 | B71: Client Flexible Support Expenditures | D71: 60 | E71: 72 | J71: 0
A72: 50 | B72: Non Medi-Cal Capital Assets | D72: 60 | E72: 75 | J72: 0
A73: 51 | B73: Other Non Medi-Cal Client Support Expenditures | D73: 60 | E73: 78 | J73: 0

Sheet LAC CMA
A1: COUNTY OF LOS ANGELES | L1: Department of Mental Health
A2: DETAIL COST REPORT
A3: SCHEDULE OF COUNTYWIDE MAXIMUM ALLOWANCES
A4: LAC CMA | L4: FISCAL YEAR 2019-2020
B5: ="Entity Name: "&Legal_Entity_Name -> Entity Name: | C5: =MH1900_INFO!B7 -> Vermont Mental Health Hospital
B6: ="Entity Number: "&Legal_Entity_Number -> Entity Number: | C6: =MH1900_INFO!B8 -> 00055
D9: A | E9: B | F9: B | G9: B | H9: C | I9: D | J9: D | K9: E | L9: F
E10: SERVICE | F10: SERVICE | G10: SERVICE | I10: STATE | L10: RATE
E11: FUNCTION | F11: FUNCTION | G11: FUNCTION | I11: APPROVED | J11: PUBLISHED | K11: COUNTY | L11: FOR
B12: SERVICE FUNCTION | D12: MODE | E12: CODE | F12: CODE | G12: CODE | H12: CMA | I12: ( NR ) | J12: CHARGE | K12: CONTRACT RATE | L12: ALLOCATION
B13: A. 24 - HOUR SERVICES
A14: 1 | B14: Hospital Inpatient | D14: 05 | E14: 10 - 18 | F14: 10 | G14: 0510 | H14: 1349.67 | J14: =MH1901_Schedule_A!H14 -> 1351 | L14: =IF(I14>0, I14, K14) -> 0
A15: 1 | B15: Hospital Inpatient | D15: 05 | E15: 10 - 18 | F15: 11 | G15: 0511 | H15: =$H$14 -> 1349.67 | J15: =$J$14 -> 1351 | L15: 0
A16: 1 | B16: Hospital Inpatient | D16: 05 | E16: 10 - 18 | F16: 12 | G16: 0512 | H16: 1349.67 | J16: 1351 | L16: 0
A17: 1 | B17: Hospital Inpatient | D17: 05 | E17: 10 - 18 | F17: 13 | G17: 0513 | H17: 1349.67 | J17: 1351 | L17: 0
A18: 1 | B18: Hospital Inpatient | D18: 05 | E18: 10 - 18 | F18: 14 | G18: 0514 | H18: 1349.67 | J18: 1351 | L18: 0
A19: 1 | B19: Hospital Inpatient | D19: 05 | E19: 10 - 18 | F19: 15 | G19: 0515 | H19: 1349.67 | J19: 1351 | L19: 0
A20: 1 | B20: Hospital Inpatient | D20: 05 | E20: 10 - 18 | F20: 16 | G20: 0516 | H20: 1349.67 | J20: 1351 | L20: 0
A21: 1 | B21: Hospital Inpatient | D21: 05 | E21: 10 - 18 | F21: 17 | G21: 0517 | H21: 1349.67 | J21: 1351 | L21: 0
A22: 1 | B22: Hospital Inpatient | D22: 05 | E22: 10 - 18 | F22: 18 | G22: 0518 | H22: 1349.67 | J22: 1351 | L22: 0
A23: 2 | B23: Hospital Administrative Day | D23: 05 | E23: 19 | F23: 19 | G23: 0519 | H23: 455.34 | J23: =MH1901_Schedule_A!H15 -> 600 | L23: 0
A24: 3 | B24: Psychiatric Health Facility (PHF) | D24: 05 | E24: 20 - 29 | F24: 20 | G24: 0520 | H24: 681.06 | J24: =MH1901_Schedule_A!H16 -> 0 | L24: 0
A25: 3 | B25: Psychiatric Health Facility (PHF) | D25: 05 | E25: 20 - 29 | F25: 21 | G25: 0521 | H25: =$H$24 -> 681.06 | J25: =$J$24 -> 0 | L25: 0
A26: 3 | B26: Psychiatric Health Facility (PHF) | D26: 05 | E26: 20 - 29 | F26: 22 | G26: 0522 | H26: 681.06 | J26: 0 | L26: 0
A27: 3 | B27: Psychiatric Health Facility (PHF) | D27: 05 | E27: 20 - 29 | F27: 23 | G27: 0523 | H27: 681.06 | J27: 0 | L27: 0
A28: 3 | B28: Psychiatric Health Facility (PHF) | D28: 05 | E28: 20 - 29 | F28: 24 | G28: 0524 | H28: 681.06 | J28: 0 | L28: 0
A29: 3 | B29: Psychiatric Health Facility (PHF) | D29: 05 | E29: 20 - 29 | F29: 25 | G29: 0525 | H29: 681.06 | J29: 0 | L29: 0
A30: 3 | B30: Psychiatric Health Facility (PHF) | D30: 05 | E30: 20 - 29 | F30: 26 | G30: 0526 | H30: 681.06 | J30: 0 | L30: 0
A31: 3 | B31: Psychiatric Health Facility (PHF) | D31: 05 | E31: 20 - 29 | F31: 27 | G31: 0527 | H31: 681.06 | J31: 0 | L31: 0
A32: 3 | B32: Psychiatric Health Facility (PHF) | D32: 05 | E32: 20 - 29 | F32: 28 | G32: 0528 | H32: 681.06 | J32: 0 | L32: 0
A33: 3 | B33: Psychiatric Health Facility (PHF) | D33: 05 | E33: 20 - 29 | F33: 29 | G33: 0529 | H33: 681.06 | J33: 0 | L33: 0
A34: 4 | B34: SNF Intensive | D34: 05 | E34: 30 -34 | F34: 30 -34 | G34: 30 -34 | J34: =MH1901_Schedule_A!H17 -> 0 | L34: 0
A35: 5 | B35: IMD Basic (No Patch) | D35: 05 | E35: 35 | F35: 35 | G35: 35 | J35: =MH1901_Schedule_A!H18 -> 0 | L35: 0
A36: 6 | B36: IMD (With Patch) | D36: 05 | E36: 36 - 39 | F36: 36 - 39 | G36: 36 - 39 | J36: =MH1901_Schedule_A!H19 -> 0 | L36: 0
A37: 7 | B37: Adult Crisis Residential | D37: 05 | E37: 40 - 49 | F37: 40 | G37: 0540 | H37: 384.05 | J37: =MH1901_Schedule_A!H20 -> 0 | L37: 0
A38: 7 | B38: Adult Crisis Residential | D38: 05 | E38: 40 - 49 | F38: 41 | G38: 0541 | H38: =$H$37 -> 384.05 | J38: =$J$37 -> 0 | L38: 0
A39: 7 | B39: Adult Crisis Residential | D39: 05 | E39: 40 - 49 | F39: 42 | G39: 0542 | H39: 384.05 | J39: 0 | L39: 0
A40: 7 | B40: Adult Crisis Residential | D40: 05 | E40: 40 - 49 | F40: 43 | G40: 0543 | H40: 384.05 | J40: 0 | L40: 0
A41: 7 | B41: Adult Crisis Residential | D41: 05 | E41: 40 - 49 | F41: 44 | G41: 0544 | H41: 384.05 | J41: 0 | L41: 0
A42: 7 | B42: Adult Crisis Residential | D42: 05 | E42: 40 - 49 | F42: 45 | G42: 0545 | H42: 384.05 | J42: 0 | L42: 0
A43: 7 | B43: Adult Crisis Residential | D43: 05 | E43: 40 - 49 | F43: 46 | G43: 0546 | H43: 384.05 | J43: 0 | L43: 0
A44: 7 | B44: Adult Crisis Residential | D44: 05 | E44: 40 - 49 | F44: 47 | G44: 0547 | H44: 384.05 | J44: 0 | L44: 0
A45: 7 | B45: Adult Crisis Residential | D45: 05 | E45: 40 - 49 | F45: 48 | G45: 0548 | H45: 384.05 | J45: 0 | L45: 0
A46: 7 | B46: Adult Crisis Residential | D46: 05 | E46: 40 - 49 | F46: 49 | G46: 0549 | H46: 384.05 | J46: 0 | L46: 0
A47: 8 | B47: Jail Inpatient | D47: 05 | E47: 50 - 59 | F47: 50 - 59 | G47: 50 - 59 | J47: =MH1901_Schedule_A!H21 -> 0 | L47: 0
A48: 9 | B48: Residential Other | D48: 05 | E48: 60 - 64 | F48: 60 - 64 | G48: 60 - 64 | J48: =MH1901_Schedule_A!H22 -> 0 | L48: 0
A49: 10 | B49: Adult Residential | D49: 05 | E49: 65 - 79 | F49: 65 | G49: 0565 | H49: 187.32 | J49: =MH1901_Schedule_A!H23 -> 0 | L49: 0
A50: 10 | B50: Adult Residential | D50: 05 | E50: 65 - 79 | F50: 66 | G50: 0566 | H50: =$H$49 -> 187.32 | J50: =$J$49 -> 0 | L50: 0
A51: 10 | B51: Adult Residential | D51: 05 | E51: 65 - 79 | F51: 67 | G51: 0567 | H51: 187.32 | J51: 0 | L51: 0
A52: 10 | B52: Adult Residential | D52: 05 | E52: 65 - 79 | F52: 68 | G52: 0568 | H52: 187.32 | J52: 0 | L52: 0
A53: 10 | B53: Adult Residential | D53: 05 | E53: 65 - 79 | F53: 69 | G53: 0569 | H53: 187.32 | J53: 0 | L53: 0
A54: 10 | B54: Adult Residential | D54: 05 | E54: 65 - 79 | F54: 70 | G54: 0570 | H54: 187.32 | J54: 0 | L54: 0
A55: 10 | B55: Adult Residential | D55: 05 | E55: 65 - 79 | F55: 71 | G55: 0571 | H55: 187.32 | J55: 0 | L55: 0
A56: 10 | B56: Adult Residential | D56: 05 | E56: 65 - 79 | F56: 72 | G56: 0572 | H56: 187.32 | J56: 0 | L56: 0
A57: 10 | B57: Adult Residential | D57: 05 | E57: 65 - 79 | F57: 73 | G57: 0573 | H57: 187.32 | J57: 0 | L57: 0
A58: 10 | B58: Adult Residential | D58: 05 | E58: 65 - 79 | F58: 74 | G58: 0574 | H58: 187.32 | J58: 0 | L58: 0
A59: 10 | B59: Adult Residential | D59: 05 | E59: 65 - 79 | F59: 75 | G59: 0575 | H59: 187.32 | J59: 0 | L59: 0
A60: 10 | B60: Adult Residential | D60: 05 | E60: 65 - 79 | F60: 76 | G60: 0576 | H60: 187.32 | J60: 0 | L60: 0
A61: 10 | B61: Adult Residential | D61: 05 | E61: 65 - 79 | F61: 77 | G61: 0577 | H61: 187.32 | J61: 0 | L61: 0
A62: 10 | B62: Adult Residential | D62: 05 | E62: 65 - 79 | F62: 78 | G62: 0578 | H62: 187.32 | J62: 0 | L62: 0
A63: 10 | B63: Adult Residential | D63: 05 | E63: 65 - 79 | F63: 79 | G63: 0579 | H63: 187.32 | J63: 0 | L63: 0
A64: 11 | B64: Semi - Supervised Living | D64: 05 | E64: 80 - 84 | F64: 80 - 84 | G64: 80 - 84 | J64: =MH1901_Schedule_A!H24 -> 0 | L64: 0
A65: 12 | B65: Independent Living | D65: 05 | E65: 85 - 89 | F65: 85 - 89 | G65: 85 - 89 | J65: =MH1901_Schedule_A!H25 -> 0 | L65: 0
A66: 13 | B66: MH Rehab Centers | D66: 05 | E66: 90 - 94 | F66: 90 - 94 | G66: 90 - 94 | J66: =MH1901_Schedule_A!H26 -> 0 | L66: 0
A67: 14 | B67: Therapeutic Foster Care | D67: 05 | E67: 95 - 98 | F67: 95 - 98 | G67: 95 - 98 | J67: =MH1901_Schedule_A!H27 -> 0
B68: B. DAY SERVICES
A69: 15 | B69: Crisis Stabilization
B70: Emergency Room | D70: 10 | E70: 20 - 24 | F70: 20 | G70: 1020 | H70: 113.45 | J70: =MH1901_Schedule_A!H30 -> 0 | L70: =IF(I70>0, I70, K70) -> 0
A71: 15 | B71: Emergency Room | D71: 10 | E71: 20 - 24 | F71: 21 | G71: 1021 | H71: =$H$70 -> 113.45 | J71: =$J$70 -> 0 | L71: 0
A72: 15 | B72: Emergency Room | D72: 10 | E72: 20 - 24 | F72: 22 | G72: 1022 | H72: =$H$70 -> 113.45 | J72: =$J$70 -> 0 | L72: 0
A73: 15 | B73: Emergency Room | D73: 10 | E73: 20 - 24 | F73: 23 | G73: 1023 | H73: =$H$70 -> 113.45 | J73: =$J$70 -> 0 | L73: 0
A74: 15 | B74: Emergency Room | D74: 10 | E74: 20 - 24 | F74: 24 | G74: 1024 | H74: =$H$70 -> 113.45 | J74: =$J$70 -> 0 | L74: 0
A75: 16 | B75: Urgent Care | D75: 10 | E75: 25 - 29 | F75: 25 | G75: 1025 | H75: 113.45 | J75: =MH1901_Schedule_A!H31 -> 0 | L75: 0
A76: 16 | B76: Urgent Care | D76: 10 | E76: 25 - 29 | F76: 26 | G76: 1026 | H76: =$H$75 -> 113.45 | J76: =$J$75 -> 0 | L76: 0
A77: 16 | B77: Urgent Care | D77: 10 | E77: 25 - 29 | F77: 27 | G77: 1027 | H77: =$H$75 -> 113.45 | J77: =$J$75 -> 0 | L77: 0
A78: 16 | B78: Urgent Care | D78: 10 | E78: 25 - 29 | F78: 28 | G78: 1028 | H78: =$H$75 -> 113.45 | J78: =$J$75 -> 0 | L78: 0
A79: 16 | B79: Urgent Care | D79: 10 | E79: 25 - 29 | F79: 29 | G79: 1029 | H79: =$H$75 -> 113.45 | J79: =$J$75 -> 0 | L79: 0
A80: 17 | B80: Vocational Services | D80: 10 | E80: 30 - 39 | F80: 30 - 39 | G80: 30 - 39 | J80: =MH1901_Schedule_A!H32 -> 0 | L80: 0
A81: 18 | B81: Socialization | D81: 10 | E81: 40 - 49 | F81: 40 - 49 | G81: 40 - 49 | J81: =MH1901_Schedule_A!H33 -> 0 | L81: 0
A82: 19 | B82: SNF Augmentation | D82: 10 | E82: 60 - 69 | F82: 60 - 69 | G82: 60 - 69 | J82: =MH1901_Schedule_A!H34 -> 0 | L82: 0
A83: 20 | B83: Day Treatment Intensive | D83: 10 | E83: 81 - 84 | H83: 169.26 | J83: =MH1901_Schedule_A!H35 -> 0 | L83: 0
B84: Half Day | F84: 81 | G84: 1081
A85: 20 | B85: Half Day | D85: 10 | E85: 81 - 84 | F85: 82 | G85: 1082 | H85: =$H$83 -> 169.26 | J85: =$J$83 -> 0
A86: 20 | B86: Half Day | D86: 10 | E86: 81 - 84 | F86: 83 | G86: 1083 | H86: =$H$83 -> 169.26 | J86: =$J$83 -> 0
A87: 20 | B87: Half Day | D87: 10 | E87: 81 - 84 | F87: 84 | G87: 1084 | H87: =$H$83 -> 169.26 | J87: =$J$83 -> 0
A88: 21 | B88: Full Day | D88: 10 | E88: 85 - 89 | F88: 85 | G88: 1085 | H88: 237.72 | J88: =MH1901_Schedule_A!H37 -> 245 | L88: =IF(I88>0, I88, K88) -> 0
A89: 21 | B89: Full Day | D89: 10 | E89: 85 - 89 | F89: 86 | G89: 1086 | H89: =$H$88 -> 237.72 | J89: =$J$88 -> 245 | L89: 0
A90: 21 | B90: Full Day | D90: 10 | E90: 85 - 89 | F90: 87 | G90: 1087 | H90: =$H$88 -> 237.72 | J90: =$J$88 -> 245 | L90: 0
A91: 21 | B91: Full Day | D91: 10 | E91: 85 - 89 | F91: 88 | G91: 1088 | H91: =$H$88 -> 237.72 | J91: =$J$88 -> 245 | L91: 0
A92: 21 | B92: Full Day | D92: 10 | E92: 85 - 89 | F92: 89 | G92: 1089 | H92: =$H$88 -> 237.72 | J92: =$J$88 -> 245 | L92: 0
A93: 22 | B93: Day Rehabilitation | D93: 10 | E93: 91 - 94 | H93: 100.91 | J93: =MH1901_Schedule_A!H38 -> 0 | L93: 0
B94: Half Day | F94: 91 | G94: 1091
A95: 22 | B95: Half Day | D95: 10 | E95: 91 - 94 | F95: 92 | G95: 1092 | H95: =$H$93 -> 100.91 | J95: =$J$93 -> 0
A96: 22 | B96: Half Day | D96: 10 | E96: 91 - 94 | F96: 93 | G96: 1093 | H96: =$H$93 -> 100.91 | J96: =$J$93 -> 0
A97: 22 | B97: Half Day | D97: 10 | E97: 91 - 94 | F97: 94 | G97: 1094 | H97: =$H$93 -> 100.91 | J97: =$J$93 -> 0
A98: 23 | B98: Full Day | D98: 10 | E98: 95 - 99 | F98: 95 | G98: 1095 | H98: 157.49 | J98: =MH1901_Schedule_A!H40 -> 0 | L98: =IF(I98>0, I98, K98) -> 0
A99: 23 | B99: Full Day | D99: 10 | E99: 95 - 99 | F99: 96 | G99: 1096 | H99: =$H$98 -> 157.49 | J99: =$J$98 -> 0 | L99: =IF(I99>0, I99, K99) -> 0
A100: 23 | B100: Full Day | D100: 10 | E100: 95 - 99 | F100: 97 | G100: 1097 | H100: =$H$98 -> 157.49 | J100: =$J$98 -> 0 | L100: =IF(I100>0, I100, K100) -> 0
A101: 23 | B101: Full Day | D101: 10 | E101: 95 - 99 | F101: 98 | G101: 1098 | H101: =$H$98 -> 157.49 | J101: =$J$98 -> 0 | L101: =IF(I101>0, I101, K101) -> 0
A102: 23 | B102: Full Day | D102: 10 | E102: 95 - 99 | F102: 99 | G102: 1099 | H102: =$H$98 -> 157.49 | J102: =$J$98 -> 0 | L102: =IF(I102>0, I102, K102) -> 0
B103: C. OUTPATIENT SERVICES
A104: 24 | B104: Case Management, Brokerage | D104: 15 | E104: 01 - 09 | F104: 01 | G104: 1501 | H104: 2.42 | J104: =MH1901_Schedule_A!H42 -> 3 | L104: =IF(I104>0, I104, K104) -> 0
A105: 24 | B105: Case Management, Brokerage | D105: 15 | E105: 01 - 09 | F105: 02 | G105: 1502 | H105: =$H$104 -> 2.42 | J105: =$J$104 -> 3 | L105: 0
A106: 24 | B106: Case Management, Brokerage | D106: 15 | E106: 01 - 09 | F106: 03 | G106: 1503 | H106: =$H$104 -> 2.42 | J106: 3 | L106: 0
A107: 24 | B107: Case Management, Brokerage | D107: 15 | E107: 01 - 09 | F107: 04 | G107: 1504 | H107: 2.42 | J107: 3 | L107: 0
A108: 24 | B108: Case Management, Brokerage | D108: 15 | E108: 01 - 09 | F108: 05 | G108: 1505 | H108: 2.42 | J108: 3 | L108: 0
A109: 24 | B109: Case Management, Brokerage | D109: 15 | E109: 01 - 09 | F109: 06 | G109: 1506 | H109: 2.42 | J109: 3 | L109: 0
A110: 24 | B110: Case Management, Brokerage | D110: 15 | E110: 01 - 09 | F110: 07 | G110: 1507 | H110: 2.42 | J110: 3 | L110: 0
A111: 24 | B111: Case Management, Brokerage | D111: 15 | E111: 01 - 09 | F111: 08 | G111: 1508 | H111: 2.42 | J111: 3 | L111: 0
A112: 24 | B112: Case Management, Brokerage | D112: 15 | E112: 01 - 09 | F112: 09 | G112: 1509 | H112: 2.42 | J112: 3 | L112: 0
A113: 25 | B113: Mental Health Services | D113: 15 | E113: 10 - 19 | F113: 10 | G113: 1510 | H113: 3.14 | J113: =MH1901_Schedule_A!H43 -> 4 | L113: 0
A114: 25 | B114: Mental Health Services | D114: 15 | E114: 10 - 19 | F114: 11 | G114: 1511 | H114: =$H$113 -> 3.14 | J114: =$J$113 -> 4 | L114: 0
A115: 25 | B115: Mental Health Services | D115: 15 | E115: 10 - 19 | F115: 12 | G115: 1512 | H115: =$H$113 -> 3.14 | J115: 4 | L115: 0
A116: 25 | B116: Mental Health Services | D116: 15 | E116: 10 - 19 | F116: 13 | G116: 1513 | H116: 3.14 | J116: 4 | L116: 0
A117: 25 | B117: Mental Health Services | D117: 15 | E117: 10 - 19 | F117: 14 | G117: 1514 | H117: 3.14 | J117: 4 | L117: 0
A118: 25 | B118: Mental Health Services | D118: 15 | E118: 10 - 19 | F118: 15 | G118: 1515 | H118: 3.14 | J118: 4 | L118: 0
A119: 25 | B119: Mental Health Services | D119: 15 | E119: 10 - 19 | F119: 16 | G119: 1516 | H119: 3.14 | J119: 4 | L119: 0
A120: 25 | B120: Mental Health Services | D120: 15 | E120: 10 - 19 | F120: 17 | G120: 1517 | H120: 3.14 | J120: 4 | L120: 0
A121: 25 | B121: Mental Health Services | D121: 15 | E121: 10 - 19 | F121: 18 | G121: 1518 | H121: 3.14 | J121: 4 | L121: 0
A122: 25 | B122: Mental Health Services | D122: 15 | E122: 10 - 19 | F122: 19 | G122: 1519 | H122: 3.14 | J122: 4 | L122: 0
A123: 26 | B123: Mental Health Services | D123: 15 | E123: 30 - 59 | F123: 30 | G123: 1530 | H123: 3.14 | J123: =MH1901_Schedule_A!H44 -> 4 | L123: 0
A124: 26 | B124: Mental Health Services | D124: 15 | E124: 30 - 59 | F124: 31 | G124: 1531 | H124: =$H$123 -> 3.14 | J124: =$J$123 -> 4 | L124: 0
A125: 26 | B125: Mental Health Services | D125: 15 | E125: 30 - 59 | F125: 32 | G125: 1532 | H125: =$H$123 -> 3.14 | J125: 4 | L125: 0
A126: 26 | B126: Mental Health Services | D126: 15 | E126: 30 - 59 | F126: 33 | G126: 1533 | H126: 3.14 | J126: 4 | L126: 0
A127: 26 | B127: Mental Health Services | D127: 15 | E127: 30 - 59 | F127: 34 | G127: 1534 | H127: 3.14 | J127: 4 | L127: 0
A128: 26 | B128: Mental Health Services | D128: 15 | E128: 30 - 59 | F128: 35 | G128: 1535 | H128: 3.14 | J128: 4 | L128: 0
A129: 26 | B129: Mental Health Services | D129: 15 | E129: 30 - 59 | F129: 36 | G129: 1536 | H129: 3.14 | J129: 4 | L129: 0
A130: 26 | B130: Mental Health Services | D130: 15 | E130: 30 - 59 | F130: 37 | G130: 1537 | H130: 3.14 | J130: 4 | L130: 0
A131: 26 | B131: Mental Health Services | D131: 15 | E131: 30 - 59 | F131: 38 | G131: 1538 | H131: 3.14 | J131: 4 | L131: 0
A132: 26 | B132: Mental Health Services | D132: 15 | E132: 30 - 59 | F132: 39 | G132: 1539 | H132: 3.14 | J132: 4 | L132: 0
A133: 26 | B133: Mental Health Services | D133: 15 | E133: 30 - 59 | F133: 40 | G133: 1540 | H133: 3.14 | J133: 4 | L133: 0
A134: 26 | B134: Mental Health Services | D134: 15 | E134: 30 - 59 | F134: 41 | G134: 1541 | H134: 3.14 | J134: 4 | L134: 0
A135: 26 | B135: Mental Health Services | D135: 15 | E135: 30 - 59 | F135: 42 | G135: 1542 | H135: 3.14 | J135: 4 | L135: 0
A136: 26 | B136: Mental Health Services | D136: 15 | E136: 30 - 59 | F136: 43 | G136: 1543 | H136: 3.14 | J136: 4 | L136: 0
A137: 26 | B137: Mental Health Services | D137: 15 | E137: 30 - 59 | F137: 44 | G137: 1544 | H137: 3.14 | J137: 4 | L137: 0
A138: 26 | B138: Mental Health Services | D138: 15 | E138: 30 - 59 | F138: 45 | G138: 1545 | H138: 3.14 | J138: 4 | L138: 0
A139: 26 | B139: Mental Health Services | D139: 15 | E139: 30 - 59 | F139: 46 | G139: 1546 | H139: 3.14 | J139: 4 | L139: 0
A140: 26 | B140: Mental Health Services | D140: 15 | E140: 30 - 59 | F140: 47 | G140: 1547 | H140: 3.14 | J140: 4 | L140: 0
A141: 26 | B141: Mental Health Services | D141: 15 | E141: 30 - 59 | F141: 48 | G141: 1548 | H141: 3.14 | J141: 4 | L141: 0
A142: 26 | B142: Mental Health Services | D142: 15 | E142: 30 - 59 | F142: 49 | G142: 1549 | H142: 3.14 | J142: 4 | L142: 0
A143: 26 | B143: Mental Health Services | D143: 15 | E143: 30 - 59 | F143: 50 | G143: 1550 | H143: 3.14 | J143: 4 | L143: 0
A144: 26 | B144: Mental Health Services | D144: 15 | E144: 30 - 59 | F144: 51 | G144: 1551 | H144: 3.14 | J144: 4 | L144: 0
A145: 26 | B145: Mental Health Services | D145: 15 | E145: 30 - 59 | F145: 52 | G145: 1552 | H145: 3.14 | J145: 4 | L145: 0
A146: 26 | B146: Mental Health Services | D146: 15 | E146: 30 - 59 | F146: 53 | G146: 1553 | H146: 3.14 | J146: 4 | L146: 0
A147: 26 | B147: Mental Health Services | D147: 15 | E147: 30 - 59 | F147: 54 | G147: 1554 | H147: 3.14 | J147: 4 | L147: 0
A148: 26 | B148: Mental Health Services | D148: 15 | E148: 30 - 59 | F148: 55 | G148: 1555 | H148: 3.14 | J148: 4 | L148: 0
A149: 26 | B149: Mental Health Services | D149: 15 | E149: 30 - 59 | F149: 56 | G149: 1556 | H149: 3.14 | J149: 4 | L149: 0
A150: 26 | B150: Mental Health Services | D150: 15 | E150: 30 - 59 | F150: 57 | G150: 1557 | H150: 3.14 | J150: 4 | L150: 0
A151: 26 | B151: Mental Health Services | D151: 15 | E151: 30 - 59 | F151: 58 | G151: 1558 | H151: 3.14 | J151: 4 | L151: 0
A152: 26 | B152: Mental Health Services | D152: 15 | E152: 30 - 59 | F152: 59 | G152: 1559 | H152: 3.14 | J152: 4 | L152: 0
A153: 27 | B153: Medication Support | D153: 15 | E153: 60 - 69 | F153: 60 | G153: 1560 | H153: 5.78 | J153: =MH1901_Schedule_A!H45 -> 6 | L153: 0
A154: 27 | B154: Medication Support | D154: 15 | E154: 60 - 69 | F154: 61 | G154: 1561 | H154: =$H$153 -> 5.78 | J154: =$J$153 -> 6 | L154: 0
A155: 27 | B155: Medication Support | D155: 15 | E155: 60 - 69 | F155: 62 | G155: 1562 | H155: =$H$153 -> 5.78 | J155: =$J$153 -> 6 | L155: 0
A156: 27 | B156: Medication Support | D156: 15 | E156: 60 - 69 | F156: 63 | G156: 1563 | H156: 5.78 | J156: 6 | L156: 0
A157: 27 | B157: Medication Support | D157: 15 | E157: 60 - 69 | F157: 64 | G157: 1564 | H157: 5.78 | J157: 6 | L157: 0
A158: 27 | B158: Medication Support | D158: 15 | E158: 60 - 69 | F158: 65 | G158: 1565 | H158: 5.78 | J158: 6 | L158: 0
A159: 27 | B159: Medication Support | D159: 15 | E159: 60 - 69 | F159: 66 | G159: 1566 | H159: 5.78 | J159: 6 | L159: 0
A160: 27 | B160: Medication Support | D160: 15 | E160: 60 - 69 | F160: 67 | G160: 1567 | H160: 5.78 | J160: 6 | L160: 0
A161: 27 | B161: Medication Support | D161: 15 | E161: 60 - 69 | F161: 68 | G161: 1568 | H161: 5.78 | J161: 6 | L161: 0
A162: 27 | B162: Medication Support | D162: 15 | E162: 60 - 69 | F162: 69 | G162: 1569 | H162: 5.78 | J162: 6 | L162: 0
A163: 28 | B163: Crisis Intervention | D163: 15 | E163: 70 - 79 | F163: 70 | G163: 1570 | H163: 4.66 | J163: =MH1901_Schedule_A!H46 -> 5 | L163: 0
A164: 28 | B164: Crisis Intervention | D164: 15 | E164: 70 - 79 | F164: 71 | G164: 1571 | H164: =$H$163 -> 4.66 | J164: =$J$163 -> 5 | L164: 0
A165: 28 | B165: Crisis Intervention | D165: 15 | E165: 70 - 79 | F165: 72 | G165: 1572 | H165: =$H$163 -> 4.66 | J165: 5 | L165: 0
A166: 28 | B166: Crisis Intervention | D166: 15 | E166: 70 - 79 | F166: 73 | G166: 1573 | H166: 4.66 | J166: 5 | L166: 0
A167: 28 | B167: Crisis Intervention | D167: 15 | E167: 70 - 79 | F167: 74 | G167: 1574 | H167: 4.66 | J167: 5 | L167: 0
A168: 28 | B168: Crisis Intervention | D168: 15 | E168: 70 - 79 | F168: 75 | G168: 1575 | H168: 4.66 | J168: 5 | L168: =IF(I168>0, I168, K168) -> 0
A169: 28 | B169: Crisis Intervention | D169: 15 | E169: 70 - 79 | F169: 76 | G169: 1576 | H169: 4.66 | J169: 5 | L169: =IF(I169>0, I169, K169) -> 0
A170: 28 | B170: Crisis Intervention | D170: 15 | E170: 70 - 79 | F170: 77 | G170: 1577 | H170: 4.66 | J170: 5 | L170: =IF(I170>0, I170, K170) -> 0
A171: 28 | B171: Crisis Intervention | D171: 15 | E171: 70 - 79 | F171: 78 | G171: 1578 | H171: 4.66 | J171: 5 | L171: =IF(I171>0, I171, K171) -> 0
A172: 28 | B172: Crisis Intervention | D172: 15 | E172: 70 - 79 | F172: 79 | G172: 1579 | H172: 4.66 | J172: 5 | L172: =IF(I172>0, I172, K172) -> 0
B173: D. OUTREACH SERVICES
A174: 29 | B174: Mental Health Promotion | D174: 45 | E174: 10 - 19 | F174: 10 - 19 | G174: 10 - 19 | J174: =MH1901_Schedule_A!H48 -> 50 | L174: =IF(I174>0, I174, K174) -> 0
A175: 30 | B175: Community Client Services | D175: 45 | E175: 20 - 29 | F175: 20 - 29 | G175: 20 - 29 | J175: =MH1901_Schedule_A!H49 -> 50 | L175: =IF(I175>0, I175, K175) -> 0
B176: E. MEDI-CAL ADMINISTRATIVE ACTIVITIES | I176: MEDI-CAL ELIGIBILITY FACTOR
A177: 31 | B177: Medi-Cal Outreach | D177: 55 | E177: 01 - 03 | F177: 01 - 03 | G177: 01 - 03
A178: 32 | B178: Medi-Cal Eligibility Intake | D178: 55 | E178: 04 - 06 | F178: 04 - 06 | G178: 04 - 06 | I178: Quarter 1 | K178: Quarter 1
A179: 33 | B179: Medi-Cal Contract Administration | D179: 55 | E179: 07 - 08 | F179: 07 - 08 | G179: 07 - 08 | I179: Quarter 2 | K179: Quarter 2
A180: 34 | B180: MAA Coordination and Claims Administration | D180: 55 | E180: 09 | F180: 09 | G180: 09 | I180: Quarter 3 | K180: Quarter 3
A181: 35 | B181: Referral - Crisis, Non-Open Case | D181: 55 | E181: 11 - 13 | F181: 11 - 13 | G181: 11 - 13 | I181: Quarter 4 | K181: Quarter 4
A182: 36 | B182: MH Services Contract Administration | D182: 55 | E182: 14 - 16 | F182: 14 - 16 | G182: 14 - 16 | I182: Average | J182: =IF(SUM(J178:J181)=0,"",AVERAGE(J178:J181)) ->  | K182: Average
A183: 37 | B183: Discounted Mental Health Outreach | D183: 55 | E183: 17 - 19 | F183: 17 - 19 | G183: 17 - 19
A184: 38 | B184: SPMP Case Management, Non-Open Case | D184: 55 | E184: 21 - 23 | F184: 21 - 23 | G184: 21 - 23
A185: 39 | B185: SPMP Program Planning and Development | D185: 55 | E185: 24 - 26 | F185: 24 - 26 | G185: 24 - 26
A186: 40 | B186: SPMP MAA Training | D186: 55 | E186: 27 - 29 | F186: 27 - 29 | G186: 27 - 29
A187: 41 | B187: Non-SPMP Case Management, Non-Open Case | D187: 55 | E187: 31 - 34 | F187: 31 - 34 | G187: 31 - 34
A188: 42 | B188: Non-SPMP Program Planning and Development | D188: 55 | E188: 35 - 39 | F188: 35 - 39 | G188: 35 - 39
B189: F. SUPPORT SERVICES
A190: 43 | B190: Conservatorship
B191: Investigation | D191: 60 | E191: 20 - 29 | F191: 20 - 29 | G191: 20 - 29 | L191: =IF(I191>0, I191, K191) -> 0
A192: 44 | B192: Administration | D192: 60 | E192: 30 - 39 | F192: 30 - 39 | G192: 30 - 39 | L192: 0
A193: 45 | B193: Life Support/Board & Care | D193: 60 | E193: 40 - 49 | F193: 40 - 49 | G193: 40 - 49 | L193: 0
A194: 46 | B194: Case Management Support | D194: 60 | E194: 60 - 69 | F194: 60 - 69 | G194: 60 - 69 | L194: 0
A195: 47 | B195: Client Housing Support Expenditures | D195: 60 | E195: 70 | F195: 70 | G195: 70 | L195: 0
A196: 48 | B196: Client Housing Operating Expenditures | D196: 60 | E196: 71 | F196: 71 | G196: 71 | L196: 0
A197: 49 | B197: Client Flexible Support Expenditures | D197: 60 | E197: 72 | F197: 72 | G197: 72 | L197: 0
A198: 50 | B198: Non Medi-Cal Capital Assets | D198: 60 | E198: 75 | F198: 75 | G198: 75 | L198: 0
A199: 51 | B199: Other Non Medi-Cal Client Support Expenditures | D199: 60 | E199: 78 | F199: 78 | G199: 78 | L199: =IF(I199>0, I199, K199) -> 0

Sheet LAC101
A1: COUNTY OF LOS ANGELES - DEPARTMENT OF MENTAL HEALTH
A3: SUPPLEMENTAL DETAIL TO MH 1960
A4: LAC 101 - (01/19)
C6: Entity Name | D6: =MH1900_INFO!B7 -> Vermont Mental Health Hospital | H6: Fiscal Year | I6: =Setup!B4 -> 2019 - 2020
C8: Entity Number | D8: =MH1900_INFO!B8 -> 00055
G11: 1 | H11: 2 | I11: 3
G12: Salaries | I12: Total
B13: NON HOSPITAL LEGAL ENTITIES | G13: and | H13: Other | I13: Cost
G14: Benefits
B15: Distribution of Total Cost
A16: 1 | B16: Total Agency Costs per Trial Balance | G16: 13053800 | H16: 6579602 | I16: =SUM(G16:H16) -> 19633402
A17: 2 | B17: LESS: Administrative Costs | G17: 1490414 | H17: 3097097 | I17: =SUM(G17:H17) -> 4587511
A18: 3 | B18: LESS: Unallowable Costs | I18: =SUM(G18:H18) -> 0
A19: 4 | B19: LESS: Program Costs Not Applicable to DMH Contracted Svcs. | G19: 70000 | I19: =SUM(G19:H19) -> 70000
A20: 5 | B20: Program Costs Applicable to DMH Contracted Services (Line 1 minus Lines 2 thru 4) | G20: =G16-SUM(G17:G19) -> 11493386 | H20: =H16-SUM(H17:H19) -> 3482505 | I20: =SUM(G20:H20) -> 14975891
B21: Allocation of Administrative Costs
A22: 6 | B22: Total Administrative Costs (From Line 2) | G22: =G17 -> 1490414 | H22: =H17 -> 3097097 | I22: =SUM(G22:H22) -> 4587511
A23: 7 | B23: LESS: Unallowable Admin. Costs | I23: =SUM(G23:H23) -> 0
A24: 8 | B24: LESS: Admin. Costs Not Applicable to DMH Contracted Services | G24: 7000 | I24: =SUM(G24:H24) -> 7000
A25: 9 | B25: Total Admin. Costs Applicable to DMH Contracted Srvcs. (Line 6 minus Lines 7 & 8) | G25: =G22-SUM(G23:G24) -> 1483414 | H25: =H22-SUM(H23:H24) -> 3097097 | I25: =SUM(G25:H25) -> 4580511
B26: Total Cost after Administrative Cost Allocation
A27: 10 | B27: Total Agency Costs Per Trial Balance (From Line 1) | G27: =G16 -> 13053800 | H27: =H16 -> 6579602 | I27: =SUM(G27:H27) -> 19633402
A28: 11 | B28: LESS: Unallowable Costs (Line 3 plus Line 7) | G28: =G18+G23 -> 0 | H28: =H18+H23 -> 0 | I28: 0
A29: 12 | B29: LESS: Costs Not Applicable to DMH Contracted Svcs. (Line 4 plus Line 8) | G29: =G19+G24 -> 77000 | H29: =H19+H24 -> 0 | I29: =SUM(G29:H29) -> 77000
A30: 13 | B30: Total Costs Applicable to DMH Contracted Services (Line 10 minus Lines 11 & 12) | G30: =G27-G28-G29 -> 12976800 | H30: =H27-H28-H29 -> 6579602 | I30: 19556402
A31: 14 | B31: PLUS: SD/MC Adjustments (Tie to MH 1961) | G31: -3000 | I31: ='MH1961'!E30 -> -3000 | J31: =IF(ABS(G31+H31-I31)>1, "Error, please check MH1961","") -> 
A32: 15 | B32: Allowable Costs to be Allocated to Modes/SFC (Line 13 plus Line 14) | G32: =G31+G30 -> 12973800 | H32: =H31+H30 -> 6579602 | I32: 19553402 | J32: =IF(ABS(I32-MH1901_Schedule_C!L11)>2, "Error, please check MH1901 Schedule C Total Non-Hospital Costs","") -> 
A37: HOSPITAL LEGAL ENTITIES | G37: 1 | H37: 2 | I37: 3
G38: Salaries | I38: Total
G39: and | H39: Other | I39: Cost
G40: Benefits
B42: Hospital Modes Costs (MH 1901 Schedule C Total Hospital Costs) | I42: =MH1901_Schedule_C!K118 -> 14674653.86

Sheet LAC102
F1: COUNTY OF LOS ANGELES - DEPARTMENT OF MENTAL HEALTH | AZ1: COUNTY OF LOS ANGELES - DEPARTMENT OF MENTAL HEALTH | CT1: COUNTY OF LOS ANGELES - DEPARTMENT OF MENTAL HEALTH | EN1: COUNTY OF LOS ANGELES - DEPARTMENT OF MENTAL HEALTH | GH1: COUNTY OF LOS ANGELES - DEPARTMENT OF MENTAL HEALTH | IB1: COUNTY OF LOS ANGELES - DEPARTMENT OF MENTAL HEALTH | JV1: COUNTY OF LOS ANGELES - DEPARTMENT OF MENTAL HEALTH | LP1: COUNTY OF LOS ANGELES - DEPARTMENT OF MENTAL HEALTH | NJ1: COUNTY OF LOS ANGELES - DEPARTMENT OF MENTAL HEALTH | PD1: COUNTY OF LOS ANGELES - DEPARTMENT OF MENTAL HEALTH | QX1: COUNTY OF LOS ANGELES - DEPARTMENT OF MENTAL HEALTH | TO1: COUNTY OF LOS ANGELES - DEPARTMENT OF MENTAL HEALTH | VI1: COUNTY OF LOS ANGELES - DEPARTMENT OF MENTAL HEALTH | XC1: COUNTY OF LOS ANGELES - DEPARTMENT OF MENTAL HEALTH | YW1: COUNTY OF LOS ANGELES - DEPARTMENT OF MENTAL HEALTH | AAQ1: COUNTY OF LOS ANGELES - DEPARTMENT OF MENTAL HEALTH | ACS1: COUNTY OF LOS ANGELES - DEPARTMENT OF MENTAL HEALTH
F2: SUPPLEMENTAL DETAIL TO MH 1901 SCHEDULE B | AZ2: SUPPLEMENTAL DETAIL TO MH 1901 SCHEDULE B | CT2: SUPPLEMENTAL DETAIL TO MH 1901 SCHEDULE B | EN2: SUPPLEMENTAL DETAIL TO MH 1901 SCHEDULE B | GH2: SUPPLEMENTAL DETAIL TO MH 1901 SCHEDULE B | IB2: SUPPLEMENTAL DETAIL TO MH 1901 SCHEDULE B | JV2: SUPPLEMENTAL DETAIL TO MH 1901 SCHEDULE B | LP2: SUPPLEMENTAL DETAIL TO MH 1901 SCHEDULE B | NJ2: SUPPLEMENTAL DETAIL TO MH 1901 SCHEDULE B | PD2: SUPPLEMENTAL DETAIL TO MH 1901 SCHEDULE B | QX2: SUPPLEMENTAL DETAIL TO MH 1901 SCHEDULE B | TO2: SUPPLEMENTAL DETAIL TO MH 1901 SCHEDULE B | VI2: SUPPLEMENTAL DETAIL TO MH 1901 SCHEDULE B | XC2: SUPPLEMENTAL DETAIL TO MH 1901 SCHEDULE B | YW2: SUPPLEMENTAL DETAIL TO MH 1901 SCHEDULE B | AAQ2: SUPPLEMENTAL DETAIL TO MH 1901 SCHEDULE B | ACS2: SUPPLEMENTAL DETAIL TO MH 1901 SCHEDULE B
F3: LAC 102 - (01/19) | AZ3: =$F$3 -> LAC 102 - (01/19) | CT3: =F3 -> LAC 102 - (01/19) | EN3: =F3 -> LAC 102 - (01/19) | GH3: =F3 -> LAC 102 - (01/19) | IB3: =F3 -> LAC 102 - (01/19) | JV3: =F3 -> LAC 102 - (01/19) | LP3: =F3 -> LAC 102 - (01/19) | NJ3: =F3 -> LAC 102 - (01/19) | PD3: =F3 -> LAC 102 - (01/19) | QX3: =$F$3 -> LAC 102 - (01/19) | TO3: =$F$3 -> LAC 102 - (01/19) | VI3: =$F$3 -> LAC 102 - (01/19) | XC3: =$F$3 -> LAC 102 - (01/19) | YW3: =$F$3 -> LAC 102 - (01/19) | AAQ3: =$F$3 -> LAC 102 - (01/19) | ACS3: =$F$3 -> LAC 102 - (01/19)
F5: Entity Name | H5: =MH1900_INFO!B7 -> Vermont Mental Health Hospital | AZ5: Entity Name | BB5: =$H$5 -> Vermont Mental Health Hospital | CT5: Entity Name | CV5: =H5 -> Vermont Mental Health Hospital | EN5: Entity Name | EP5: =H5 -> Vermont Mental Health Hospital | GH5: Entity Name | GJ5: =H5 -> Vermont Mental Health Hospital | IB5: Entity Name | ID5: =H5 -> Vermont Mental Health Hospital | JV5: Entity Name | JX5: =H5 -> Vermont Mental Health Hospital | LP5: Entity Name | LR5: =H5 -> Vermont Mental Health Hospital | NJ5: Entity Name | NL5: =H5 -> Vermont Mental Health Hospital | PD5: Entity Name | PF5: =H5 -> Vermont Mental Health Hospital | QX5: Entity Name | QZ5: =$H$5 -> Vermont Mental Health Hospital | TO5: Entity Name | TQ5: =$H$5 -> Vermont Mental Health Hospital | VI5: Entity Name | VK5: =$H$5 -> Vermont Mental Health Hospital | XC5: Entity Name | XE5: =$H$5 -> Vermont Mental Health Hospital | YW5: Entity Name | YY5: =$H$5 -> Vermont Mental Health Hospital | AAQ5: Entity Name | AAS5: =$H$5 -> Vermont Mental Health Hospital | ACS5: Entity Name | ACU5: =$H$5 -> Vermont Mental Health Hospital | ADO5: 363105.7778
ACZ6: 37194 | ADO6: 363106 | ADQ6: 1523965.778 | ADT6: 0 | ADZ6: -1
F7: Entity Number | H7: =MH1900_INFO!B8 -> 00055 | AZ7: Entity Number | BB7: =$H$7 -> 00055 | CT7: Entity Number | CV7: =H7 -> 00055 | EN7: Entity Number | EP7: =H7 -> 00055 | GH7: Entity Number | GJ7: =H7 -> 00055 | IB7: Entity Number | ID7: =H7 -> 00055 | JV7: Entity Number | JX7: =H7 -> 00055 | LP7: Entity Number | LR7: =H7 -> 00055 | NJ7: Entity Number | NL7: =H7 -> 00055 | PD7: Entity Number | PF7: =H7 -> 00055 | QX7: Entity Number | QZ7: =$H$7 -> 00055 | TO7: Entity Number | TQ7: =$H$7 -> 00055 | VI7: Entity Number | VK7: =$H$7 -> 00055 | XC7: Entity Number | XE7: =$H$7 -> 00055 | YW7: Entity Number | YY7: =$H$7 -> 00055 | AAQ7: Entity Number | AAS7: =$H$7 -> 00055 | ACS7: Entity Number | ACU7: =$H$7 -> 00055 | ADK7: 0 | ADQ7: 1523966
ADT8: -0.3333333333
F9: Fiscal Year | H9: =Setup!B4 -> 2019 - 2020 | AZ9: Fiscal Year | BB9: =$H$9 -> 2019 - 2020 | CT9: Fiscal Year | CV9: =H9 -> 2019 - 2020 | EN9: Fiscal Year | EP9: =H9 -> 2019 - 2020 | GH9: Fiscal Year | GJ9: =H9 -> 2019 - 2020 | IB9: Fiscal Year | ID9: =H9 -> 2019 - 2020 | JV9: Fiscal Year | JX9: =H9 -> 2019 - 2020 | LP9: Fiscal Year | LR9: =H9 -> 2019 - 2020 | NJ9: Fiscal Year | NL9: =H9 -> 2019 - 2020 | PD9: Fiscal Year | PF9: =H9 -> 2019 - 2020 | QX9: Fiscal Year | QZ9: =$H$9 -> 2019 - 2020 | TO9: Fiscal Year | TQ9: =$H$9 -> 2019 - 2020 | VI9: Fiscal Year | VK9: =$H$9 -> 2019 - 2020 | XC9: Fiscal Year | XE9: =$H$9 -> 2019 - 2020 | YW9: Fiscal Year | YY9: =$H$9 -> 2019 - 2020 | AAQ9: Fiscal Year | AAS9: =$H$9 -> 2019 - 2020 | ACS9: Fiscal Year | ACU9: =$H$9 -> 2019 - 2020
C11: 1 | D11: 2 | E11: 3 | F11: 4 | G11: 5 | H11: 6 | I11: 7 | J11: 8 | K11: 9 | L11: 10 | M11: 11 | N11: 12 | O11: 13 | P11: 14 | Q11: 15 | R11: 16 | S11: 17 | T11: 18 | U11: 19 | V11: 20 | W11: 21 | X11: 22 | Y11: 23 | Z11: 24 | AA11: 25 | AB11: 26 | AC11: 27 | AD11: 28 | AE11: 29 | AF11: 30 | AG11: 31 | AH11: 32 | AI11: 33 | AJ11: 34 | AK11: 35 | AL11: 36 | AM11: 37 | AN11: 38 | AO11: 39 | AP11: 40 | AQ11: 41 | AR11: 42 | AS11: 43 | AT11: 44 | AU11: 45 | AV11: 46 | AW11: 47 | AX11: 48 | AY11: 49 | AZ11: 50 | BA11: 51 | BB11: 52 | BC11: 53 | BD11: 54 | BE11: 55 | BF11: 56 | BG11: 57 | BH11: 58 | BI11: 59 | BJ11: 60 | BK11: 61 | BL11: 62 | BM11: 63 | BN11: 64 | BO11: 65 | BP11: 66 | BQ11: 67 | BR11: 68 | BS11: 69 | BT11: 70 | BU11: 71 | BV11: 72 | BW11: 73 | BX11: 74 | BY11: 75 | BZ11: 76 | CA11: 77 | CB11: 78 | CC11: 79 | CD11: 80 | CE11: 81 | CF11: 82 | CG11: 83 | CH11: 84 | CI11: 85 | CJ11: 86 | CK11: 87 | CL11: 88 | CM11: 89 | CN11: 90 | CO11: 91 | CP11: 92 | CQ11: 93 | CR11: 94 | CS11: 95 | CT11: 96 | CU11: 97 | CV11: 98 | CW11: 99 | CX11: 100 | CY11: 101 | CZ11: 102 | DA11: 103 | DB11: 104 | DC11: 105 | DD11: 106 | DE11: 107 | DF11: 108 | DG11: 109 | DH11: 110 | DI11: 111 | DJ11: 112 | DK11: 113 | DL11: 114 | DM11: 115 | DN11: 116 | DO11: 117 | DP11: 118 | DQ11: 119 | DR11: 120 | DS11: 121 | DT11: 122 | DU11: 123 | DV11: 124 | DW11: 125 | DX11: 126 | DY11: 127 | DZ11: 128 | EA11: 129 | EB11: 130 | EC11: 131 | ED11: 132 | EE11: 133 | EF11: 134 | EG11: 135 | EH11: 136 | EI11: 137 | EJ11: 138 | EK11: 139 | EL11: 140 | EM11: 141 | EN11: 142 | EO11: 143 | EP11: 144 | EQ11: 145 | ER11: 146 | ES11: 147 | ET11: 148 | EU11: 149 | EV11: 150 | EW11: 151 | EX11: 152 | EY11: 153 | EZ11: 154 | FA11: 155 | FB11: 156 | FC11: 157 | FD11: 158 | FE11: 159 | FF11: 160 | FG11: 161 | FH11: 162 | FI11: 163 | FJ11: 164 | FK11: 165 | FL11: 166 | FM11: 167 | FN11: 168 | FO11: 169 | FP11: 170 | FQ11: 171 | FR11: 172 | FS11: 173 | FT11: 174 | FU11: 175 | FV11: 176 | FW11: 177 | FX11: 178 | FY11: 179 | FZ11: 180 | GA11: 181 | GB11: 182 | GC11: 183 | GD11: 184 | GE11: 185 | GF11: 186 | GG11: 187 | GH11: 188 | GI11: 189 | GJ11: 190 | GK11: 191 | GL11: 192 | GM11: 193 | GN11: 194 | GO11: 195 | GP11: 196 | GQ11: 197 | GR11: 198 | GS11: 199 | GT11: 200 | GU11: 201 | GV11: 202 | GW11: 203 | GX11: 204 | GY11: 205 | GZ11: 206 | HA11: 207 | HB11: 208 | HC11: 209 | HD11: 210 | HE11: 211 | HF11: 212 | HG11: 213 | HH11: 214 | HI11: 215 | HJ11: 216 | HK11: 217 | HL11: 218 | HM11: 219 | HN11: 220 | HO11: 221 | HP11: 222 | HQ11: 223 | HR11: 224 | HS11: 225 | HT11: 226 | HU11: 227 | HV11: 228 | HW11: 229 | HX11: 230 | HY11: 231 | HZ11: 232 | IA11: 233 | IB11: 234 | IC11: 235 | ID11: 236 | IE11: 237 | IF11: 238 | IG11: 239 | IH11: 240 | II11: 241 | IJ11: 242 | IK11: 243 | IL11: 244 | IM11: 245 | IN11: 246 | IO11: 247 | IP11: 248 | IQ11: 249 | IR11: 250 | IS11: 251 | IT11: 252 | IU11: 253 | IV11: 254 | IW11: 255 | IX11: 256 | IY11: 257 | IZ11: 258 | JA11: 259 | JB11: 260 | JC11: 261 | JD11: 262 | JE11: 263 | JF11: 264 | JG11: 265 | JH11: 266 | JI11: 267 | JJ11: 268 | JK11: 269 | JL11: 270 | JM11: 271 | JN11: 272 | JO11: 273 | JP11: 274 | JQ11: 275 | JR11: 276 | JS11: 277 | JT11: 278 | JU11: 279 | JV11: 280 | JW11: 281 | JX11: 282 | JY11: 283 | JZ11: 284 | KA11: 285 | KB11: 286 | KC11: 287 | KD11: 288 | KE11: 289 | KF11: 290 | KG11: 291 | KH11: 292 | KI11: 293 | KJ11: 294 | KK11: 295 | KL11: 296 | KM11: 297 | KN11: 298 | KO11: 299 | KP11: 300 | KQ11: 301 | KR11: 302 | KS11: 303 | KT11: 304 | KU11: 305 | KV11: 306 | KW11: 307 | KX11: 308 | KY11: 309 | KZ11: 310 | LA11: 311 | LB11: 312 | LC11: 313 | LD11: 314 | LE11: 315 | LF11: 316 | LG11: 317 | LH11: 318 | LI11: 319 | LJ11: 320 | LK11: 321 | LL11: 322 | LM11: 323 | LN11: 324 | LO11: 325 | LP11: 326 | LQ11: 327 | LR11: 328 | LS11: 329 | LT11: 330 | LU11: 331 | LV11: 332 | LW11: 333 | LX11: 334 | LY11: 335 | LZ11: 336 | MA11: 337 | MB11: 338 | MC11: 339 | MD11: 340 | ME11: 341 | MF11: 342 | MG11: 343 | MH11: 344 | MI11: 345 | MJ11: 346 | MK11: 347 | ML11: 348 | MM11: 349 | MN11: 350 | MO11: 351 | MP11: 352 | MQ11: 353 | MR11: 354 | MS11: 355 | MT11: 356 | MU11: 357 | MV11: 358 | MW11: 359 | MX11: 360 | MY11: 361 | MZ11: 362 | NA11: 363 | NB11: 364 | NC11: 365 | ND11: 366 | NE11: 367 | NF11: 368 | NG11: 369 | NH11: 370 | NI11: 371 | NJ11: 372 | NK11: 373 | NL11: 374 | NM11: 375 | NN11: 376 | NO11: 377 | NP11: 378 | NQ11: 379 | NR11: 380 | NS11: 381 | NT11: 382 | NU11: 383 | NV11: 384 | NW11: 385 | NX11: 386 | NY11: 387 | NZ11: 388 | OA11: 389 | OB11: 390 | OC11: 391 | OD11: 392 | OE11: 393 | OF11: 394 | OG11: 395 | OH11: 396 | OI11: 397 | OJ11: 398 | OK11: 399 | OL11: 400 | OM11: 401 | ON11: 402 | OO11: 403 | OP11: 404 | OQ11: 405 | OR11: 406 | OS11: 407 | OT11: 408 | OU11: 409 | OV11: 410 | OW11: 411 | OX11: 412 | OY11: 413 | OZ11: 414 | PA11: 415 | PB11: 416 | PC11: 417 | PD11: 418 | PE11: 419 | PF11: 420 | PG11: 421 | PH11: 422 | PI11: 423 | PJ11: 424 | PK11: 425 | PL11: 426 | PM11: 427 | PN11: 428 | PO11: 429 | PP11: 430 | PQ11: 431 | PR11: 432 | PS11: 433 | PT11: 434 | PU11: 435 | PV11: 436 | PW11: 437 | PX11: 438 | PY11: 439 | PZ11: 440 | QA11: 441 | QB11: 442 | QC11: 443 | QD11: 444 | QE11: 445 | QF11: 446 | QG11: 447 | QH11: 448 | QI11: 449 | QJ11: 450 | QK11: 451 | QL11: 452 | QM11: 453 | QN11: 454 | QO11: 455 | QP11: 456 | QQ11: 457 | QR11: 458 | QS11: 459 | QT11: 460 | QU11: 461 | QV11: 462 | QW11: 463 | QX11: 464 | QY11: 465 | QZ11: 466 | RA11: 467 | RB11: 468 | RC11: 469 | RD11: 470 | RE11: 471 | RF11: 472 | RG11: 473 | RH11: 474 | RI11: 475 | RJ11: 476 | RK11: 477 | RL11: 478 | RM11: 479 | RN11: 480 | RO11: 481 | RP11: 482 | RQ11: 483 | RR11: 484 | RS11: 485 | RT11: 486 | RU11: 487 | RV11: 488 | RW11: 489 | RX11: 490 | RY11: 491 | RZ11: 492 | SA11: 493 | SB11: 494 | SC11: 495 | SD11: 496 | SE11: 497 | SF11: 498 | SG11: 499 | SH11: 500 | SI11: 501 | SJ11: 502 | SK11: 503 | SL11: 504 | SM11: 505 | SN11: 506 | SO11: 507 | SP11: 508 | SQ11: 509 | SR11: 510 | SS11: 511 | ST11: 512 | SU11: 513 | SV11: 514 | SW11: 515 | SX11: 516 | SY11: 517 | SZ11: 518 | TA11: 519 | TB11: 520 | TC11: 521 | TD11: 522 | TE11: 523 | TF11: 524 | TG11: 525 | TH11: 526 | TI11: 527 | TJ11: 528 | TK11: 529 | TL11: 530 | TM11: 531 | TN11: 532 | TO11: 533 | TP11: 534 | TQ11: 535 | TR11: 536 | TS11: 537 | TT11: 538 | TU11: 539 | TV11: 540 | TW11: 541 | TX11: 542 | TY11: 543 | TZ11: 544 | UA11: 545 | UB11: 546 | UC11: 547 | UD11: 548 | UE11: 549 | UF11: 550 | UG11: 551 | UH11: 552 | UI11: 553 | UJ11: 554 | UK11: 555 | UL11: 556 | UM11: 557 | UN11: 558 | UO11: 559 | UP11: 560 | UQ11: 561 | UR11: 562 | US11: 563 | UT11: 564 | UU11: 565 | UV11: 566 | UW11: 567 | UX11: 568 | UY11: 569 | UZ11: 570 | VA11: 571 | VB11: 572 | VC11: 573 | VD11: 574 | VE11: 575 | VF11: 576 | VG11: 577 | VH11: 578 | VI11: 579 | VJ11: 580 | VK11: 581 | VL11: 582 | VM11: 583 | VN11: 584 | VO11: 585 | VP11: 586 | VQ11: 587 | VR11: 588 | VS11: 589 | VT11: 590 | VU11: 591 | VV11: 592 | VW11: 593 | VX11: 594 | VY11: 595 | VZ11: 596 | WA11: 597 | WB11: 598 | WC11: 599 | WD11: 600 | WE11: 601 | WF11: 602 | WG11: 603 | WH11: 604 | WI11: 605 | WJ11: 606 | WK11: 607 | WL11: 608 | WM11: 609 | WN11: 610 | WO11: 611 | WP11: 612 | WQ11: 613 | WR11: 614 | WS11: 615 | WT11: 616 | WU11: 617 | WV11: 618 | WW11: 619 | WX11: 620 | WY11: 621 | WZ11: 622 | XA11: 623 | XB11: 624 | XC11: 625 | XD11: 626 | XE11: 627 | XF11: 628 | XG11: 629 | XH11: 630 | XI11: 631 | XJ11: 632 | XK11: 633 | XL11: 634 | XM11: 635 | XN11: 636 | XO11: 637 | XP11: 638 | XQ11: 639 | XR11: 640 | XS11: 641 | XT11: 642 | XU11: 643 | XV11: 644 | XW11: 645 | XX11: 646 | XY11: 647 | XZ11: 648 | YA11: 649 | YB11: 650 | YC11: 651 | YD11: 652 | YE11: 653 | YF11: 654 | YG11: 655 | YH11: 656 | YI11: 657 | YJ11: 658 | YK11: 659 | YL11: 660 | YM11: 661 | YN11: 662 | YO11: 663 | YP11: 664 | YQ11: 665 | YR11: 666 | YS11: 667 | YT11: 668 | YU11: 669 | YV11: 670 | YW11: 671 | YX11: 672 | YY11: 673 | YZ11: 674 | ZA11: 675 | ZB11: 676 | ZC11: 677 | ZD11: 678 | ZE11: 679 | ZF11: 680 | ZG11: 681 | ZH11: 682 | ZI11: 683 | ZJ11: 684 | ZK11: 685 | ZL11: 686 | ZM11: 687 | ZN11: 688 | ZO11: 689 | ZP11: 690 | ZQ11: 691 | ZR11: 692 | ZS11: 693 | ZT11: 694 | ZU11: 695 | ZV11: 696 | ZW11: 697 | ZX11: 698 | ZY11: 699 | ZZ11: 700 | AAA11: 701 | AAB11: 702 | AAC11: 703 | AAD11: 704 | AAE11: 705 | AAF11: 706 | AAG11: 707 | AAH11: 708 | AAI11: 709 | AAJ11: 710 | AAK11: 711 | AAL11: 712 | AAM11: 713 | AAN11: 714 | AAO11: 715 | AAP11: 716 | AAQ11: 717 | AAR11: 718 | AAS11: 719 | AAT11: 720 | AAU11: 721 | AAV11: 722 | AAW11: 723 | AAX11: 724 | AAY11: 725 | AAZ11: 726 | ABA11: 727 | ABB11: 728 | ABC11: 729 | ABD11: 730 | ABE11: 731 | ABF11: 732 | ABG11: 733 | ABH11: 734 | ABI11: 735 | ABJ11: 736 | ABK11: 737 | ABL11: 738 | ABM11: 739 | ABN11: 740 | ABO11: 741 | ABP11: 742 | ABQ11: 743 | ABR11: 744 | ABS11: 745 | ABT11: 746 | ABU11: 747 | ABV11: 748 | ABW11: 749 | ABX11: 750 | ABY11: 751 | ABZ11: 752 | ACA11: 753 | ACB11: 754 | ACC11: 755 | ACD11: 756 | ACE11: 757 | ACF11: 758 | ACG11: 759 | ACH11: 760 | ACI11: 761 | ACJ11: 762 | ACK11: 763 | ACL11: 764 | ACM11: 765 | ACN11: 766 | ACO11: 767 | ACP11: 768 | ACQ11: 769 | ACR11: 770
B12: 0 | C12: 1 | D12: 2 | E12: 3 | F12: CalWorks | AC12: Family Preservation Program | AZ12: Specialized Foster Care Wraparound | BW12: Specialized Foster Care Enhanced Mental Health Services | CT12: Specialized Foster Care - DCFS MAT | DQ12: Specialized Foster Care MAT | EN12: Specialized Foster Care TFC | FK12: Post-Release Community Supervision-Community Reintegration Program | GH12: Comprehensive SOC Program | HE12: Measure H FSP | IB12: DHS EPIC Program | IY12: MHSA (Please enter UOS in Worksheet Named LAC102_S_CSS & LAC102_S_PEI) | JV12: DCFS Medical Hubs | KS12: DCFS PHF | LP12: CGF IMD Step Down | MM12: DMH Mental Health Services (CGF) | NJ12: DPH Dual Diagnosis | OG12: Federal/State Revenue | PD12: GROW | QA12: Homeless Service | QX12: Juvenile -New Direction | RU12: Juvenile Justice Prog (JJCPA-MST) | SR12: Juvenile Justice Prog (JJCPA-MHSAT) | TO12: Juvenile Justice Program (COD) | UL12: Juvenile Justice Program (FFT) | VI12: Juvenile Justice Program (STOP) | WF12: ODR Diversion Programs | XC12: Children's Outreach & Triage Team (COTT) | XZ12: Outreach & Triage Team (OTT) | YW12: Other 1 (Please Specify): | ZT12: Other 2 (Please Specify): | AAQ12: Other 3 (Please Specify): | ABN12: Other 1 (Please Specify): | ABO12: Other 2 (Please Specify): | ABP12: Other 3 (Please Specify): | ABV12: TOTAL | ACS12: CROSSCHECK (LAC 102) | ADP12: CROSSCHEC from MH1901 Sch B | AEM12: VARIANCE
F13: Regular FMAP Medi-Cal Units (including: SD/MC, Crossover) | I13: Enhanced FMAP Non CHIP Beneficiaries | L13: Enhanced FMAP CHIP Beneficiaries | P13: Enhanced FMAP Medi-Cal Units (BCCTP, Pregnancy) | S13: Enhanced FMAP Medi-Cal Units (Refugee) | T13: Affordable Care Act (ACA) | W13: MediCal for All Children (SB75) | X13: Non Medi-Cal Units | Y13: MediCal Access Program (MCAP) | AA13: MediCal Access Program (MCAP) | AB13: MediCal Access Program (MCAP) | AC13: Regular FMAP Medi-Cal Units (including: SD/MC, Crossover) | AF13: Enhanced FMAP Non CHIP Beneficiaries | AI13: Enhanced FMAP CHIP Beneficiaries | AM13: Enhanced FMAP Medi-Cal Units (BCCTP, Pregnancy) | AP13: Enhanced FMAP Medi-Cal Units (Refugee) | AQ13: Affordable Care Act (ACA) | AT13: MediCal for All Children (SB75) | AU13: Non Medi-Cal Units | AV13: MediCal Access Program (MCAP) | AX13: MediCal Access Program (MCAP) | AY13: MediCal Access Program (MCAP) | AZ13: Regular FMAP Medi-Cal Units (including: SD/MC, Crossover) | BC13: Enhanced FMAP Non CHIP Beneficiaries | BF13: Enhanced FMAP CHIP Beneficiaries | BJ13: Enhanced FMAP Medi-Cal Units (BCCTP, Pregnancy) | BM13: Enhanced FMAP Medi-Cal Units (Refugee) | BN13: Affordable Care Act (ACA) | BQ13: MediCal for All Children (SB75) | BR13: Non Medi-Cal Units | BS13: MediCal Access Program (MCAP) | BU13: MediCal Access Program (MCAP) | BV13: MediCal Access Program (MCAP) | BW13: Regular FMAP Medi-Cal Units (including: SD/MC, Crossover) | BZ13: Enhanced FMAP Non CHIP Beneficiaries | CC13: Enhanced FMAP CHIP Beneficiaries | CG13: Enhanced FMAP Medi-Cal Units (BCCTP, Pregnancy) | CJ13: Enhanced FMAP Medi-Cal Units (Refugee) | CK13: Affordable Care Act (ACA) | CN13: MediCal for All Children (SB75) | CO13: Non Medi-Cal Units | CP13: MediCal Access Program (MCAP) | CR13: MediCal Access Program (MCAP) | CS13: MediCal Access Program (MCAP) | CT13: Regular FMAP Medi-Cal Units (including: SD/MC, Crossover) | CW13: Enhanced FMAP Non CHIP Beneficiaries | CZ13: Enhanced FMAP CHIP Beneficiaries | DD13: Enhanced FMAP Medi-Cal Units (BCCTP, Pregnancy) | DG13: Enhanced FMAP Medi-Cal Units (Refugee) | DH13: Affordable Care Act (ACA) | DK13: MediCal for All Children (SB75) | DL13: Non Medi-Cal Units | DM13: MediCal Access Program (MCAP) | DO13: MediCal Access Program (MCAP) | DP13: MediCal Access Program (MCAP) | DQ13: Regular FMAP Medi-Cal Units (including: SD/MC, Crossover) | DT13: Enhanced FMAP Non CHIP Beneficiaries | DW13: Enhanced FMAP CHIP Beneficiaries | EA13: Enhanced FMAP Medi-Cal Units (BCCTP, Pregnancy) | ED13: Enhanced FMAP Medi-Cal Units (Refugee) | EE13: Affordable Care Act (ACA) | EH13: MediCal for All Children (SB75) | EI13: Non Medi-Cal Units | EJ13: MediCal Access Program (MCAP) | EL13: MediCal Access Program (MCAP) | EM13: MediCal Access Program (MCAP) | EN13: Regular FMAP Medi-Cal Units (including: SD/MC, Crossover) | EQ13: Enhanced FMAP Non CHIP Beneficiaries | ET13: Enhanced FMAP CHIP Beneficiaries | EX13: Enhanced FMAP Medi-Cal Units (BCCTP, Pregnancy) | FA13: Enhanced FMAP Medi-Cal Units (Refugee) | FB13: Affordable Care Act (ACA) | FE13: MediCal for All Children (SB75) | FF13: Non Medi-Cal Units | FG13: MediCal Access Program (MCAP) | FI13: MediCal Access Program (MCAP) | FJ13: MediCal Access Program (MCAP) | FK13: Regular FMAP Medi-Cal Units (including: SD/MC, Crossover) | FN13: Enhanced FMAP Non CHIP Beneficiaries | FQ13: Enhanced FMAP CHIP Beneficiaries | FU13: Enhanced FMAP Medi-Cal Units (BCCTP, Pregnancy) | FX13: Enhanced FMAP Medi-Cal Units (Refugee) | FY13: Affordable Care Act (ACA) | GB13: MediCal for All Children (SB75) | GC13: Non Medi-Cal Units | GD13: MediCal Access Program (MCAP) | GF13: MediCal Access Program (MCAP) | GG13: MediCal Access Program (MCAP) | GH13: Regular FMAP Medi-Cal Units (including: SD/MC, Crossover) | GK13: Enhanced FMAP Non CHIP Beneficiaries | GN13: Enhanced FMAP CHIP Beneficiaries | GR13: Enhanced FMAP Medi-Cal Units (BCCTP, Pregnancy) | GU13: Enhanced FMAP Medi-Cal Units (Refugee) | GV13: Affordable Care Act (ACA) | GY13: MediCal for All Children (SB75) | GZ13: Non Medi-Cal Units | HA13: MediCal Access Program (MCAP) | HC13: MediCal Access Program (MCAP) | HD13: MediCal Access Program (MCAP) | HE13: Regular FMAP Medi-Cal Units (including: SD/MC, Crossover) | HH13: Enhanced FMAP Non CHIP Beneficiaries | HK13: Enhanced FMAP CHIP Beneficiaries | HO13: Enhanced FMAP Medi-Cal Units (BCCTP, Pregnancy) | HR13: Enhanced FMAP Medi-Cal Units (Refugee) | HS13: Affordable Care Act (ACA) | HV13: MediCal for All Children (SB75) | HW13: Non Medi-Cal Units | HX13: MediCal Access Program (MCAP) | HZ13: MediCal Access Program (MCAP) | IA13: MediCal Access Program (MCAP) | IB13: Regular FMAP Medi-Cal Units (including: SD/MC, Crossover) | IE13: Enhanced FMAP Non CHIP Beneficiaries | IH13: Enhanced FMAP CHIP Beneficiaries | IL13: Enhanced FMAP Medi-Cal Units (BCCTP, Pregnancy) | IO13: Enhanced FMAP Medi-Cal Units (Refugee) | IP13: Affordable Care Act (ACA) | IS13: MediCal for All Children (SB75) | IT13: Non Medi-Cal Units | IU13: MediCal Access Program (MCAP) | IW13: MediCal Access Program (MCAP) | IX13: MediCal Access Program (MCAP) | IY13: Regular FMAP Medi-Cal Units (including: SD/MC, Crossover) | JB13: Enhanced FMAP Non CHIP Beneficiaries | JE13: Enhanced FMAP CHIP Beneficiaries | JI13: Enhanced FMAP Medi-Cal Units (BCCTP, Pregnancy) | JL13: Enhanced FMAP Medi-Cal Units (Refugee) | JM13: Affordable Care Act (ACA) | JP13: MediCal for All Children (SB75) | JQ13: Non Medi-Cal Units | JR13: MediCal Access Program (MCAP) | JT13: MediCal Access Program (MCAP) | JU13: MediCal Access Program (MCAP) | JV13: Regular FMAP Medi-Cal Units (including: SD/MC, Crossover) | JY13: Enhanced FMAP Non CHIP Beneficiaries | KB13: Enhanced FMAP CHIP Beneficiaries | KF13: Enhanced FMAP Medi-Cal Units (BCCTP, Pregnancy) | KI13: Enhanced FMAP Medi-Cal Units (Refugee) | KJ13: Affordable Care Act (ACA) | KM13: MediCal for All Children (SB75) | KN13: Non Medi-Cal Units | KO13: MediCal Access Program (MCAP) | KQ13: MediCal Access Program (MCAP) | KR13: MediCal Access Program (MCAP) | KS13: Regular FMAP Medi-Cal Units (including: SD/MC, Crossover) | KV13: Enhanced FMAP Non CHIP Beneficiaries | KY13: Enhanced FMAP CHIP Beneficiaries | LC13: Enhanced FMAP Medi-Cal Units (BCCTP, Pregnancy) | LF13: Enhanced FMAP Medi-Cal Units (Refugee) | LG13: Affordable Care Act (ACA) | LJ13: MediCal for All Children (SB75) | LK13: Non Medi-Cal Units | LL13: MediCal Access Program (MCAP) | LN13: MediCal Access Program (MCAP) | LO13: MediCal Access Program (MCAP) | LP13: Regular FMAP Medi-Cal Units (including: SD/MC, Crossover) | LS13: Enhanced FMAP Non CHIP Beneficiaries | LV13: Enhanced FMAP CHIP Beneficiaries | LZ13: Enhanced FMAP Medi-Cal Units (BCCTP, Pregnancy) | MC13: Enhanced FMAP Medi-Cal Units (Refugee) | MD13: Affordable Care Act (ACA) | MG13: MediCal for All Children (SB75) | MH13: Non Medi-Cal Units | MI13: MediCal Access Program (MCAP) | MK13: MediCal Access Program (MCAP) | ML13: MediCal Access Program (MCAP) | MM13: Regular FMAP Medi-Cal Units (including: SD/MC, Crossover) | MP13: Enhanced FMAP Non CHIP Beneficiaries | MS13: Enhanced FMAP CHIP Beneficiaries | MW13: Enhanced FMAP Medi-Cal Units (BCCTP, Pregnancy) | MZ13: Enhanced FMAP Medi-Cal Units (Refugee) | NA13: Affordable Care Act (ACA) | ND13: MediCal for All Children (SB75) | NE13: Non Medi-Cal Units | NF13: MediCal Access Program (MCAP) | NH13: MediCal Access Program (MCAP) | NI13: MediCal Access Program (MCAP) | NJ13: Regular FMAP Medi-Cal Units (including: SD/MC, Crossover) | NM13: Enhanced FMAP Non CHIP Beneficiaries | NP13: Enhanced FMAP CHIP Beneficiaries | NT13: Enhanced FMAP Medi-Cal Units (BCCTP, Pregnancy) | NW13: Enhanced FMAP Medi-Cal Units (Refugee) | NX13: Affordable Care Act (ACA) | OA13: MediCal for All Children (SB75) | OB13: Non Medi-Cal Units | OC13: MediCal Access Program (MCAP) | OE13: MediCal Access Program (MCAP) | OF13: MediCal Access Program (MCAP) | OG13: Regular FMAP Medi-Cal Units (including: SD/MC, Crossover) | OJ13: Enhanced FMAP Non CHIP Beneficiaries | OM13: Enhanced FMAP CHIP Beneficiaries | OQ13: Enhanced FMAP Medi-Cal Units (BCCTP, Pregnancy) | OT13: Enhanced FMAP Medi-Cal Units (Refugee) | OU13: Affordable Care Act (ACA) | OX13: MediCal for All Children (SB75) | OY13: Non Medi-Cal Units | OZ13: MediCal Access Program (MCAP) | PB13: MediCal Access Program (MCAP) | PC13: MediCal Access Program (MCAP) | PD13: Regular FMAP Medi-Cal Units (including: SD/MC, Crossover) | PG13: Enhanced FMAP Non CHIP Beneficiaries | PJ13: Enhanced FMAP CHIP Beneficiaries | PN13: Enhanced FMAP Medi-Cal Units (BCCTP, Pregnancy) | PQ13: Enhanced FMAP Medi-Cal Units (Refugee) | PR13: Affordable Care Act (ACA) | PU13: MediCal for All Children (SB75) | PV13: Non Medi-Cal Units | PW13: MediCal Access Program (MCAP) | PY13: MediCal Access Program (MCAP) | PZ13: MediCal Access Program (MCAP) | QA13: Regular FMAP Medi-Cal Units (including: SD/MC, Crossover) | QD13: Enhanced FMAP Non CHIP Beneficiaries | QG13: Enhanced FMAP CHIP Beneficiaries | QK13: Enhanced FMAP Medi-Cal Units (BCCTP, Pregnancy) | QN13: Enhanced FMAP Medi-Cal Units (Refugee) | QO13: Affordable Care Act (ACA) | QR13: MediCal for All Children (SB75) | QS13: Non Medi-Cal Units | QT13: MediCal Access Program (MCAP) | QV13: MediCal Access Program (MCAP) | QW13: MediCal Access Program (MCAP) | QX13: Regular FMAP Medi-Cal Units (including: SD/MC, Crossover) | RA13: Enhanced FMAP Non CHIP Beneficiaries | RD13: Enhanced FMAP CHIP Beneficiaries | RH13: Enhanced FMAP Medi-Cal Units (BCCTP, Pregnancy) | RK13: Enhanced FMAP Medi-Cal Units (Refugee) | RL13: Affordable Care Act (ACA) | RO13: MediCal for All Children (SB75) | RP13: Non Medi-Cal Units | RQ13: MediCal Access Program (MCAP) | RS13: MediCal Access Program (MCAP) | RT13: MediCal Access Program (MCAP) | RU13: Regular FMAP Medi-Cal Units (including: SD/MC, Crossover) | RX13: Enhanced FMAP Non CHIP Beneficiaries | SA13: Enhanced FMAP CHIP Beneficiaries | SE13: Enhanced FMAP Medi-Cal Units (BCCTP, Pregnancy) | SH13: Enhanced FMAP Medi-Cal Units (Refugee) | SI13: Affordable Care Act (ACA) | SL13: MediCal for All Children (SB75) | SM13: Non Medi-Cal Units | SN13: MediCal Access Program (MCAP) | SP13: MediCal Access Program (MCAP) | SQ13: MediCal Access Program (MCAP) | SR13: Regular FMAP Medi-Cal Units (including: SD/MC, Crossover) | SU13: Enhanced FMAP Non CHIP Beneficiaries | SX13: Enhanced FMAP CHIP Beneficiaries | TB13: Enhanced FMAP Medi-Cal Units (BCCTP, Pregnancy) | TE13: Enhanced FMAP Medi-Cal Units (Refugee) | TF13: Affordable Care Act (ACA) | TI13: MediCal for All Children (SB75) | TJ13: Non Medi-Cal Units | TK13: MediCal Access Program (MCAP) | TM13: MediCal Access Program (MCAP) | TN13: MediCal Access Program (MCAP) | TO13: Regular FMAP Medi-Cal Units (including: SD/MC, Crossover) | TR13: Enhanced FMAP Non CHIP Beneficiaries | TU13: Enhanced FMAP CHIP Beneficiaries | TY13: Enhanced FMAP Medi-Cal Units (BCCTP, Pregnancy) | UB13: Enhanced FMAP Medi-Cal Units (Refugee) | UC13: Affordable Care Act (ACA) | UF13: MediCal for All Children (SB75) | UG13: Non Medi-Cal Units | UH13: MediCal Access Program (MCAP) | UJ13: MediCal Access Program (MCAP) | UK13: MediCal Access Program (MCAP) | UL13: Regular FMAP Medi-Cal Units (including: SD/MC, Crossover) | UO13: Enhanced FMAP Non CHIP Beneficiaries | UR13: Enhanced FMAP CHIP Beneficiaries | UV13: Enhanced FMAP Medi-Cal Units (BCCTP, Pregnancy) | UY13: Enhanced FMAP Medi-Cal Units (Refugee) | UZ13: Affordable Care Act (ACA) | VC13: MediCal for All Children (SB75) | VD13: Non Medi-Cal Units | VE13: MediCal Access Program (MCAP) | VG13: MediCal Access Program (MCAP) | VH13: MediCal Access Program (MCAP) | VI13: Regular FMAP Medi-Cal Units (including: SD/MC, Crossover) | VL13: Enhanced FMAP Non CHIP Beneficiaries | VO13: Enhanced FMAP CHIP Beneficiaries | VS13: Enhanced FMAP Medi-Cal Units (BCCTP, Pregnancy) | VV13: Enhanced FMAP Medi-Cal Units (Refugee) | VW13: Affordable Care Act (ACA) | VZ13: MediCal for All Children (SB75) | WA13: Non Medi-Cal Units | WB13: MediCal Access Program (MCAP) | WD13: MediCal Access Program (MCAP) | WE13: MediCal Access Program (MCAP) | WF13: Regular FMAP Medi-Cal Units (including: SD/MC, Crossover) | WI13: Enhanced FMAP Non CHIP Beneficiaries | WL13: Enhanced FMAP CHIP Beneficiaries | WP13: Enhanced FMAP Medi-Cal Units (BCCTP, Pregnancy) | WS13: Enhanced FMAP Medi-Cal Units (Refugee) | WT13: Affordable Care Act (ACA) | WW13: MediCal for All Children (SB75) | WX13: Non Medi-Cal Units | WY13: MediCal Access Program (MCAP) | XA13: MediCal Access Program (MCAP) | XB13: MediCal Access Program (MCAP) | XC13: Regular FMAP Medi-Cal Units (including: SD/MC, Crossover) | XF13: Enhanced FMAP Non CHIP Beneficiaries | XI13: Enhanced FMAP CHIP Beneficiaries | XM13: Enhanced FMAP Medi-Cal Units (BCCTP, Pregnancy) | XP13: Enhanced FMAP Medi-Cal Units (Refugee) | XQ13: Affordable Care Act (ACA) | XT13: MediCal for All Children (SB75) | XU13: Non Medi-Cal Units | XV13: MediCal Access Program (MCAP) | XX13: MediCal Access Program (MCAP) | XY13: MediCal Access Program (MCAP) | XZ13: Regular FMAP Medi-Cal Units (including: SD/MC, Crossover) | YC13: Enhanced FMAP Non CHIP Beneficiaries | YF13: Enhanced FMAP CHIP Beneficiaries | YJ13: Enhanced FMAP Medi-Cal Units (BCCTP, Pregnancy) | YM13: Enhanced FMAP Medi-Cal Units (Refugee) | YN13: Affordable Care Act (ACA) | YQ13: MediCal for All Children (SB75) | YR13: Non Medi-Cal Units | YS13: MediCal Access Program (MCAP) | YU13: MediCal Access Program (MCAP) | YV13: MediCal Access Program (MCAP) | YW13: Regular FMAP Medi-Cal Units (including: SD/MC, Crossover) | YZ13: Enhanced FMAP Non CHIP Beneficiaries | ZC13: Enhanced FMAP CHIP Beneficiaries | ZG13: Enhanced FMAP Medi-Cal Units (BCCTP, Pregnancy) | ZJ13: Enhanced FMAP Medi-Cal Units (Refugee) | ZK13: Affordable Care Act (ACA) | ZN13: MediCal for All Children (SB75) | ZO13: Non Medi-Cal Units | ZP13: MediCal Access Program (MCAP) | ZR13: MediCal Access Program (MCAP) | ZS13: MediCal Access Program (MCAP) | ZT13: Regular FMAP Medi-Cal Units (including: SD/MC, Crossover) | ZW13: Enhanced FMAP Non CHIP Beneficiaries | ZZ13: Enhanced FMAP CHIP Beneficiaries | AAD13: Enhanced FMAP Medi-Cal Units (BCCTP, Pregnancy) | AAG13: Enhanced FMAP Medi-Cal Units (Refugee) | AAH13: Affordable Care Act (ACA) | AAK13: MediCal for All Children (SB75) | AAL13: Non Medi-Cal Units | AAM13: MediCal Access Program (MCAP) | AAO13: MediCal Access Program (MCAP) | AAP13: MediCal Access Program (MCAP) | AAQ13: Regular FMAP Medi-Cal Units (including: SD/MC, Crossover) | AAT13: Enhanced FMAP Non CHIP Beneficiaries | AAW13: Enhanced FMAP CHIP Beneficiaries | ABA13: Enhanced FMAP Medi-Cal Units (BCCTP, Pregnancy) | ABD13: Enhanced FMAP Medi-Cal Units (Refugee) | ABE13: Affordable Care Act (ACA) | ABH13: MediCal for All Children (SB75) | ABI13: Non Medi-Cal Units | ABJ13: MediCal Access Program (MCAP) | ABL13: MediCal Access Program (MCAP) | ABM13: MediCal Access Program (MCAP) | ABN13: Non Medi-Cal Units | ABO13: Non Medi-Cal Units | ABP13: Non Medi-Cal Units | ABQ13: Non Medi-Cal Units | ABR13: Non Medi-Cal Units | ABS13: Non Medi-Cal Units | ABT13: Non Medi-Cal Units | ABU13: Non Medi-Cal Units | ABV13: Regular FMAP Medi-Cal Units (including: SD/MC, Crossover) | ABY13: Enhanced FMAP Non CHIP Beneficiaries | ACB13: Enhanced FMAP CHIP Beneficiaries | ACF13: Enhanced FMAP Medi-Cal Units (BCCTP, Pregnancy) | ACI13: Enhanced FMAP Medi-Cal Units (Refugee) | ACJ13: Affordable Care Act (ACA) | ACM13: MediCal for All Children (SB75) | ACN13: Non Medi-Cal Units | ACO13: MediCal Access Program (MCAP) | ACQ13: MediCal Access Program (MCAP) | ACR13: MediCal Access Program (MCAP) | ACS13: Regular FMAP Medi-Cal Units (including: SD/MC, Crossover) | ACV13: Enhanced FMAP Non CHIP Beneficiaries | ACY13: Enhanced FMAP CHIP Beneficiaries | ADC13: Enhanced FMAP Medi-Cal Units (BCCTP, Pregnancy) | ADF13: Enhanced FMAP Medi-Cal Units (Refugee) | ADG13: Affordable Care Act (ACA) | ADJ13: MediCal for All Children (SB75) | ADK13: Non Medi-Cal Units | ADL13: MediCal Access Program (MCAP) | ADN13: MediCal Access Program (MCAP) | ADO13: MediCal Access Program (MCAP) | ADP13: Regular FMAP Medi-Cal Units (including: SD/MC, Crossover) | ADS13: Enhanced FMAP Non CHIP Beneficiaries | ADV13: Enhanced FMAP CHIP Beneficiaries | ADZ13: Enhanced FMAP Medi-Cal Units (BCCTP, Pregnancy) | AEC13: Enhanced FMAP Medi-Cal Units (Refugee) | AED13: Affordable Care Act (ACA) | AEG13: MediCal for All Children (SB75) | AEH13: Non Medi-Cal Units | AEI13: MediCal Access Program (MCAP) | AEK13: MediCal Access Program (MCAP) | AEL13: MediCal Access Program (MCAP) | AEM13: Regular FMAP Medi-Cal Units (including: SD/MC, Crossover) | AEP13: Enhanced FMAP Non CHIP Beneficiaries | AES13: Enhanced FMAP CHIP Beneficiaries | AEW13: Enhanced FMAP Medi-Cal Units (BCCTP, Pregnancy) | AEZ13: Enhanced FMAP Medi-Cal Units (Refugee) | AFA13: Affordable Care Act (ACA) | AFD13: MediCal for All Children (SB75) | AFE13: Non Medi-Cal Units | AFF13: MediCal Access Program (MCAP) | AFH13: MediCal Access Program (MCAP) | AFI13: MediCal Access Program (MCAP)
B14: 0 | C14: Settlement Type | D14: Mode | E14: SF | F14: 07/01/19 - 12/31/19 | G14: 01/01/20 - 02/29/20 | H14: 03/01/20 - 06/30/20 | I14: 07/01/19 - 12/31/19 | J14: 01/01/20 - 02/29/20 | K14: 03/01/20 - 06/30/20 | L14: 07/01/19 - 09/30/19 | M14: 10/01/19 - 12/31/19 | N14: 01/01/20 - 02/29/20 | O14: 03/01/20 - 06/30/20 | P14: 07/01/19 - 12/31/19 | Q14: 01/01/20 - 02/29/20 | R14: 03/01/20 - 06/30/20 | S14: 07/01/19 - 06/30/20 | T14: 07/01/19 - 12/31/19 | U14: 01/01/20 - 02/29/20 | V14: 03/01/20 - 06/30/20 | W14: 07/01/19 - 06/30/20 | X14: 07/01/19 - 06/30/20 | Y14: 07/01/19 - 09/30/19 | Z14: 10/01/19 - 12/31/19 | AA14: 01/01/20 - 02/29/20 | AB14: 03/01/20 - 06/30/20 | AC14: 07/01/19 - 12/31/19 | AD14: 01/01/20 - 02/29/20 | AE14: 03/01/20 - 06/30/20 | AF14: 07/01/19 - 12/31/19 | AG14: 01/01/20 - 02/29/20 | AH14: 03/01/20 - 06/30/20 | AI14: 07/01/19 - 09/30/19 | AJ14: 10/01/19 - 12/31/19 | AK14: 01/01/20 - 02/29/20 | AL14: 03/01/20 - 06/30/20 | AM14: 07/01/19 - 12/31/19 | AN14: 01/01/20 - 02/29/20 | AO14: 03/01/20 - 06/30/20 | AP14: 07/01/19 - 06/30/20 | AQ14: 07/01/19 - 12/31/19 | AR14: 01/01/20 - 02/29/20 | AS14: 03/01/20 - 06/30/20 | AT14: 07/01/19 - 06/30/20 | AU14: 07/01/19 - 06/30/20 | AV14: 07/01/19 - 09/30/19 | AW14: 10/01/19 - 12/31/19 | AX14: 01/01/20 - 02/29/20 | AY14: 03/01/20 - 06/30/20 | AZ14: 07/01/19 - 12/31/19 | BA14: 01/01/20 - 02/29/20 | BB14: 03/01/20 - 06/30/20 | BC14: 07/01/19 - 12/31/19 | BD14: 01/01/20 - 02/29/20 | BE14: 03/01/20 - 06/30/20 | BF14: 07/01/19 - 09/30/19 | BG14: 10/01/19 - 12/31/19 | BH14: 01/01/20 - 02/29/20 | BI14: 03/01/20 - 06/30/20 | BJ14: 07/01/19 - 12/31/19 | BK14: 01/01/20 - 02/29/20 | BL14: 03/01/20 - 06/30/20 | BM14: 07/01/19 - 06/30/20 | BN14: 07/01/19 - 12/31/19 | BO14: 01/01/20 - 02/29/20 | BP14: 03/01/20 - 06/30/20 | BQ14: 07/01/19 - 06/30/20 | BR14: 07/01/19 - 06/30/20 | BS14: 07/01/19 - 09/30/19 | BT14: 10/01/19 - 12/31/19 | BU14: 01/01/20 - 02/29/20 | BV14: 03/01/20 - 06/30/20 | BW14: 07/01/19 - 12/31/19 | BX14: 01/01/20 - 02/29/20 | BY14: 03/01/20 - 06/30/20 | BZ14: 07/01/19 - 12/31/19 | CA14: 01/01/20 - 02/29/20 | CB14: 03/01/20 - 06/30/20 | CC14: 07/01/19 - 09/30/19 | CD14: 10/01/19 - 12/31/19 | CE14: 01/01/20 - 02/29/20 | CF14: 03/01/20 - 06/30/20 | CG14: 07/01/19 - 12/31/19 | CH14: 01/01/20 - 02/29/20 | CI14: 03/01/20 - 06/30/20 | CJ14: 07/01/19 - 06/30/20 | CK14: 07/01/19 - 12/31/19 | CL14: 01/01/20 - 02/29/20 | CM14: 03/01/20 - 06/30/20 | CN14: 07/01/19 - 06/30/20 | CO14: 07/01/19 - 06/30/20 | CP14: 07/01/19 - 09/30/19 | CQ14: 10/01/19 - 12/31/19 | CR14: 01/01/20 - 02/29/20 | CS14: 03/01/20 - 06/30/20 | CT14: 07/01/19 - 12/31/19 | CU14: 01/01/20 - 02/29/20 | CV14: 03/01/20 - 06/30/20 | CW14: 07/01/19 - 12/31/19 | CX14: 01/01/20 - 02/29/20 | CY14: 03/01/20 - 06/30/20 | CZ14: 07/01/19 - 09/30/19 | DA14: 10/01/19 - 12/31/19 | DB14: 01/01/20 - 02/29/20 | DC14: 03/01/20 - 06/30/20 | DD14: 07/01/19 - 12/31/19 | DE14: 01/01/20 - 02/29/20 | DF14: 03/01/20 - 06/30/20 | DG14: 07/01/19 - 06/30/20 | DH14: 07/01/19 - 12/31/19 | DI14: 01/01/20 - 02/29/20 | DJ14: 03/01/20 - 06/30/20 | DK14: 07/01/19 - 06/30/20 | DL14: 07/01/19 - 06/30/20 | DM14: 07/01/19 - 09/30/19 | DN14: 10/01/19 - 12/31/19 | DO14: 01/01/20 - 02/29/20 | DP14: 03/01/20 - 06/30/20 | DQ14: 07/01/19 - 12/31/19 | DR14: 01/01/20 - 02/29/20 | DS14: 03/01/20 - 06/30/20 | DT14: 07/01/19 - 12/31/19 | DU14: 01/01/20 - 02/29/20 | DV14: 03/01/20 - 06/30/20 | DW14: 07/01/19 - 09/30/19 | DX14: 10/01/19 - 12/31/19 | DY14: 01/01/20 - 02/29/20 | DZ14: 03/01/20 - 06/30/20 | EA14: 07/01/19 - 12/31/19 | EB14: 01/01/20 - 02/29/20 | EC14: 03/01/20 - 06/30/20 | ED14: 07/01/19 - 06/30/20 | EE14: 07/01/19 - 12/31/19 | EF14: 01/01/20 - 02/29/20 | EG14: 03/01/20 - 06/30/20 | EH14: 07/01/19 - 06/30/20 | EI14: 07/01/19 - 06/30/20 | EJ14: 07/01/19 - 09/30/19 | EK14: 10/01/19 - 12/31/19 | EL14: 01/01/20 - 02/29/20 | EM14: 03/01/20 - 06/30/20 | EN14: 07/01/19 - 12/31/19 | EO14: 01/01/20 - 02/29/20 | EP14: 03/01/20 - 06/30/20 | EQ14: 07/01/19 - 12/31/19 | ER14: 01/01/20 - 02/29/20 | ES14: 03/01/20 - 06/30/20 | ET14: 07/01/19 - 09/30/19 | EU14: 10/01/19 - 12/31/19 | EV14: 01/01/20 - 02/29/20 | EW14: 03/01/20 - 06/30/20 | EX14: 07/01/19 - 12/31/19 | EY14: 01/01/20 - 02/29/20 | EZ14: 03/01/20 - 06/30/20 | FA14: 07/01/19 - 06/30/20 | FB14: 07/01/19 - 12/31/19 | FC14: 01/01/20 - 02/29/20 | FD14: 03/01/20 - 06/30/20 | FE14: 07/01/19 - 06/30/20 | FF14: 07/01/19 - 06/30/20 | FG14: 07/01/19 - 09/30/19 | FH14: 10/01/19 - 12/31/19 | FI14: 01/01/20 - 02/29/20 | FJ14: 03/01/20 - 06/30/20 | FK14: 07/01/19 - 12/31/19 | FL14: 01/01/20 - 02/29/20 | FM14: 03/01/20 - 06/30/20 | FN14: 07/01/19 - 12/31/19 | FO14: 01/01/20 - 02/29/20 | FP14: 03/01/20 - 06/30/20 | FQ14: 07/01/19 - 09/30/19 | FR14: 10/01/19 - 12/31/19 | FS14: 01/01/20 - 02/29/20 | FT14: 03/01/20 - 06/30/20 | FU14: 07/01/19 - 12/31/19 | FV14: 01/01/20 - 02/29/20 | FW14: 03/01/20 - 06/30/20 | FX14: 07/01/19 - 06/30/20 | FY14: 07/01/19 - 12/31/19 | FZ14: 01/01/20 - 02/29/20 | GA14: 03/01/20 - 06/30/20 | GB14: 07/01/19 - 06/30/20 | GC14: 07/01/19 - 06/30/20 | GD14: 07/01/19 - 09/30/19 | GE14: 10/01/19 - 12/31/19 | GF14: 01/01/20 - 02/29/20 | GG14: 03/01/20 - 06/30/20 | GH14: 07/01/19 - 12/31/19 | GI14: 01/01/20 - 02/29/20 | GJ14: 03/01/20 - 06/30/20 | GK14: 07/01/19 - 12/31/19 | GL14: 01/01/20 - 02/29/20 | GM14: 03/01/20 - 06/30/20 | GN14: 07/01/19 - 09/30/19 | GO14: 10/01/19 - 12/31/19 | GP14: 01/01/20 - 02/29/20 | GQ14: 03/01/20 - 06/30/20 | GR14: 07/01/19 - 12/31/19 | GS14: 01/01/20 - 02/29/20 | GT14: 03/01/20 - 06/30/20 | GU14: 07/01/19 - 06/30/20 | GV14: 07/01/19 - 12/31/19 | GW14: 01/01/20 - 02/29/20 | GX14: 03/01/20 - 06/30/20 | GY14: 07/01/19 - 06/30/20 | GZ14: 07/01/19 - 06/30/20 | HA14: 07/01/19 - 09/30/19 | HB14: 10/01/19 - 12/31/19 | HC14: 01/01/20 - 02/29/20 | HD14: 03/01/20 - 06/30/20 | HE14: 07/01/19 - 12/31/19 | HF14: 01/01/20 - 02/29/20 | HG14: 03/01/20 - 06/30/20 | HH14: 07/01/19 - 12/31/19 | HI14: 01/01/20 - 02/29/20 | HJ14: 03/01/20 - 06/30/20 | HK14: 07/01/19 - 09/30/19 | HL14: 10/01/19 - 12/31/19 | HM14: 01/01/20 - 02/29/20 | HN14: 03/01/20 - 06/30/20 | HO14: 07/01/19 - 12/31/19 | HP14: 01/01/20 - 02/29/20 | HQ14: 03/01/20 - 06/30/20 | HR14: 07/01/19 - 06/30/20 | HS14: 07/01/19 - 12/31/19 | HT14: 01/01/20 - 02/29/20 | HU14: 03/01/20 - 06/30/20 | HV14: 07/01/19 - 06/30/20 | HW14: 07/01/19 - 06/30/20 | HX14: 07/01/19 - 09/30/19 | HY14: 10/01/19 - 12/31/19 | HZ14: 01/01/20 - 02/29/20 | IA14: 03/01/20 - 06/30/20 | IB14: 07/01/19 - 12/31/19 | IC14: 01/01/20 - 02/29/20 | ID14: 03/01/20 - 06/30/20 | IE14: 07/01/19 - 12/31/19 | IF14: 01/01/20 - 02/29/20 | IG14: 03/01/20 - 06/30/20 | IH14: 07/01/19 - 09/30/19 | II14: 10/01/19 - 12/31/19 | IJ14: 01/01/20 - 02/29/20 | IK14: 03/01/20 - 06/30/20 | IL14: 07/01/19 - 12/31/19 | IM14: 01/01/20 - 02/29/20 | IN14: 03/01/20 - 06/30/20 | IO14: 07/01/19 - 06/30/20 | IP14: 07/01/19 - 12/31/19 | IQ14: 01/01/20 - 02/29/20 | IR14: 03/01/20 - 06/30/20 | IS14: 07/01/19 - 06/30/20 | IT14: 07/01/19 - 06/30/20 | IU14: 07/01/19 - 09/30/19 | IV14: 10/01/19 - 12/31/19 | IW14: 01/01/20 - 02/29/20 | IX14: 03/01/20 - 06/30/20 | IY14: 07/01/19 - 12/31/19 | IZ14: 01/01/20 - 02/29/20 | JA14: 03/01/20 - 06/30/20 | JB14: 07/01/19 - 12/31/19 | JC14: 01/01/20 - 02/29/20 | JD14: 03/01/20 - 06/30/20 | JE14: 07/01/19 - 09/30/19 | JF14: 10/01/19 - 12/31/19 | JG14: 01/01/20 - 02/29/20 | JH14: 03/01/20 - 06/30/20 | JI14: 07/01/19 - 12/31/19 | JJ14: 01/01/20 - 02/29/20 | JK14: 03/01/20 - 06/30/20 | JL14: 07/01/19 - 06/30/20 | JM14: 07/01/19 - 12/31/19 | JN14: 01/01/20 - 02/29/20 | JO14: 03/01/20 - 06/30/20 | JP14: 07/01/19 - 06/30/20 | JQ14: 07/01/19 - 06/30/20 | JR14: 07/01/19 - 09/30/19 | JS14: 10/01/19 - 12/31/19 | JT14: 01/01/20 - 02/29/20 | JU14: 03/01/20 - 06/30/20 | JV14: 07/01/19 - 12/31/19 | JW14: 01/01/20 - 02/29/20 | JX14: 03/01/20 - 06/30/20 | JY14: 07/01/19 - 12/31/19 | JZ14: 01/01/20 - 02/29/20 | KA14: 03/01/20 - 06/30/20 | KB14: 07/01/19 - 09/30/19 | KC14: 10/01/19 - 12/31/19 | KD14: 01/01/20 - 02/29/20 | KE14: 03/01/20 - 06/30/20 | KF14: 07/01/19 - 12/31/19 | KG14: 01/01/20 - 02/29/20 | KH14: 03/01/20 - 06/30/20 | KI14: 07/01/19 - 06/30/20 | KJ14: 07/01/19 - 12/31/19 | KK14: 01/01/20 - 02/29/20 | KL14: 03/01/20 - 06/30/20 | KM14: 07/01/19 - 06/30/20 | KN14: 07/01/19 - 06/30/20 | KO14: 07/01/19 - 09/30/19 | KP14: 10/01/19 - 12/31/19 | KQ14: 01/01/20 - 02/29/20 | KR14: 03/01/20 - 06/30/20 | KS14: 07/01/19 - 12/31/19 | KT14: 01/01/20 - 02/29/20 | KU14: 03/01/20 - 06/30/20 | KV14: 07/01/19 - 12/31/19 | KW14: 01/01/20 - 02/29/20 | KX14: 03/01/20 - 06/30/20 | KY14: 07/01/19 - 09/30/19 | KZ14: 10/01/19 - 12/31/19 | LA14: 01/01/20 - 02/29/20 | LB14: 03/01/20 - 06/30/20 | LC14: 07/01/19 - 12/31/19 | LD14: 01/01/20 - 02/29/20 | LE14: 03/01/20 - 06/30/20 | LF14: 07/01/19 - 06/30/20 | LG14: 07/01/19 - 12/31/19 | LH14: 01/01/20 - 02/29/20 | LI14: 03/01/20 - 06/30/20 | LJ14: 07/01/19 - 06/30/20 | LK14: 07/01/19 - 06/30/20 | LL14: 07/01/19 - 09/30/19 | LM14: 10/01/19 - 12/31/19 | LN14: 01/01/20 - 02/29/20 | LO14: 03/01/20 - 06/30/20 | LP14: 07/01/19 - 12/31/19 | LQ14: 01/01/20 - 02/29/20 | LR14: 03/01/20 - 06/30/20 | LS14: 07/01/19 - 12/31/19 | LT14: 01/01/20 - 02/29/20 | LU14: 03/01/20 - 06/30/20 | LV14: 07/01/19 - 09/30/19 | LW14: 10/01/19 - 12/31/19 | LX14: 01/01/20 - 02/29/20 | LY14: 03/01/20 - 06/30/20 | LZ14: 07/01/19 - 12/31/19 | MA14: 01/01/20 - 02/29/20 | MB14: 03/01/20 - 06/30/20 | MC14: 07/01/19 - 06/30/20 | MD14: 07/01/19 - 12/31/19 | ME14: 01/01/20 - 02/29/20 | MF14: 03/01/20 - 06/30/20 | MG14: 07/01/19 - 06/30/20 | MH14: 07/01/19 - 06/30/20 | MI14: 07/01/19 - 09/30/19 | MJ14: 10/01/19 - 12/31/19 | MK14: 01/01/20 - 02/29/20 | ML14: 03/01/20 - 06/30/20 | MM14: 07/01/19 - 12/31/19 | MN14: 01/01/20 - 02/29/20 | MO14: 03/01/20 - 06/30/20 | MP14: 07/01/19 - 12/31/19 | MQ14: 01/01/20 - 02/29/20 | MR14: 03/01/20 - 06/30/20 | MS14: 07/01/19 - 09/30/19 | MT14: 10/01/19 - 12/31/19 | MU14: 01/01/20 - 02/29/20 | MV14: 03/01/20 - 06/30/20 | MW14: 07/01/19 - 12/31/19 | MX14: 01/01/20 - 02/29/20 | MY14: 03/01/20 - 06/30/20 | MZ14: 07/01/19 - 06/30/20 | NA14: 07/01/19 - 12/31/19 | NB14: 01/01/20 - 02/29/20 | NC14: 03/01/20 - 06/30/20 | ND14: 07/01/19 - 06/30/20 | NE14: 07/01/19 - 06/30/20 | NF14: 07/01/19 - 09/30/19 | NG14: 10/01/19 - 12/31/19 | NH14: 01/01/20 - 02/29/20 | NI14: 03/01/20 - 06/30/20 | NJ14: 07/01/19 - 12/31/19 | NK14: 01/01/20 - 02/29/20 | NL14: 03/01/20 - 06/30/20 | NM14: 07/01/19 - 12/31/19 | NN14: 01/01/20 - 02/29/20 | NO14: 03/01/20 - 06/30/20 | NP14: 07/01/19 - 09/30/19 | NQ14: 10/01/19 - 12/31/19 | NR14: 01/01/20 - 02/29/20 | NS14: 03/01/20 - 06/30/20 | NT14: 07/01/19 - 12/31/19 | NU14: 01/01/20 - 02/29/20 | NV14: 03/01/20 - 06/30/20 | NW14: 07/01/19 - 06/30/20 | NX14: 07/01/19 - 12/31/19 | NY14: 01/01/20 - 02/29/20 | NZ14: 03/01/20 - 06/30/20 | OA14: 07/01/19 - 06/30/20 | OB14: 07/01/19 - 06/30/20 | OC14: 07/01/19 - 09/30/19 | OD14: 10/01/19 - 12/31/19 | OE14: 01/01/20 - 02/29/20 | OF14: 03/01/20 - 06/30/20 | OG14: 07/01/19 - 12/31/19 | OH14: 01/01/20 - 02/29/20 | OI14: 03/01/20 - 06/30/20 | OJ14: 07/01/19 - 12/31/19 | OK14: 01/01/20 - 02/29/20 | OL14: 03/01/20 - 06/30/20 | OM14: 07/01/19 - 09/30/19 | ON14: 10/01/19 - 12/31/19 | OO14: 01/01/20 - 02/29/20 | OP14: 03/01/20 - 06/30/20 | OQ14: 07/01/19 - 12/31/19 | OR14: 01/01/20 - 02/29/20 | OS14: 03/01/20 - 06/30/20 | OT14: 07/01/19 - 06/30/20 | OU14: 07/01/19 - 12/31/19 | OV14: 01/01/20 - 02/29/20 | OW14: 03/01/20 - 06/30/20 | OX14: 07/01/19 - 06/30/20 | OY14: 07/01/19 - 06/30/20 | OZ14: 07/01/19 - 09/30/19 | PA14: 10/01/19 - 12/31/19 | PB14: 01/01/20 - 02/29/20 | PC14: 03/01/20 - 06/30/20 | PD14: 07/01/19 - 12/31/19 | PE14: 01/01/20 - 02/29/20 | PF14: 03/01/20 - 06/30/20 | PG14: 07/01/19 - 12/31/19 | PH14: 01/01/20 - 02/29/20 | PI14: 03/01/20 - 06/30/20 | PJ14: 07/01/19 - 09/30/19 | PK14: 10/01/19 - 12/31/19 | PL14: 01/01/20 - 02/29/20 | PM14: 03/01/20 - 06/30/20 | PN14: 07/01/19 - 12/31/19 | PO14: 01/01/20 - 02/29/20 | PP14: 03/01/20 - 06/30/20 | PQ14: 07/01/19 - 06/30/20 | PR14: 07/01/19 - 12/31/19 | PS14: 01/01/20 - 02/29/20 | PT14: 03/01/20 - 06/30/20 | PU14: 07/01/19 - 06/30/20 | PV14: 07/01/19 - 06/30/20 | PW14: 07/01/19 - 09/30/19 | PX14: 10/01/19 - 12/31/19 | PY14: 01/01/20 - 02/29/20 | PZ14: 03/01/20 - 06/30/20 | QA14: 07/01/19 - 12/31/19 | QB14: 01/01/20 - 02/29/20 | QC14: 03/01/20 - 06/30/20 | QD14: 07/01/19 - 12/31/19 | QE14: 01/01/20 - 02/29/20 | QF14: 03/01/20 - 06/30/20 | QG14: 07/01/19 - 09/30/19 | QH14: 10/01/19 - 12/31/19 | QI14: 01/01/20 - 02/29/20 | QJ14: 03/01/20 - 06/30/20 | QK14: 07/01/19 - 12/31/19 | QL14: 01/01/20 - 02/29/20 | QM14: 03/01/20 - 06/30/20 | QN14: 07/01/19 - 06/30/20 | QO14: 07/01/19 - 12/31/19 | QP14: 01/01/20 - 02/29/20 | QQ14: 03/01/20 - 06/30/20 | QR14: 07/01/19 - 06/30/20 | QS14: 07/01/19 - 06/30/20 | QT14: 07/01/19 - 09/30/19 | QU14: 10/01/19 - 12/31/19 | QV14: 01/01/20 - 02/29/20 | QW14: 03/01/20 - 06/30/20 | QX14: 07/01/19 - 12/31/19 | QY14: 01/01/20 - 02/29/20 | QZ14: 03/01/20 - 06/30/20 | RA14: 07/01/19 - 12/31/19 | RB14: 01/01/20 - 02/29/20 | RC14: 03/01/20 - 06/30/20 | RD14: 07/01/19 - 09/30/19 | RE14: 10/01/19 - 12/31/19 | RF14: 01/01/20 - 02/29/20 | RG14: 03/01/20 - 06/30/20 | RH14: 07/01/19 - 12/31/19 | RI14: 01/01/20 - 02/29/20 | RJ14: 03/01/20 - 06/30/20 | RK14: 07/01/19 - 06/30/20 | RL14: 07/01/19 - 12/31/19 | RM14: 01/01/20 - 02/29/20 | RN14: 03/01/20 - 06/30/20 | RO14: 07/01/19 - 06/30/20 | RP14: 07/01/19 - 06/30/20 | RQ14: 07/01/19 - 09/30/19 | RR14: 10/01/19 - 12/31/19 | RS14: 01/01/20 - 02/29/20 | RT14: 03/01/20 - 06/30/20 | RU14: 07/01/19 - 12/31/19 | RV14: 01/01/20 - 02/29/20 | RW14: 03/01/20 - 06/30/20 | RX14: 07/01/19 - 12/31/19 | RY14: 01/01/20 - 02/29/20 | RZ14: 03/01/20 - 06/30/20 | SA14: 07/01/19 - 09/30/19 | SB14: 10/01/19 - 12/31/19 | SC14: 01/01/20 - 02/29/20 | SD14: 03/01/20 - 06/30/20 | SE14: 07/01/19 - 12/31/19 | SF14: 01/01/20 - 02/29/20 | SG14: 03/01/20 - 06/30/20 | SH14: 07/01/19 - 06/30/20 | SI14: 07/01/19 - 12/31/19 | SJ14: 01/01/20 - 02/29/20 | SK14: 03/01/20 - 06/30/20 | SL14: 07/01/19 - 06/30/20 | SM14: 07/01/19 - 06/30/20 | SN14: 07/01/19 - 09/30/19 | SO14: 10/01/19 - 12/31/19 | SP14: 01/01/20 - 02/29/20 | SQ14: 03/01/20 - 06/30/20 | SR14: 07/01/19 - 12/31/19 | SS14: 01/01/20 - 02/29/20 | ST14: 03/01/20 - 06/30/20 | SU14: 07/01/19 - 12/31/19 | SV14: 01/01/20 - 02/29/20 | SW14: 03/01/20 - 06/30/20 | SX14: 07/01/19 - 09/30/19 | SY14: 10/01/19 - 12/31/19 | SZ14: 01/01/20 - 02/29/20 | TA14: 03/01/20 - 06/30/20 | TB14: 07/01/19 - 12/31/19 | TC14: 01/01/20 - 02/29/20 | TD14: 03/01/20 - 06/30/20 | TE14: 07/01/19 - 06/30/20 | TF14: 07/01/19 - 12/31/19 | TG14: 01/01/20 - 02/29/20 | TH14: 03/01/20 - 06/30/20 | TI14: 07/01/19 - 06/30/20 | TJ14: 07/01/19 - 06/30/20 | TK14: 07/01/19 - 09/30/19 | TL14: 10/01/19 - 12/31/19 | TM14: 01/01/20 - 02/29/20 | TN14: 03/01/20 - 06/30/20 | TO14: 07/01/19 - 12/31/19 | TP14: 01/01/20 - 02/29/20 | TQ14: 03/01/20 - 06/30/20 | TR14: 07/01/19 - 12/31/19 | TS14: 01/01/20 - 02/29/20 | TT14: 03/01/20 - 06/30/20 | TU14: 07/01/19 - 09/30/19 | TV14: 10/01/19 - 12/31/19 | TW14: 01/01/20 - 02/29/20 | TX14: 03/01/20 - 06/30/20 | TY14: 07/01/19 - 12/31/19 | TZ14: 01/01/20 - 02/29/20 | UA14: 03/01/20 - 06/30/20 | UB14: 07/01/19 - 06/30/20 | UC14: 07/01/19 - 12/31/19 | UD14: 01/01/20 - 02/29/20 | UE14: 03/01/20 - 06/30/20 | UF14: 07/01/19 - 06/30/20 | UG14: 07/01/19 - 06/30/20 | UH14: 07/01/19 - 09/30/19 | UI14: 10/01/19 - 12/31/19 | UJ14: 01/01/20 - 02/29/20 | UK14: 03/01/20 - 06/30/20 | UL14: 07/01/19 - 12/31/19 | UM14: 01/01/20 - 02/29/20 | UN14: 03/01/20 - 06/30/20 | UO14: 07/01/19 - 12/31/19 | UP14: 01/01/20 - 02/29/20 | UQ14: 03/01/20 - 06/30/20 | UR14: 07/01/19 - 09/30/19 | US14: 10/01/19 - 12/31/19 | UT14: 01/01/20 - 02/29/20 | UU14: 03/01/20 - 06/30/20 | UV14: 07/01/19 - 12/31/19 | UW14: 01/01/20 - 02/29/20 | UX14: 03/01/20 - 06/30/20 | UY14: 07/01/19 - 06/30/20 | UZ14: 07/01/19 - 12/31/19 | VA14: 01/01/20 - 02/29/20 | VB14: 03/01/20 - 06/30/20 | VC14: 07/01/19 - 06/30/20 | VD14: 07/01/19 - 06/30/20 | VE14: 07/01/19 - 09/30/19 | VF14: 10/01/19 - 12/31/19 | VG14: 01/01/20 - 02/29/20 | VH14: 03/01/20 - 06/30/20 | VI14: 07/01/19 - 12/31/19 | VJ14: 01/01/20 - 02/29/20 | VK14: 03/01/20 - 06/30/20 | VL14: 07/01/19 - 12/31/19 | VM14: 01/01/20 - 02/29/20 | VN14: 03/01/20 - 06/30/20 | VO14: 07/01/19 - 09/30/19 | VP14: 10/01/19 - 12/31/19 | VQ14: 01/01/20 - 02/29/20 | VR14: 03/01/20 - 06/30/20 | VS14: 07/01/19 - 12/31/19 | VT14: 01/01/20 - 02/29/20 | VU14: 03/01/20 - 06/30/20 | VV14: 07/01/19 - 06/30/20 | VW14: 07/01/19 - 12/31/19 | VX14: 01/01/20 - 02/29/20 | VY14: 03/01/20 - 06/30/20 | VZ14: 07/01/19 - 06/30/20 | WA14: 07/01/19 - 06/30/20 | WB14: 07/01/19 - 09/30/19 | WC14: 10/01/19 - 12/31/19 | WD14: 01/01/20 - 02/29/20 | WE14: 03/01/20 - 06/30/20 | WF14: 07/01/19 - 12/31/19 | WG14: 01/01/20 - 02/29/20 | WH14: 03/01/20 - 06/30/20 | WI14: 07/01/19 - 12/31/19 | WJ14: 01/01/20 - 02/29/20 | WK14: 03/01/20 - 06/30/20 | WL14: 07/01/19 - 09/30/19 | WM14: 10/01/19 - 12/31/19 | WN14: 01/01/20 - 02/29/20 | WO14: 03/01/20 - 06/30/20 | WP14: 07/01/19 - 12/31/19 | WQ14: 01/01/20 - 02/29/20 | WR14: 03/01/20 - 06/30/20 | WS14: 07/01/19 - 06/30/20 | WT14: 07/01/19 - 12/31/19 | WU14: 01/01/20 - 02/29/20 | WV14: 03/01/20 - 06/30/20 | WW14: 07/01/19 - 06/30/20 | WX14: 07/01/19 - 06/30/20 | WY14: 07/01/19 - 09/30/19 | WZ14: 10/01/19 - 12/31/19 | XA14: 01/01/20 - 02/29/20 | XB14: 03/01/20 - 06/30/20 | XC14: 07/01/19 - 12/31/19 | XD14: 01/01/20 - 02/29/20 | XE14: 03/01/20 - 06/30/20 | XF14: 07/01/19 - 12/31/19 | XG14: 01/01/20 - 02/29/20 | XH14: 03/01/20 - 06/30/20 | XI14: 07/01/19 - 09/30/19 | XJ14: 10/01/19 - 12/31/19 | XK14: 01/01/20 - 02/29/20 | XL14: 03/01/20 - 06/30/20 | XM14: 07/01/19 - 12/31/19 | XN14: 01/01/20 - 02/29/20 | XO14: 03/01/20 - 06/30/20 | XP14: 07/01/19 - 06/30/20 | XQ14: 07/01/19 - 12/31/19 | XR14: 01/01/20 - 02/29/20 | XS14: 03/01/20 - 06/30/20 | XT14: 07/01/19 - 06/30/20 | XU14: 07/01/19 - 06/30/20 | XV14: 07/01/19 - 09/30/19 | XW14: 10/01/19 - 12/31/19 | XX14: 01/01/20 - 02/29/20 | XY14: 03/01/20 - 06/30/20 | XZ14: 07/01/19 - 12/31/19 | YA14: 01/01/20 - 02/29/20 | YB14: 03/01/20 - 06/30/20 | YC14: 07/01/19 - 12/31/19 | YD14: 01/01/20 - 02/29/20 | YE14: 03/01/20 - 06/30/20 | YF14: 07/01/19 - 09/30/19 | YG14: 10/01/19 - 12/31/19 | YH14: 01/01/20 - 02/29/20 | YI14: 03/01/20 - 06/30/20 | YJ14: 07/01/19 - 12/31/19 | YK14: 01/01/20 - 02/29/20 | YL14: 03/01/20 - 06/30/20 | YM14: 07/01/19 - 06/30/20 | YN14: 07/01/19 - 12/31/19 | YO14: 01/01/20 - 02/29/20 | YP14: 03/01/20 - 06/30/20 | YQ14: 07/01/19 - 06/30/20 | YR14: 07/01/19 - 06/30/20 | YS14: 07/01/19 - 09/30/19 | YT14: 10/01/19 - 12/31/19 | YU14: 01/01/20 - 02/29/20 | YV14: 03/01/20 - 06/30/20 | YW14: 07/01/19 - 12/31/19 | YX14: 01/01/20 - 02/29/20 | YY14: 03/01/20 - 06/30/20 | YZ14: 07/01/19 - 12/31/19 | ZA14: 01/01/20 - 02/29/20 | ZB14: 03/01/20 - 06/30/20 | ZC14: 07/01/19 - 09/30/19 | ZD14: 10/01/19 - 12/31/19 | ZE14: 01/01/20 - 02/29/20 | ZF14: 03/01/20 - 06/30/20 | ZG14: 07/01/19 - 12/31/19 | ZH14: 01/01/20 - 02/29/20 | ZI14: 03/01/20 - 06/30/20 | ZJ14: 07/01/19 - 06/30/20 | ZK14: 07/01/19 - 12/31/19 | ZL14: 01/01/20 - 02/29/20 | ZM14: 03/01/20 - 06/30/20 | ZN14: 07/01/19 - 06/30/20 | ZO14: 07/01/19 - 06/30/20 | ZP14: 07/01/19 - 09/30/19 | ZQ14: 10/01/19 - 12/31/19 | ZR14: 01/01/20 - 02/29/20 | ZS14: 03/01/20 - 06/30/20 | ZT14: 07/01/19 - 12/31/19 | ZU14: 01/01/20 - 02/29/20 | ZV14: 03/01/20 - 06/30/20 | ZW14: 07/01/19 - 12/31/19 | ZX14: 01/01/20 - 02/29/20 | ZY14: 03/01/20 - 06/30/20 | ZZ14: 07/01/19 - 09/30/19 | AAA14: 10/01/19 - 12/31/19 | AAB14: 01/01/20 - 02/29/20 | AAC14: 03/01/20 - 06/30/20 | AAD14: 07/01/19 - 12/31/19 | AAE14: 01/01/20 - 02/29/20 | AAF14: 03/01/20 - 06/30/20 | AAG14: 07/01/19 - 06/30/20 | AAH14: 07/01/19 - 12/31/19 | AAI14: 01/01/20 - 02/29/20 | AAJ14: 03/01/20 - 06/30/20 | AAK14: 07/01/19 - 06/30/20 | AAL14: 07/01/19 - 06/30/20 | AAM14: 07/01/19 - 09/30/19 | AAN14: 10/01/19 - 12/31/19 | AAO14: 01/01/20 - 02/29/20 | AAP14: 03/01/20 - 06/30/20 | AAQ14: 07/01/19 - 12/31/19 | AAR14: 01/01/20 - 02/29/20 | AAS14: 03/01/20 - 06/30/20 | AAT14: 07/01/19 - 12/31/19 | AAU14: 01/01/20 - 02/29/20 | AAV14: 03/01/20 - 06/30/20 | AAW14: 07/01/19 - 09/30/19 | AAX14: 10/01/19 - 12/31/19 | AAY14: 01/01/20 - 02/29/20 | AAZ14: 03/01/20 - 06/30/20 | ABA14: 07/01/19 - 12/31/19 | ABB14: 01/01/20 - 02/29/20 | ABC14: 03/01/20 - 06/30/20 | ABD14: 07/01/19 - 06/30/20 | ABE14: 07/01/19 - 12/31/19 | ABF14: 01/01/20 - 02/29/20 | ABG14: 03/01/20 - 06/30/20 | ABH14: 07/01/19 - 06/30/20 | ABI14: 07/01/19 - 06/30/20 | ABJ14: 07/01/19 - 09/30/19 | ABK14: 10/01/19 - 12/31/19 | ABL14: 01/01/20 - 02/29/20 | ABM14: 03/01/20 - 06/30/20 | ABN14: 07/01/19 - 06/30/20 | ABO14: 07/01/19 - 06/30/20 | ABP14: 07/01/19 - 06/30/20 | ABQ14: 07/01/19 - 06/30/20 | ABR14: 07/01/19 - 06/30/20 | ABS14: 07/01/19 - 06/30/20 | ABT14: 07/01/19 - 06/30/20 | ABU14: 07/01/19 - 06/30/20 | ABV14: 07/01/19 - 12/31/19 | ABW14: 01/01/20 - 02/29/20 | ABX14: 03/01/20 - 06/30/20 | ABY14: 07/01/19 - 12/31/19 | ABZ14: 01/01/20 - 02/29/20 | ACA14: 03/01/20 - 06/30/20 | ACB14: 07/01/19 - 09/30/19 | ACC14: 10/01/19 - 12/31/19 | ACD14: 01/01/20 - 02/29/20 | ACE14: 03/01/20 - 06/30/20 | ACF14: 07/01/19 - 12/31/19 | ACG14: 01/01/20 - 02/29/20 | ACH14: 03/01/20 - 06/30/20 | ACI14: 07/01/19 - 06/30/20 | ACJ14: 07/01/19 - 12/31/19 | ACK14: 01/01/20 - 02/29/20 | ACL14: 03/01/20 - 06/30/20 | ACM14: 07/01/19 - 06/30/20 | ACN14: 07/01/19 - 06/30/20 | ACO14: 07/01/19 - 09/30/19 | ACP14: 10/01/19 - 12/31/19 | ACQ14: 01/01/20 - 02/29/20 | ACR14: 03/01/20 - 06/30/20 | ACS14: 07/01/19 - 12/31/19 | ACT14: 01/01/20 - 02/29/20 | ACU14: 03/01/20 - 06/30/20 | ACV14: 07/01/19 - 12/31/19 | ACW14: 01/01/20 - 02/29/20 | ACX14: 03/01/20 - 06/30/20 | ACY14: 07/01/19 - 09/30/19 | ACZ14: 10/01/19 - 12/31/19 | ADA14: 01/01/20 - 02/29/20 | ADB14: 03/01/20 - 06/30/20 | ADC14: 07/01/19 - 12/31/19 | ADD14: 01/01/20 - 02/29/20 | ADE14: 03/01/20 - 06/30/20 | ADF14: 07/01/19 - 06/30/20 | ADG14: 07/01/19 - 12/31/19 | ADH14: 01/01/20 - 02/29/20 | ADI14: 03/01/20 - 06/30/20 | ADJ14: 07/01/19 - 06/30/20 | ADK14: 07/01/19 - 06/30/20 | ADL14: 07/01/19 - 09/30/19 | ADM14: 10/01/19 - 12/31/19 | ADN14: 01/01/20 - 02/29/20 | ADO14: 03/01/20 - 06/30/20 | ADP14: 07/01/19 - 12/31/19 | ADQ14: 01/01/20 - 02/29/20 | ADR14: 03/01/20 - 06/30/20 | ADS14: 07/01/19 - 12/31/19 | ADT14: 01/01/20 - 02/29/20 | ADU14: 03/01/20 - 06/30/20 | ADV14: 07/01/19 - 09/30/19 | ADW14: 10/01/19 - 12/31/19 | ADX14: 01/01/20 - 02/29/20 | ADY14: 03/01/20 - 06/30/20 | ADZ14: 07/01/19 - 12/31/19 | AEA14: 01/01/20 - 02/29/20 | AEB14: 03/01/20 - 06/30/20 | AEC14: 07/01/19 - 06/30/20 | AED14: 07/01/19 - 12/31/19 | AEE14: 01/01/20 - 02/29/20 | AEF14: 03/01/20 - 06/30/20 | AEG14: 07/01/19 - 06/30/20 | AEH14: 07/01/19 - 06/30/20 | AEI14: 07/01/19 - 09/30/19 | AEJ14: 10/01/19 - 12/31/19 | AEK14: 01/01/20 - 02/29/20 | AEL14: 03/01/20 - 06/30/20 | AEM14: 07/01/19 - 12/31/19 | AEN14: 01/01/20 - 02/29/20 | AEO14: 03/01/20 - 06/30/20 | AEP14: 07/01/19 - 12/31/19 | AEQ14: 01/01/20 - 02/29/20 | AER14: 03/01/20 - 06/30/20 | AES14: 07/01/19 - 09/30/19 | AET14: 10/01/19 - 12/31/19 | AEU14: 01/01/20 - 02/29/20 | AEV14: 03/01/20 - 06/30/20 | AEW14: 07/01/19 - 12/31/19 | AEX14: 01/01/20 - 02/29/20 | AEY14: 03/01/20 - 06/30/20 | AEZ14: 07/01/19 - 06/30/20 | AFA14: 07/01/19 - 12/31/19 | AFB14: 01/01/20 - 02/29/20 | AFC14: 03/01/20 - 06/30/20 | AFD14: 07/01/19 - 06/30/20 | AFE14: 07/01/19 - 06/30/20 | AFF14: 07/01/19 - 09/30/19 | AFG14: 10/01/19 - 12/31/19 | AFH14: 01/01/20 - 02/29/20 | AFI14: 03/01/20 - 06/30/20
A15: =C15&D15&E15 -> HOSP0514 | B15: 1 | C15: ='LAC103'!D15 -> HOSP | D15: ='LAC103'!E15 -> 05 | E15: ='LAC103'!F15 -> 14 | AZ15: 1520 | BA15: 1000 | BR15: 600 | IY15: =LAC102_S_CSS!FK15+LAC102_S_PEI!DQ15 -> 0 | IZ15: =LAC102_S_CSS!FL15+LAC102_S_PEI!DR15 -> 0 | JA15: =LAC102_S_CSS!FM15+LAC102_S_PEI!DS15 -> 0 | JB15: =LAC102_S_CSS!FN15+LAC102_S_PEI!DT15 -> 0 | JC15: =LAC102_S_CSS!FO15+LAC102_S_PEI!DU15 -> 0 | JD15: =LAC102_S_CSS!FP15+LAC102_S_PEI!DV15 -> 0 | JE15: =LAC102_S_CSS!FQ15+LAC102_S_PEI!DW15 -> 0 | JF15: =LAC102_S_CSS!FR15+LAC102_S_PEI!DX15 -> 0 | JG15: =LAC102_S_CSS!FS15+LAC102_S_PEI!DY15 -> 0 | JH15: =LAC102_S_CSS!FT15+LAC102_S_PEI!DZ15 -> 0 | JI15: =LAC102_S_CSS!FU15+LAC102_S_PEI!EA15 -> 0 | JJ15: =LAC102_S_CSS!FV15+LAC102_S_PEI!EB15 -> 0 | JK15: =LAC102_S_CSS!FW15+LAC102_S_PEI!EC15 -> 0 | JL15: =LAC102_S_CSS!FX15+LAC102_S_PEI!ED15 -> 0 | JM15: =LAC102_S_CSS!FY15+LAC102_S_PEI!EE15 -> 0 | JN15: =LAC102_S_CSS!FZ15+LAC102_S_PEI!EF15 -> 0 | JO15: =LAC102_S_CSS!GA15+LAC102_S_PEI!EG15 -> 0 | JP15: =LAC102_S_CSS!GB15+LAC102_S_PEI!EH15 -> 0 | JQ15: =LAC102_S_CSS!GC15+LAC102_S_PEI!EI15 -> 0 | JR15: =LAC102_S_CSS!GD15+LAC102_S_PEI!EJ15 -> 0 | JS15: =LAC102_S_CSS!GE15+LAC102_S_PEI!EK15 -> 0 | JT15: =LAC102_S_CSS!GF15+LAC102_S_PEI!EL15 -> 0 | JU15: =LAC102_S_CSS!GG15+LAC102_S_PEI!EM15 -> 0 | ABV15: =IF(ACS15-ADP15=0,ACS15,"ERROR") -> 1520 | ABW15: =IF(ACT15-ADQ15=0,ACT15,"ERROR") -> 1000 | ABX15: =IF(ACU15-ADR15=0,ACU15,"ERROR") -> 0 | ABY15: 0 | ABZ15: 0 | ACA15: 0 | ACB15: 0 | ACC15: 0 | ACD15: 0 | ACE15: 0 | ACF15: 0 | ACG15: 0 | ACH15: 0 | ACI15: 0 | ACJ15: 0 | ACK15: 0 | ACL15: 0 | ACM15: =IF(ADJ15-AEG15=0,ADJ15,"ERROR") -> 0 | ACN15: 600 | ACO15: 0 | ACP15: 0 | ACQ15: 0 | ACR15: 0 | ACS15: =SUM(F15,AC15,AZ15,BW15,CT15,DQ15,FK15,HE15,IB15,IY15,JV15,KS15,ZT15,AAQ15,GH15,LP15,EN15,YW15,MM15,NJ15,OG15,PD15,QA15,QX15,RU15,SR15,TO15,UL15,VI15,WF15,XZ15,XC15) -> 1520 | ACT15: =SUM(G15,AD15,BA15,BX15,CU15,DR15,FL15,HF15,IC15,IZ15,JW15,KT15,ZU15,AAR15,GI15,LQ15,EO15,YX15,MN15,NK15,OH15,PE15,QB15,QY15,RV15,SS15,TP15,UM15,VJ15,WG15,YA15,XD15) -> 1000 | ACU15: 0 | ACV15: 0 | ACW15: 0 | ACX15: 0 | ACY15: 0 | ACZ15: 0 | ADA15: 0 | ADB15: 0 | ADC15: 0 | ADD15: 0 | ADE15: 0 | ADF15: 0 | ADG15: 0 | ADH15: 0 | ADI15: 0 | ADJ15: =SUM(W15,AT15,BQ15,CN15,DK15,EH15,GB15,HV15,IS15,JP15,KM15,LJ15,AAK15,ABH15,GY15,MG15,FE15,ZN15,ND15,OA15,OX15,PU15,QR15,RO15,SL15,TI15,UF15,VC15,VZ15,WW15,YQ15,XT15) -> 0 | ADK15: =SUM(X15,AU15,BR15,CO15,DL15,EI15,GC15,HW15,IT15,JQ15,KN15,LK15,AAL15,ABI15,ABN15,ABO15,ABP15,GZ15,MH15,NE15,OB15,OY15,PV15,QS15,RP15,SM15,TJ15,UG15,VD15,WA15,WX15,XU15,YR15,FF15,ZO15) -> 600 | ADL15: =SUM(Y15,AV15,BS15,CP15,DM15,EJ15,GD15,HX15,IU15,JR15,KO15,LL15,AAM15,ABJ15,HA15,MI15,FG15,ZP15,NF15,OC15,OZ15,PW15,QT15,RQ15,SN15,TK15,UH15,VE15,WB15,WY15,YS15,XV15) -> 0 | ADM15: 0 | ADN15: 0 | ADO15: 0 | ADP15: =MH1901_Schedule_B!G20+MH1901_Schedule_B!F20 -> 1520 | ADQ15: =MH1901_Schedule_B!I20+MH1901_Schedule_B!J20 -> 1000 | ADR15: =MH1901_Schedule_B!L20+MH1901_Schedule_B!M20 -> 0 | ADS15: =MH1901_Schedule_B!O20 -> 0 | ADT15: =MH1901_Schedule_B!Q20 -> 0 | ADU15: =MH1901_Schedule_B!S20 -> 0 | ADV15: =MH1901_Schedule_B!U20 -> 0 | ADW15: =MH1901_Schedule_B!W20 -> 0 | ADX15: =MH1901_Schedule_B!Y20 -> 0 | ADY15: =MH1901_Schedule_B!AA20 -> 0 | ADZ15: =MH1901_Schedule_B!AC20+MH1901_Schedule_B!AI20 -> 0 | AEA15: =MH1901_Schedule_B!AE20+MH1901_Schedule_B!AK20 -> 0 | AEB15: =MH1901_Schedule_B!AG20+MH1901_Schedule_B!AM20 -> 0 | AEC15: =MH1901_Schedule_B!AO20 -> 0 | AED15: =MH1901_Schedule_B!AQ20 -> 0 | AEE15: =MH1901_Schedule_B!AS20 -> 0 | AEF15: =MH1901_Schedule_B!AU20 -> 0 | AEG15: =MH1901_Schedule_B!BE20 -> 0 | AEH15: =MH1901_Schedule_B!BG20 -> 600 | AEI15: =MH1901_Schedule_B!AW20 -> 0 | AEJ15: =MH1901_Schedule_B!AY20 -> 0 | AEK15: =MH1901_Schedule_B!BA20 -> 0 | AEL15: =MH1901_Schedule_B!BC20 -> 0 | AEM15: =ACS15-ADP15 -> 0 | AEN15: =ACT15-ADQ15 -> 0 | AEO15: 0 | AEP15: 0 | AEQ15: 0 | AER15: 0 | AES15: 0 | AET15: 0 | AEU15: 0 | AEV15: 0 | AEW15: 0 | AEX15: 0 | AEY15: 0 | AEZ15: 0 | AFA15: 0 | AFB15: 0 | AFC15: 0 | AFD15: 0 | AFE15: =IF(OR(AND(D15="60",E15= "70"),AND(D15="60",E15= "71"),AND(D15="60",E15= "72"),AND(D15="60",E15= "75"),AND(D15="60",E15= "78")), 0,ADK15-AEH15) -> 0 | AFF15: =ADL15-AEI15 -> 0 | AFG15: =ADM15-AEJ15 -> 0 | AFH15: =ADN15-AEK15 -> 0 | AFI15: =ADO15-AEL15 -> 0
A16: HOSP0514 | B16: 2 | C16: ='LAC103'!D16 -> HOSP | D16: ='LAC103'!E16 -> 05 | E16: ='LAC103'!F16 -> 14 | BB16: 800 | BR16: 200 | IY16: =LAC102_S_CSS!FK16+LAC102_S_PEI!DQ16 -> 0 | IZ16: =LAC102_S_CSS!FL16+LAC102_S_PEI!DR16 -> 0 | JA16: =LAC102_S_CSS!FM16+LAC102_S_PEI!DS16 -> 0 | JB16: =LAC102_S_CSS!FN16+LAC102_S_PEI!DT16 -> 0 | JC16: =LAC102_S_CSS!FO16+LAC102_S_PEI!DU16 -> 0 | JD16: =LAC102_S_CSS!FP16+LAC102_S_PEI!DV16 -> 0 | JE16: =LAC102_S_CSS!FQ16+LAC102_S_PEI!DW16 -> 0 | JF16: =LAC102_S_CSS!FR16+LAC102_S_PEI!DX16 -> 0 | JG16: =LAC102_S_CSS!FS16+LAC102_S_PEI!DY16 -> 0 | JH16: =LAC102_S_CSS!FT16+LAC102_S_PEI!DZ16 -> 0 | JI16: =LAC102_S_CSS!FU16+LAC102_S_PEI!EA16 -> 0 | JJ16: =LAC102_S_CSS!FV16+LAC102_S_PEI!EB16 -> 0 | JK16: =LAC102_S_CSS!FW16+LAC102_S_PEI!EC16 -> 0 | JL16: =LAC102_S_CSS!FX16+LAC102_S_PEI!ED16 -> 0 | JM16: =LAC102_S_CSS!FY16+LAC102_S_PEI!EE16 -> 0 | JN16: =LAC102_S_CSS!FZ16+LAC102_S_PEI!EF16 -> 0 | JO16: =LAC102_S_CSS!GA16+LAC102_S_PEI!EG16 -> 0 | JP16: =LAC102_S_CSS!GB16+LAC102_S_PEI!EH16 -> 0 | JQ16: =LAC102_S_CSS!GC16+LAC102_S_PEI!EI16 -> 0 | JR16: =LAC102_S_CSS!GD16+LAC102_S_PEI!EJ16 -> 0 | JS16: =LAC102_S_CSS!GE16+LAC102_S_PEI!EK16 -> 0 | JT16: =LAC102_S_CSS!GF16+LAC102_S_PEI!EL16 -> 0 | JU16: =LAC102_S_CSS!GG16+LAC102_S_PEI!EM16 -> 0 | ABV16: =IF(ACS16-ADP16=0,ACS16,"ERROR") -> 0 | ABW16: 0 | ABX16: 800 | ABY16: 0 | ABZ16: 0 | ACA16: 0 | ACB16: 0 | ACC16: 0 | ACD16: 0 | ACE16: 0 | ACF16: 0 | ACG16: 0 | ACH16: 0 | ACI16: 0 | ACJ16: 0 | ACK16: 0 | ACL16: 0 | ACM16: 0 | ACN16: 200 | ACO16: 0 | ACP16: 0 | ACQ16: 0 | ACR16: 0 | ACS16: =SUM(F16,AC16,AZ16,BW16,CT16,DQ16,FK16,HE16,IB16,IY16,JV16,KS16,ZT16,AAQ16,GH16,LP16,EN16,YW16,MM16,NJ16,OG16,PD16,QA16,QX16,RU16,SR16,TO16,UL16,VI16,WF16,XZ16,XC16) -> 0 | ACT16: 0 | ACU16: 800 | ACV16: 0 | ACW16: 0 | ACX16: 0 | ACY16: 0 | ACZ16: 0 | ADA16: 0 | ADB16: 0 | ADC16: 0 | ADD16: 0 | ADE16: 0 | ADF16: 0 | ADG16: 0 | ADH16: 0 | ADI16: 0 | ADJ16: =SUM(W16,AT16,BQ16,CN16,DK16,EH16,GB16,HV16,IS16,JP16,KM16,LJ16,AAK16,ABH16,GY16,MG16,FE16,ZN16,ND16,OA16,OX16,PU16,QR16,RO16,SL16,TI16,UF16,VC16,VZ16,WW16,YQ16,XT16) -> 0 | ADK16: =SUM(X16,AU16,BR16,CO16,DL16,EI16,GC16,HW16,IT16,JQ16,KN16,LK16,AAL16,ABI16,ABN16,ABO16,ABP16,GZ16,MH16,NE16,OB16,OY16,PV16,QS16,RP16,SM16,TJ16,UG16,VD16,WA16,WX16,XU16,YR16,FF16,ZO16) -> 200 | ADL16: 0 | ADM16: 0 | ADN16: 0 | ADO16: 0 | ADP16: =MH1901_Schedule_B!G21+MH1901_Schedule_B!F21 -> 0 | ADQ16: =MH1901_Schedule_B!I21+MH1901_Schedule_B!J21 -> 0 | ADR16: =MH1901_Schedule_B!L21+MH1901_Schedule_B!M21 -> 800 | ADS16: =MH1901_Schedule_B!O21 -> 0 | ADT16: =MH1901_Schedule_B!Q21 -> 0 | ADU16: =MH1901_Schedule_B!S21 -> 0 | ADV16: =MH1901_Schedule_B!U21 -> 0 | ADW16: =MH1901_Schedule_B!W21 -> 0 | ADX16: =MH1901_Schedule_B!Y21 -> 0 | ADY16: =MH1901_Schedule_B!AA21 -> 0 | ADZ16: =MH1901_Schedule_B!AC21+MH1901_Schedule_B!AI21 -> 0 | AEA16: =MH1901_Schedule_B!AE21+MH1901_Schedule_B!AK21 -> 0 | AEB16: =MH1901_Schedule_B!AG21+MH1901_Schedule_B!AM21 -> 0 | AEC16: =MH1901_Schedule_B!AO21 -> 0 | AED16: =MH1901_Schedule_B!AQ21 -> 0 | AEE16: =MH1901_Schedule_B!AS21 -> 0 | AEF16: =MH1901_Schedule_B!AU21 -> 0 | AEG16: =MH1901_Schedule_B!BE21 -> 0 | AEH16: =MH1901_Schedule_B!BG21 -> 200 | AEI16: =MH1901_Schedule_B!AW21 -> 0 | AEJ16: =MH1901_Schedule_B!AY21 -> 0 | AEK16: =MH1901_Schedule_B!BA21 -> 0 | AEL16: =MH1901_Schedule_B!BC21 -> 0 | AEM16: 0 | AEN16: 0 | AEO16: 0 | AEP16: 0 | AEQ16: 0 | AER16: 0 | AES16: 0 | AET16: 0 | AEU16: 0 | AEV16: 0 | AEW16: 0 | AEX16: 0 | AEY16: 0 | AEZ16: 0 | AFA16: 0 | AFB16: 0 | AFC16: 0 | AFD16: 0 | AFE16: 0 | AFF16: =ADL16-AEI16 -> 0 | AFG16: 0 | AFH16: 0 | AFI16: 0
A17: HOSP0515 | B17: 3 | C17: ='LAC103'!D17 -> HOSP | D17: ='LAC103'!E17 -> 05 | E17: ='LAC103'!F17 -> 15 | AZ17: 1890 | BA17: 2000 | BR17: 2000 | IY17: =LAC102_S_CSS!FK17+LAC102_S_PEI!DQ17 -> 0 | IZ17: =LAC102_S_CSS!FL17+LAC102_S_PEI!DR17 -> 0 | JA17: =LAC102_S_CSS!FM17+LAC102_S_PEI!DS17 -> 0 | JB17: =LAC102_S_CSS!FN17+LAC102_S_PEI!DT17 -> 0 | JC17: =LAC102_S_CSS!FO17+LAC102_S_PEI!DU17 -> 0 | JD17: =LAC102_S_CSS!FP17+LAC102_S_PEI!DV17 -> 0 | JE17: =LAC102_S_CSS!FQ17+LAC102_S_PEI!DW17 -> 0 | JF17: =LAC102_S_CSS!FR17+LAC102_S_PEI!DX17 -> 0 | JG17: =LAC102_S_CSS!FS17+LAC102_S_PEI!DY17 -> 0 | JH17: =LAC102_S_CSS!FT17+LAC102_S_PEI!DZ17 -> 0 | JI17: =LAC102_S_CSS!FU17+LAC102_S_PEI!EA17 -> 0 | JJ17: =LAC102_S_CSS!FV17+LAC102_S_PEI!EB17 -> 0 | JK17: =LAC102_S_CSS!FW17+LAC102_S_PEI!EC17 -> 0 | JL17: =LAC102_S_CSS!FX17+LAC102_S_PEI!ED17 -> 0 | JM17: =LAC102_S_CSS!FY17+LAC102_S_PEI!EE17 -> 0 | JN17: =LAC102_S_CSS!FZ17+LAC102_S_PEI!EF17 -> 0 | JO17: =LAC102_S_CSS!GA17+LAC102_S_PEI!EG17 -> 0 | JP17: =LAC102_S_CSS!GB17+LAC102_S_PEI!EH17 -> 0 | JQ17: =LAC102_S_CSS!GC17+LAC102_S_PEI!EI17 -> 0 | JR17: =LAC102_S_CSS!GD17+LAC102_S_PEI!EJ17 -> 0 | JS17: =LAC102_S_CSS!GE17+LAC102_S_PEI!EK17 -> 0 | JT17: =LAC102_S_CSS!GF17+LAC102_S_PEI!EL17 -> 0 | JU17: =LAC102_S_CSS!GG17+LAC102_S_PEI!EM17 -> 0 | ABV17: 1890 | ABW17: 2000 | ABX17: 0 | ABY17: 0 | ABZ17: 0 | ACA17: 0 | ACB17: 0 | ACC17: 0 | ACD17: 0 | ACE17: 0 | ACF17: 0 | ACG17: 0 | ACH17: 0 | ACI17: 0 | ACJ17: 0 | ACK17: 0 | ACL17: 0 | ACM17: 0 | ACN17: 2000 | ACO17: 0 | ACP17: 0 | ACQ17: 0 | ACR17: 0 | ACS17: 1890 | ACT17: 2000 | ACU17: 0 | ACV17: 0 | ACW17: 0 | ACX17: 0 | ACY17: 0 | ACZ17: 0 | ADA17: 0 | ADB17: 0 | ADC17: 0 | ADD17: 0 | ADE17: 0 | ADF17: 0 | ADG17: 0 | ADH17: 0 | ADI17: 0 | ADJ17: 0 | ADK17: 2000 | ADL17: 0 | ADM17: 0 | ADN17: 0 | ADO17: 0 | ADP17: =MH1901_Schedule_B!G22+MH1901_Schedule_B!F22 -> 1890 | ADQ17: =MH1901_Schedule_B!I22+MH1901_Schedule_B!J22 -> 2000 | ADR17: =MH1901_Schedule_B!L22+MH1901_Schedule_B!M22 -> 0 | ADS17: =MH1901_Schedule_B!O22 -> 0 | ADT17: =MH1901_Schedule_B!Q22 -> 0 | ADU17: =MH1901_Schedule_B!S22 -> 0 | ADV17: =MH1901_Schedule_B!U22 -> 0 | ADW17: =MH1901_Schedule_B!W22 -> 0 | ADX17: =MH1901_Schedule_B!Y22 -> 0 | ADY17: =MH1901_Schedule_B!AA22 -> 0 | ADZ17: =MH1901_Schedule_B!AC22+MH1901_Schedule_B!AI22 -> 0 | AEA17: =MH1901_Schedule_B!AE22+MH1901_Schedule_B!AK22 -> 0 | AEB17: =MH1901_Schedule_B!AG22+MH1901_Schedule_B!AM22 -> 0 | AEC17: =MH1901_Schedule_B!AO22 -> 0 | AED17: =MH1901_Schedule_B!AQ22 -> 0 | AEE17: =MH1901_Schedule_B!AS22 -> 0 | AEF17: =MH1901_Schedule_B!AU22 -> 0 | AEG17: =MH1901_Schedule_B!BE22 -> 0 | AEH17: =MH1901_Schedule_B!BG22 -> 2000 | AEI17: =MH1901_Schedule_B!AW22 -> 0 | AEJ17: =MH1901_Schedule_B!AY22 -> 0 | AEK17: =MH1901_Schedule_B!BA22 -> 0 | AEL17: =MH1901_Schedule_B!BC22 -> 0 | AEM17: 0 | AEN17: 0 | AEO17: 0 | AEP17: 0 | AEQ17: 0 | AER17: 0 | AES17: 0 | AET17: 0 | AEU17: 0 | AEV17: 0 | AEW17: 0 | AEX17: 0 | AEY17: 0 | AEZ17: 0 | AFA17: 0 | AFB17: 0 | AFC17: 0 | AFD17: 0 | AFE17: 0 | AFF17: 0 | AFG17: 0 | AFH17: 0 | AFI17: 0
A18: HOSP0515 | B18: 4 | C18: ='LAC103'!D18 -> HOSP | D18: ='LAC103'!E18 -> 05 | E18: ='LAC103'!F18 -> 15 | BB18: 1400 | BR18: 1000 | IY18: =LAC102_S_CSS!FK18+LAC102_S_PEI!DQ18 -> 0 | IZ18: =LAC102_S_CSS!FL18+LAC102_S_PEI!DR18 -> 0 | JA18: =LAC102_S_CSS!FM18+LAC102_S_PEI!DS18 -> 0 | JB18: =LAC102_S_CSS!FN18+LAC102_S_PEI!DT18 -> 0 | JC18: =LAC102_S_CSS!FO18+LAC102_S_PEI!DU18 -> 0 | JD18: =LAC102_S_CSS!FP18+LAC102_S_PEI!DV18 -> 0 | JE18: =LAC102_S_CSS!FQ18+LAC102_S_PEI!DW18 -> 0 | JF18: =LAC102_S_CSS!FR18+LAC102_S_PEI!DX18 -> 0 | JG18: =LAC102_S_CSS!FS18+LAC102_S_PEI!DY18 -> 0 | JH18: =LAC102_S_CSS!FT18+LAC102_S_PEI!DZ18 -> 0 | JI18: =LAC102_S_CSS!FU18+LAC102_S_PEI!EA18 -> 0 | JJ18: =LAC102_S_CSS!FV18+LAC102_S_PEI!EB18 -> 0 | JK18: =LAC102_S_CSS!FW18+LAC102_S_PEI!EC18 -> 0 | JL18: =LAC102_S_CSS!FX18+LAC102_S_PEI!ED18 -> 0 | JM18: =LAC102_S_CSS!FY18+LAC102_S_PEI!EE18 -> 0 | JN18: =LAC102_S_CSS!FZ18+LAC102_S_PEI!EF18 -> 0 | JO18: =LAC102_S_CSS!GA18+LAC102_S_PEI!EG18 -> 0 | JP18: =LAC102_S_CSS!GB18+LAC102_S_PEI!EH18 -> 0 | JQ18: =LAC102_S_CSS!GC18+LAC102_S_PEI!EI18 -> 0 | JR18: =LAC102_S_CSS!GD18+LAC102_S_PEI!EJ18 -> 0 | JS18: =LAC102_S_CSS!GE18+LAC102_S_PEI!EK18 -> 0 | JT18: =LAC102_S_CSS!GF18+LAC102_S_PEI!EL18 -> 0 | JU18: =LAC102_S_CSS!GG18+LAC102_S_PEI!EM18 -> 0 | ABV18: 0 | ABW18: 0 | ABX18: 1400 | ABY18: 0 | ABZ18: 0 | ACA18: 0 | ACB18: 0 | ACC18: 0 | ACD18: 0 | ACE18: 0 | ACF18: 0 | ACG18: 0 | ACH18: 0 | ACI18: 0 | ACJ18: 0 | ACK18: 0 | ACL18: 0 | ACM18: 0 | ACN18: 1000 | ACO18: 0 | ACP18: 0 | ACQ18: 0 | ACR18: 0 | ACS18: 0 | ACT18: 0 | ACU18: 1400 | ACV18: 0 | ACW18: 0 | ACX18: 0 | ACY18: 0 | ACZ18: 0 | ADA18: 0 | ADB18: 0 | ADC18: 0 | ADD18: 0 | ADE18: 0 | ADF18: 0 | ADG18: 0 | ADH18: 0 | ADI18: 0 | ADJ18: 0 | ADK18: 1000 | ADL18: 0 | ADM18: 0 | ADN18: 0 | ADO18: 0 | ADP18: =MH1901_Schedule_B!G23+MH1901_Schedule_B!F23 -> 0 | ADQ18: =MH1901_Schedule_B!I23+MH1901_Schedule_B!J23 -> 0 | ADR18: =MH1901_Schedule_B!L23+MH1901_Schedule_B!M23 -> 1400 | ADS18: =MH1901_Schedule_B!O23 -> 0 | ADT18: =MH1901_Schedule_B!Q23 -> 0 | ADU18: =MH1901_Schedule_B!S23 -> 0 | ADV18: =MH1901_Schedule_B!U23 -> 0 | ADW18: =MH1901_Schedule_B!W23 -> 0 | ADX18: =MH1901_Schedule_B!Y23 -> 0 | ADY18: =MH1901_Schedule_B!AA23 -> 0 | ADZ18: =MH1901_Schedule_B!AC23+MH1901_Schedule_B!AI23 -> 0 | AEA18: =MH1901_Schedule_B!AE23+MH1901_Schedule_B!AK23 -> 0 | AEB18: =MH1901_Schedule_B!AG23+MH1901_Schedule_B!AM23 -> 0 | AEC18: =MH1901_Schedule_B!AO23 -> 0 | AED18: =MH1901_Schedule_B!AQ23 -> 0 | AEE18: =MH1901_Schedule_B!AS23 -> 0 | AEF18: =MH1901_Schedule_B!AU23 -> 0 | AEG18: =MH1901_Schedule_B!BE23 -> 0 | AEH18: =MH1901_Schedule_B!BG23 -> 1000 | AEI18: =MH1901_Schedule_B!AW23 -> 0 | AEJ18: =MH1901_Schedule_B!AY23 -> 0 | AEK18: =MH1901_Schedule_B!BA23 -> 0 | AEL18: =MH1901_Schedule_B!BC23 -> 0 | AEM18: 0 | AEN18: 0 | AEO18: 0 | AEP18: 0 | AEQ18: 0 | AER18: 0 | AES18: 0 | AET18: 0 | AEU18: 0 | AEV18: 0 | AEW18: 0 | AEX18: 0 | AEY18: 0 | AEZ18: 0 | AFA18: 0 | AFB18: 0 | AFC18: 0 | AFD18: 0 | AFE18: 0 | AFF18: 0 | AFG18: 0 | AFH18: 0 | AFI18: 0
A19: HOSP0519 | B19: 5 | C19: ='LAC103'!D19 -> HOSP | D19: ='LAC103'!E19 -> 05 | E19: ='LAC103'!F19 -> 19 | AZ19: 230 | BR19: 50 | IY19: =LAC102_S_CSS!FK19+LAC102_S_PEI!DQ19 -> 0 | IZ19: =LAC102_S_CSS!FL19+LAC102_S_PEI!DR19 -> 0 | JA19: =LAC102_S_CSS!FM19+LAC102_S_PEI!DS19 -> 0 | JB19: =LAC102_S_CSS!FN19+LAC102_S_PEI!DT19 -> 0 | JC19: =LAC102_S_CSS!FO19+LAC102_S_PEI!DU19 -> 0 | JD19: =LAC102_S_CSS!FP19+LAC102_S_PEI!DV19 -> 0 | JE19: =LAC102_S_CSS!FQ19+LAC102_S_PEI!DW19 -> 0 | JF19: =LAC102_S_CSS!FR19+LAC102_S_PEI!DX19 -> 0 | JG19: =LAC102_S_CSS!FS19+LAC102_S_PEI!DY19 -> 0 | JH19: =LAC102_S_CSS!FT19+LAC102_S_PEI!DZ19 -> 0 | JI19: =LAC102_S_CSS!FU19+LAC102_S_PEI!EA19 -> 0 | JJ19: =LAC102_S_CSS!FV19+LAC102_S_PEI!EB19 -> 0 | JK19: =LAC102_S_CSS!FW19+LAC102_S_PEI!EC19 -> 0 | JL19: =LAC102_S_CSS!FX19+LAC102_S_PEI!ED19 -> 0 | JM19: =LAC102_S_CSS!FY19+LAC102_S_PEI!EE19 -> 0 | JN19: =LAC102_S_CSS!FZ19+LAC102_S_PEI!EF19 -> 0 | JO19: =LAC102_S_CSS!GA19+LAC102_S_PEI!EG19 -> 0 | JP19: =LAC102_S_CSS!GB19+LAC102_S_PEI!EH19 -> 0 | JQ19: =LAC102_S_CSS!GC19+LAC102_S_PEI!EI19 -> 0 | JR19: =LAC102_S_CSS!GD19+LAC102_S_PEI!EJ19 -> 0 | JS19: =LAC102_S_CSS!GE19+LAC102_S_PEI!EK19 -> 0 | JT19: =LAC102_S_CSS!GF19+LAC102_S_PEI!EL19 -> 0 | JU19: =LAC102_S_CSS!GG19+LAC102_S_PEI!EM19 -> 0 | ABV19: 230 | ABW19: 0 | ABX19: 0 | ABY19: 0 | ABZ19: 0 | ACA19: 0 | ACB19: 0 | ACC19: 0 | ACD19: 0 | ACE19: 0 | ACF19: 0 | ACG19: 0 | ACH19: 0 | ACI19: 0 | ACJ19: 0 | ACK19: 0 | ACL19: 0 | ACM19: 0 | ACN19: 50 | ACO19: 0 | ACP19: 0 | ACQ19: 0 | ACR19: 0 | ACS19: 230 | ACT19: 0 | ACU19: 0 | ACV19: 0 | ACW19: 0 | ACX19: 0 | ACY19: 0 | ACZ19: 0 | ADA19: 0 | ADB19: 0 | ADC19: 0 | ADD19: 0 | ADE19: 0 | ADF19: 0 | ADG19: 0 | ADH19: 0 | ADI19: 0 | ADJ19: 0 | ADK19: 50 | ADL19: 0 | ADM19: 0 | ADN19: 0 | ADO19: 0 | ADP19: =MH1901_Schedule_B!G24+MH1901_Schedule_B!F24 -> 230 | ADQ19: =MH1901_Schedule_B!I24+MH1901_Schedule_B!J24 -> 0 | ADR19: =MH1901_Schedule_B!L24+MH1901_Schedule_B!M24 -> 0 | ADS19: =MH1901_Schedule_B!O24 -> 0 | ADT19: =MH1901_Schedule_B!Q24 -> 0 | ADU19: =MH1901_Schedule_B!S24 -> 0 | ADV19: =MH1901_Schedule_B!U24 -> 0 | ADW19: =MH1901_Schedule_B!W24 -> 0 | ADX19: =MH1901_Schedule_B!Y24 -> 0 | ADY19: =MH1901_Schedule_B!AA24 -> 0 | ADZ19: =MH1901_Schedule_B!AC24+MH1901_Schedule_B!AI24 -> 0 | AEA19: =MH1901_Schedule_B!AE24+MH1901_Schedule_B!AK24 -> 0 | AEB19: =MH1901_Schedule_B!AG24+MH1901_Schedule_B!AM24 -> 0 | AEC19: =MH1901_Schedule_B!AO24 -> 0 | AED19: =MH1901_Schedule_B!AQ24 -> 0 | AEE19: =MH1901_Schedule_B!AS24 -> 0 | AEF19: =MH1901_Schedule_B!AU24 -> 0 | AEG19: =MH1901_Schedule_B!BE24 -> 0 | AEH19: =MH1901_Schedule_B!BG24 -> 50 | AEI19: =MH1901_Schedule_B!AW24 -> 0 | AEJ19: =MH1901_Schedule_B!AY24 -> 0 | AEK19: =MH1901_Schedule_B!BA24 -> 0 | AEL19: =MH1901_Schedule_B!BC24 -> 0 | AEM19: 0 | AEN19: 0 | AEO19: 0 | AEP19: 0 | AEQ19: 0 | AER19: 0 | AES19: 0 | AET19: 0 | AEU19: 0 | AEV19: 0 | AEW19: 0 | AEX19: 0 | AEY19: 0 | AEZ19: 0 | AFA19: 0 | AFB19: 0 | AFC19: 0 | AFD19: 0 | AFE19: 0 | AFF19: 0 | AFG19: 0 | AFH19: 0 | AFI19: 0
A20: HOSP0519 | B20: 6 | C20: ='LAC103'!D20 -> HOSP | D20: ='LAC103'!E20 -> 05 | E20: ='LAC103'!F20 -> 19 | BB20: 100 | BR20: 10 | IY20: =LAC102_S_CSS!FK20+LAC102_S_PEI!DQ20 -> 0 | IZ20: =LAC102_S_CSS!FL20+LAC102_S_PEI!DR20 -> 0 | JA20: =LAC102_S_CSS!FM20+LAC102_S_PEI!DS20 -> 0 | JB20: =LAC102_S_CSS!FN20+LAC102_S_PEI!DT20 -> 0 | JC20: =LAC102_S_CSS!FO20+LAC102_S_PEI!DU20 -> 0 | JD20: =LAC102_S_CSS!FP20+LAC102_S_PEI!DV20 -> 0 | JE20: =LAC102_S_CSS!FQ20+LAC102_S_PEI!DW20 -> 0 | JF20: =LAC102_S_CSS!FR20+LAC102_S_PEI!DX20 -> 0 | JG20: =LAC102_S_CSS!FS20+LAC102_S_PEI!DY20 -> 0 | JH20: =LAC102_S_CSS!FT20+LAC102_S_PEI!DZ20 -> 0 | JI20: =LAC102_S_CSS!FU20+LAC102_S_PEI!EA20 -> 0 | JJ20: =LAC102_S_CSS!FV20+LAC102_S_PEI!EB20 -> 0 | JK20: =LAC102_S_CSS!FW20+LAC102_S_PEI!EC20 -> 0 | JL20: =LAC102_S_CSS!FX20+LAC102_S_PEI!ED20 -> 0 | JM20: =LAC102_S_CSS!FY20+LAC102_S_PEI!EE20 -> 0 | JN20: =LAC102_S_CSS!FZ20+LAC102_S_PEI!EF20 -> 0 | JO20: =LAC102_S_CSS!GA20+LAC102_S_PEI!EG20 -> 0 | JP20: =LAC102_S_CSS!GB20+LAC102_S_PEI!EH20 -> 0 | JQ20: =LAC102_S_CSS!GC20+LAC102_S_PEI!EI20 -> 0 | JR20: =LAC102_S_CSS!GD20+LAC102_S_PEI!EJ20 -> 0 | JS20: =LAC102_S_CSS!GE20+LAC102_S_PEI!EK20 -> 0 | JT20: =LAC102_S_CSS!GF20+LAC102_S_PEI!EL20 -> 0 | JU20: =LAC102_S_CSS!GG20+LAC102_S_PEI!EM20 -> 0 | ABV20: 0 | ABW20: 0 | ABX20: 100 | ABY20: 0 | ABZ20: 0 | ACA20: 0 | ACB20: 0 | ACC20: 0 | ACD20: 0 | ACE20: 0 | ACF20: 0 | ACG20: 0 | ACH20: 0 | ACI20: 0 | ACJ20: 0 | ACK20: 0 | ACL20: 0 | ACM20: 0 | ACN20: 10 | ACO20: 0 | ACP20: 0 | ACQ20: 0 | ACR20: 0 | ACS20: 0 | ACT20: 0 | ACU20: 100 | ACV20: 0 | ACW20: 0 | ACX20: 0 | ACY20: 0 | ACZ20: 0 | ADA20: 0 | ADB20: 0 | ADC20: 0 | ADD20: 0 | ADE20: 0 | ADF20: 0 | ADG20: 0 | ADH20: 0 | ADI20: 0 | ADJ20: 0 | ADK20: 10 | ADL20: 0 | ADM20: 0 | ADN20: 0 | ADO20: 0 | ADP20: =MH1901_Schedule_B!G25+MH1901_Schedule_B!F25 -> 0 | ADQ20: =MH1901_Schedule_B!I25+MH1901_Schedule_B!J25 -> 0 | ADR20: =MH1901_Schedule_B!L25+MH1901_Schedule_B!M25 -> 100 | ADS20: =MH1901_Schedule_B!O25 -> 0 | ADT20: =MH1901_Schedule_B!Q25 -> 0 | ADU20: =MH1901_Schedule_B!S25 -> 0 | ADV20: =MH1901_Schedule_B!U25 -> 0 | ADW20: =MH1901_Schedule_B!W25 -> 0 | ADX20: =MH1901_Schedule_B!Y25 -> 0 | ADY20: =MH1901_Schedule_B!AA25 -> 0 | ADZ20: =MH1901_Schedule_B!AC25+MH1901_Schedule_B!AI25 -> 0 | AEA20: =MH1901_Schedule_B!AE25+MH1901_Schedule_B!AK25 -> 0 | AEB20: =MH1901_Schedule_B!AG25+MH1901_Schedule_B!AM25 -> 0 | AEC20: =MH1901_Schedule_B!AO25 -> 0 | AED20: =MH1901_Schedule_B!AQ25 -> 0 | AEE20: =MH1901_Schedule_B!AS25 -> 0 | AEF20: =MH1901_Schedule_B!AU25 -> 0 | AEG20: =MH1901_Schedule_B!BE25 -> 0 | AEH20: =MH1901_Schedule_B!BG25 -> 10 | AEI20: =MH1901_Schedule_B!AW25 -> 0 | AEJ20: =MH1901_Schedule_B!AY25 -> 0 | AEK20: =MH1901_Schedule_B!BA25 -> 0 | AEL20: =MH1901_Schedule_B!BC25 -> 0 | AEM20: 0 | AEN20: 0 | AEO20: 0 | AEP20: 0 | AEQ20: 0 | AER20: 0 | AES20: 0 | AET20: 0 | AEU20: 0 | AEV20: 0 | AEW20: 0 | AEX20: 0 | AEY20: 0 | AEZ20: 0 | AFA20: 0 | AFB20: 0 | AFC20: 0 | AFD20: 0 | AFE20: 0 | AFF20: 0 | AFG20: 0 | AFH20: 0 | AFI20: 0
A21: CR1085 | B21: 7 | C21: ='LAC103'!D21 -> CR | D21: ='LAC103'!E21 -> 10 | E21: ='LAC103'!F21 -> 85 | AZ21: 8 | IY21: =LAC102_S_CSS!FK21+LAC102_S_PEI!DQ21 -> 0 | IZ21: =LAC102_S_CSS!FL21+LAC102_S_PEI!DR21 -> 0 | JA21: =LAC102_S_CSS!FM21+LAC102_S_PEI!DS21 -> 0 | JB21: =LAC102_S_CSS!FN21+LAC102_S_PEI!DT21 -> 0 | JC21: =LAC102_S_CSS!FO21+LAC102_S_PEI!DU21 -> 0 | JD21: =LAC102_S_CSS!FP21+LAC102_S_PEI!DV21 -> 0 | JE21: =LAC102_S_CSS!FQ21+LAC102_S_PEI!DW21 -> 0 | JF21: =LAC102_S_CSS!FR21+LAC102_S_PEI!DX21 -> 0 | JG21: =LAC102_S_CSS!FS21+LAC102_S_PEI!DY21 -> 0 | JH21: =LAC102_S_CSS!FT21+LAC102_S_PEI!DZ21 -> 0 | JI21: =LAC102_S_CSS!FU21+LAC102_S_PEI!EA21 -> 0 | JJ21: =LAC102_S_CSS!FV21+LAC102_S_PEI!EB21 -> 0 | JK21: =LAC102_S_CSS!FW21+LAC102_S_PEI!EC21 -> 0 | JL21: =LAC102_S_CSS!FX21+LAC102_S_PEI!ED21 -> 0 | JM21: =LAC102_S_CSS!FY21+LAC102_S_PEI!EE21 -> 0 | JN21: =LAC102_S_CSS!FZ21+LAC102_S_PEI!EF21 -> 0 | JO21: =LAC102_S_CSS!GA21+LAC102_S_PEI!EG21 -> 0 | JP21: =LAC102_S_CSS!GB21+LAC102_S_PEI!EH21 -> 0 | JQ21: =LAC102_S_CSS!GC21+LAC102_S_PEI!EI21 -> 0 | JR21: =LAC102_S_CSS!GD21+LAC102_S_PEI!EJ21 -> 0 | JS21: =LAC102_S_CSS!GE21+LAC102_S_PEI!EK21 -> 0 | JT21: =LAC102_S_CSS!GF21+LAC102_S_PEI!EL21 -> 0 | JU21: =LAC102_S_CSS!GG21+LAC102_S_PEI!EM21 -> 0 | ABV21: 8 | ABW21: 0 | ABX21: 0 | ABY21: 0 | ABZ21: 0 | ACA21: 0 | ACB21: 0 | ACC21: 0 | ACD21: 0 | ACE21: 0 | ACF21: 0 | ACG21: 0 | ACH21: 0 | ACI21: 0 | ACJ21: 0 | ACK21: 0 | ACL21: 0 | ACM21: 0 | ACN21: 0 | ACO21: 0 | ACP21: 0 | ACQ21: 0 | ACR21: 0 | ACS21: 8 | ACT21: 0 | ACU21: 0 | ACV21: 0 | ACW21: 0 | ACX21: 0 | ACY21: 0 | ACZ21: 0 | ADA21: 0 | ADB21: 0 | ADC21: 0 | ADD21: 0 | ADE21: 0 | ADF21: 0 | ADG21: 0 | ADH21: 0 | ADI21: 0 | ADJ21: 0 | ADK21: 0 | ADL21: 0 | ADM21: 0 | ADN21: 0 | ADO21: 0 | ADP21: =MH1901_Schedule_B!G26+MH1901_Schedule_B!F26 -> 8 | ADQ21: =MH1901_Schedule_B!I26+MH1901_Schedule_B!J26 -> 0 | ADR21: =MH1901_Schedule_B!L26+MH1901_Schedule_B!M26 -> 0 | ADS21: =MH1901_Schedule_B!O26 -> 0 | ADT21: =MH1901_Schedule_B!Q26 -> 0 | ADU21: =MH1901_Schedule_B!S26 -> 0 | ADV21: =MH1901_Schedule_B!U26 -> 0 | ADW21: =MH1901_Schedule_B!W26 -> 0 | ADX21: =MH1901_Schedule_B!Y26 -> 0 | ADY21: =MH1901_Schedule_B!AA26 -> 0 | ADZ21: =MH1901_Schedule_B!AC26+MH1901_Schedule_B!AI26 -> 0 | AEA21: =MH1901_Schedule_B!AE26+MH1901_Schedule_B!AK26 -> 0 | AEB21: =MH1901_Schedule_B!AG26+MH1901_Schedule_B!AM26 -> 0 | AEC21: =MH1901_Schedule_B!AO26 -> 0 | AED21: =MH1901_Schedule_B!AQ26 -> 0 | AEE21: =MH1901_Schedule_B!AS26 -> 0 | AEF21: =MH1901_Schedule_B!AU26 -> 0 | AEG21: =MH1901_Schedule_B!BE26 -> 0 | AEH21: =MH1901_Schedule_B!BG26 -> 0 | AEI21: =MH1901_Schedule_B!AW26 -> 0 | AEJ21: =MH1901_Schedule_B!AY26 -> 0 | AEK21: =MH1901_Schedule_B!BA26 -> 0 | AEL21: =MH1901_Schedule_B!BC26 -> 0 | AEM21: 0 | AEN21: 0 | AEO21: 0 | AEP21: 0 | AEQ21: 0 | AER21: 0 | AES21: 0 | AET21: 0 | AEU21: 0 | AEV21: 0 | AEW21: 0 | AEX21: 0 | AEY21: 0 | AEZ21: 0 | AFA21: 0 | AFB21: 0 | AFC21: 0 | AFD21: 0 | AFE21: 0 | AFF21: 0 | AFG21: 0 | AFH21: 0 | AFI21: 0
A22: CR1085 | B22: 8 | C22: ='LAC103'!D22 -> CR | D22: ='LAC103'!E22 -> 10 | E22: ='LAC103'!F22 -> 85 | BB22: 2 | IY22: =LAC102_S_CSS!FK22+LAC102_S_PEI!DQ22 -> 0 | IZ22: =LAC102_S_CSS!FL22+LAC102_S_PEI!DR22 -> 0 | JA22: =LAC102_S_CSS!FM22+LAC102_S_PEI!DS22 -> 0 | JB22: =LAC102_S_CSS!FN22+LAC102_S_PEI!DT22 -> 0 | JC22: =LAC102_S_CSS!FO22+LAC102_S_PEI!DU22 -> 0 | JD22: =LAC102_S_CSS!FP22+LAC102_S_PEI!DV22 -> 0 | JE22: =LAC102_S_CSS!FQ22+LAC102_S_PEI!DW22 -> 0 | JF22: =LAC102_S_CSS!FR22+LAC102_S_PEI!DX22 -> 0 | JG22: =LAC102_S_CSS!FS22+LAC102_S_PEI!DY22 -> 0 | JH22: =LAC102_S_CSS!FT22+LAC102_S_PEI!DZ22 -> 0 | JI22: =LAC102_S_CSS!FU22+LAC102_S_PEI!EA22 -> 0 | JJ22: =LAC102_S_CSS!FV22+LAC102_S_PEI!EB22 -> 0 | JK22: =LAC102_S_CSS!FW22+LAC102_S_PEI!EC22 -> 0 | JL22: =LAC102_S_CSS!FX22+LAC102_S_PEI!ED22 -> 0 | JM22: =LAC102_S_CSS!FY22+LAC102_S_PEI!EE22 -> 0 | JN22: =LAC102_S_CSS!FZ22+LAC102_S_PEI!EF22 -> 0 | JO22: =LAC102_S_CSS!GA22+LAC102_S_PEI!EG22 -> 0 | JP22: =LAC102_S_CSS!GB22+LAC102_S_PEI!EH22 -> 0 | JQ22: =LAC102_S_CSS!GC22+LAC102_S_PEI!EI22 -> 0 | JR22: =LAC102_S_CSS!GD22+LAC102_S_PEI!EJ22 -> 0 | JS22: =LAC102_S_CSS!GE22+LAC102_S_PEI!EK22 -> 0 | JT22: =LAC102_S_CSS!GF22+LAC102_S_PEI!EL22 -> 0 | JU22: =LAC102_S_CSS!GG22+LAC102_S_PEI!EM22 -> 0 | ABV22: 0 | ABW22: 0 | ABX22: 2 | ABY22: 0 | ABZ22: 0 | ACA22: 0 | ACB22: 0 | ACC22: 0 | ACD22: 0 | ACE22: 0 | ACF22: 0 | ACG22: 0 | ACH22: 0 | ACI22: 0 | ACJ22: 0 | ACK22: 0 | ACL22: 0 | ACM22: 0 | ACN22: 0 | ACO22: 0 | ACP22: 0 | ACQ22: 0 | ACR22: 0 | ACS22: 0 | ACT22: 0 | ACU22: 2 | ACV22: 0 | ACW22: 0 | ACX22: 0 | ACY22: 0 | ACZ22: 0 | ADA22: 0 | ADB22: 0 | ADC22: 0 | ADD22: 0 | ADE22: 0 | ADF22: 0 | ADG22: 0 | ADH22: 0 | ADI22: 0 | ADJ22: 0 | ADK22: 0 | ADL22: 0 | ADM22: 0 | ADN22: 0 | ADO22: 0 | ADP22: =MH1901_Schedule_B!G27+MH1901_Schedule_B!F27 -> 0 | ADQ22: =MH1901_Schedule_B!I27+MH1901_Schedule_B!J27 -> 0 | ADR22: =MH1901_Schedule_B!L27+MH1901_Schedule_B!M27 -> 2 | ADS22: =MH1901_Schedule_B!O27 -> 0 | ADT22: =MH1901_Schedule_B!Q27 -> 0 | ADU22: =MH1901_Schedule_B!S27 -> 0 | ADV22: =MH1901_Schedule_B!U27 -> 0 | ADW22: =MH1901_Schedule_B!W27 -> 0 | ADX22: =MH1901_Schedule_B!Y27 -> 0 | ADY22: =MH1901_Schedule_B!AA27 -> 0 | ADZ22: =MH1901_Schedule_B!AC27+MH1901_Schedule_B!AI27 -> 0 | AEA22: =MH1901_Schedule_B!AE27+MH1901_Schedule_B!AK27 -> 0 | AEB22: =MH1901_Schedule_B!AG27+MH1901_Schedule_B!AM27 -> 0 | AEC22: =MH1901_Schedule_B!AO27 -> 0 | AED22: =MH1901_Schedule_B!AQ27 -> 0 | AEE22: =MH1901_Schedule_B!AS27 -> 0 | AEF22: =MH1901_Schedule_B!AU27 -> 0 | AEG22: =MH1901_Schedule_B!BE27 -> 0 | AEH22: =MH1901_Schedule_B!BG27 -> 0 | AEI22: =MH1901_Schedule_B!AW27 -> 0 | AEJ22: =MH1901_Schedule_B!AY27 -> 0 | AEK22: =MH1901_Schedule_B!BA27 -> 0 | AEL22: =MH1901_Schedule_B!BC27 -> 0 | AEM22: 0 | AEN22: 0 | AEO22: 0 | AEP22: 0 | AEQ22: 0 | AER22: 0 | AES22: 0 | AET22: 0 | AEU22: 0 | AEV22: 0 | AEW22: 0 | AEX22: 0 | AEY22: 0 | AEZ22: 0 | AFA22: 0 | AFB22: 0 | AFC22: 0 | AFD22: 0 | AFE22: 0 | AFF22: 0 | AFG22: 0 | AFH22: 0 | AFI22: 0
A23: CR1504 | B23: 9 | C23: ='LAC103'!D23 -> CR | D23: ='LAC103'!E23 -> 15 | E23: ='LAC103'!F23 -> 04 | AZ23: 200000 | BA23: 159659 | BR23: 10000 | IY23: =LAC102_S_CSS!FK23+LAC102_S_PEI!DQ23 -> 163106 | IZ23: =LAC102_S_CSS!FL23+LAC102_S_PEI!DR23 -> 100000 | JA23: =LAC102_S_CSS!FM23+LAC102_S_PEI!DS23 -> 0 | JB23: =LAC102_S_CSS!FN23+LAC102_S_PEI!DT23 -> 0 | JC23: =LAC102_S_CSS!FO23+LAC102_S_PEI!DU23 -> 0 | JD23: =LAC102_S_CSS!FP23+LAC102_S_PEI!DV23 -> 0 | JE23: =LAC102_S_CSS!FQ23+LAC102_S_PEI!DW23 -> 104000 | JF23: =LAC102_S_CSS!FR23+LAC102_S_PEI!DX23 -> 79106 | JG23: =LAC102_S_CSS!FS23+LAC102_S_PEI!DY23 -> 70000 | JH23: =LAC102_S_CSS!FT23+LAC102_S_PEI!DZ23 -> 0 | JI23: =LAC102_S_CSS!FU23+LAC102_S_PEI!EA23 -> 0 | JJ23: =LAC102_S_CSS!FV23+LAC102_S_PEI!EB23 -> 0 | JK23: =LAC102_S_CSS!FW23+LAC102_S_PEI!EC23 -> 0 | JL23: =LAC102_S_CSS!FX23+LAC102_S_PEI!ED23 -> 0 | JM23: =LAC102_S_CSS!FY23+LAC102_S_PEI!EE23 -> 143106 | JN23: =LAC102_S_CSS!FZ23+LAC102_S_PEI!EF23 -> 60000 | JO23: =LAC102_S_CSS!GA23+LAC102_S_PEI!EG23 -> 0 | JP23: =LAC102_S_CSS!GB23+LAC102_S_PEI!EH23 -> 20000 | JQ23: =LAC102_S_CSS!GC23+LAC102_S_PEI!EI23 -> 20000 | JR23: =LAC102_S_CSS!GD23+LAC102_S_PEI!EJ23 -> 0 | JS23: =LAC102_S_CSS!GE23+LAC102_S_PEI!EK23 -> 0 | JT23: =LAC102_S_CSS!GF23+LAC102_S_PEI!EL23 -> 0 | JU23: =LAC102_S_CSS!GG23+LAC102_S_PEI!EM23 -> 0 | ABV23: =IF(ACS23-ADP23=0,ACS23,"ERROR") -> 363106 | ABW23: 259659 | ABX23: 0 | ABY23: 0 | ABZ23: 0 | ACA23: 0 | ACB23: 104000 | ACC23: 79106 | ACD23: 70000 | ACE23: 0 | ACF23: 0 | ACG23: 0 | ACH23: 0 | ACI23: 0 | ACJ23: 143106 | ACK23: 60000 | ACL23: 0 | ACM23: 20000 | ACN23: =IF(ADK23-AEH23=0,ADK23,"ERROR") -> 30000 | ACO23: 0 | ACP23: 0 | ACQ23: 0 | ACR23: 0 | ACS23: 363106 | ACT23: 259659 | ACU23: 0 | ACV23: 0 | ACW23: 0 | ACX23: 0 | ACY23: 104000 | ACZ23: 79106 | ADA23: 70000 | ADB23: 0 | ADC23: 0 | ADD23: 0 | ADE23: 0 | ADF23: 0 | ADG23: 143106 | ADH23: 60000 | ADI23: 0 | ADJ23: 20000 | ADK23: 30000 | ADL23: 0 | ADM23: 0 | ADN23: 0 | ADO23: 0 | ADP23: =MH1901_Schedule_B!G28+MH1901_Schedule_B!F28 -> 363106 | ADQ23: =MH1901_Schedule_B!I28+MH1901_Schedule_B!J28 -> 259659 | ADR23: =MH1901_Schedule_B!L28+MH1901_Schedule_B!M28 -> 0 | ADS23: =MH1901_Schedule_B!O28 -> 0 | ADT23: =MH1901_Schedule_B!Q28 -> 0 | ADU23: =MH1901_Schedule_B!S28 -> 0 | ADV23: =MH1901_Schedule_B!U28 -> 104000 | ADW23: =MH1901_Schedule_B!W28 -> 79106 | ADX23: =MH1901_Schedule_B!Y28 -> 70000 | ADY23: =MH1901_Schedule_B!AA28 -> 0 | ADZ23: =MH1901_Schedule_B!AC28+MH1901_Schedule_B!AI28 -> 0 | AEA23: =MH1901_Schedule_B!AE28+MH1901_Schedule_B!AK28 -> 0 | AEB23: =MH1901_Schedule_B!AG28+MH1901_Schedule_B!AM28 -> 0 | AEC23: =MH1901_Schedule_B!AO28 -> 0 | AED23: =MH1901_Schedule_B!AQ28 -> 143106 | AEE23: =MH1901_Schedule_B!AS28 -> 60000 | AEF23: =MH1901_Schedule_B!AU28 -> 0 | AEG23: =MH1901_Schedule_B!BE28 -> 20000 | AEH23: =MH1901_Schedule_B!BG28 -> 30000 | AEI23: =MH1901_Schedule_B!AW28 -> 0 | AEJ23: =MH1901_Schedule_B!AY28 -> 0 | AEK23: =MH1901_Schedule_B!BA28 -> 0 | AEL23: =MH1901_Schedule_B!BC28 -> 0 | AEM23: 0 | AEN23: 0 | AEO23: 0 | AEP23: 0 | AEQ23: 0 | AER23: 0 | AES23: 0 | AET23: 0 | AEU23: 0 | AEV23: 0 | AEW23: 0 | AEX23: 0 | AEY23: 0 | AEZ23: 0 | AFA23: 0 | AFB23: 0 | AFC23: 0 | AFD23: 0 | AFE23: 0 | AFF23: 0 | AFG23: 0 | AFH23: 0 | AFI23: 0
A24: CR1504 | B24: 10 | C24: ='LAC103'!D24 -> CR | D24: ='LAC103'!E24 -> 15 | E24: ='LAC103'!F24 -> 04 | BB24: 50000 | BR24: 5000 | IY24: =LAC102_S_CSS!FK24+LAC102_S_PEI!DQ24 -> 0 | IZ24: =LAC102_S_CSS!FL24+LAC102_S_PEI!DR24 -> 0 | JA24: =LAC102_S_CSS!FM24+LAC102_S_PEI!DS24 -> 40000 | JB24: =LAC102_S_CSS!FN24+LAC102_S_PEI!DT24 -> 0 | JC24: =LAC102_S_CSS!FO24+LAC102_S_PEI!DU24 -> 0 | JD24: =LAC102_S_CSS!FP24+LAC102_S_PEI!DV24 -> 0 | JE24: =LAC102_S_CSS!FQ24+LAC102_S_PEI!DW24 -> 0 | JF24: =LAC102_S_CSS!FR24+LAC102_S_PEI!DX24 -> 0 | JG24: =LAC102_S_CSS!FS24+LAC102_S_PEI!DY24 -> 0 | JH24: =LAC102_S_CSS!FT24+LAC102_S_PEI!DZ24 -> 30000 | JI24: =LAC102_S_CSS!FU24+LAC102_S_PEI!EA24 -> 0 | JJ24: =LAC102_S_CSS!FV24+LAC102_S_PEI!EB24 -> 0 | JK24: =LAC102_S_CSS!FW24+LAC102_S_PEI!EC24 -> 0 | JL24: =LAC102_S_CSS!FX24+LAC102_S_PEI!ED24 -> 0 | JM24: =LAC102_S_CSS!FY24+LAC102_S_PEI!EE24 -> 0 | JN24: =LAC102_S_CSS!FZ24+LAC102_S_PEI!EF24 -> 0 | JO24: =LAC102_S_CSS!GA24+LAC102_S_PEI!EG24 -> 20000 | JP24: =LAC102_S_CSS!GB24+LAC102_S_PEI!EH24 -> 0 | JQ24: =LAC102_S_CSS!GC24+LAC102_S_PEI!EI24 -> 0 | JR24: =LAC102_S_CSS!GD24+LAC102_S_PEI!EJ24 -> 0 | JS24: =LAC102_S_CSS!GE24+LAC102_S_PEI!EK24 -> 0 | JT24: =LAC102_S_CSS!GF24+LAC102_S_PEI!EL24 -> 0 | JU24: =LAC102_S_CSS!GG24+LAC102_S_PEI!EM24 -> 0 | ABV24: 0 | ABW24: 0 | ABX24: 90000 | ABY24: 0 | ABZ24: 0 | ACA24: 0 | ACB24: 0 | ACC24: 0 | ACD24: 0 | ACE24: 30000 | ACF24: 0 | ACG24: 0 | ACH24: 0 | ACI24: 0 | ACJ24: 0 | ACK24: 0 | ACL24: 20000 | ACM24: 0 | ACN24: 5000 | ACO24: 0 | ACP24: 0 | ACQ24: 0 | ACR24: 0 | ACS24: 0 | ACT24: 0 | ACU24: 90000 | ACV24: 0 | ACW24: 0 | ACX24: 0 | ACY24: 0 | ACZ24: 0 | ADA24: 0 | ADB24: 30000 | ADC24: 0 | ADD24: 0 | ADE24: 0 | ADF24: 0 | ADG24: 0 | ADH24: 0 | ADI24: 20000 | ADJ24: 0 | ADK24: 5000 | ADL24: 0 | ADM24: 0 | ADN24: 0 | ADO24: 0 | ADP24: =MH1901_Schedule_B!G29+MH1901_Schedule_B!F29 -> 0 | ADQ24: =MH1901_Schedule_B!I29+MH1901_Schedule_B!J29 -> 0 | ADR24: =MH1901_Schedule_B!L29+MH1901_Schedule_B!M29 -> 90000 | ADS24: =MH1901_Schedule_B!O29 -> 0 | ADT24: =MH1901_Schedule_B!Q29 -> 0 | ADU24: =MH1901_Schedule_B!S29 -> 0 | ADV24: =MH1901_Schedule_B!U29 -> 0 | ADW24: =MH1901_Schedule_B!W29 -> 0 | ADX24: =MH1901_Schedule_B!Y29 -> 0 | ADY24: =MH1901_Schedule_B!AA29 -> 30000 | ADZ24: =MH1901_Schedule_B!AC29+MH1901_Schedule_B!AI29 -> 0 | AEA24: =MH1901_Schedule_B!AE29+MH1901_Schedule_B!AK29 -> 0 | AEB24: =MH1901_Schedule_B!AG29+MH1901_Schedule_B!AM29 -> 0 | AEC24: =MH1901_Schedule_B!AO29 -> 0 | AED24: =MH1901_Schedule_B!AQ29 -> 0 | AEE24: =MH1901_Schedule_B!AS29 -> 0 | AEF24: =MH1901_Schedule_B!AU29 -> 20000 | AEG24: =MH1901_Schedule_B!BE29 -> 0 | AEH24: =MH1901_Schedule_B!BG29 -> 5000 | AEI24: =MH1901_Schedule_B!AW29 -> 0 | AEJ24: =MH1901_Schedule_B!AY29 -> 0 | AEK24: =MH1901_Schedule_B!BA29 -> 0 | AEL24: =MH1901_Schedule_B!BC29 -> 0 | AEM24: 0 | AEN24: 0 | AEO24: 0 | AEP24: 0 | AEQ24: 0 | AER24: 0 | AES24: 0 | AET24: 0 | AEU24: 0 | AEV24: 0 | AEW24: 0 | AEX24: 0 | AEY24: 0 | AEZ24: 0 | AFA24: 0 | AFB24: 0 | AFC24: 0 | AFD24: 0 | AFE24: 0 | AFF24: 0 | AFG24: 0 | AFH24: 0 | AFI24: 0
A25: CR1510 | B25: 11 | C25: ='LAC103'!D25 -> CR | D25: ='LAC103'!E25 -> 15 | E25: ='LAC103'!F25 -> 10 | AZ25: 250000 | BA25: 118215 | BR25: 11000 | IY25: =LAC102_S_CSS!FK25+LAC102_S_PEI!DQ25 -> 291054 | IZ25: =LAC102_S_CSS!FL25+LAC102_S_PEI!DR25 -> 164214 | JA25: =LAC102_S_CSS!FM25+LAC102_S_PEI!DS25 -> 0 | JB25: =LAC102_S_CSS!FN25+LAC102_S_PEI!DT25 -> 0 | JC25: =LAC102_S_CSS!FO25+LAC102_S_PEI!DU25 -> 0 | JD25: =LAC102_S_CSS!FP25+LAC102_S_PEI!DV25 -> 0 | JE25: =LAC102_S_CSS!FQ25+LAC102_S_PEI!DW25 -> 96162 | JF25: =LAC102_S_CSS!FR25+LAC102_S_PEI!DX25 -> 100000 | JG25: =LAC102_S_CSS!FS25+LAC102_S_PEI!DY25 -> 90000 | JH25: =LAC102_S_CSS!FT25+LAC102_S_PEI!DZ25 -> 0 | JI25: =LAC102_S_CSS!FU25+LAC102_S_PEI!EA25 -> 0 | JJ25: =LAC102_S_CSS!FV25+LAC102_S_PEI!EB25 -> 0 | JK25: =LAC102_S_CSS!FW25+LAC102_S_PEI!EC25 -> 0 | JL25: =LAC102_S_CSS!FX25+LAC102_S_PEI!ED25 -> 0 | JM25: =LAC102_S_CSS!FY25+LAC102_S_PEI!EE25 -> 0 | JN25: =LAC102_S_CSS!FZ25+LAC102_S_PEI!EF25 -> 0 | JO25: =LAC102_S_CSS!GA25+LAC102_S_PEI!EG25 -> 0 | JP25: =LAC102_S_CSS!GB25+LAC102_S_PEI!EH25 -> 17000 | JQ25: =LAC102_S_CSS!GC25+LAC102_S_PEI!EI25 -> 7000 | JR25: =LAC102_S_CSS!GD25+LAC102_S_PEI!EJ25 -> 0 | JS25: =LAC102_S_CSS!GE25+LAC102_S_PEI!EK25 -> 0 | JT25: =LAC102_S_CSS!GF25+LAC102_S_PEI!EL25 -> 0 | JU25: =LAC102_S_CSS!GG25+LAC102_S_PEI!EM25 -> 0 | ABV25: 541054 | ABW25: 282429 | ABX25: 0 | ABY25: 0 | ABZ25: 0 | ACA25: 0 | ACB25: 96162 | ACC25: 100000 | ACD25: 90000 | ACE25: 0 | ACF25: 0 | ACG25: 0 | ACH25: 0 | ACI25: 0 | ACJ25: 0 | ACK25: 0 | ACL25: 0 | ACM25: 17000 | ACN25: 18000 | ACO25: 0 | ACP25: 0 | ACQ25: 0 | ACR25: 0 | ACS25: 541054 | ACT25: 282429 | ACU25: 0 | ACV25: 0 | ACW25: 0 | ACX25: 0 | ACY25: 96162 | ACZ25: 100000 | ADA25: 90000 | ADB25: 0 | ADC25: 0 | ADD25: 0 | ADE25: 0 | ADF25: 0 | ADG25: 0 | ADH25: 0 | ADI25: 0 | ADJ25: 17000 | ADK25: 18000 | ADL25: 0 | ADM25: 0 | ADN25: 0 | ADO25: 0 | ADP25: =MH1901_Schedule_B!G30+MH1901_Schedule_B!F30 -> 541054 | ADQ25: =MH1901_Schedule_B!I30+MH1901_Schedule_B!J30 -> 282429 | ADR25: =MH1901_Schedule_B!L30+MH1901_Schedule_B!M30 -> 0 | ADS25: =MH1901_Schedule_B!O30 -> 0 | ADT25: =MH1901_Schedule_B!Q30 -> 0 | ADU25: =MH1901_Schedule_B!S30 -> 0 | ADV25: =MH1901_Schedule_B!U30 -> 96162 | ADW25: =MH1901_Schedule_B!W30 -> 100000 | ADX25: =MH1901_Schedule_B!Y30 -> 90000 | ADY25: =MH1901_Schedule_B!AA30 -> 0 | ADZ25: =MH1901_Schedule_B!AC30+MH1901_Schedule_B!AI30 -> 0 | AEA25: =MH1901_Schedule_B!AE30+MH1901_Schedule_B!AK30 -> 0 | AEB25: =MH1901_Schedule_B!AG30+MH1901_Schedule_B!AM30 -> 0 | AEC25: =MH1901_Schedule_B!AO30 -> 0 | AED25: =MH1901_Schedule_B!AQ30 -> 0 | AEE25: =MH1901_Schedule_B!AS30 -> 0 | AEF25: =MH1901_Schedule_B!AU30 -> 0 | AEG25: =MH1901_Schedule_B!BE30 -> 17000 | AEH25: =MH1901_Schedule_B!BG30 -> 18000 | AEI25: =MH1901_Schedule_B!AW30 -> 0 | AEJ25: =MH1901_Schedule_B!AY30 -> 0 | AEK25: =MH1901_Schedule_B!BA30 -> 0 | AEL25: =MH1901_Schedule_B!BC30 -> 0 | AEM25: 0 | AEN25: 0 | AEO25: 0 | AEP25: 0 | AEQ25: 0 | AER25: 0 | AES25: 0 | AET25: 0 | AEU25: 0 | AEV25: 0 | AEW25: 0 | AEX25: 0 | AEY25: 0 | AEZ25: 0 | AFA25: 0 | AFB25: 0 | AFC25: 0 | AFD25: 0 | AFE25: 0 | AFF25: 0 | AFG25: 0 | AFH25: 0 | AFI25: 0
A26: CR1510 | B26: 12 | C26: ='LAC103'!D26 -> CR | D26: ='LAC103'!E26 -> 15 | E26: ='LAC103'!F26 -> 10 | BB26: 40000 | BR26: 4000 | IY26: =LAC102_S_CSS!FK26+LAC102_S_PEI!DQ26 -> 0 | IZ26: =LAC102_S_CSS!FL26+LAC102_S_PEI!DR26 -> 0 | JA26: =LAC102_S_CSS!FM26+LAC102_S_PEI!DS26 -> 60000 | JB26: =LAC102_S_CSS!FN26+LAC102_S_PEI!DT26 -> 0 | JC26: =LAC102_S_CSS!FO26+LAC102_S_PEI!DU26 -> 0 | JD26: =LAC102_S_CSS!FP26+LAC102_S_PEI!DV26 -> 0 | JE26: =LAC102_S_CSS!FQ26+LAC102_S_PEI!DW26 -> 0 | JF26: =LAC102_S_CSS!FR26+LAC102_S_PEI!DX26 -> 0 | JG26: =LAC102_S_CSS!FS26+LAC102_S_PEI!DY26 -> 0 | JH26: =LAC102_S_CSS!FT26+LAC102_S_PEI!DZ26 -> 19000 | JI26: =LAC102_S_CSS!FU26+LAC102_S_PEI!EA26 -> 0 | JJ26: =LAC102_S_CSS!FV26+LAC102_S_PEI!EB26 -> 0 | JK26: =LAC102_S_CSS!FW26+LAC102_S_PEI!EC26 -> 0 | JL26: =LAC102_S_CSS!FX26+LAC102_S_PEI!ED26 -> 0 | JM26: =LAC102_S_CSS!FY26+LAC102_S_PEI!EE26 -> 0 | JN26: =LAC102_S_CSS!FZ26+LAC102_S_PEI!EF26 -> 0 | JO26: =LAC102_S_CSS!GA26+LAC102_S_PEI!EG26 -> 0 | JP26: =LAC102_S_CSS!GB26+LAC102_S_PEI!EH26 -> 0 | JQ26: =LAC102_S_CSS!GC26+LAC102_S_PEI!EI26 -> 2000 | JR26: =LAC102_S_CSS!GD26+LAC102_S_PEI!EJ26 -> 0 | JS26: =LAC102_S_CSS!GE26+LAC102_S_PEI!EK26 -> 0 | JT26: =LAC102_S_CSS!GF26+LAC102_S_PEI!EL26 -> 0 | JU26: =LAC102_S_CSS!GG26+LAC102_S_PEI!EM26 -> 0 | ABV26: 0 | ABW26: 0 | ABX26: 100000 | ABY26: 0 | ABZ26: 0 | ACA26: 0 | ACB26: 0 | ACC26: 0 | ACD26: 0 | ACE26: 19000 | ACF26: 0 | ACG26: 0 | ACH26: 0 | ACI26: 0 | ACJ26: 0 | ACK26: 0 | ACL26: 0 | ACM26: 0 | ACN26: 6000 | ACO26: 0 | ACP26: 0 | ACQ26: 0 | ACR26: 0 | ACS26: 0 | ACT26: 0 | ACU26: 100000 | ACV26: 0 | ACW26: 0 | ACX26: 0 | ACY26: 0 | ACZ26: 0 | ADA26: 0 | ADB26: 19000 | ADC26: 0 | ADD26: 0 | ADE26: 0 | ADF26: 0 | ADG26: 0 | ADH26: 0 | ADI26: 0 | ADJ26: 0 | ADK26: 6000 | ADL26: 0 | ADM26: 0 | ADN26: 0 | ADO26: 0 | ADP26: =MH1901_Schedule_B!G31+MH1901_Schedule_B!F31 -> 0 | ADQ26: =MH1901_Schedule_B!I31+MH1901_Schedule_B!J31 -> 0 | ADR26: =MH1901_Schedule_B!L31+MH1901_Schedule_B!M31 -> 100000 | ADS26: =MH1901_Schedule_B!O31 -> 0 | ADT26: =MH1901_Schedule_B!Q31 -> 0 | ADU26: =MH1901_Schedule_B!S31 -> 0 | ADV26: =MH1901_Schedule_B!U31 -> 0 | ADW26: =MH1901_Schedule_B!W31 -> 0 | ADX26: =MH1901_Schedule_B!Y31 -> 0 | ADY26: =MH1901_Schedule_B!AA31 -> 19000 | ADZ26: =MH1901_Schedule_B!AC31+MH1901_Schedule_B!AI31 -> 0 | AEA26: =MH1901_Schedule_B!AE31+MH1901_Schedule_B!AK31 -> 0 | AEB26: =MH1901_Schedule_B!AG31+MH1901_Schedule_B!AM31 -> 0 | AEC26: =MH1901_Schedule_B!AO31 -> 0 | AED26: =MH1901_Schedule_B!AQ31 -> 0 | AEE26: =MH1901_Schedule_B!AS31 -> 0 | AEF26: =MH1901_Schedule_B!AU31 -> 0 | AEG26: =MH1901_Schedule_B!BE31 -> 0 | AEH26: =MH1901_Schedule_B!BG31 -> 6000 | AEI26: =MH1901_Schedule_B!AW31 -> 0 | AEJ26: =MH1901_Schedule_B!AY31 -> 0 | AEK26: =MH1901_Schedule_B!BA31 -> 0 | AEL26: =MH1901_Schedule_B!BC31 -> 0 | AEM26: 0 | AEN26: 0 | AEO26: 0 | AEP26: 0 | AEQ26: 0 | AER26: 0 | AES26: 0 | AET26: 0 | AEU26: 0 | AEV26: 0 | AEW26: 0 | AEX26: 0 | AEY26: 0 | AEZ26: 0 | AFA26: 0 | AFB26: 0 | AFC26: 0 | AFD26: 0 | AFE26: 0 | AFF26: 0 | AFG26: 0 | AFH26: 0 | AFI26: 0
A27: CR1542 | B27: 13 | C27: ='LAC103'!D27 -> CR | D27: ='LAC103'!E27 -> 15 | E27: ='LAC103'!F27 -> 42 | AZ27: 900000 | BA27: 423601 | IY27: =LAC102_S_CSS!FK27+LAC102_S_PEI!DQ27 -> 623966 | IZ27: =LAC102_S_CSS!FL27+LAC102_S_PEI!DR27 -> 481768 | JA27: =LAC102_S_CSS!FM27+LAC102_S_PEI!DS27 -> 0 | JB27: =LAC102_S_CSS!FN27+LAC102_S_PEI!DT27 -> 0 | JC27: =LAC102_S_CSS!FO27+LAC102_S_PEI!DU27 -> 0 | JD27: =LAC102_S_CSS!FP27+LAC102_S_PEI!DV27 -> 0 | JE27: =LAC102_S_CSS!FQ27+LAC102_S_PEI!DW27 -> 475734 | JF27: =LAC102_S_CSS!FR27+LAC102_S_PEI!DX27 -> 280000 | JG27: =LAC102_S_CSS!FS27+LAC102_S_PEI!DY27 -> 200000 | JH27: =LAC102_S_CSS!FT27+LAC102_S_PEI!DZ27 -> 0 | JI27: =LAC102_S_CSS!FU27+LAC102_S_PEI!EA27 -> 0 | JJ27: =LAC102_S_CSS!FV27+LAC102_S_PEI!EB27 -> 0 | JK27: =LAC102_S_CSS!FW27+LAC102_S_PEI!EC27 -> 0 | JL27: =LAC102_S_CSS!FX27+LAC102_S_PEI!ED27 -> 0 | JM27: =LAC102_S_CSS!FY27+LAC102_S_PEI!EE27 -> 415734 | JN27: =LAC102_S_CSS!FZ27+LAC102_S_PEI!EF27 -> 240000 | JO27: =LAC102_S_CSS!GA27+LAC102_S_PEI!EG27 -> 0 | JP27: =LAC102_S_CSS!GB27+LAC102_S_PEI!EH27 -> 0 | JQ27: =LAC102_S_CSS!GC27+LAC102_S_PEI!EI27 -> 34999 | JR27: =LAC102_S_CSS!GD27+LAC102_S_PEI!EJ27 -> 0 | JS27: =LAC102_S_CSS!GE27+LAC102_S_PEI!EK27 -> 0 | JT27: =LAC102_S_CSS!GF27+LAC102_S_PEI!EL27 -> 0 | JU27: =LAC102_S_CSS!GG27+LAC102_S_PEI!EM27 -> 0 | ABV27: =IF(ACS27-ADP27=0,ACS27,"ERROR") -> 1523966 | ABW27: 905369 | ABX27: 0 | ABY27: 0 | ABZ27: 0 | ACA27: 0 | ACB27: =IF(ACY27-ADV27=0,ACY27,"ERROR") -> 475734 | ACC27: 280000 | ACD27: 200000 | ACE27: 0 | ACF27: 0 | ACG27: 0 | ACH27: 0 | ACI27: 0 | ACJ27: 415734 | ACK27: 240000 | ACL27: 0 | ACM27: 0 | ACN27: =IF(ADK27-AEH27=0,ADK27,"ERROR") -> 34999 | ACO27: 0 | ACP27: 0 | ACQ27: 0 | ACR27: =IF(ADO27-AEL27=0,ADO27,"ERROR") -> 0 | ACS27: 1523966 | ACT27: 905369 | ACU27: 0 | ACV27: 0 | ACW27: 0 | ACX27: 0 | ACY27: 475734 | ACZ27: 280000 | ADA27: 200000 | ADB27: 0 | ADC27: 0 | ADD27: 0 | ADE27: 0 | ADF27: 0 | ADG27: 415734 | ADH27: 240000 | ADI27: 0 | ADJ27: 0 | ADK27: 34999 | ADL27: 0 | ADM27: 0 | ADN27: 0 | ADO27: 0 | ADP27: =MH1901_Schedule_B!G32+MH1901_Schedule_B!F32 -> 1523966 | ADQ27: =MH1901_Schedule_B!I32+MH1901_Schedule_B!J32 -> 905369 | ADR27: =MH1901_Schedule_B!L32+MH1901_Schedule_B!M32 -> 0 | ADS27: =MH1901_Schedule_B!O32 -> 0 | ADT27: =MH1901_Schedule_B!Q32 -> 0 | ADU27: =MH1901_Schedule_B!S32 -> 0 | ADV27: =MH1901_Schedule_B!U32 -> 475734 | ADW27: =MH1901_Schedule_B!W32 -> 280000 | ADX27: =MH1901_Schedule_B!Y32 -> 200000 | ADY27: =MH1901_Schedule_B!AA32 -> 0 | ADZ27: =MH1901_Schedule_B!AC32+MH1901_Schedule_B!AI32 -> 0 | AEA27: =MH1901_Schedule_B!AE32+MH1901_Schedule_B!AK32 -> 0 | AEB27: =MH1901_Schedule_B!AG32+MH1901_Schedule_B!AM32 -> 0 | AEC27: =MH1901_Schedule_B!AO32 -> 0 | AED27: =MH1901_Schedule_B!AQ32 -> 415734 | AEE27: =MH1901_Schedule_B!AS32 -> 240000 | AEF27: =MH1901_Schedule_B!AU32 -> 0 | AEG27: =MH1901_Schedule_B!BE32 -> 0 | AEH27: =MH1901_Schedule_B!BG32 -> 34999 | AEI27: =MH1901_Schedule_B!AW32 -> 0 | AEJ27: =MH1901_Schedule_B!AY32 -> 0 | AEK27: =MH1901_Schedule_B!BA32 -> 0 | AEL27: =MH1901_Schedule_B!BC32 -> 0 | AEM27: 0 | AEN27: 0 | AEO27: 0 | AEP27: 0 | AEQ27: 0 | AER27: 0 | AES27: 0 | AET27: 0 | AEU27: 0 | AEV27: 0 | AEW27: 0 | AEX27: 0 | AEY27: 0 | AEZ27: 0 | AFA27: 0 | AFB27: 0 | AFC27: 0 | AFD27: 0 | AFE27: 0 | AFF27: 0 | AFG27: 0 | AFH27: 0 | AFI27: 0
A28: CR1542 | B28: 14 | C28: ='LAC103'!D28 -> CR | D28: ='LAC103'!E28 -> 15 | E28: ='LAC103'!F28 -> 42 | BB28: 200000 | IY28: =LAC102_S_CSS!FK28+LAC102_S_PEI!DQ28 -> 0 | IZ28: =LAC102_S_CSS!FL28+LAC102_S_PEI!DR28 -> 0 | JA28: =LAC102_S_CSS!FM28+LAC102_S_PEI!DS28 -> 100000 | JB28: =LAC102_S_CSS!FN28+LAC102_S_PEI!DT28 -> 0 | JC28: =LAC102_S_CSS!FO28+LAC102_S_PEI!DU28 -> 0 | JD28: =LAC102_S_CSS!FP28+LAC102_S_PEI!DV28 -> 0 | JE28: =LAC102_S_CSS!FQ28+LAC102_S_PEI!DW28 -> 0 | JF28: =LAC102_S_CSS!FR28+LAC102_S_PEI!DX28 -> 0 | JG28: =LAC102_S_CSS!FS28+LAC102_S_PEI!DY28 -> 0 | JH28: =LAC102_S_CSS!FT28+LAC102_S_PEI!DZ28 -> 60000 | JI28: =LAC102_S_CSS!FU28+LAC102_S_PEI!EA28 -> 0 | JJ28: =LAC102_S_CSS!FV28+LAC102_S_PEI!EB28 -> 0 | JK28: =LAC102_S_CSS!FW28+LAC102_S_PEI!EC28 -> 0 | JL28: =LAC102_S_CSS!FX28+LAC102_S_PEI!ED28 -> 0 | JM28: =LAC102_S_CSS!FY28+LAC102_S_PEI!EE28 -> 0 | JN28: =LAC102_S_CSS!FZ28+LAC102_S_PEI!EF28 -> 0 | JO28: =LAC102_S_CSS!GA28+LAC102_S_PEI!EG28 -> 120000 | JP28: =LAC102_S_CSS!GB28+LAC102_S_PEI!EH28 -> 0 | JQ28: =LAC102_S_CSS!GC28+LAC102_S_PEI!EI28 -> 15000 | JR28: =LAC102_S_CSS!GD28+LAC102_S_PEI!EJ28 -> 0 | JS28: =LAC102_S_CSS!GE28+LAC102_S_PEI!EK28 -> 0 | JT28: =LAC102_S_CSS!GF28+LAC102_S_PEI!EL28 -> 0 | JU28: =LAC102_S_CSS!GG28+LAC102_S_PEI!EM28 -> 0 | ABV28: 0 | ABW28: 0 | ABX28: 300000 | ABY28: 0 | ABZ28: 0 | ACA28: 0 | ACB28: 0 | ACC28: 0 | ACD28: 0 | ACE28: 60000 | ACF28: 0 | ACG28: 0 | ACH28: 0 | ACI28: 0 | ACJ28: 0 | ACK28: 0 | ACL28: 120000 | ACM28: 0 | ACN28: 15000 | ACO28: 0 | ACP28: 0 | ACQ28: 0 | ACR28: 0 | ACS28: 0 | ACT28: 0 | ACU28: 300000 | ACV28: 0 | ACW28: 0 | ACX28: 0 | ACY28: 0 | ACZ28: 0 | ADA28: 0 | ADB28: 60000 | ADC28: 0 | ADD28: 0 | ADE28: 0 | ADF28: 0 | ADG28: 0 | ADH28: 0 | ADI28: 120000 | ADJ28: 0 | ADK28: 15000 | ADL28: 0 | ADM28: 0 | ADN28: 0 | ADO28: 0 | ADP28: =MH1901_Schedule_B!G33+MH1901_Schedule_B!F33 -> 0 | ADQ28: =MH1901_Schedule_B!I33+MH1901_Schedule_B!J33 -> 0 | ADR28: =MH1901_Schedule_B!L33+MH1901_Schedule_B!M33 -> 300000 | ADS28: =MH1901_Schedule_B!O33 -> 0 | ADT28: =MH1901_Schedule_B!Q33 -> 0 | ADU28: =MH1901_Schedule_B!S33 -> 0 | ADV28: =MH1901_Schedule_B!U33 -> 0 | ADW28: =MH1901_Schedule_B!W33 -> 0 | ADX28: =MH1901_Schedule_B!Y33 -> 0 | ADY28: =MH1901_Schedule_B!AA33 -> 60000 | ADZ28: =MH1901_Schedule_B!AC33+MH1901_Schedule_B!AI33 -> 0 | AEA28: =MH1901_Schedule_B!AE33+MH1901_Schedule_B!AK33 -> 0 | AEB28: =MH1901_Schedule_B!AG33+MH1901_Schedule_B!AM33 -> 0 | AEC28: =MH1901_Schedule_B!AO33 -> 0 | AED28: =MH1901_Schedule_B!AQ33 -> 0 | AEE28: =MH1901_Schedule_B!AS33 -> 0 | AEF28: =MH1901_Schedule_B!AU33 -> 120000 | AEG28: =MH1901_Schedule_B!BE33 -> 0 | AEH28: =MH1901_Schedule_B!BG33 -> 15000 | AEI28: =MH1901_Schedule_B!AW33 -> 0 | AEJ28: =MH1901_Schedule_B!AY33 -> 0 | AEK28: =MH1901_Schedule_B!BA33 -> 0 | AEL28: =MH1901_Schedule_B!BC33 -> 0 | AEM28: 0 | AEN28: 0 | AEO28: 0 | AEP28: 0 | AEQ28: 0 | AER28: 0 | AES28: 0 | AET28: 0 | AEU28: 0 | AEV28: 0 | AEW28: 0 | AEX28: 0 | AEY28: 0 | AEZ28: 0 | AFA28: 0 | AFB28: 0 | AFC28: 0 | AFD28: 0 | AFE28: 0 | AFF28: 0 | AFG28: 0 | AFH28: 0 | AFI28: 0
A29: CR1552 | B29: 15 | C29: ='LAC103'!D29 -> CR | D29: ='LAC103'!E29 -> 15 | E29: ='LAC103'!F29 -> 52 | AZ29: 14398 | BA29: 9000 | IY29: =LAC102_S_CSS!FK29+LAC102_S_PEI!DQ29 -> 22796 | IZ29: =LAC102_S_CSS!FL29+LAC102_S_PEI!DR29 -> 24000 | JA29: =LAC102_S_CSS!FM29+LAC102_S_PEI!DS29 -> 0 | JB29: =LAC102_S_CSS!FN29+LAC102_S_PEI!DT29 -> 0 | JC29: =LAC102_S_CSS!FO29+LAC102_S_PEI!DU29 -> 0 | JD29: =LAC102_S_CSS!FP29+LAC102_S_PEI!DV29 -> 0 | JE29: =LAC102_S_CSS!FQ29+LAC102_S_PEI!DW29 -> 0 | JF29: =LAC102_S_CSS!FR29+LAC102_S_PEI!DX29 -> 0 | JG29: =LAC102_S_CSS!FS29+LAC102_S_PEI!DY29 -> 0 | JH29: =LAC102_S_CSS!FT29+LAC102_S_PEI!DZ29 -> 0 | JI29: =LAC102_S_CSS!FU29+LAC102_S_PEI!EA29 -> 0 | JJ29: =LAC102_S_CSS!FV29+LAC102_S_PEI!EB29 -> 0 | JK29: =LAC102_S_CSS!FW29+LAC102_S_PEI!EC29 -> 0 | JL29: =LAC102_S_CSS!FX29+LAC102_S_PEI!ED29 -> 0 | JM29: =LAC102_S_CSS!FY29+LAC102_S_PEI!EE29 -> 0 | JN29: =LAC102_S_CSS!FZ29+LAC102_S_PEI!EF29 -> 0 | JO29: =LAC102_S_CSS!GA29+LAC102_S_PEI!EG29 -> 0 | JP29: =LAC102_S_CSS!GB29+LAC102_S_PEI!EH29 -> 0 | JQ29: =LAC102_S_CSS!GC29+LAC102_S_PEI!EI29 -> 0 | JR29: =LAC102_S_CSS!GD29+LAC102_S_PEI!EJ29 -> 0 | JS29: =LAC102_S_CSS!GE29+LAC102_S_PEI!EK29 -> 0 | JT29: =LAC102_S_CSS!GF29+LAC102_S_PEI!EL29 -> 0 | JU29: =LAC102_S_CSS!GG29+LAC102_S_PEI!EM29 -> 0 | ABV29: =IF(ACS29-ADP29=0,ACS29,"ERROR") -> 37194 | ABW29: 33000 | ABX29: 0 | ABY29: 0 | ABZ29: 0 | ACA29: 0 | ACB29: 0 | ACC29: 0 | ACD29: 0 | ACE29: 0 | ACF29: 0 | ACG29: 0 | ACH29: 0 | ACI29: 0 | ACJ29: 0 | ACK29: 0 | ACL29: 0 | ACM29: 0 | ACN29: =IF(ADK29-AEH29=0,ADK29,"ERROR") -> 0 | ACO29: 0 | ACP29: 0 | ACQ29: 0 | ACR29: 0 | ACS29: 37194 | ACT29: 33000 | ACU29: 0 | ACV29: 0 | ACW29: 0 | ACX29: 0 | ACY29: 0 | ACZ29: 0 | ADA29: 0 | ADB29: 0 | ADC29: 0 | ADD29: 0 | ADE29: 0 | ADF29: 0 | ADG29: 0 | ADH29: 0 | ADI29: 0 | ADJ29: 0 | ADK29: 0 | ADL29: 0 | ADM29: 0 | ADN29: 0 | ADO29: 0 | ADP29: =MH1901_Schedule_B!G34+MH1901_Schedule_B!F34 -> 37194 | ADQ29: =MH1901_Schedule_B!I34+MH1901_Schedule_B!J34 -> 33000 | ADR29: =MH1901_Schedule_B!L34+MH1901_Schedule_B!M34 -> 0 | ADS29: =MH1901_Schedule_B!O34 -> 0 | ADT29: =MH1901_Schedule_B!Q34 -> 0 | ADU29: =MH1901_Schedule_B!S34 -> 0 | ADV29: =MH1901_Schedule_B!U34 -> 0 | ADW29: =MH1901_Schedule_B!W34 -> 0 | ADX29: =MH1901_Schedule_B!Y34 -> 0 | ADY29: =MH1901_Schedule_B!AA34 -> 0 | ADZ29: =MH1901_Schedule_B!AC34+MH1901_Schedule_B!AI34 -> 0 | AEA29: =MH1901_Schedule_B!AE34+MH1901_Schedule_B!AK34 -> 0 | AEB29: =MH1901_Schedule_B!AG34+MH1901_Schedule_B!AM34 -> 0 | AEC29: =MH1901_Schedule_B!AO34 -> 0 | AED29: =MH1901_Schedule_B!AQ34 -> 0 | AEE29: =MH1901_Schedule_B!AS34 -> 0 | AEF29: =MH1901_Schedule_B!AU34 -> 0 | AEG29: =MH1901_Schedule_B!BE34 -> 0 | AEH29: =MH1901_Schedule_B!BG34 -> 0 | AEI29: =MH1901_Schedule_B!AW34 -> 0 | AEJ29: =MH1901_Schedule_B!AY34 -> 0 | AEK29: =MH1901_Schedule_B!BA34 -> 0 | AEL29: =MH1901_Schedule_B!BC34 -> 0 | AEM29: 0 | AEN29: 0 | AEO29: 0 | AEP29: 0 | AEQ29: =ACW29-ADT29 -> 0 | AER29: 0 | AES29: 0 | AET29: 0 | AEU29: 0 | AEV29: 0 | AEW29: 0 | AEX29: 0 | AEY29: 0 | AEZ29: 0 | AFA29: 0 | AFB29: 0 | AFC29: 0 | AFD29: 0 | AFE29: 0 | AFF29: 0 | AFG29: 0 | AFH29: 0 | AFI29: 0
A30: CR1552 | B30: 16 | C30: ='LAC103'!D30 -> CR | D30: ='LAC103'!E30 -> 15 | E30: ='LAC103'!F30 -> 52 | BB30: 4000 | IY30: =LAC102_S_CSS!FK30+LAC102_S_PEI!DQ30 -> 0 | IZ30: =LAC102_S_CSS!FL30+LAC102_S_PEI!DR30 -> 0 | JA30: =LAC102_S_CSS!FM30+LAC102_S_PEI!DS30 -> 8000 | JB30: =LAC102_S_CSS!FN30+LAC102_S_PEI!DT30 -> 0 | JC30: =LAC102_S_CSS!FO30+LAC102_S_PEI!DU30 -> 0 | JD30: =LAC102_S_CSS!FP30+LAC102_S_PEI!DV30 -> 0 | JE30: =LAC102_S_CSS!FQ30+LAC102_S_PEI!DW30 -> 0 | JF30: =LAC102_S_CSS!FR30+LAC102_S_PEI!DX30 -> 0 | JG30: =LAC102_S_CSS!FS30+LAC102_S_PEI!DY30 -> 0 | JH30: =LAC102_S_CSS!FT30+LAC102_S_PEI!DZ30 -> 0 | JI30: =LAC102_S_CSS!FU30+LAC102_S_PEI!EA30 -> 0 | JJ30: =LAC102_S_CSS!FV30+LAC102_S_PEI!EB30 -> 0 | JK30: =LAC102_S_CSS!FW30+LAC102_S_PEI!EC30 -> 0 | JL30: =LAC102_S_CSS!FX30+LAC102_S_PEI!ED30 -> 0 | JM30: =LAC102_S_CSS!FY30+LAC102_S_PEI!EE30 -> 0 | JN30: =LAC102_S_CSS!FZ30+LAC102_S_PEI!EF30 -> 0 | JO30: =LAC102_S_CSS!GA30+LAC102_S_PEI!EG30 -> 0 | JP30: =LAC102_S_CSS!GB30+LAC102_S_PEI!EH30 -> 0 | JQ30: =LAC102_S_CSS!GC30+LAC102_S_PEI!EI30 -> 0 | JR30: =LAC102_S_CSS!GD30+LAC102_S_PEI!EJ30 -> 0 | JS30: =LAC102_S_CSS!GE30+LAC102_S_PEI!EK30 -> 0 | JT30: =LAC102_S_CSS!GF30+LAC102_S_PEI!EL30 -> 0 | JU30: =LAC102_S_CSS!GG30+LAC102_S_PEI!EM30 -> 0 | ABV30: 0 | ABW30: 0 | ABX30: 12000 | ABY30: 0 | ABZ30: 0 | ACA30: 0 | ACB30: 0 | ACC30: 0 | ACD30: 0 | ACE30: 0 | ACF30: 0 | ACG30: 0 | ACH30: 0 | ACI30: 0 | ACJ30: 0 | ACK30: 0 | ACL30: 0 | ACM30: 0 | ACN30: 0 | ACO30: 0 | ACP30: 0 | ACQ30: 0 | ACR30: 0 | ACS30: 0 | ACT30: 0 | ACU30: 12000 | ACV30: 0 | ACW30: 0 | ACX30: 0 | ACY30: 0 | ACZ30: 0 | ADA30: 0 | ADB30: 0 | ADC30: 0 | ADD30: 0 | ADE30: 0 | ADF30: 0 | ADG30: 0 | ADH30: 0 | ADI30: =SUM(V30,AS30,BP30,CM30,DJ30,EG30,GA30,HU30,IR30,JO30,KL30,LI30,AAJ30,ABG30,GX30,MF30,FD30,ZM30,NC30,NZ30,OW30,PT30,QQ30,RN30,SK30,TH30,UE30,VB30,VY30,WV30,YP30,XS30) -> 0 | ADJ30: 0 | ADK30: 0 | ADL30: 0 | ADM30: 0 | ADN30: 0 | ADO30: 0 | ADP30: =MH1901_Schedule_B!G35+MH1901_Schedule_B!F35 -> 0 | ADQ30: =MH1901_Schedule_B!I35+MH1901_Schedule_B!J35 -> 0 | ADR30: =MH1901_Schedule_B!L35+MH1901_Schedule_B!M35 -> 12000 | ADS30: =MH1901_Schedule_B!O35 -> 0 | ADT30: =MH1901_Schedule_B!Q35 -> 0 | ADU30: =MH1901_Schedule_B!S35 -> 0 | ADV30: =MH1901_Schedule_B!U35 -> 0 | ADW30: =MH1901_Schedule_B!W35 -> 0 | ADX30: =MH1901_Schedule_B!Y35 -> 0 | ADY30: =MH1901_Schedule_B!AA35 -> 0 | ADZ30: =MH1901_Schedule_B!AC35+MH1901_Schedule_B!AI35 -> 0 | AEA30: =MH1901_Schedule_B!AE35+MH1901_Schedule_B!AK35 -> 0 | AEB30: =MH1901_Schedule_B!AG35+MH1901_Schedule_B!AM35 -> 0 | AEC30: =MH1901_Schedule_B!AO35 -> 0 | AED30: =MH1901_Schedule_B!AQ35 -> 0 | AEE30: =MH1901_Schedule_B!AS35 -> 0 | AEF30: =MH1901_Schedule_B!AU35 -> 0 | AEG30: =MH1901_Schedule_B!BE35 -> 0 | AEH30: =MH1901_Schedule_B!BG35 -> 0 | AEI30: =MH1901_Schedule_B!AW35 -> 0 | AEJ30: =MH1901_Schedule_B!AY35 -> 0 | AEK30: =MH1901_Schedule_B!BA35 -> 0 | AEL30: =MH1901_Schedule_B!BC35 -> 0 | AEM30: =ACS30-ADP30 -> 0 | AEN30: 0 | AEO30: 0 | AEP30: 0 | AEQ30: 0 | AER30: 0 | AES30: 0 | AET30: 0 | AEU30: 0 | AEV30: 0 | AEW30: 0 | AEX30: 0 | AEY30: 0 | AEZ30: 0 | AFA30: 0 | AFB30: 0 | AFC30: 0 | AFD30: 0 | AFE30: 0 | AFF30: 0 | AFG30: 0 | AFH30: 0 | AFI30: 0
A31: CR1562 | B31: 17 | C31: ='LAC103'!D31 -> CR | D31: ='LAC103'!E31 -> 15 | E31: ='LAC103'!F31 -> 62 | AZ31: 102362 | BA31: 70000 | BR31: 50000 | IY31: =LAC102_S_CSS!FK31+LAC102_S_PEI!DQ31 -> 85574 | IZ31: =LAC102_S_CSS!FL31+LAC102_S_PEI!DR31 -> 60000 | JA31: =LAC102_S_CSS!FM31+LAC102_S_PEI!DS31 -> 0 | JB31: =LAC102_S_CSS!FN31+LAC102_S_PEI!DT31 -> 0 | JC31: =LAC102_S_CSS!FO31+LAC102_S_PEI!DU31 -> 0 | JD31: =LAC102_S_CSS!FP31+LAC102_S_PEI!DV31 -> 0 | JE31: =LAC102_S_CSS!FQ31+LAC102_S_PEI!DW31 -> 71574 | JF31: =LAC102_S_CSS!FR31+LAC102_S_PEI!DX31 -> 40000 | JG31: =LAC102_S_CSS!FS31+LAC102_S_PEI!DY31 -> 50000 | JH31: =LAC102_S_CSS!FT31+LAC102_S_PEI!DZ31 -> 0 | JI31: =LAC102_S_CSS!FU31+LAC102_S_PEI!EA31 -> 0 | JJ31: =LAC102_S_CSS!FV31+LAC102_S_PEI!EB31 -> 0 | JK31: =LAC102_S_CSS!FW31+LAC102_S_PEI!EC31 -> 0 | JL31: =LAC102_S_CSS!FX31+LAC102_S_PEI!ED31 -> 0 | JM31: =LAC102_S_CSS!FY31+LAC102_S_PEI!EE31 -> 93574 | JN31: =LAC102_S_CSS!FZ31+LAC102_S_PEI!EF31 -> 55000 | JO31: =LAC102_S_CSS!GA31+LAC102_S_PEI!EG31 -> 0 | JP31: =LAC102_S_CSS!GB31+LAC102_S_PEI!EH31 -> 0 | JQ31: =LAC102_S_CSS!GC31+LAC102_S_PEI!EI31 -> 5000 | JR31: =LAC102_S_CSS!GD31+LAC102_S_PEI!EJ31 -> 0 | JS31: =LAC102_S_CSS!GE31+LAC102_S_PEI!EK31 -> 0 | JT31: =LAC102_S_CSS!GF31+LAC102_S_PEI!EL31 -> 0 | JU31: =LAC102_S_CSS!GG31+LAC102_S_PEI!EM31 -> 0 | ABV31: 187936 | ABW31: 130000 | ABX31: 0 | ABY31: 0 | ABZ31: 0 | ACA31: 0 | ACB31: 71574 | ACC31: 40000 | ACD31: 50000 | ACE31: 0 | ACF31: 0 | ACG31: 0 | ACH31: 0 | ACI31: 0 | ACJ31: =IF(ADG31-AED31=0,ADG31,"ERROR") -> 93574 | ACK31: 55000 | ACL31: 0 | ACM31: 0 | ACN31: =IF(ADK31-AEH31=0,ADK31,"ERROR") -> 55000 | ACO31: 0 | ACP31: 0 | ACQ31: 0 | ACR31: 0 | ACS31: 187936 | ACT31: 130000 | ACU31: 0 | ACV31: 0 | ACW31: 0 | ACX31: 0 | ACY31: 71574 | ACZ31: 40000 | ADA31: 50000 | ADB31: 0 | ADC31: 0 | ADD31: 0 | ADE31: 0 | ADF31: 0 | ADG31: 93574 | ADH31: 55000 | ADI31: 0 | ADJ31: 0 | ADK31: 55000 | ADL31: =SUM(Y31,AV31,BS31,CP31,DM31,EJ31,GD31,HX31,IU31,JR31,KO31,LL31,AAM31,ABJ31,HA31,MI31,FG31,ZP31,NF31,OC31,OZ31,PW31,QT31,RQ31,SN31,TK31,UH31,VE31,WB31,WY31,YS31,XV31) -> 0 | ADM31: 0 | ADN31: 0 | ADO31: 0 | ADP31: =MH1901_Schedule_B!G36+MH1901_Schedule_B!F36 -> 187936 | ADQ31: =MH1901_Schedule_B!I36+MH1901_Schedule_B!J36 -> 130000 | ADR31: =MH1901_Schedule_B!L36+MH1901_Schedule_B!M36 -> 0 | ADS31: =MH1901_Schedule_B!O36 -> 0 | ADT31: =MH1901_Schedule_B!Q36 -> 0 | ADU31: =MH1901_Schedule_B!S36 -> 0 | ADV31: =MH1901_Schedule_B!U36 -> 71574 | ADW31: =MH1901_Schedule_B!W36 -> 40000 | ADX31: =MH1901_Schedule_B!Y36 -> 50000 | ADY31: =MH1901_Schedule_B!AA36 -> 0 | ADZ31: =MH1901_Schedule_B!AC36+MH1901_Schedule_B!AI36 -> 0 | AEA31: =MH1901_Schedule_B!AE36+MH1901_Schedule_B!AK36 -> 0 | AEB31: =MH1901_Schedule_B!AG36+MH1901_Schedule_B!AM36 -> 0 | AEC31: =MH1901_Schedule_B!AO36 -> 0 | AED31: =MH1901_Schedule_B!AQ36 -> 93574 | AEE31: =MH1901_Schedule_B!AS36 -> 55000 | AEF31: =MH1901_Schedule_B!AU36 -> 0 | AEG31: =MH1901_Schedule_B!BE36 -> 0 | AEH31: =MH1901_Schedule_B!BG36 -> 55000 | AEI31: =MH1901_Schedule_B!AW36 -> 0 | AEJ31: =MH1901_Schedule_B!AY36 -> 0 | AEK31: =MH1901_Schedule_B!BA36 -> 0 | AEL31: =MH1901_Schedule_B!BC36 -> 0 | AEM31: 0 | AEN31: 0 | AEO31: 0 | AEP31: 0 | AEQ31: 0 | AER31: 0 | AES31: 0 | AET31: 0 | AEU31: 0 | AEV31: 0 | AEW31: 0 | AEX31: 0 | AEY31: 0 | AEZ31: 0 | AFA31: 0 | AFB31: 0 | AFC31: 0 | AFD31: 0 | AFE31: 0 | AFF31: 0 | AFG31: 0 | AFH31: 0 | AFI31: 0
A32: CR1562 | B32: 18 | C32: ='LAC103'!D32 -> CR | D32: ='LAC103'!E32 -> 15 | E32: ='LAC103'!F32 -> 62 | BB32: 30000 | BR32: 5000 | IY32: =LAC102_S_CSS!FK32+LAC102_S_PEI!DQ32 -> 0 | IZ32: =LAC102_S_CSS!FL32+LAC102_S_PEI!DR32 -> 0 | JA32: =LAC102_S_CSS!FM32+LAC102_S_PEI!DS32 -> 26000 | JB32: =LAC102_S_CSS!FN32+LAC102_S_PEI!DT32 -> 0 | JC32: =LAC102_S_CSS!FO32+LAC102_S_PEI!DU32 -> 0 | JD32: =LAC102_S_CSS!FP32+LAC102_S_PEI!DV32 -> 0 | JE32: =LAC102_S_CSS!FQ32+LAC102_S_PEI!DW32 -> 0 | JF32: =LAC102_S_CSS!FR32+LAC102_S_PEI!DX32 -> 0 | JG32: =LAC102_S_CSS!FS32+LAC102_S_PEI!DY32 -> 0 | JH32: =LAC102_S_CSS!FT32+LAC102_S_PEI!DZ32 -> 10000 | JI32: =LAC102_S_CSS!FU32+LAC102_S_PEI!EA32 -> 0 | JJ32: =LAC102_S_CSS!FV32+LAC102_S_PEI!EB32 -> 0 | JK32: =LAC102_S_CSS!FW32+LAC102_S_PEI!EC32 -> 0 | JL32: =LAC102_S_CSS!FX32+LAC102_S_PEI!ED32 -> 0 | JM32: =LAC102_S_CSS!FY32+LAC102_S_PEI!EE32 -> 0 | JN32: =LAC102_S_CSS!FZ32+LAC102_S_PEI!EF32 -> 0 | JO32: =LAC102_S_CSS!GA32+LAC102_S_PEI!EG32 -> 18000 | JP32: =LAC102_S_CSS!GB32+LAC102_S_PEI!EH32 -> 0 | JQ32: =LAC102_S_CSS!GC32+LAC102_S_PEI!EI32 -> 0 | JR32: =LAC102_S_CSS!GD32+LAC102_S_PEI!EJ32 -> 0 | JS32: =LAC102_S_CSS!GE32+LAC102_S_PEI!EK32 -> 0 | JT32: =LAC102_S_CSS!GF32+LAC102_S_PEI!EL32 -> 0 | JU32: =LAC102_S_CSS!GG32+LAC102_S_PEI!EM32 -> 0 | ABV32: 0 | ABW32: 0 | ABX32: 56000 | ABY32: 0 | ABZ32: 0 | ACA32: 0 | ACB32: 0 | ACC32: 0 | ACD32: 0 | ACE32: 10000 | ACF32: 0 | ACG32: 0 | ACH32: 0 | ACI32: 0 | ACJ32: 0 | ACK32: 0 | ACL32: 18000 | ACM32: 0 | ACN32: =IF(ADK32-AEH32=0,ADK32,"ERROR") -> 5000 | ACO32: 0 | ACP32: 0 | ACQ32: 0 | ACR32: 0 | ACS32: 0 | ACT32: 0 | ACU32: 56000 | ACV32: 0 | ACW32: 0 | ACX32: 0 | ACY32: 0 | ACZ32: 0 | ADA32: 0 | ADB32: 10000 | ADC32: 0 | ADD32: 0 | ADE32: 0 | ADF32: 0 | ADG32: 0 | ADH32: 0 | ADI32: 18000 | ADJ32: 0 | ADK32: 5000 | ADL32: 0 | ADM32: 0 | ADN32: 0 | ADO32: 0 | ADP32: =MH1901_Schedule_B!G37+MH1901_Schedule_B!F37 -> 0 | ADQ32: =MH1901_Schedule_B!I37+MH1901_Schedule_B!J37 -> 0 | ADR32: =MH1901_Schedule_B!L37+MH1901_Schedule_B!M37 -> 56000 | ADS32: =MH1901_Schedule_B!O37 -> 0 | ADT32: =MH1901_Schedule_B!Q37 -> 0 | ADU32: =MH1901_Schedule_B!S37 -> 0 | ADV32: =MH1901_Schedule_B!U37 -> 0 | ADW32: =MH1901_Schedule_B!W37 -> 0 | ADX32: =MH1901_Schedule_B!Y37 -> 0 | ADY32: =MH1901_Schedule_B!AA37 -> 10000 | ADZ32: =MH1901_Schedule_B!AC37+MH1901_Schedule_B!AI37 -> 0 | AEA32: =MH1901_Schedule_B!AE37+MH1901_Schedule_B!AK37 -> 0 | AEB32: =MH1901_Schedule_B!AG37+MH1901_Schedule_B!AM37 -> 0 | AEC32: =MH1901_Schedule_B!AO37 -> 0 | AED32: =MH1901_Schedule_B!AQ37 -> 0 | AEE32: =MH1901_Schedule_B!AS37 -> 0 | AEF32: =MH1901_Schedule_B!AU37 -> 18000 | AEG32: =MH1901_Schedule_B!BE37 -> 0 | AEH32: =MH1901_Schedule_B!BG37 -> 5000 | AEI32: =MH1901_Schedule_B!AW37 -> 0 | AEJ32: =MH1901_Schedule_B!AY37 -> 0 | AEK32: =MH1901_Schedule_B!BA37 -> 0 | AEL32: =MH1901_Schedule_B!BC37 -> 0 | AEM32: 0 | AEN32: 0 | AEO32: 0 | AEP32: 0 | AEQ32: 0 | AER32: 0 | AES32: 0 | AET32: 0 | AEU32: 0 | AEV32: 0 | AEW32: 0 | AEX32: 0 | AEY32: 0 | AEZ32: 0 | AFA32: 0 | AFB32: 0 | AFC32: 0 | AFD32: 0 | AFE32: 0 | AFF32: 0 | AFG32: 0 | AFH32: 0 | AFI32: 0
A33: CR1577 | B33: 19 | C33: ='LAC103'!D33 -> CR | D33: ='LAC103'!E33 -> 15 | E33: ='LAC103'!F33 -> 77 | AZ33: 9235 | BA33: 4000 | IY33: =LAC102_S_CSS!FK33+LAC102_S_PEI!DQ33 -> 17469 | IZ33: =LAC102_S_CSS!FL33+LAC102_S_PEI!DR33 -> 10000 | JA33: =LAC102_S_CSS!FM33+LAC102_S_PEI!DS33 -> 0 | JB33: =LAC102_S_CSS!FN33+LAC102_S_PEI!DT33 -> 0 | JC33: =LAC102_S_CSS!FO33+LAC102_S_PEI!DU33 -> 0 | JD33: =LAC102_S_CSS!FP33+LAC102_S_PEI!DV33 -> 0 | JE33: =LAC102_S_CSS!FQ33+LAC102_S_PEI!DW33 -> 0 | JF33: =LAC102_S_CSS!FR33+LAC102_S_PEI!DX33 -> 0 | JG33: =LAC102_S_CSS!FS33+LAC102_S_PEI!DY33 -> 0 | JH33: =LAC102_S_CSS!FT33+LAC102_S_PEI!DZ33 -> 0 | JI33: =LAC102_S_CSS!FU33+LAC102_S_PEI!EA33 -> 0 | JJ33: =LAC102_S_CSS!FV33+LAC102_S_PEI!EB33 -> 0 | JK33: =LAC102_S_CSS!FW33+LAC102_S_PEI!EC33 -> 0 | JL33: =LAC102_S_CSS!FX33+LAC102_S_PEI!ED33 -> 0 | JM33: =LAC102_S_CSS!FY33+LAC102_S_PEI!EE33 -> 0 | JN33: =LAC102_S_CSS!FZ33+LAC102_S_PEI!EF33 -> 0 | JO33: =LAC102_S_CSS!GA33+LAC102_S_PEI!EG33 -> 0 | JP33: =LAC102_S_CSS!GB33+LAC102_S_PEI!EH33 -> 0 | JQ33: =LAC102_S_CSS!GC33+LAC102_S_PEI!EI33 -> 0 | JR33: =LAC102_S_CSS!GD33+LAC102_S_PEI!EJ33 -> 0 | JS33: =LAC102_S_CSS!GE33+LAC102_S_PEI!EK33 -> 0 | JT33: =LAC102_S_CSS!GF33+LAC102_S_PEI!EL33 -> 0 | JU33: =LAC102_S_CSS!GG33+LAC102_S_PEI!EM33 -> 0 | ABV33: 26704 | ABW33: 14000 | ABX33: 0 | ABY33: 0 | ABZ33: 0 | ACA33: 0 | ACB33: 0 | ACC33: 0 | ACD33: 0 | ACE33: 0 | ACF33: 0 | ACG33: 0 | ACH33: 0 | ACI33: 0 | ACJ33: 0 | ACK33: 0 | ACL33: 0 | ACM33: 0 | ACN33: =IF(ADK33-AEH33=0,ADK33,"ERROR") -> 0 | ACO33: 0 | ACP33: 0 | ACQ33: 0 | ACR33: 0 | ACS33: 26704 | ACT33: 14000 | ACU33: 0 | ACV33: 0 | ACW33: 0 | ACX33: 0 | ACY33: 0 | ACZ33: 0 | ADA33: 0 | ADB33: 0 | ADC33: 0 | ADD33: 0 | ADE33: 0 | ADF33: 0 | ADG33: 0 | ADH33: 0 | ADI33: 0 | ADJ33: 0 | ADK33: 0 | ADL33: 0 | ADM33: 0 | ADN33: 0 | ADO33: 0 | ADP33: =MH1901_Schedule_B!G38+MH1901_Schedule_B!F38 -> 26704 | ADQ33: =MH1901_Schedule_B!I38+MH1901_Schedule_B!J38 -> 14000 | ADR33: =MH1901_Schedule_B!L38+MH1901_Schedule_B!M38 -> 0 | ADS33: =MH1901_Schedule_B!O38 -> 0 | ADT33: =MH1901_Schedule_B!Q38 -> 0 | ADU33: =MH1901_Schedule_B!S38 -> 0 | ADV33: =MH1901_Schedule_B!U38 -> 0 | ADW33: =MH1901_Schedule_B!W38 -> 0 | ADX33: =MH1901_Schedule_B!Y38 -> 0 | ADY33: =MH1901_Schedule_B!AA38 -> 0 | ADZ33: =MH1901_Schedule_B!AC38+MH1901_Schedule_B!AI38 -> 0 | AEA33: =MH1901_Schedule_B!AE38+MH1901_Schedule_B!AK38 -> 0 | AEB33: =MH1901_Schedule_B!AG38+MH1901_Schedule_B!AM38 -> 0 | AEC33: =MH1901_Schedule_B!AO38 -> 0 | AED33: =MH1901_Schedule_B!AQ38 -> 0 | AEE33: =MH1901_Schedule_B!AS38 -> 0 | AEF33: =MH1901_Schedule_B!AU38 -> 0 | AEG33: =MH1901_Schedule_B!BE38 -> 0 | AEH33: =MH1901_Schedule_B!BG38 -> 0 | AEI33: =MH1901_Schedule_B!AW38 -> 0 | AEJ33: =MH1901_Schedule_B!AY38 -> 0 | AEK33: =MH1901_Schedule_B!BA38 -> 0 | AEL33: =MH1901_Schedule_B!BC38 -> 0 | AEM33: 0 | AEN33: 0 | AEO33: 0 | AEP33: 0 | AEQ33: 0 | AER33: 0 | AES33: 0 | AET33: 0 | AEU33: 0 | AEV33: 0 | AEW33: 0 | AEX33: 0 | AEY33: 0 | AEZ33: 0 | AFA33: 0 | AFB33: 0 | AFC33: 0 | AFD33: 0 | AFE33: 0 | AFF33: 0 | AFG33: 0 | AFH33: 0 | AFI33: 0
A34: CR1577 | B34: 20 | C34: ='LAC103'!D34 -> CR | D34: ='LAC103'!E34 -> 15 | E34: ='LAC103'!F34 -> 77 | BB34: 2000 | IY34: =LAC102_S_CSS!FK34+LAC102_S_PEI!DQ34 -> 0 | IZ34: =LAC102_S_CSS!FL34+LAC102_S_PEI!DR34 -> 0 | JA34: =LAC102_S_CSS!FM34+LAC102_S_PEI!DS34 -> 3000 | JB34: =LAC102_S_CSS!FN34+LAC102_S_PEI!DT34 -> 0 | JC34: =LAC102_S_CSS!FO34+LAC102_S_PEI!DU34 -> 0 | JD34: =LAC102_S_CSS!FP34+LAC102_S_PEI!DV34 -> 0 | JE34: =LAC102_S_CSS!FQ34+LAC102_S_PEI!DW34 -> 0 | JF34: =LAC102_S_CSS!FR34+LAC102_S_PEI!DX34 -> 0 | JG34: =LAC102_S_CSS!FS34+LAC102_S_PEI!DY34 -> 0 | JH34: =LAC102_S_CSS!FT34+LAC102_S_PEI!DZ34 -> 0 | JI34: =LAC102_S_CSS!FU34+LAC102_S_PEI!EA34 -> 0 | JJ34: =LAC102_S_CSS!FV34+LAC102_S_PEI!EB34 -> 0 | JK34: =LAC102_S_CSS!FW34+LAC102_S_PEI!EC34 -> 0 | JL34: =LAC102_S_CSS!FX34+LAC102_S_PEI!ED34 -> 0 | JM34: =LAC102_S_CSS!FY34+LAC102_S_PEI!EE34 -> 0 | JN34: =LAC102_S_CSS!FZ34+LAC102_S_PEI!EF34 -> 0 | JO34: =LAC102_S_CSS!GA34+LAC102_S_PEI!EG34 -> 0 | JP34: =LAC102_S_CSS!GB34+LAC102_S_PEI!EH34 -> 0 | JQ34: =LAC102_S_CSS!GC34+LAC102_S_PEI!EI34 -> 0 | JR34: =LAC102_S_CSS!GD34+LAC102_S_PEI!EJ34 -> 0 | JS34: =LAC102_S_CSS!GE34+LAC102_S_PEI!EK34 -> 0 | JT34: =LAC102_S_CSS!GF34+LAC102_S_PEI!EL34 -> 0 | JU34: =LAC102_S_CSS!GG34+LAC102_S_PEI!EM34 -> 0 | ABV34: 0 | ABW34: 0 | ABX34: 5000 | ABY34: 0 | ABZ34: 0 | ACA34: 0 | ACB34: 0 | ACC34: 0 | ACD34: 0 | ACE34: 0 | ACF34: 0 | ACG34: 0 | ACH34: 0 | ACI34: 0 | ACJ34: 0 | ACK34: 0 | ACL34: 0 | ACM34: 0 | ACN34: 0 | ACO34: 0 | ACP34: 0 | ACQ34: 0 | ACR34: 0 | ACS34: 0 | ACT34: 0 | ACU34: 5000 | ACV34: 0 | ACW34: 0 | ACX34: 0 | ACY34: 0 | ACZ34: 0 | ADA34: 0 | ADB34: 0 | ADC34: 0 | ADD34: 0 | ADE34: 0 | ADF34: 0 | ADG34: 0 | ADH34: 0 | ADI34: 0 | ADJ34: 0 | ADK34: 0 | ADL34: 0 | ADM34: 0 | ADN34: 0 | ADO34: 0 | ADP34: =MH1901_Schedule_B!G39+MH1901_Schedule_B!F39 -> 0 | ADQ34: =MH1901_Schedule_B!I39+MH1901_Schedule_B!J39 -> 0 | ADR34: =MH1901_Schedule_B!L39+MH1901_Schedule_B!M39 -> 5000 | ADS34: =MH1901_Schedule_B!O39 -> 0 | ADT34: =MH1901_Schedule_B!Q39 -> 0 | ADU34: =MH1901_Schedule_B!S39 -> 0 | ADV34: =MH1901_Schedule_B!U39 -> 0 | ADW34: =MH1901_Schedule_B!W39 -> 0 | ADX34: =MH1901_Schedule_B!Y39 -> 0 | ADY34: =MH1901_Schedule_B!AA39 -> 0 | ADZ34: =MH1901_Schedule_B!AC39+MH1901_Schedule_B!AI39 -> 0 | AEA34: =MH1901_Schedule_B!AE39+MH1901_Schedule_B!AK39 -> 0 | AEB34: =MH1901_Schedule_B!AG39+MH1901_Schedule_B!AM39 -> 0 | AEC34: =MH1901_Schedule_B!AO39 -> 0 | AED34: =MH1901_Schedule_B!AQ39 -> 0 | AEE34: =MH1901_Schedule_B!AS39 -> 0 | AEF34: =MH1901_Schedule_B!AU39 -> 0 | AEG34: =MH1901_Schedule_B!BE39 -> 0 | AEH34: =MH1901_Schedule_B!BG39 -> 0 | AEI34: =MH1901_Schedule_B!AW39 -> 0 | AEJ34: =MH1901_Schedule_B!AY39 -> 0 | AEK34: =MH1901_Schedule_B!BA39 -> 0 | AEL34: =MH1901_Schedule_B!BC39 -> 0 | AEM34: 0 | AEN34: 0 | AEO34: 0 | AEP34: 0 | AEQ34: 0 | AER34: 0 | AES34: 0 | AET34: 0 | AEU34: 0 | AEV34: 0 | AEW34: 0 | AEX34: 0 | AEY34: 0 | AEZ34: 0 | AFA34: 0 | AFB34: 0 | AFC34: 0 | AFD34: 0 | AFE34: 0 | AFF34: 0 | AFG34: 0 | AFH34: 0 | AFI34: 0
A35: CR4510 | B35: 21 | C35: ='LAC103'!D35 -> CR | D35: ='LAC103'!E35 -> 45 | E35: ='LAC103'!F35 -> 10 | BR35: 127 | IY35: =LAC102_S_CSS!FK35+LAC102_S_PEI!DQ35 -> 0 | IZ35: =LAC102_S_CSS!FL35+LAC102_S_PEI!DR35 -> 0 | JA35: =LAC102_S_CSS!FM35+LAC102_S_PEI!DS35 -> 0 | JB35: =LAC102_S_CSS!FN35+LAC102_S_PEI!DT35 -> 0 | JC35: =LAC102_S_CSS!FO35+LAC102_S_PEI!DU35 -> 0 | JD35: =LAC102_S_CSS!FP35+LAC102_S_PEI!DV35 -> 0 | JE35: =LAC102_S_CSS!FQ35+LAC102_S_PEI!DW35 -> 0 | JF35: =LAC102_S_CSS!FR35+LAC102_S_PEI!DX35 -> 0 | JG35: =LAC102_S_CSS!FS35+LAC102_S_PEI!DY35 -> 0 | JH35: =LAC102_S_CSS!FT35+LAC102_S_PEI!DZ35 -> 0 | JI35: =LAC102_S_CSS!FU35+LAC102_S_PEI!EA35 -> 0 | JJ35: =LAC102_S_CSS!FV35+LAC102_S_PEI!EB35 -> 0 | JK35: =LAC102_S_CSS!FW35+LAC102_S_PEI!EC35 -> 0 | JL35: =LAC102_S_CSS!FX35+LAC102_S_PEI!ED35 -> 0 | JM35: =LAC102_S_CSS!FY35+LAC102_S_PEI!EE35 -> 0 | JN35: =LAC102_S_CSS!FZ35+LAC102_S_PEI!EF35 -> 0 | JO35: =LAC102_S_CSS!GA35+LAC102_S_PEI!EG35 -> 0 | JP35: =LAC102_S_CSS!GB35+LAC102_S_PEI!EH35 -> 0 | JQ35: =LAC102_S_CSS!GC35+LAC102_S_PEI!EI35 -> 0 | JR35: =LAC102_S_CSS!GD35+LAC102_S_PEI!EJ35 -> 0 | JS35: =LAC102_S_CSS!GE35+LAC102_S_PEI!EK35 -> 0 | JT35: =LAC102_S_CSS!GF35+LAC102_S_PEI!EL35 -> 0 | JU35: =LAC102_S_CSS!GG35+LAC102_S_PEI!EM35 -> 0 | ABV35: 0 | ABW35: 0 | ABX35: 0 | ABY35: 0 | ABZ35: 0 | ACA35: 0 | ACB35: 0 | ACC35: 0 | ACD35: 0 | ACE35: 0 | ACF35: 0 | ACG35: 0 | ACH35: 0 | ACI35: 0 | ACJ35: 0 | ACK35: 0 | ACL35: 0 | ACM35: 0 | ACN35: 127 | ACO35: 0 | ACP35: 0 | ACQ35: 0 | ACR35: 0 | ACS35: 0 | ACT35: 0 | ACU35: 0 | ACV35: 0 | ACW35: 0 | ACX35: 0 | ACY35: 0 | ACZ35: 0 | ADA35: 0 | ADB35: 0 | ADC35: 0 | ADD35: 0 | ADE35: 0 | ADF35: 0 | ADG35: 0 | ADH35: 0 | ADI35: 0 | ADJ35: 0 | ADK35: 127 | ADL35: 0 | ADM35: 0 | ADN35: 0 | ADO35: 0 | ADP35: =MH1901_Schedule_B!G40+MH1901_Schedule_B!F40 -> 0 | ADQ35: =MH1901_Schedule_B!I40+MH1901_Schedule_B!J40 -> 0 | ADR35: =MH1901_Schedule_B!L40+MH1901_Schedule_B!M40 -> 0 | ADS35: =MH1901_Schedule_B!O40 -> 0 | ADT35: =MH1901_Schedule_B!Q40 -> 0 | ADU35: =MH1901_Schedule_B!S40 -> 0 | ADV35: =MH1901_Schedule_B!U40 -> 0 | ADW35: =MH1901_Schedule_B!W40 -> 0 | ADX35: =MH1901_Schedule_B!Y40 -> 0 | ADY35: =MH1901_Schedule_B!AA40 -> 0 | ADZ35: =MH1901_Schedule_B!AC40+MH1901_Schedule_B!AI40 -> 0 | AEA35: =MH1901_Schedule_B!AE40+MH1901_Schedule_B!AK40 -> 0 | AEB35: =MH1901_Schedule_B!AG40+MH1901_Schedule_B!AM40 -> 0 | AEC35: =MH1901_Schedule_B!AO40 -> 0 | AED35: =MH1901_Schedule_B!AQ40 -> 0 | AEE35: =MH1901_Schedule_B!AS40 -> 0 | AEF35: =MH1901_Schedule_B!AU40 -> 0 | AEG35: =MH1901_Schedule_B!BE40 -> 0 | AEH35: =MH1901_Schedule_B!BG40 -> 127 | AEI35: =MH1901_Schedule_B!AW40 -> 0 | AEJ35: =MH1901_Schedule_B!AY40 -> 0 | AEK35: =MH1901_Schedule_B!BA40 -> 0 | AEL35: =MH1901_Schedule_B!BC40 -> 0 | AEM35: 0 | AEN35: 0 | AEO35: 0 | AEP35: 0 | AEQ35: 0 | AER35: 0 | AES35: 0 | AET35: 0 | AEU35: 0 | AEV35: 0 | AEW35: 0 | AEX35: 0 | AEY35: 0 | AEZ35: 0 | AFA35: 0 | AFB35: 0 | AFC35: 0 | AFD35: 0 | AFE35: 0 | AFF35: 0 | AFG35: 0 | AFH35: 0 | AFI35: 0
A36: CR4510 | B36: 22 | C36: ='LAC103'!D36 -> CR | D36: ='LAC103'!E36 -> 45 | E36: ='LAC103'!F36 -> 10 | BR36: 50 | IY36: =LAC102_S_CSS!FK36+LAC102_S_PEI!DQ36 -> 0 | IZ36: =LAC102_S_CSS!FL36+LAC102_S_PEI!DR36 -> 0 | JA36: =LAC102_S_CSS!FM36+LAC102_S_PEI!DS36 -> 0 | JB36: =LAC102_S_CSS!FN36+LAC102_S_PEI!DT36 -> 0 | JC36: =LAC102_S_CSS!FO36+LAC102_S_PEI!DU36 -> 0 | JD36: =LAC102_S_CSS!FP36+LAC102_S_PEI!DV36 -> 0 | JE36: =LAC102_S_CSS!FQ36+LAC102_S_PEI!DW36 -> 0 | JF36: =LAC102_S_CSS!FR36+LAC102_S_PEI!DX36 -> 0 | JG36: =LAC102_S_CSS!FS36+LAC102_S_PEI!DY36 -> 0 | JH36: =LAC102_S_CSS!FT36+LAC102_S_PEI!DZ36 -> 0 | JI36: =LAC102_S_CSS!FU36+LAC102_S_PEI!EA36 -> 0 | JJ36: =LAC102_S_CSS!FV36+LAC102_S_PEI!EB36 -> 0 | JK36: =LAC102_S_CSS!FW36+LAC102_S_PEI!EC36 -> 0 | JL36: =LAC102_S_CSS!FX36+LAC102_S_PEI!ED36 -> 0 | JM36: =LAC102_S_CSS!FY36+LAC102_S_PEI!EE36 -> 0 | JN36: =LAC102_S_CSS!FZ36+LAC102_S_PEI!EF36 -> 0 | JO36: =LAC102_S_CSS!GA36+LAC102_S_PEI!EG36 -> 0 | JP36: =LAC102_S_CSS!GB36+LAC102_S_PEI!EH36 -> 0 | JQ36: =LAC102_S_CSS!GC36+LAC102_S_PEI!EI36 -> 0 | JR36: =LAC102_S_CSS!GD36+LAC102_S_PEI!EJ36 -> 0 | JS36: =LAC102_S_CSS!GE36+LAC102_S_PEI!EK36 -> 0 | JT36: =LAC102_S_CSS!GF36+LAC102_S_PEI!EL36 -> 0 | JU36: =LAC102_S_CSS!GG36+LAC102_S_PEI!EM36 -> 0 | ABV36: 0 | ABW36: 0 | ABX36: 0 | ABY36: 0 | ABZ36: 0 | ACA36: 0 | ACB36: 0 | ACC36: 0 | ACD36: 0 | ACE36: 0 | ACF36: 0 | ACG36: 0 | ACH36: 0 | ACI36: 0 | ACJ36: 0 | ACK36: 0 | ACL36: 0 | ACM36: 0 | ACN36: =IF(ADK36-AEH36=0,ADK36,"ERROR") -> 50 | ACO36: 0 | ACP36: 0 | ACQ36: 0 | ACR36: 0 | ACS36: 0 | ACT36: 0 | ACU36: 0 | ACV36: 0 | ACW36: 0 | ACX36: 0 | ACY36: 0 | ACZ36: 0 | ADA36: 0 | ADB36: 0 | ADC36: 0 | ADD36: 0 | ADE36: 0 | ADF36: 0 | ADG36: 0 | ADH36: 0 | ADI36: 0 | ADJ36: 0 | ADK36: 50 | ADL36: 0 | ADM36: 0 | ADN36: 0 | ADO36: 0 | ADP36: =MH1901_Schedule_B!G41+MH1901_Schedule_B!F41 -> 0 | ADQ36: =MH1901_Schedule_B!I41+MH1901_Schedule_B!J41 -> 0 | ADR36: =MH1901_Schedule_B!L41+MH1901_Schedule_B!M41 -> 0 | ADS36: =MH1901_Schedule_B!O41 -> 0 | ADT36: =MH1901_Schedule_B!Q41 -> 0 | ADU36: =MH1901_Schedule_B!S41 -> 0 | ADV36: =MH1901_Schedule_B!U41 -> 0 | ADW36: =MH1901_Schedule_B!W41 -> 0 | ADX36: =MH1901_Schedule_B!Y41 -> 0 | ADY36: =MH1901_Schedule_B!AA41 -> 0 | ADZ36: =MH1901_Schedule_B!AC41+MH1901_Schedule_B!AI41 -> 0 | AEA36: =MH1901_Schedule_B!AE41+MH1901_Schedule_B!AK41 -> 0 | AEB36: =MH1901_Schedule_B!AG41+MH1901_Schedule_B!AM41 -> 0 | AEC36: =MH1901_Schedule_B!AO41 -> 0 | AED36: =MH1901_Schedule_B!AQ41 -> 0 | AEE36: =MH1901_Schedule_B!AS41 -> 0 | AEF36: =MH1901_Schedule_B!AU41 -> 0 | AEG36: =MH1901_Schedule_B!BE41 -> 0 | AEH36: =MH1901_Schedule_B!BG41 -> 50 | AEI36: =MH1901_Schedule_B!AW41 -> 0 | AEJ36: =MH1901_Schedule_B!AY41 -> 0 | AEK36: =MH1901_Schedule_B!BA41 -> 0 | AEL36: =MH1901_Schedule_B!BC41 -> 0 | AEM36: 0 | AEN36: 0 | AEO36: 0 | AEP36: 0 | AEQ36: 0 | AER36: 0 | AES36: 0 | AET36: 0 | AEU36: 0 | AEV36: 0 | AEW36: 0 | AEX36: 0 | AEY36: 0 | AEZ36: 0 | AFA36: 0 | AFB36: 0 | AFC36: 0 | AFD36: 0 | AFE36: 0 | AFF36: 0 | AFG36: 0 | AFH36: 0 | AFI36: 0
A37: CR4520 | B37: 23 | C37: ='LAC103'!D37 -> CR | D37: ='LAC103'!E37 -> 45 | E37: ='LAC103'!F37 -> 20 | BR37: 38 | IY37: =LAC102_S_CSS!FK37+LAC102_S_PEI!DQ37 -> 0 | IZ37: =LAC102_S_CSS!FL37+LAC102_S_PEI!DR37 -> 0 | JA37: =LAC102_S_CSS!FM37+LAC102_S_PEI!DS37 -> 0 | JB37: =LAC102_S_CSS!FN37+LAC102_S_PEI!DT37 -> 0 | JC37: =LAC102_S_CSS!FO37+LAC102_S_PEI!DU37 -> 0 | JD37: =LAC102_S_CSS!FP37+LAC102_S_PEI!DV37 -> 0 | JE37: =LAC102_S_CSS!FQ37+LAC102_S_PEI!DW37 -> 0 | JF37: =LAC102_S_CSS!FR37+LAC102_S_PEI!DX37 -> 0 | JG37: =LAC102_S_CSS!FS37+LAC102_S_PEI!DY37 -> 0 | JH37: =LAC102_S_CSS!FT37+LAC102_S_PEI!DZ37 -> 0 | JI37: =LAC102_S_CSS!FU37+LAC102_S_PEI!EA37 -> 0 | JJ37: =LAC102_S_CSS!FV37+LAC102_S_PEI!EB37 -> 0 | JK37: =LAC102_S_CSS!FW37+LAC102_S_PEI!EC37 -> 0 | JL37: =LAC102_S_CSS!FX37+LAC102_S_PEI!ED37 -> 0 | JM37: =LAC102_S_CSS!FY37+LAC102_S_PEI!EE37 -> 0 | JN37: =LAC102_S_CSS!FZ37+LAC102_S_PEI!EF37 -> 0 | JO37: =LAC102_S_CSS!GA37+LAC102_S_PEI!EG37 -> 0 | JP37: =LAC102_S_CSS!GB37+LAC102_S_PEI!EH37 -> 0 | JQ37: =LAC102_S_CSS!GC37+LAC102_S_PEI!EI37 -> 0 | JR37: =LAC102_S_CSS!GD37+LAC102_S_PEI!EJ37 -> 0 | JS37: =LAC102_S_CSS!GE37+LAC102_S_PEI!EK37 -> 0 | JT37: =LAC102_S_CSS!GF37+LAC102_S_PEI!EL37 -> 0 | JU37: =LAC102_S_CSS!GG37+LAC102_S_PEI!EM37 -> 0 | ABV37: 0 | ABW37: 0 | ABX37: 0 | ABY37: 0 | ABZ37: 0 | ACA37: 0 | ACB37: 0 | ACC37: 0 | ACD37: 0 | ACE37: 0 | ACF37: 0 | ACG37: 0 | ACH37: 0 | ACI37: 0 | ACJ37: 0 | ACK37: 0 | ACL37: 0 | ACM37: 0 | ACN37: 38 | ACO37: 0 | ACP37: 0 | ACQ37: 0 | ACR37: 0 | ACS37: 0 | ACT37: 0 | ACU37: 0 | ACV37: 0 | ACW37: 0 | ACX37: 0 | ACY37: 0 | ACZ37: 0 | ADA37: 0 | ADB37: 0 | ADC37: 0 | ADD37: 0 | ADE37: 0 | ADF37: 0 | ADG37: 0 | ADH37: 0 | ADI37: 0 | ADJ37: 0 | ADK37: 38 | ADL37: 0 | ADM37: 0 | ADN37: 0 | ADO37: 0 | ADP37: =MH1901_Schedule_B!G42+MH1901_Schedule_B!F42 -> 0 | ADQ37: =MH1901_Schedule_B!I42+MH1901_Schedule_B!J42 -> 0 | ADR37: =MH1901_Schedule_B!L42+MH1901_Schedule_B!M42 -> 0 | ADS37: =MH1901_Schedule_B!O42 -> 0 | ADT37: =MH1901_Schedule_B!Q42 -> 0 | ADU37: =MH1901_Schedule_B!S42 -> 0 | ADV37: =MH1901_Schedule_B!U42 -> 0 | ADW37: =MH1901_Schedule_B!W42 -> 0 | ADX37: =MH1901_Schedule_B!Y42 -> 0 | ADY37: =MH1901_Schedule_B!AA42 -> 0 | ADZ37: =MH1901_Schedule_B!AC42+MH1901_Schedule_B!AI42 -> 0 | AEA37: =MH1901_Schedule_B!AE42+MH1901_Schedule_B!AK42 -> 0 | AEB37: =MH1901_Schedule_B!AG42+MH1901_Schedule_B!AM42 -> 0 | AEC37: =MH1901_Schedule_B!AO42 -> 0 | AED37: =MH1901_Schedule_B!AQ42 -> 0 | AEE37: =MH1901_Schedule_B!AS42 -> 0 | AEF37: =MH1901_Schedule_B!AU42 -> 0 | AEG37: =MH1901_Schedule_B!BE42 -> 0 | AEH37: =MH1901_Schedule_B!BG42 -> 38 | AEI37: =MH1901_Schedule_B!AW42 -> 0 | AEJ37: =MH1901_Schedule_B!AY42 -> 0 | AEK37: =MH1901_Schedule_B!BA42 -> 0 | AEL37: =MH1901_Schedule_B!BC42 -> 0 | AEM37: 0 | AEN37: 0 | AEO37: 0 | AEP37: 0 | AEQ37: 0 | AER37: 0 | AES37: 0 | AET37: 0 | AEU37: 0 | AEV37: 0 | AEW37: 0 | AEX37: 0 | AEY37: 0 | AEZ37: 0 | AFA37: 0 | AFB37: 0 | AFC37: 0 | AFD37: 0 | AFE37: 0 | AFF37: 0 | AFG37: 0 | AFH37: 0 | AFI37: 0
A38: CR4520 | B38: 24 | C38: ='LAC103'!D38 -> CR | D38: ='LAC103'!E38 -> 45 | E38: ='LAC103'!F38 -> 20 | BR38: 10 | IY38: =LAC102_S_CSS!FK38+LAC102_S_PEI!DQ38 -> 0 | IZ38: =LAC102_S_CSS!FL38+LAC102_S_PEI!DR38 -> 0 | JA38: =LAC102_S_CSS!FM38+LAC102_S_PEI!DS38 -> 0 | JB38: =LAC102_S_CSS!FN38+LAC102_S_PEI!DT38 -> 0 | JC38: =LAC102_S_CSS!FO38+LAC102_S_PEI!DU38 -> 0 | JD38: =LAC102_S_CSS!FP38+LAC102_S_PEI!DV38 -> 0 | JE38: =LAC102_S_CSS!FQ38+LAC102_S_PEI!DW38 -> 0 | JF38: =LAC102_S_CSS!FR38+LAC102_S_PEI!DX38 -> 0 | JG38: =LAC102_S_CSS!FS38+LAC102_S_PEI!DY38 -> 0 | JH38: =LAC102_S_CSS!FT38+LAC102_S_PEI!DZ38 -> 0 | JI38: =LAC102_S_CSS!FU38+LAC102_S_PEI!EA38 -> 0 | JJ38: =LAC102_S_CSS!FV38+LAC102_S_PEI!EB38 -> 0 | JK38: =LAC102_S_CSS!FW38+LAC102_S_PEI!EC38 -> 0 | JL38: =LAC102_S_CSS!FX38+LAC102_S_PEI!ED38 -> 0 | JM38: =LAC102_S_CSS!FY38+LAC102_S_PEI!EE38 -> 0 | JN38: =LAC102_S_CSS!FZ38+LAC102_S_PEI!EF38 -> 0 | JO38: =LAC102_S_CSS!GA38+LAC102_S_PEI!EG38 -> 0 | JP38: =LAC102_S_CSS!GB38+LAC102_S_PEI!EH38 -> 0 | JQ38: =LAC102_S_CSS!GC38+LAC102_S_PEI!EI38 -> 0 | JR38: =LAC102_S_CSS!GD38+LAC102_S_PEI!EJ38 -> 0 | JS38: =LAC102_S_CSS!GE38+LAC102_S_PEI!EK38 -> 0 | JT38: =LAC102_S_CSS!GF38+LAC102_S_PEI!EL38 -> 0 | JU38: =LAC102_S_CSS!GG38+LAC102_S_PEI!EM38 -> 0 | ABV38: 0 | ABW38: 0 | ABX38: 0 | ABY38: 0 | ABZ38: 0 | ACA38: 0 | ACB38: 0 | ACC38: 0 | ACD38: 0 | ACE38: 0 | ACF38: 0 | ACG38: 0 | ACH38: 0 | ACI38: 0 | ACJ38: 0 | ACK38: 0 | ACL38: 0 | ACM38: 0 | ACN38: 10 | ACO38: 0 | ACP38: 0 | ACQ38: 0 | ACR38: 0 | ACS38: 0 | ACT38: 0 | ACU38: 0 | ACV38: 0 | ACW38: 0 | ACX38: 0 | ACY38: 0 | ACZ38: 0 | ADA38: 0 | ADB38: 0 | ADC38: 0 | ADD38: 0 | ADE38: 0 | ADF38: 0 | ADG38: 0 | ADH38: 0 | ADI38: 0 | ADJ38: 0 | ADK38: 10 | ADL38: 0 | ADM38: 0 | ADN38: 0 | ADO38: 0 | ADP38: =MH1901_Schedule_B!G43+MH1901_Schedule_B!F43 -> 0 | ADQ38: =MH1901_Schedule_B!I43+MH1901_Schedule_B!J43 -> 0 | ADR38: =MH1901_Schedule_B!L43+MH1901_Schedule_B!M43 -> 0 | ADS38: =MH1901_Schedule_B!O43 -> 0 | ADT38: =MH1901_Schedule_B!Q43 -> 0 | ADU38: =MH1901_Schedule_B!S43 -> 0 | ADV38: =MH1901_Schedule_B!U43 -> 0 | ADW38: =MH1901_Schedule_B!W43 -> 0 | ADX38: =MH1901_Schedule_B!Y43 -> 0 | ADY38: =MH1901_Schedule_B!AA43 -> 0 | ADZ38: =MH1901_Schedule_B!AC43+MH1901_Schedule_B!AI43 -> 0 | AEA38: =MH1901_Schedule_B!AE43+MH1901_Schedule_B!AK43 -> 0 | AEB38: =MH1901_Schedule_B!AG43+MH1901_Schedule_B!AM43 -> 0 | AEC38: =MH1901_Schedule_B!AO43 -> 0 | AED38: =MH1901_Schedule_B!AQ43 -> 0 | AEE38: =MH1901_Schedule_B!AS43 -> 0 | AEF38: =MH1901_Schedule_B!AU43 -> 0 | AEG38: =MH1901_Schedule_B!BE43 -> 0 | AEH38: =MH1901_Schedule_B!BG43 -> 10 | AEI38: =MH1901_Schedule_B!AW43 -> 0 | AEJ38: =MH1901_Schedule_B!AY43 -> 0 | AEK38: =MH1901_Schedule_B!BA43 -> 0 | AEL38: =MH1901_Schedule_B!BC43 -> 0 | AEM38: 0 | AEN38: 0 | AEO38: 0 | AEP38: 0 | AEQ38: 0 | AER38: 0 | AES38: 0 | AET38: 0 | AEU38: 0 | AEV38: 0 | AEW38: 0 | AEX38: 0 | AEY38: 0 | AEZ38: 0 | AFA38: 0 | AFB38: 0 | AFC38: 0 | AFD38: 0 | AFE38: 0 | AFF38: 0 | AFG38: 0 | AFH38: 0 | AFI38: 0
A39: CR6070 | B39: 25 | C39: ='LAC103'!D39 -> CR | D39: ='LAC103'!E39 -> 60 | E39: ='LAC103'!F39 -> 70 | IY39: =LAC102_S_CSS!FK39+LAC102_S_PEI!DQ39 -> 0 | IZ39: =LAC102_S_CSS!FL39+LAC102_S_PEI!DR39 -> 0 | JA39: =LAC102_S_CSS!FM39+LAC102_S_PEI!DS39 -> 0 | JB39: =LAC102_S_CSS!FN39+LAC102_S_PEI!DT39 -> 0 | JC39: =LAC102_S_CSS!FO39+LAC102_S_PEI!DU39 -> 0 | JD39: =LAC102_S_CSS!FP39+LAC102_S_PEI!DV39 -> 0 | JE39: =LAC102_S_CSS!FQ39+LAC102_S_PEI!DW39 -> 0 | JF39: =LAC102_S_CSS!FR39+LAC102_S_PEI!DX39 -> 0 | JG39: =LAC102_S_CSS!FS39+LAC102_S_PEI!DY39 -> 0 | JH39: =LAC102_S_CSS!FT39+LAC102_S_PEI!DZ39 -> 0 | JI39: =LAC102_S_CSS!FU39+LAC102_S_PEI!EA39 -> 0 | JJ39: =LAC102_S_CSS!FV39+LAC102_S_PEI!EB39 -> 0 | JK39: =LAC102_S_CSS!FW39+LAC102_S_PEI!EC39 -> 0 | JL39: =LAC102_S_CSS!FX39+LAC102_S_PEI!ED39 -> 0 | JM39: =LAC102_S_CSS!FY39+LAC102_S_PEI!EE39 -> 0 | JN39: =LAC102_S_CSS!FZ39+LAC102_S_PEI!EF39 -> 0 | JO39: =LAC102_S_CSS!GA39+LAC102_S_PEI!EG39 -> 0 | JP39: =LAC102_S_CSS!GB39+LAC102_S_PEI!EH39 -> 0 | JQ39: =LAC102_S_CSS!GC39+LAC102_S_PEI!EI39 -> 1 | JR39: =LAC102_S_CSS!GD39+LAC102_S_PEI!EJ39 -> 0 | JS39: =LAC102_S_CSS!GE39+LAC102_S_PEI!EK39 -> 0 | JT39: =LAC102_S_CSS!GF39+LAC102_S_PEI!EL39 -> 0 | JU39: =LAC102_S_CSS!GG39+LAC102_S_PEI!EM39 -> 0 | ABV39: 0 | ABW39: 0 | ABX39: 0 | ABY39: 0 | ABZ39: 0 | ACA39: 0 | ACB39: 0 | ACC39: 0 | ACD39: 0 | ACE39: 0 | ACF39: 0 | ACG39: 0 | ACH39: 0 | ACI39: 0 | ACJ39: 0 | ACK39: 0 | ACL39: 0 | ACM39: 0 | ACN39: 1 | ACO39: 0 | ACP39: 0 | ACQ39: 0 | ACR39: 0 | ACS39: 0 | ACT39: 0 | ACU39: 0 | ACV39: 0 | ACW39: 0 | ACX39: 0 | ACY39: 0 | ACZ39: 0 | ADA39: 0 | ADB39: 0 | ADC39: 0 | ADD39: 0 | ADE39: 0 | ADF39: 0 | ADG39: 0 | ADH39: 0 | ADI39: 0 | ADJ39: 0 | ADK39: 1 | ADL39: 0 | ADM39: 0 | ADN39: 0 | ADO39: 0 | ADP39: =MH1901_Schedule_B!G44+MH1901_Schedule_B!F44 -> 0 | ADQ39: =MH1901_Schedule_B!I44+MH1901_Schedule_B!J44 -> 0 | ADR39: =MH1901_Schedule_B!L44+MH1901_Schedule_B!M44 -> 0 | ADS39: =MH1901_Schedule_B!O44 -> 0 | ADT39: =MH1901_Schedule_B!Q44 -> 0 | ADU39: =MH1901_Schedule_B!S44 -> 0 | ADV39: =MH1901_Schedule_B!U44 -> 0 | ADW39: =MH1901_Schedule_B!W44 -> 0 | ADX39: =MH1901_Schedule_B!Y44 -> 0 | ADY39: =MH1901_Schedule_B!AA44 -> 0 | ADZ39: =MH1901_Schedule_B!AC44+MH1901_Schedule_B!AI44 -> 0 | AEA39: =MH1901_Schedule_B!AE44+MH1901_Schedule_B!AK44 -> 0 | AEB39: =MH1901_Schedule_B!AG44+MH1901_Schedule_B!AM44 -> 0 | AEC39: =MH1901_Schedule_B!AO44 -> 0 | AED39: =MH1901_Schedule_B!AQ44 -> 0 | AEE39: =MH1901_Schedule_B!AS44 -> 0 | AEF39: =MH1901_Schedule_B!AU44 -> 0 | AEG39: =MH1901_Schedule_B!BE44 -> 0 | AEH39: =MH1901_Schedule_B!BG44 -> 1 | AEI39: =MH1901_Schedule_B!AW44 -> 0 | AEJ39: =MH1901_Schedule_B!AY44 -> 0 | AEK39: =MH1901_Schedule_B!BA44 -> 0 | AEL39: =MH1901_Schedule_B!BC44 -> 0 | AEM39: 0 | AEN39: 0 | AEO39: 0 | AEP39: 0 | AEQ39: 0 | AER39: 0 | AES39: 0 | AET39: 0 | AEU39: 0 | AEV39: 0 | AEW39: 0 | AEX39: 0 | AEY39: 0 | AEZ39: 0 | AFA39: 0 | AFB39: 0 | AFC39: 0 | AFD39: 0 | AFE39: 0 | AFF39: 0 | AFG39: 0 | AFH39: 0 | AFI39: 0
A40: CR6072 | B40: 26 | C40: ='LAC103'!D40 -> CR | D40: ='LAC103'!E40 -> 60 | E40: ='LAC103'!F40 -> 72 | IY40: =LAC102_S_CSS!FK40+LAC102_S_PEI!DQ40 -> 0 | IZ40: =LAC102_S_CSS!FL40+LAC102_S_PEI!DR40 -> 0 | JA40: =LAC102_S_CSS!FM40+LAC102_S_PEI!DS40 -> 0 | JB40: =LAC102_S_CSS!FN40+LAC102_S_PEI!DT40 -> 0 | JC40: =LAC102_S_CSS!FO40+LAC102_S_PEI!DU40 -> 0 | JD40: =LAC102_S_CSS!FP40+LAC102_S_PEI!DV40 -> 0 | JE40: =LAC102_S_CSS!FQ40+LAC102_S_PEI!DW40 -> 0 | JF40: =LAC102_S_CSS!FR40+LAC102_S_PEI!DX40 -> 0 | JG40: =LAC102_S_CSS!FS40+LAC102_S_PEI!DY40 -> 0 | JH40: =LAC102_S_CSS!FT40+LAC102_S_PEI!DZ40 -> 0 | JI40: =LAC102_S_CSS!FU40+LAC102_S_PEI!EA40 -> 0 | JJ40: =LAC102_S_CSS!FV40+LAC102_S_PEI!EB40 -> 0 | JK40: =LAC102_S_CSS!FW40+LAC102_S_PEI!EC40 -> 0 | JL40: =LAC102_S_CSS!FX40+LAC102_S_PEI!ED40 -> 0 | JM40: =LAC102_S_CSS!FY40+LAC102_S_PEI!EE40 -> 0 | JN40: =LAC102_S_CSS!FZ40+LAC102_S_PEI!EF40 -> 0 | JO40: =LAC102_S_CSS!GA40+LAC102_S_PEI!EG40 -> 0 | JP40: =LAC102_S_CSS!GB40+LAC102_S_PEI!EH40 -> 0 | JQ40: =LAC102_S_CSS!GC40+LAC102_S_PEI!EI40 -> 1 | JR40: =LAC102_S_CSS!GD40+LAC102_S_PEI!EJ40 -> 0 | JS40: =LAC102_S_CSS!GE40+LAC102_S_PEI!EK40 -> 0 | JT40: =LAC102_S_CSS!GF40+LAC102_S_PEI!EL40 -> 0 | JU40: =LAC102_S_CSS!GG40+LAC102_S_PEI!EM40 -> 0 | ABV40: 0 | ABW40: 0 | ABX40: 0 | ABY40: 0 | ABZ40: 0 | ACA40: 0 | ACB40: 0 | ACC40: 0 | ACD40: 0 | ACE40: 0 | ACF40: 0 | ACG40: 0 | ACH40: 0 | ACI40: 0 | ACJ40: 0 | ACK40: 0 | ACL40: 0 | ACM40: 0 | ACN40: 1 | ACO40: 0 | ACP40: 0 | ACQ40: 0 | ACR40: 0 | ACS40: 0 | ACT40: 0 | ACU40: 0 | ACV40: 0 | ACW40: 0 | ACX40: 0 | ACY40: 0 | ACZ40: 0 | ADA40: 0 | ADB40: 0 | ADC40: 0 | ADD40: 0 | ADE40: 0 | ADF40: 0 | ADG40: 0 | ADH40: 0 | ADI40: 0 | ADJ40: 0 | ADK40: 1 | ADL40: 0 | ADM40: 0 | ADN40: 0 | ADO40: 0 | ADP40: =MH1901_Schedule_B!G45+MH1901_Schedule_B!F45 -> 0 | ADQ40: =MH1901_Schedule_B!I45+MH1901_Schedule_B!J45 -> 0 | ADR40: =MH1901_Schedule_B!L45+MH1901_Schedule_B!M45 -> 0 | ADS40: =MH1901_Schedule_B!O45 -> 0 | ADT40: =MH1901_Schedule_B!Q45 -> 0 | ADU40: =MH1901_Schedule_B!S45 -> 0 | ADV40: =MH1901_Schedule_B!U45 -> 0 | ADW40: =MH1901_Schedule_B!W45 -> 0 | ADX40: =MH1901_Schedule_B!Y45 -> 0 | ADY40: =MH1901_Schedule_B!AA45 -> 0 | ADZ40: =MH1901_Schedule_B!AC45+MH1901_Schedule_B!AI45 -> 0 | AEA40: =MH1901_Schedule_B!AE45+MH1901_Schedule_B!AK45 -> 0 | AEB40: =MH1901_Schedule_B!AG45+MH1901_Schedule_B!AM45 -> 0 | AEC40: =MH1901_Schedule_B!AO45 -> 0 | AED40: =MH1901_Schedule_B!AQ45 -> 0 | AEE40: =MH1901_Schedule_B!AS45 -> 0 | AEF40: =MH1901_Schedule_B!AU45 -> 0 | AEG40: =MH1901_Schedule_B!BE45 -> 0 | AEH40: =MH1901_Schedule_B!BG45 -> 1 | AEI40: =MH1901_Schedule_B!AW45 -> 0 | AEJ40: =MH1901_Schedule_B!AY45 -> 0 | AEK40: =MH1901_Schedule_B!BA45 -> 0 | AEL40: =MH1901_Schedule_B!BC45 -> 0 | AEM40: 0 | AEN40: 0 | AEO40: 0 | AEP40: 0 | AEQ40: 0 | AER40: 0 | AES40: 0 | AET40: 0 | AEU40: 0 | AEV40: 0 | AEW40: 0 | AEX40: 0 | AEY40: 0 | AEZ40: 0 | AFA40: 0 | AFB40: 0 | AFC40: 0 | AFD40: 0 | AFE40: 0 | AFF40: 0 | AFG40: 0 | AFH40: 0 | AFI40: 0
A41: CR6075 | B41: 27 | C41: ='LAC103'!D41 -> CR | D41: ='LAC103'!E41 -> 60 | E41: ='LAC103'!F41 -> 75 | IY41: =LAC102_S_CSS!FK41+LAC102_S_PEI!DQ41 -> 0 | IZ41: =LAC102_S_CSS!FL41+LAC102_S_PEI!DR41 -> 0 | JA41: =LAC102_S_CSS!FM41+LAC102_S_PEI!DS41 -> 0 | JB41: =LAC102_S_CSS!FN41+LAC102_S_PEI!DT41 -> 0 | JC41: =LAC102_S_CSS!FO41+LAC102_S_PEI!DU41 -> 0 | JD41: =LAC102_S_CSS!FP41+LAC102_S_PEI!DV41 -> 0 | JE41: =LAC102_S_CSS!FQ41+LAC102_S_PEI!DW41 -> 0 | JF41: =LAC102_S_CSS!FR41+LAC102_S_PEI!DX41 -> 0 | JG41: =LAC102_S_CSS!FS41+LAC102_S_PEI!DY41 -> 0 | JH41: =LAC102_S_CSS!FT41+LAC102_S_PEI!DZ41 -> 0 | JI41: =LAC102_S_CSS!FU41+LAC102_S_PEI!EA41 -> 0 | JJ41: =LAC102_S_CSS!FV41+LAC102_S_PEI!EB41 -> 0 | JK41: =LAC102_S_CSS!FW41+LAC102_S_PEI!EC41 -> 0 | JL41: =LAC102_S_CSS!FX41+LAC102_S_PEI!ED41 -> 0 | JM41: =LAC102_S_CSS!FY41+LAC102_S_PEI!EE41 -> 0 | JN41: =LAC102_S_CSS!FZ41+LAC102_S_PEI!EF41 -> 0 | JO41: =LAC102_S_CSS!GA41+LAC102_S_PEI!EG41 -> 0 | JP41: =LAC102_S_CSS!GB41+LAC102_S_PEI!EH41 -> 0 | JQ41: =LAC102_S_CSS!GC41+LAC102_S_PEI!EI41 -> 1 | JR41: =LAC102_S_CSS!GD41+LAC102_S_PEI!EJ41 -> 0 | JS41: =LAC102_S_CSS!GE41+LAC102_S_PEI!EK41 -> 0 | JT41: =LAC102_S_CSS!GF41+LAC102_S_PEI!EL41 -> 0 | JU41: =LAC102_S_CSS!GG41+LAC102_S_PEI!EM41 -> 0 | ABV41: 0 | ABW41: 0 | ABX41: 0 | ABY41: 0 | ABZ41: 0 | ACA41: 0 | ACB41: 0 | ACC41: 0 | ACD41: 0 | ACE41: 0 | ACF41: 0 | ACG41: 0 | ACH41: 0 | ACI41: 0 | ACJ41: 0 | ACK41: 0 | ACL41: 0 | ACM41: 0 | ACN41: 1 | ACO41: 0 | ACP41: 0 | ACQ41: 0 | ACR41: 0 | ACS41: 0 | ACT41: 0 | ACU41: 0 | ACV41: 0 | ACW41: 0 | ACX41: 0 | ACY41: 0 | ACZ41: 0 | ADA41: 0 | ADB41: 0 | ADC41: 0 | ADD41: 0 | ADE41: 0 | ADF41: 0 | ADG41: 0 | ADH41: 0 | ADI41: 0 | ADJ41: 0 | ADK41: 1 | ADL41: 0 | ADM41: 0 | ADN41: 0 | ADO41: 0 | ADP41: =MH1901_Schedule_B!G46+MH1901_Schedule_B!F46 -> 0 | ADQ41: =MH1901_Schedule_B!I46+MH1901_Schedule_B!J46 -> 0 | ADR41: =MH1901_Schedule_B!L46+MH1901_Schedule_B!M46 -> 0 | ADS41: =MH1901_Schedule_B!O46 -> 0 | ADT41: =MH1901_Schedule_B!Q46 -> 0 | ADU41: =MH1901_Schedule_B!S46 -> 0 | ADV41: =MH1901_Schedule_B!U46 -> 0 | ADW41: =MH1901_Schedule_B!W46 -> 0 | ADX41: =MH1901_Schedule_B!Y46 -> 0 | ADY41: =MH1901_Schedule_B!AA46 -> 0 | ADZ41: =MH1901_Schedule_B!AC46+MH1901_Schedule_B!AI46 -> 0 | AEA41: =MH1901_Schedule_B!AE46+MH1901_Schedule_B!AK46 -> 0 | AEB41: =MH1901_Schedule_B!AG46+MH1901_Schedule_B!AM46 -> 0 | AEC41: =MH1901_Schedule_B!AO46 -> 0 | AED41: =MH1901_Schedule_B!AQ46 -> 0 | AEE41: =MH1901_Schedule_B!AS46 -> 0 | AEF41: =MH1901_Schedule_B!AU46 -> 0 | AEG41: =MH1901_Schedule_B!BE46 -> 0 | AEH41: =MH1901_Schedule_B!BG46 -> 1 | AEI41: =MH1901_Schedule_B!AW46 -> 0 | AEJ41: =MH1901_Schedule_B!AY46 -> 0 | AEK41: =MH1901_Schedule_B!BA46 -> 0 | AEL41: =MH1901_Schedule_B!BC46 -> 0 | AEM41: 0 | AEN41: 0 | AEO41: 0 | AEP41: 0 | AEQ41: 0 | AER41: 0 | AES41: 0 | AET41: 0 | AEU41: 0 | AEV41: 0 | AEW41: 0 | AEX41: 0 | AEY41: 0 | AEZ41: 0 | AFA41: 0 | AFB41: 0 | AFC41: 0 | AFD41: 0 | AFE41: 0 | AFF41: 0 | AFG41: 0 | AFH41: 0 | AFI41: 0
A42: CR6078 | B42: 28 | C42: ='LAC103'!D42 -> CR | D42: ='LAC103'!E42 -> 60 | E42: ='LAC103'!F42 -> 78 | IY42: =LAC102_S_CSS!FK42+LAC102_S_PEI!DQ42 -> 0 | IZ42: =LAC102_S_CSS!FL42+LAC102_S_PEI!DR42 -> 0 | JA42: =LAC102_S_CSS!FM42+LAC102_S_PEI!DS42 -> 0 | JB42: =LAC102_S_CSS!FN42+LAC102_S_PEI!DT42 -> 0 | JC42: =LAC102_S_CSS!FO42+LAC102_S_PEI!DU42 -> 0 | JD42: =LAC102_S_CSS!FP42+LAC102_S_PEI!DV42 -> 0 | JE42: =LAC102_S_CSS!FQ42+LAC102_S_PEI!DW42 -> 0 | JF42: =LAC102_S_CSS!FR42+LAC102_S_PEI!DX42 -> 0 | JG42: =LAC102_S_CSS!FS42+LAC102_S_PEI!DY42 -> 0 | JH42: =LAC102_S_CSS!FT42+LAC102_S_PEI!DZ42 -> 0 | JI42: =LAC102_S_CSS!FU42+LAC102_S_PEI!EA42 -> 0 | JJ42: =LAC102_S_CSS!FV42+LAC102_S_PEI!EB42 -> 0 | JK42: =LAC102_S_CSS!FW42+LAC102_S_PEI!EC42 -> 0 | JL42: =LAC102_S_CSS!FX42+LAC102_S_PEI!ED42 -> 0 | JM42: =LAC102_S_CSS!FY42+LAC102_S_PEI!EE42 -> 0 | JN42: =LAC102_S_CSS!FZ42+LAC102_S_PEI!EF42 -> 0 | JO42: =LAC102_S_CSS!GA42+LAC102_S_PEI!EG42 -> 0 | JP42: =LAC102_S_CSS!GB42+LAC102_S_PEI!EH42 -> 0 | JQ42: =LAC102_S_CSS!GC42+LAC102_S_PEI!EI42 -> 1 | JR42: =LAC102_S_CSS!GD42+LAC102_S_PEI!EJ42 -> 0 | JS42: =LAC102_S_CSS!GE42+LAC102_S_PEI!EK42 -> 0 | JT42: =LAC102_S_CSS!GF42+LAC102_S_PEI!EL42 -> 0 | JU42: =LAC102_S_CSS!GG42+LAC102_S_PEI!EM42 -> 0 | ABV42: 0 | ABW42: 0 | ABX42: 0 | ABY42: 0 | ABZ42: 0 | ACA42: 0 | ACB42: 0 | ACC42: 0 | ACD42: 0 | ACE42: 0 | ACF42: 0 | ACG42: 0 | ACH42: 0 | ACI42: 0 | ACJ42: 0 | ACK42: 0 | ACL42: 0 | ACM42: 0 | ACN42: 1 | ACO42: 0 | ACP42: 0 | ACQ42: =IF(ADN42-AEK42=0,ADN42,"ERROR") -> 0 | ACR42: 0 | ACS42: 0 | ACT42: 0 | ACU42: 0 | ACV42: 0 | ACW42: 0 | ACX42: 0 | ACY42: 0 | ACZ42: 0 | ADA42: 0 | ADB42: 0 | ADC42: 0 | ADD42: 0 | ADE42: 0 | ADF42: 0 | ADG42: 0 | ADH42: 0 | ADI42: 0 | ADJ42: 0 | ADK42: 1 | ADL42: 0 | ADM42: 0 | ADN42: 0 | ADO42: 0 | ADP42: =MH1901_Schedule_B!G47+MH1901_Schedule_B!F47 -> 0 | ADQ42: =MH1901_Schedule_B!I47+MH1901_Schedule_B!J47 -> 0 | ADR42: =MH1901_Schedule_B!L47+MH1901_Schedule_B!M47 -> 0 | ADS42: =MH1901_Schedule_B!O47 -> 0 | ADT42: =MH1901_Schedule_B!Q47 -> 0 | ADU42: =MH1901_Schedule_B!S47 -> 0 | ADV42: =MH1901_Schedule_B!U47 -> 0 | ADW42: =MH1901_Schedule_B!W47 -> 0 | ADX42: =MH1901_Schedule_B!Y47 -> 0 | ADY42: =MH1901_Schedule_B!AA47 -> 0 | ADZ42: =MH1901_Schedule_B!AC47+MH1901_Schedule_B!AI47 -> 0 | AEA42: =MH1901_Schedule_B!AE47+MH1901_Schedule_B!AK47 -> 0 | AEB42: =MH1901_Schedule_B!AG47+MH1901_Schedule_B!AM47 -> 0 | AEC42: =MH1901_Schedule_B!AO47 -> 0 | AED42: =MH1901_Schedule_B!AQ47 -> 0 | AEE42: =MH1901_Schedule_B!AS47 -> 0 | AEF42: =MH1901_Schedule_B!AU47 -> 0 | AEG42: =MH1901_Schedule_B!BE47 -> 0 | AEH42: =MH1901_Schedule_B!BG47 -> 1 | AEI42: =MH1901_Schedule_B!AW47 -> 0 | AEJ42: =MH1901_Schedule_B!AY47 -> 0 | AEK42: =MH1901_Schedule_B!BA47 -> 0 | AEL42: =MH1901_Schedule_B!BC47 -> 0 | AEM42: 0 | AEN42: 0 | AEO42: 0 | AEP42: 0 | AEQ42: 0 | AER42: 0 | AES42: 0 | AET42: 0 | AEU42: 0 | AEV42: 0 | AEW42: 0 | AEX42: 0 | AEY42: 0 | AEZ42: 0 | AFA42: 0 | AFB42: 0 | AFC42: 0 | AFD42: 0 | AFE42: 0 | AFF42: 0 | AFG42: 0 | AFH42: 0 | AFI42: 0
A43: 0 | B43: 29 | C43: ='LAC103'!D43 -> 0 | D43: ='LAC103'!E43 ->  | E43: ='LAC103'!F43 ->  | IY43: =LAC102_S_CSS!FK43+LAC102_S_PEI!DQ43 -> 0 | IZ43: =LAC102_S_CSS!FL43+LAC102_S_PEI!DR43 -> 0 | JA43: =LAC102_S_CSS!FM43+LAC102_S_PEI!DS43 -> 0 | JB43: =LAC102_S_CSS!FN43+LAC102_S_PEI!DT43 -> 0 | JC43: =LAC102_S_CSS!FO43+LAC102_S_PEI!DU43 -> 0 | JD43: =LAC102_S_CSS!FP43+LAC102_S_PEI!DV43 -> 0 | JE43: =LAC102_S_CSS!FQ43+LAC102_S_PEI!DW43 -> 0 | JF43: =LAC102_S_CSS!FR43+LAC102_S_PEI!DX43 -> 0 | JG43: =LAC102_S_CSS!FS43+LAC102_S_PEI!DY43 -> 0 | JH43: =LAC102_S_CSS!FT43+LAC102_S_PEI!DZ43 -> 0 | JI43: =LAC102_S_CSS!FU43+LAC102_S_PEI!EA43 -> 0 | JJ43: =LAC102_S_CSS!FV43+LAC102_S_PEI!EB43 -> 0 | JK43: =LAC102_S_CSS!FW43+LAC102_S_PEI!EC43 -> 0 | JL43: =LAC102_S_CSS!FX43+LAC102_S_PEI!ED43 -> 0 | JM43: =LAC102_S_CSS!FY43+LAC102_S_PEI!EE43 -> 0 | JN43: =LAC102_S_CSS!FZ43+LAC102_S_PEI!EF43 -> 0 | JO43: =LAC102_S_CSS!GA43+LAC102_S_PEI!EG43 -> 0 | JP43: =LAC102_S_CSS!GB43+LAC102_S_PEI!EH43 -> 0 | JQ43: =LAC102_S_CSS!GC43+LAC102_S_PEI!EI43 -> 0 | JR43: =LAC102_S_CSS!GD43+LAC102_S_PEI!EJ43 -> 0 | JS43: =LAC102_S_CSS!GE43+LAC102_S_PEI!EK43 -> 0 | JT43: =LAC102_S_CSS!GF43+LAC102_S_PEI!EL43 -> 0 | JU43: =LAC102_S_CSS!GG43+LAC102_S_PEI!EM43 -> 0 | ABV43: 0 | ABW43: 0 | ABX43: 0 | ABY43: 0 | ABZ43: 0 | ACA43: 0 | ACB43: 0 | ACC43: 0 | ACD43: 0 | ACE43: 0 | ACF43: 0 | ACG43: 0 | ACH43: 0 | ACI43: 0 | ACJ43: 0 | ACK43: 0 | ACL43: =IF(ADI43-AEF43=0,ADI43,"ERROR") -> 0 | ACM43: 0 | ACN43: 0 | ACO43: 0 | ACP43: 0 | ACQ43: 0 | ACR43: 0 | ACS43: 0 | ACT43: 0 | ACU43: 0 | ACV43: 0 | ACW43: 0 | ACX43: 0 | ACY43: 0 | ACZ43: 0 | ADA43: 0 | ADB43: 0 | ADC43: 0 | ADD43: 0 | ADE43: 0 | ADF43: 0 | ADG43: 0 | ADH43: 0 | ADI43: 0 | ADJ43: 0 | ADK43: 0 | ADL43: 0 | ADM43: 0 | ADN43: 0 | ADO43: 0 | ADP43: =MH1901_Schedule_B!G48+MH1901_Schedule_B!F48 -> 0 | ADQ43: =MH1901_Schedule_B!I48+MH1901_Schedule_B!J48 -> 0 | ADR43: =MH1901_Schedule_B!L48+MH1901_Schedule_B!M48 -> 0 | ADS43: =MH1901_Schedule_B!O48 -> 0 | ADT43: =MH1901_Schedule_B!Q48 -> 0 | ADU43: =MH1901_Schedule_B!S48 -> 0 | ADV43: =MH1901_Schedule_B!U48 -> 0 | ADW43: =MH1901_Schedule_B!W48 -> 0 | ADX43: =MH1901_Schedule_B!Y48 -> 0 | ADY43: =MH1901_Schedule_B!AA48 -> 0 | ADZ43: =MH1901_Schedule_B!AC48+MH1901_Schedule_B!AI48 -> 0 | AEA43: =MH1901_Schedule_B!AE48+MH1901_Schedule_B!AK48 -> 0 | AEB43: =MH1901_Schedule_B!AG48+MH1901_Schedule_B!AM48 -> 0 | AEC43: =MH1901_Schedule_B!AO48 -> 0 | AED43: =MH1901_Schedule_B!AQ48 -> 0 | AEE43: =MH1901_Schedule_B!AS48 -> 0 | AEF43: =MH1901_Schedule_B!AU48 -> 0 | AEG43: =MH1901_Schedule_B!BE48 -> 0 | AEH43: =MH1901_Schedule_B!BG48 -> 0 | AEI43: =MH1901_Schedule_B!AW48 -> 0 | AEJ43: =MH1901_Schedule_B!AY48 -> 0 | AEK43: =MH1901_Schedule_B!BA48 -> 0 | AEL43: =MH1901_Schedule_B!BC48 -> 0 | AEM43: 0 | AEN43: 0 | AEO43: 0 | AEP43: 0 | AEQ43: 0 | AER43: 0 | AES43: 0 | AET43: 0 | AEU43: 0 | AEV43: 0 | AEW43: 0 | AEX43: 0 | AEY43: 0 | AEZ43: 0 | AFA43: 0 | AFB43: 0 | AFC43: 0 | AFD43: 0 | AFE43: 0 | AFF43: 0 | AFG43: 0 | AFH43: 0 | AFI43: 0
A44: 0 | B44: 30 | C44: ='LAC103'!D44 -> 0 | D44: ='LAC103'!E44 ->  | E44: ='LAC103'!F44 ->  | IY44: =LAC102_S_CSS!FK44+LAC102_S_PEI!DQ44 -> 0 | IZ44: =LAC102_S_CSS!FL44+LAC102_S_PEI!DR44 -> 0 | JA44: =LAC102_S_CSS!FM44+LAC102_S_PEI!DS44 -> 0 | JB44: =LAC102_S_CSS!FN44+LAC102_S_PEI!DT44 -> 0 | JC44: =LAC102_S_CSS!FO44+LAC102_S_PEI!DU44 -> 0 | JD44: =LAC102_S_CSS!FP44+LAC102_S_PEI!DV44 -> 0 | JE44: =LAC102_S_CSS!FQ44+LAC102_S_PEI!DW44 -> 0 | JF44: =LAC102_S_CSS!FR44+LAC102_S_PEI!DX44 -> 0 | JG44: =LAC102_S_CSS!FS44+LAC102_S_PEI!DY44 -> 0 | JH44: =LAC102_S_CSS!FT44+LAC102_S_PEI!DZ44 -> 0 | JI44: =LAC102_S_CSS!FU44+LAC102_S_PEI!EA44 -> 0 | JJ44: =LAC102_S_CSS!FV44+LAC102_S_PEI!EB44 -> 0 | JK44: =LAC102_S_CSS!FW44+LAC102_S_PEI!EC44 -> 0 | JL44: =LAC102_S_CSS!FX44+LAC102_S_PEI!ED44 -> 0 | JM44: =LAC102_S_CSS!FY44+LAC102_S_PEI!EE44 -> 0 | JN44: =LAC102_S_CSS!FZ44+LAC102_S_PEI!EF44 -> 0 | JO44: =LAC102_S_CSS!GA44+LAC102_S_PEI!EG44 -> 0 | JP44: =LAC102_S_CSS!GB44+LAC102_S_PEI!EH44 -> 0 | JQ44: =LAC102_S_CSS!GC44+LAC102_S_PEI!EI44 -> 0 | JR44: =LAC102_S_CSS!GD44+LAC102_S_PEI!EJ44 -> 0 | JS44: =LAC102_S_CSS!GE44+LAC102_S_PEI!EK44 -> 0 | JT44: =LAC102_S_CSS!GF44+LAC102_S_PEI!EL44 -> 0 | JU44: =LAC102_S_CSS!GG44+LAC102_S_PEI!EM44 -> 0 | ABV44: 0 | ABW44: 0 | ABX44: 0 | ABY44: 0 | ABZ44: 0 | ACA44: 0 | ACB44: 0 | ACC44: 0 | ACD44: 0 | ACE44: 0 | ACF44: 0 | ACG44: 0 | ACH44: 0 | ACI44: 0 | ACJ44: 0 | ACK44: 0 | ACL44: 0 | ACM44: 0 | ACN44: 0 | ACO44: 0 | ACP44: 0 | ACQ44: 0 | ACR44: 0 | ACS44: 0 | ACT44: 0 | ACU44: 0 | ACV44: 0 | ACW44: 0 | ACX44: 0 | ACY44: 0 | ACZ44: 0 | ADA44: 0 | ADB44: 0 | ADC44: 0 | ADD44: 0 | ADE44: 0 | ADF44: 0 | ADG44: 0 | ADH44: 0 | ADI44: 0 | ADJ44: 0 | ADK44: 0 | ADL44: 0 | ADM44: 0 | ADN44: 0 | ADO44: 0 | ADP44: =MH1901_Schedule_B!G49+MH1901_Schedule_B!F49 -> 0 | ADQ44: =MH1901_Schedule_B!I49+MH1901_Schedule_B!J49 -> 0 | ADR44: =MH1901_Schedule_B!L49+MH1901_Schedule_B!M49 -> 0 | ADS44: =MH1901_Schedule_B!O49 -> 0 | ADT44: =MH1901_Schedule_B!Q49 -> 0 | ADU44: =MH1901_Schedule_B!S49 -> 0 | ADV44: =MH1901_Schedule_B!U49 -> 0 | ADW44: =MH1901_Schedule_B!W49 -> 0 | ADX44: =MH1901_Schedule_B!Y49 -> 0 | ADY44: =MH1901_Schedule_B!AA49 -> 0 | ADZ44: =MH1901_Schedule_B!AC49+MH1901_Schedule_B!AI49 -> 0 | AEA44: =MH1901_Schedule_B!AE49+MH1901_Schedule_B!AK49 -> 0 | AEB44: =MH1901_Schedule_B!AG49+MH1901_Schedule_B!AM49 -> 0 | AEC44: =MH1901_Schedule_B!AO49 -> 0 | AED44: =MH1901_Schedule_B!AQ49 -> 0 | AEE44: =MH1901_Schedule_B!AS49 -> 0 | AEF44: =MH1901_Schedule_B!AU49 -> 0 | AEG44: =MH1901_Schedule_B!BE49 -> 0 | AEH44: =MH1901_Schedule_B!BG49 -> 0 | AEI44: =MH1901_Schedule_B!AW49 -> 0 | AEJ44: =MH1901_Schedule_B!AY49 -> 0 | AEK44: =MH1901_Schedule_B!BA49 -> 0 | AEL44: =MH1901_Schedule_B!BC49 -> 0 | AEM44: 0 | AEN44: 0 | AEO44: 0 | AEP44: 0 | AEQ44: 0 | AER44: 0 | AES44: 0 | AET44: 0 | AEU44: 0 | AEV44: 0 | AEW44: 0 | AEX44: 0 | AEY44: 0 | AEZ44: 0 | AFA44: 0 | AFB44: 0 | AFC44: 0 | AFD44: 0 | AFE44: 0 | AFF44: 0 | AFG44: 0 | AFH44: 0 | AFI44: 0
A45: 0 | B45: 31 | C45: ='LAC103'!D45 -> 0 | D45: ='LAC103'!E45 ->  | E45: ='LAC103'!F45 ->  | IY45: =LAC102_S_CSS!FK45+LAC102_S_PEI!DQ45 -> 0 | IZ45: =LAC102_S_CSS!FL45+LAC102_S_PEI!DR45 -> 0 | JA45: =LAC102_S_CSS!FM45+LAC102_S_PEI!DS45 -> 0 | JB45: =LAC102_S_CSS!FN45+LAC102_S_PEI!DT45 -> 0 | JC45: =LAC102_S_CSS!FO45+LAC102_S_PEI!DU45 -> 0 | JD45: =LAC102_S_CSS!FP45+LAC102_S_PEI!DV45 -> 0 | JE45: =LAC102_S_CSS!FQ45+LAC102_S_PEI!DW45 -> 0 | JF45: =LAC102_S_CSS!FR45+LAC102_S_PEI!DX45 -> 0 | JG45: =LAC102_S_CSS!FS45+LAC102_S_PEI!DY45 -> 0 | JH45: =LAC102_S_CSS!FT45+LAC102_S_PEI!DZ45 -> 0 | JI45: =LAC102_S_CSS!FU45+LAC102_S_PEI!EA45 -> 0 | JJ45: =LAC102_S_CSS!FV45+LAC102_S_PEI!EB45 -> 0 | JK45: =LAC102_S_CSS!FW45+LAC102_S_PEI!EC45 -> 0 | JL45: =LAC102_S_CSS!FX45+LAC102_S_PEI!ED45 -> 0 | JM45: =LAC102_S_CSS!FY45+LAC102_S_PEI!EE45 -> 0 | JN45: =LAC102_S_CSS!FZ45+LAC102_S_PEI!EF45 -> 0 | JO45: =LAC102_S_CSS!GA45+LAC102_S_PEI!EG45 -> 0 | JP45: =LAC102_S_CSS!GB45+LAC102_S_PEI!EH45 -> 0 | JQ45: =LAC102_S_CSS!GC45+LAC102_S_PEI!EI45 -> 0 | JR45: =LAC102_S_CSS!GD45+LAC102_S_PEI!EJ45 -> 0 | JS45: =LAC102_S_CSS!GE45+LAC102_S_PEI!EK45 -> 0 | JT45: =LAC102_S_CSS!GF45+LAC102_S_PEI!EL45 -> 0 | JU45: =LAC102_S_CSS!GG45+LAC102_S_PEI!EM45 -> 0 | ABV45: 0 | ABW45: 0 | ABX45: 0 | ABY45: 0 | ABZ45: 0 | ACA45: 0 | ACB45: 0 | ACC45: 0 | ACD45: 0 | ACE45: 0 | ACF45: 0 | ACG45: 0 | ACH45: 0 | ACI45: 0 | ACJ45: 0 | ACK45: 0 | ACL45: 0 | ACM45: 0 | ACN45: 0 | ACO45: 0 | ACP45: 0 | ACQ45: 0 | ACR45: 0 | ACS45: 0 | ACT45: 0 | ACU45: 0 | ACV45: 0 | ACW45: 0 | ACX45: 0 | ACY45: 0 | ACZ45: 0 | ADA45: 0 | ADB45: 0 | ADC45: 0 | ADD45: 0 | ADE45: 0 | ADF45: 0 | ADG45: 0 | ADH45: 0 | ADI45: 0 | ADJ45: 0 | ADK45: 0 | ADL45: 0 | ADM45: 0 | ADN45: 0 | ADO45: 0 | ADP45: =MH1901_Schedule_B!G50+MH1901_Schedule_B!F50 -> 0 | ADQ45: =MH1901_Schedule_B!I50+MH1901_Schedule_B!J50 -> 0 | ADR45: =MH1901_Schedule_B!L50+MH1901_Schedule_B!M50 -> 0 | ADS45: =MH1901_Schedule_B!O50 -> 0 | ADT45: =MH1901_Schedule_B!Q50 -> 0 | ADU45: =MH1901_Schedule_B!S50 -> 0 | ADV45: =MH1901_Schedule_B!U50 -> 0 | ADW45: =MH1901_Schedule_B!W50 -> 0 | ADX45: =MH1901_Schedule_B!Y50 -> 0 | ADY45: =MH1901_Schedule_B!AA50 -> 0 | ADZ45: =MH1901_Schedule_B!AC50+MH1901_Schedule_B!AI50 -> 0 | AEA45: =MH1901_Schedule_B!AE50+MH1901_Schedule_B!AK50 -> 0 | AEB45: =MH1901_Schedule_B!AG50+MH1901_Schedule_B!AM50 -> 0 | AEC45: =MH1901_Schedule_B!AO50 -> 0 | AED45: =MH1901_Schedule_B!AQ50 -> 0 | AEE45: =MH1901_Schedule_B!AS50 -> 0 | AEF45: =MH1901_Schedule_B!AU50 -> 0 | AEG45: =MH1901_Schedule_B!BE50 -> 0 | AEH45: =MH1901_Schedule_B!BG50 -> 0 | AEI45: =MH1901_Schedule_B!AW50 -> 0 | AEJ45: =MH1901_Schedule_B!AY50 -> 0 | AEK45: =MH1901_Schedule_B!BA50 -> 0 | AEL45: =MH1901_Schedule_B!BC50 -> 0 | AEM45: 0 | AEN45: 0 | AEO45: 0 | AEP45: 0 | AEQ45: 0 | AER45: 0 | AES45: 0 | AET45: 0 | AEU45: 0 | AEV45: 0 | AEW45: 0 | AEX45: 0 | AEY45: 0 | AEZ45: 0 | AFA45: 0 | AFB45: 0 | AFC45: =ADI45-AEF45 -> 0 | AFD45: 0 | AFE45: 0 | AFF45: 0 | AFG45: 0 | AFH45: 0 | AFI45: 0
A46: 0 | B46: 32 | C46: ='LAC103'!D46 -> 0 | D46: ='LAC103'!E46 ->  | E46: ='LAC103'!F46 ->  | IY46: =LAC102_S_CSS!FK46+LAC102_S_PEI!DQ46 -> 0 | IZ46: =LAC102_S_CSS!FL46+LAC102_S_PEI!DR46 -> 0 | JA46: =LAC102_S_CSS!FM46+LAC102_S_PEI!DS46 -> 0 | JB46: =LAC102_S_CSS!FN46+LAC102_S_PEI!DT46 -> 0 | JC46: =LAC102_S_CSS!FO46+LAC102_S_PEI!DU46 -> 0 | JD46: =LAC102_S_CSS!FP46+LAC102_S_PEI!DV46 -> 0 | JE46: =LAC102_S_CSS!FQ46+LAC102_S_PEI!DW46 -> 0 | JF46: =LAC102_S_CSS!FR46+LAC102_S_PEI!DX46 -> 0 | JG46: =LAC102_S_CSS!FS46+LAC102_S_PEI!DY46 -> 0 | JH46: =LAC102_S_CSS!FT46+LAC102_S_PEI!DZ46 -> 0 | JI46: =LAC102_S_CSS!FU46+LAC102_S_PEI!EA46 -> 0 | JJ46: =LAC102_S_CSS!FV46+LAC102_S_PEI!EB46 -> 0 | JK46: =LAC102_S_CSS!FW46+LAC102_S_PEI!EC46 -> 0 | JL46: =LAC102_S_CSS!FX46+LAC102_S_PEI!ED46 -> 0 | JM46: =LAC102_S_CSS!FY46+LAC102_S_PEI!EE46 -> 0 | JN46: =LAC102_S_CSS!FZ46+LAC102_S_PEI!EF46 -> 0 | JO46: =LAC102_S_CSS!GA46+LAC102_S_PEI!EG46 -> 0 | JP46: =LAC102_S_CSS!GB46+LAC102_S_PEI!EH46 -> 0 | JQ46: =LAC102_S_CSS!GC46+LAC102_S_PEI!EI46 -> 0 | JR46: =LAC102_S_CSS!GD46+LAC102_S_PEI!EJ46 -> 0 | JS46: =LAC102_S_CSS!GE46+LAC102_S_PEI!EK46 -> 0 | JT46: =LAC102_S_CSS!GF46+LAC102_S_PEI!EL46 -> 0 | JU46: =LAC102_S_CSS!GG46+LAC102_S_PEI!EM46 -> 0 | ABV46: 0 | ABW46: 0 | ABX46: 0 | ABY46: 0 | ABZ46: 0 | ACA46: 0 | ACB46: 0 | ACC46: 0 | ACD46: 0 | ACE46: 0 | ACF46: 0 | ACG46: 0 | ACH46: 0 | ACI46: 0 | ACJ46: 0 | ACK46: 0 | ACL46: 0 | ACM46: 0 | ACN46: 0 | ACO46: 0 | ACP46: 0 | ACQ46: 0 | ACR46: 0 | ACS46: =SUM(F46,AC46,AZ46,BW46,CT46,DQ46,FK46,HE46,IB46,IY46,JV46,KS46,ZT46,AAQ46,GH46,LP46,EN46,YW46,MM46,NJ46,OG46,PD46,QA46,QX46,RU46,SR46,TO46,UL46,VI46,WF46,XZ46,XC46) -> 0 | ACT46: 0 | ACU46: 0 | ACV46: 0 | ACW46: 0 | ACX46: 0 | ACY46: 0 | ACZ46: 0 | ADA46: 0 | ADB46: 0 | ADC46: 0 | ADD46: 0 | ADE46: 0 | ADF46: 0 | ADG46: 0 | ADH46: 0 | ADI46: 0 | ADJ46: 0 | ADK46: 0 | ADL46: 0 | ADM46: 0 | ADN46: 0 | ADO46: 0 | ADP46: =MH1901_Schedule_B!G51+MH1901_Schedule_B!F51 -> 0 | ADQ46: =MH1901_Schedule_B!I51+MH1901_Schedule_B!J51 -> 0 | ADR46: =MH1901_Schedule_B!L51+MH1901_Schedule_B!M51 -> 0 | ADS46: =MH1901_Schedule_B!O51 -> 0 | ADT46: =MH1901_Schedule_B!Q51 -> 0 | ADU46: =MH1901_Schedule_B!S51 -> 0 | ADV46: =MH1901_Schedule_B!U51 -> 0 | ADW46: =MH1901_Schedule_B!W51 -> 0 | ADX46: =MH1901_Schedule_B!Y51 -> 0 | ADY46: =MH1901_Schedule_B!AA51 -> 0 | ADZ46: =MH1901_Schedule_B!AC51+MH1901_Schedule_B!AI51 -> 0 | AEA46: =MH1901_Schedule_B!AE51+MH1901_Schedule_B!AK51 -> 0 | AEB46: =MH1901_Schedule_B!AG51+MH1901_Schedule_B!AM51 -> 0 | AEC46: =MH1901_Schedule_B!AO51 -> 0 | AED46: =MH1901_Schedule_B!AQ51 -> 0 | AEE46: =MH1901_Schedule_B!AS51 -> 0 | AEF46: =MH1901_Schedule_B!AU51 -> 0 | AEG46: =MH1901_Schedule_B!BE51 -> 0 | AEH46: =MH1901_Schedule_B!BG51 -> 0 | AEI46: =MH1901_Schedule_B!AW51 -> 0 | AEJ46: =MH1901_Schedule_B!AY51 -> 0 | AEK46: =MH1901_Schedule_B!BA51 -> 0 | AEL46: =MH1901_Schedule_B!BC51 -> 0 | AEM46: =ACS46-ADP46 -> 0 | AEN46: 0 | AEO46: 0 | AEP46: 0 | AEQ46: 0 | AER46: 0 | AES46: 0 | AET46: 0 | AEU46: 0 | AEV46: 0 | AEW46: 0 | AEX46: 0 | AEY46: 0 | AEZ46: 0 | AFA46: 0 | AFB46: 0 | AFC46: 0 | AFD46: 0 | AFE46: 0 | AFF46: 0 | AFG46: 0 | AFH46: 0 | AFI46: 0
A47: 0 | B47: 33 | C47: ='LAC103'!D47 -> 0 | D47: ='LAC103'!E47 ->  | E47: ='LAC103'!F47 ->  | IY47: =LAC102_S_CSS!FK47+LAC102_S_PEI!DQ47 -> 0 | IZ47: =LAC102_S_CSS!FL47+LAC102_S_PEI!DR47 -> 0 | JA47: =LAC102_S_CSS!FM47+LAC102_S_PEI!DS47 -> 0 | JB47: =LAC102_S_CSS!FN47+LAC102_S_PEI!DT47 -> 0 | JC47: =LAC102_S_CSS!FO47+LAC102_S_PEI!DU47 -> 0 | JD47: =LAC102_S_CSS!FP47+LAC102_S_PEI!DV47 -> 0 | JE47: =LAC102_S_CSS!FQ47+LAC102_S_PEI!DW47 -> 0 | JF47: =LAC102_S_CSS!FR47+LAC102_S_PEI!DX47 -> 0 | JG47: =LAC102_S_CSS!FS47+LAC102_S_PEI!DY47 -> 0 | JH47: =LAC102_S_CSS!FT47+LAC102_S_PEI!DZ47 -> 0 | JI47: =LAC102_S_CSS!FU47+LAC102_S_PEI!EA47 -> 0 | JJ47: =LAC102_S_CSS!FV47+LAC102_S_PEI!EB47 -> 0 | JK47: =LAC102_S_CSS!FW47+LAC102_S_PEI!EC47 -> 0 | JL47: =LAC102_S_CSS!FX47+LAC102_S_PEI!ED47 -> 0 | JM47: =LAC102_S_CSS!FY47+LAC102_S_PEI!EE47 -> 0 | JN47: =LAC102_S_CSS!FZ47+LAC102_S_PEI!EF47 -> 0 | JO47: =LAC102_S_CSS!GA47+LAC102_S_PEI!EG47 -> 0 | JP47: =LAC102_S_CSS!GB47+LAC102_S_PEI!EH47 -> 0 | JQ47: =LAC102_S_CSS!GC47+LAC102_S_PEI!EI47 -> 0 | JR47: =LAC102_S_CSS!GD47+LAC102_S_PEI!EJ47 -> 0 | JS47: =LAC102_S_CSS!GE47+LAC102_S_PEI!EK47 -> 0 | JT47: =LAC102_S_CSS!GF47+LAC102_S_PEI!EL47 -> 0 | JU47: =LAC102_S_CSS!GG47+LAC102_S_PEI!EM47 -> 0 | ABV47: 0 | ABW47: 0 | ABX47: 0 | ABY47: 0 | ABZ47: 0 | ACA47: 0 | ACB47: 0 | ACC47: 0 | ACD47: 0 | ACE47: 0 | ACF47: 0 | ACG47: 0 | ACH47: 0 | ACI47: 0 | ACJ47: 0 | ACK47: 0 | ACL47: 0 | ACM47: 0 | ACN47: 0 | ACO47: 0 | ACP47: 0 | ACQ47: 0 | ACR47: 0 | ACS47: 0 | ACT47: 0 | ACU47: 0 | ACV47: 0 | ACW47: 0 | ACX47: 0 | ACY47: 0 | ACZ47: 0 | ADA47: 0 | ADB47: 0 | ADC47: 0 | ADD47: 0 | ADE47: 0 | ADF47: 0 | ADG47: 0 | ADH47: 0 | ADI47: 0 | ADJ47: 0 | ADK47: 0 | ADL47: 0 | ADM47: 0 | ADN47: 0 | ADO47: 0 | ADP47: =MH1901_Schedule_B!G52+MH1901_Schedule_B!F52 -> 0 | ADQ47: =MH1901_Schedule_B!I52+MH1901_Schedule_B!J52 -> 0 | ADR47: =MH1901_Schedule_B!L52+MH1901_Schedule_B!M52 -> 0 | ADS47: =MH1901_Schedule_B!O52 -> 0 | ADT47: =MH1901_Schedule_B!Q52 -> 0 | ADU47: =MH1901_Schedule_B!S52 -> 0 | ADV47: =MH1901_Schedule_B!U52 -> 0 | ADW47: =MH1901_Schedule_B!W52 -> 0 | ADX47: =MH1901_Schedule_B!Y52 -> 0 | ADY47: =MH1901_Schedule_B!AA52 -> 0 | ADZ47: =MH1901_Schedule_B!AC52+MH1901_Schedule_B!AI52 -> 0 | AEA47: =MH1901_Schedule_B!AE52+MH1901_Schedule_B!AK52 -> 0 | AEB47: =MH1901_Schedule_B!AG52+MH1901_Schedule_B!AM52 -> 0 | AEC47: =MH1901_Schedule_B!AO52 -> 0 | AED47: =MH1901_Schedule_B!AQ52 -> 0 | AEE47: =MH1901_Schedule_B!AS52 -> 0 | AEF47: =MH1901_Schedule_B!AU52 -> 0 | AEG47: =MH1901_Schedule_B!BE52 -> 0 | AEH47: =MH1901_Schedule_B!BG52 -> 0 | AEI47: =MH1901_Schedule_B!AW52 -> 0 | AEJ47: =MH1901_Schedule_B!AY52 -> 0 | AEK47: =MH1901_Schedule_B!BA52 -> 0 | AEL47: =MH1901_Schedule_B!BC52 -> 0 | AEM47: 0 | AEN47: 0 | AEO47: 0 | AEP47: 0 | AEQ47: 0 | AER47: 0 | AES47: 0 | AET47: 0 | AEU47: 0 | AEV47: 0 | AEW47: 0 | AEX47: 0 | AEY47: 0 | AEZ47: 0 | AFA47: 0 | AFB47: 0 | AFC47: 0 | AFD47: 0 | AFE47: 0 | AFF47: 0 | AFG47: 0 | AFH47: 0 | AFI47: 0
A48: 0 | B48: 34 | C48: ='LAC103'!D48 -> 0 | D48: ='LAC103'!E48 ->  | E48: ='LAC103'!F48 ->  | IY48: =LAC102_S_CSS!FK48+LAC102_S_PEI!DQ48 -> 0 | IZ48: =LAC102_S_CSS!FL48+LAC102_S_PEI!DR48 -> 0 | JA48: =LAC102_S_CSS!FM48+LAC102_S_PEI!DS48 -> 0 | JB48: =LAC102_S_CSS!FN48+LAC102_S_PEI!DT48 -> 0 | JC48: =LAC102_S_CSS!FO48+LAC102_S_PEI!DU48 -> 0 | JD48: =LAC102_S_CSS!FP48+LAC102_S_PEI!DV48 -> 0 | JE48: =LAC102_S_CSS!FQ48+LAC102_S_PEI!DW48 -> 0 | JF48: =LAC102_S_CSS!FR48+LAC102_S_PEI!DX48 -> 0 | JG48: =LAC102_S_CSS!FS48+LAC102_S_PEI!DY48 -> 0 | JH48: =LAC102_S_CSS!FT48+LAC102_S_PEI!DZ48 -> 0 | JI48: =LAC102_S_CSS!FU48+LAC102_S_PEI!EA48 -> 0 | JJ48: =LAC102_S_CSS!FV48+LAC102_S_PEI!EB48 -> 0 | JK48: =LAC102_S_CSS!FW48+LAC102_S_PEI!EC48 -> 0 | JL48: =LAC102_S_CSS!FX48+LAC102_S_PEI!ED48 -> 0 | JM48: =LAC102_S_CSS!FY48+LAC102_S_PEI!EE48 -> 0 | JN48: =LAC102_S_CSS!FZ48+LAC102_S_PEI!EF48 -> 0 | JO48: =LAC102_S_CSS!GA48+LAC102_S_PEI!EG48 -> 0 | JP48: =LAC102_S_CSS!GB48+LAC102_S_PEI!EH48 -> 0 | JQ48: =LAC102_S_CSS!GC48+LAC102_S_PEI!EI48 -> 0 | JR48: =LAC102_S_CSS!GD48+LAC102_S_PEI!EJ48 -> 0 | JS48: =LAC102_S_CSS!GE48+LAC102_S_PEI!EK48 -> 0 | JT48: =LAC102_S_CSS!GF48+LAC102_S_PEI!EL48 -> 0 | JU48: =LAC102_S_CSS!GG48+LAC102_S_PEI!EM48 -> 0 | ABV48: 0 | ABW48: 0 | ABX48: 0 | ABY48: 0 | ABZ48: 0 | ACA48: 0 | ACB48: 0 | ACC48: 0 | ACD48: 0 | ACE48: 0 | ACF48: 0 | ACG48: 0 | ACH48: 0 | ACI48: 0 | ACJ48: 0 | ACK48: 0 | ACL48: 0 | ACM48: 0 | ACN48: 0 | ACO48: 0 | ACP48: 0 | ACQ48: 0 | ACR48: 0 | ACS48: 0 | ACT48: 0 | ACU48: 0 | ACV48: 0 | ACW48: 0 | ACX48: 0 | ACY48: 0 | ACZ48: 0 | ADA48: 0 | ADB48: 0 | ADC48: 0 | ADD48: 0 | ADE48: 0 | ADF48: 0 | ADG48: 0 | ADH48: 0 | ADI48: 0 | ADJ48: 0 | ADK48: 0 | ADL48: 0 | ADM48: 0 | ADN48: 0 | ADO48: 0 | ADP48: =MH1901_Schedule_B!G53+MH1901_Schedule_B!F53 -> 0 | ADQ48: =MH1901_Schedule_B!I53+MH1901_Schedule_B!J53 -> 0 | ADR48: =MH1901_Schedule_B!L53+MH1901_Schedule_B!M53 -> 0 | ADS48: =MH1901_Schedule_B!O53 -> 0 | ADT48: =MH1901_Schedule_B!Q53 -> 0 | ADU48: =MH1901_Schedule_B!S53 -> 0 | ADV48: =MH1901_Schedule_B!U53 -> 0 | ADW48: =MH1901_Schedule_B!W53 -> 0 | ADX48: =MH1901_Schedule_B!Y53 -> 0 | ADY48: =MH1901_Schedule_B!AA53 -> 0 | ADZ48: =MH1901_Schedule_B!AC53+MH1901_Schedule_B!AI53 -> 0 | AEA48: =MH1901_Schedule_B!AE53+MH1901_Schedule_B!AK53 -> 0 | AEB48: =MH1901_Schedule_B!AG53+MH1901_Schedule_B!AM53 -> 0 | AEC48: =MH1901_Schedule_B!AO53 -> 0 | AED48: =MH1901_Schedule_B!AQ53 -> 0 | AEE48: =MH1901_Schedule_B!AS53 -> 0 | AEF48: =MH1901_Schedule_B!AU53 -> 0 | AEG48: =MH1901_Schedule_B!BE53 -> 0 | AEH48: =MH1901_Schedule_B!BG53 -> 0 | AEI48: =MH1901_Schedule_B!AW53 -> 0 | AEJ48: =MH1901_Schedule_B!AY53 -> 0 | AEK48: =MH1901_Schedule_B!BA53 -> 0 | AEL48: =MH1901_Schedule_B!BC53 -> 0 | AEM48: 0 | AEN48: 0 | AEO48: 0 | AEP48: 0 | AEQ48: 0 | AER48: 0 | AES48: 0 | AET48: 0 | AEU48: 0 | AEV48: 0 | AEW48: 0 | AEX48: 0 | AEY48: 0 | AEZ48: 0 | AFA48: 0 | AFB48: 0 | AFC48: 0 | AFD48: 0 | AFE48: 0 | AFF48: =ADL48-AEI48 -> 0 | AFG48: 0 | AFH48: 0 | AFI48: 0
A49: 0 | B49: 35 | C49: ='LAC103'!D49 -> 0 | D49: ='LAC103'!E49 ->  | E49: ='LAC103'!F49 ->  | IY49: =LAC102_S_CSS!FK49+LAC102_S_PEI!DQ49 -> 0 | IZ49: =LAC102_S_CSS!FL49+LAC102_S_PEI!DR49 -> 0 | JA49: =LAC102_S_CSS!FM49+LAC102_S_PEI!DS49 -> 0 | JB49: =LAC102_S_CSS!FN49+LAC102_S_PEI!DT49 -> 0 | JC49: =LAC102_S_CSS!FO49+LAC102_S_PEI!DU49 -> 0 | JD49: =LAC102_S_CSS!FP49+LAC102_S_PEI!DV49 -> 0 | JE49: =LAC102_S_CSS!FQ49+LAC102_S_PEI!DW49 -> 0 | JF49: =LAC102_S_CSS!FR49+LAC102_S_PEI!DX49 -> 0 | JG49: =LAC102_S_CSS!FS49+LAC102_S_PEI!DY49 -> 0 | JH49: =LAC102_S_CSS!FT49+LAC102_S_PEI!DZ49 -> 0 | JI49: =LAC102_S_CSS!FU49+LAC102_S_PEI!EA49 -> 0 | JJ49: =LAC102_S_CSS!FV49+LAC102_S_PEI!EB49 -> 0 | JK49: =LAC102_S_CSS!FW49+LAC102_S_PEI!EC49 -> 0 | JL49: =LAC102_S_CSS!FX49+LAC102_S_PEI!ED49 -> 0 | JM49: =LAC102_S_CSS!FY49+LAC102_S_PEI!EE49 -> 0 | JN49: =LAC102_S_CSS!FZ49+LAC102_S_PEI!EF49 -> 0 | JO49: =LAC102_S_CSS!GA49+LAC102_S_PEI!EG49 -> 0 | JP49: =LAC102_S_CSS!GB49+LAC102_S_PEI!EH49 -> 0 | JQ49: =LAC102_S_CSS!GC49+LAC102_S_PEI!EI49 -> 0 | JR49: =LAC102_S_CSS!GD49+LAC102_S_PEI!EJ49 -> 0 | JS49: =LAC102_S_CSS!GE49+LAC102_S_PEI!EK49 -> 0 | JT49: =LAC102_S_CSS!GF49+LAC102_S_PEI!EL49 -> 0 | JU49: =LAC102_S_CSS!GG49+LAC102_S_PEI!EM49 -> 0 | ABV49: 0 | ABW49: 0 | ABX49: 0 | ABY49: 0 | ABZ49: 0 | ACA49: 0 | ACB49: 0 | ACC49: 0 | ACD49: 0 | ACE49: 0 | ACF49: 0 | ACG49: 0 | ACH49: 0 | ACI49: 0 | ACJ49: 0 | ACK49: 0 | ACL49: 0 | ACM49: 0 | ACN49: 0 | ACO49: 0 | ACP49: 0 | ACQ49: 0 | ACR49: 0 | ACS49: 0 | ACT49: 0 | ACU49: 0 | ACV49: 0 | ACW49: 0 | ACX49: 0 | ACY49: 0 | ACZ49: 0 | ADA49: 0 | ADB49: 0 | ADC49: 0 | ADD49: 0 | ADE49: 0 | ADF49: 0 | ADG49: 0 | ADH49: 0 | ADI49: 0 | ADJ49: 0 | ADK49: 0 | ADL49: 0 | ADM49: 0 | ADN49: 0 | ADO49: 0 | ADP49: =MH1901_Schedule_B!G54+MH1901_Schedule_B!F54 -> 0 | ADQ49: =MH1901_Schedule_B!I54+MH1901_Schedule_B!J54 -> 0 | ADR49: =MH1901_Schedule_B!L54+MH1901_Schedule_B!M54 -> 0 | ADS49: =MH1901_Schedule_B!O54 -> 0 | ADT49: =MH1901_Schedule_B!Q54 -> 0 | ADU49: =MH1901_Schedule_B!S54 -> 0 | ADV49: =MH1901_Schedule_B!U54 -> 0 | ADW49: =MH1901_Schedule_B!W54 -> 0 | ADX49: =MH1901_Schedule_B!Y54 -> 0 | ADY49: =MH1901_Schedule_B!AA54 -> 0 | ADZ49: =MH1901_Schedule_B!AC54+MH1901_Schedule_B!AI54 -> 0 | AEA49: =MH1901_Schedule_B!AE54+MH1901_Schedule_B!AK54 -> 0 | AEB49: =MH1901_Schedule_B!AG54+MH1901_Schedule_B!AM54 -> 0 | AEC49: =MH1901_Schedule_B!AO54 -> 0 | AED49: =MH1901_Schedule_B!AQ54 -> 0 | AEE49: =MH1901_Schedule_B!AS54 -> 0 | AEF49: =MH1901_Schedule_B!AU54 -> 0 | AEG49: =MH1901_Schedule_B!BE54 -> 0 | AEH49: =MH1901_Schedule_B!BG54 -> 0 | AEI49: =MH1901_Schedule_B!AW54 -> 0 | AEJ49: =MH1901_Schedule_B!AY54 -> 0 | AEK49: =MH1901_Schedule_B!BA54 -> 0 | AEL49: =MH1901_Schedule_B!BC54 -> 0 | AEM49: 0 | AEN49: 0 | AEO49: 0 | AEP49: 0 | AEQ49: 0 | AER49: 0 | AES49: 0 | AET49: 0 | AEU49: 0 | AEV49: 0 | AEW49: 0 | AEX49: 0 | AEY49: 0 | AEZ49: 0 | AFA49: 0 | AFB49: 0 | AFC49: 0 | AFD49: 0 | AFE49: 0 | AFF49: 0 | AFG49: 0 | AFH49: 0 | AFI49: 0
A50: 0 | B50: 36 | C50: ='LAC103'!D50 -> 0 | D50: ='LAC103'!E50 ->  | E50: ='LAC103'!F50 ->  | IY50: =LAC102_S_CSS!FK50+LAC102_S_PEI!DQ50 -> 0 | IZ50: =LAC102_S_CSS!FL50+LAC102_S_PEI!DR50 -> 0 | JA50: =LAC102_S_CSS!FM50+LAC102_S_PEI!DS50 -> 0 | JB50: =LAC102_S_CSS!FN50+LAC102_S_PEI!DT50 -> 0 | JC50: =LAC102_S_CSS!FO50+LAC102_S_PEI!DU50 -> 0 | JD50: =LAC102_S_CSS!FP50+LAC102_S_PEI!DV50 -> 0 | JE50: =LAC102_S_CSS!FQ50+LAC102_S_PEI!DW50 -> 0 | JF50: =LAC102_S_CSS!FR50+LAC102_S_PEI!DX50 -> 0 | JG50: =LAC102_S_CSS!FS50+LAC102_S_PEI!DY50 -> 0 | JH50: =LAC102_S_CSS!FT50+LAC102_S_PEI!DZ50 -> 0 | JI50: =LAC102_S_CSS!FU50+LAC102_S_PEI!EA50 -> 0 | JJ50: =LAC102_S_CSS!FV50+LAC102_S_PEI!EB50 -> 0 | JK50: =LAC102_S_CSS!FW50+LAC102_S_PEI!EC50 -> 0 | JL50: =LAC102_S_CSS!FX50+LAC102_S_PEI!ED50 -> 0 | JM50: =LAC102_S_CSS!FY50+LAC102_S_PEI!EE50 -> 0 | JN50: =LAC102_S_CSS!FZ50+LAC102_S_PEI!EF50 -> 0 | JO50: =LAC102_S_CSS!GA50+LAC102_S_PEI!EG50 -> 0 | JP50: =LAC102_S_CSS!GB50+LAC102_S_PEI!EH50 -> 0 | JQ50: =LAC102_S_CSS!GC50+LAC102_S_PEI!EI50 -> 0 | JR50: =LAC102_S_CSS!GD50+LAC102_S_PEI!EJ50 -> 0 | JS50: =LAC102_S_CSS!GE50+LAC102_S_PEI!EK50 -> 0 | JT50: =LAC102_S_CSS!GF50+LAC102_S_PEI!EL50 -> 0 | JU50: =LAC102_S_CSS!GG50+LAC102_S_PEI!EM50 -> 0 | ABV50: 0 | ABW50: 0 | ABX50: 0 | ABY50: 0 | ABZ50: 0 | ACA50: 0 | ACB50: 0 | ACC50: 0 | ACD50: 0 | ACE50: 0 | ACF50: 0 | ACG50: 0 | ACH50: 0 | ACI50: 0 | ACJ50: 0 | ACK50: 0 | ACL50: 0 | ACM50: 0 | ACN50: 0 | ACO50: 0 | ACP50: 0 | ACQ50: 0 | ACR50: 0 | ACS50: 0 | ACT50: 0 | ACU50: 0 | ACV50: 0 | ACW50: 0 | ACX50: 0 | ACY50: 0 | ACZ50: 0 | ADA50: 0 | ADB50: 0 | ADC50: 0 | ADD50: 0 | ADE50: 0 | ADF50: 0 | ADG50: 0 | ADH50: 0 | ADI50: 0 | ADJ50: 0 | ADK50: 0 | ADL50: 0 | ADM50: 0 | ADN50: 0 | ADO50: 0 | ADP50: =MH1901_Schedule_B!G55+MH1901_Schedule_B!F55 -> 0 | ADQ50: =MH1901_Schedule_B!I55+MH1901_Schedule_B!J55 -> 0 | ADR50: =MH1901_Schedule_B!L55+MH1901_Schedule_B!M55 -> 0 | ADS50: =MH1901_Schedule_B!O55 -> 0 | ADT50: =MH1901_Schedule_B!Q55 -> 0 | ADU50: =MH1901_Schedule_B!S55 -> 0 | ADV50: =MH1901_Schedule_B!U55 -> 0 | ADW50: =MH1901_Schedule_B!W55 -> 0 | ADX50: =MH1901_Schedule_B!Y55 -> 0 | ADY50: =MH1901_Schedule_B!AA55 -> 0 | ADZ50: =MH1901_Schedule_B!AC55+MH1901_Schedule_B!AI55 -> 0 | AEA50: =MH1901_Schedule_B!AE55+MH1901_Schedule_B!AK55 -> 0 | AEB50: =MH1901_Schedule_B!AG55+MH1901_Schedule_B!AM55 -> 0 | AEC50: =MH1901_Schedule_B!AO55 -> 0 | AED50: =MH1901_Schedule_B!AQ55 -> 0 | AEE50: =MH1901_Schedule_B!AS55 -> 0 | AEF50: =MH1901_Schedule_B!AU55 -> 0 | AEG50: =MH1901_Schedule_B!BE55 -> 0 | AEH50: =MH1901_Schedule_B!BG55 -> 0 | AEI50: =MH1901_Schedule_B!AW55 -> 0 | AEJ50: =MH1901_Schedule_B!AY55 -> 0 | AEK50: =MH1901_Schedule_B!BA55 -> 0 | AEL50: =MH1901_Schedule_B!BC55 -> 0 | AEM50: 0 | AEN50: 0 | AEO50: 0 | AEP50: 0 | AEQ50: 0 | AER50: 0 | AES50: 0 | AET50: 0 | AEU50: 0 | AEV50: 0 | AEW50: 0 | AEX50: 0 | AEY50: 0 | AEZ50: 0 | AFA50: 0 | AFB50: 0 | AFC50: 0 | AFD50: 0 | AFE50: 0 | AFF50: 0 | AFG50: 0 | AFH50: 0 | AFI50: 0
A51: 0 | B51: 37 | C51: ='LAC103'!D51 -> 0 | D51: ='LAC103'!E51 ->  | E51: ='LAC103'!F51 ->  | IY51: =LAC102_S_CSS!FK51+LAC102_S_PEI!DQ51 -> 0 | IZ51: =LAC102_S_CSS!FL51+LAC102_S_PEI!DR51 -> 0 | JA51: =LAC102_S_CSS!FM51+LAC102_S_PEI!DS51 -> 0 | JB51: =LAC102_S_CSS!FN51+LAC102_S_PEI!DT51 -> 0 | JC51: =LAC102_S_CSS!FO51+LAC102_S_PEI!DU51 -> 0 | JD51: =LAC102_S_CSS!FP51+LAC102_S_PEI!DV51 -> 0 | JE51: =LAC102_S_CSS!FQ51+LAC102_S_PEI!DW51 -> 0 | JF51: =LAC102_S_CSS!FR51+LAC102_S_PEI!DX51 -> 0 | JG51: =LAC102_S_CSS!FS51+LAC102_S_PEI!DY51 -> 0 | JH51: =LAC102_S_CSS!FT51+LAC102_S_PEI!DZ51 -> 0 | JI51: =LAC102_S_CSS!FU51+LAC102_S_PEI!EA51 -> 0 | JJ51: =LAC102_S_CSS!FV51+LAC102_S_PEI!EB51 -> 0 | JK51: =LAC102_S_CSS!FW51+LAC102_S_PEI!EC51 -> 0 | JL51: =LAC102_S_CSS!FX51+LAC102_S_PEI!ED51 -> 0 | JM51: =LAC102_S_CSS!FY51+LAC102_S_PEI!EE51 -> 0 | JN51: =LAC102_S_CSS!FZ51+LAC102_S_PEI!EF51 -> 0 | JO51: =LAC102_S_CSS!GA51+LAC102_S_PEI!EG51 -> 0 | JP51: =LAC102_S_CSS!GB51+LAC102_S_PEI!EH51 -> 0 | JQ51: =LAC102_S_CSS!GC51+LAC102_S_PEI!EI51 -> 0 | JR51: =LAC102_S_CSS!GD51+LAC102_S_PEI!EJ51 -> 0 | JS51: =LAC102_S_CSS!GE51+LAC102_S_PEI!EK51 -> 0 | JT51: =LAC102_S_CSS!GF51+LAC102_S_PEI!EL51 -> 0 | JU51: =LAC102_S_CSS!GG51+LAC102_S_PEI!EM51 -> 0 | ABV51: 0 | ABW51: 0 | ABX51: 0 | ABY51: 0 | ABZ51: 0 | ACA51: 0 | ACB51: 0 | ACC51: 0 | ACD51: 0 | ACE51: 0 | ACF51: 0 | ACG51: 0 | ACH51: 0 | ACI51: =IF(ADF51-AEC51=0,ADF51,"ERROR") -> 0 | ACJ51: 0 | ACK51: 0 | ACL51: 0 | ACM51: 0 | ACN51: 0 | ACO51: 0 | ACP51: 0 | ACQ51: 0 | ACR51: 0 | ACS51: 0 | ACT51: 0 | ACU51: 0 | ACV51: 0 | ACW51: 0 | ACX51: 0 | ACY51: 0 | ACZ51: 0 | ADA51: 0 | ADB51: 0 | ADC51: 0 | ADD51: 0 | ADE51: 0 | ADF51: 0 | ADG51: 0 | ADH51: 0 | ADI51: 0 | ADJ51: 0 | ADK51: 0 | ADL51: 0 | ADM51: 0 | ADN51: 0 | ADO51: 0 | ADP51: =MH1901_Schedule_B!G56+MH1901_Schedule_B!F56 -> 0 | ADQ51: =MH1901_Schedule_B!I56+MH1901_Schedule_B!J56 -> 0 | ADR51: =MH1901_Schedule_B!L56+MH1901_Schedule_B!M56 -> 0 | ADS51: =MH1901_Schedule_B!O56 -> 0 | ADT51: =MH1901_Schedule_B!Q56 -> 0 | ADU51: =MH1901_Schedule_B!S56 -> 0 | ADV51: =MH1901_Schedule_B!U56 -> 0 | ADW51: =MH1901_Schedule_B!W56 -> 0 | ADX51: =MH1901_Schedule_B!Y56 -> 0 | ADY51: =MH1901_Schedule_B!AA56 -> 0 | ADZ51: =MH1901_Schedule_B!AC56+MH1901_Schedule_B!AI56 -> 0 | AEA51: =MH1901_Schedule_B!AE56+MH1901_Schedule_B!AK56 -> 0 | AEB51: =MH1901_Schedule_B!AG56+MH1901_Schedule_B!AM56 -> 0 | AEC51: =MH1901_Schedule_B!AO56 -> 0 | AED51: =MH1901_Schedule_B!AQ56 -> 0 | AEE51: =MH1901_Schedule_B!AS56 -> 0 | AEF51: =MH1901_Schedule_B!AU56 -> 0 | AEG51: =MH1901_Schedule_B!BE56 -> 0 | AEH51: =MH1901_Schedule_B!BG56 -> 0 | AEI51: =MH1901_Schedule_B!AW56 -> 0 | AEJ51: =MH1901_Schedule_B!AY56 -> 0 | AEK51: =MH1901_Schedule_B!BA56 -> 0 | AEL51: =MH1901_Schedule_B!BC56 -> 0 | AEM51: 0 | AEN51: 0 | AEO51: 0 | AEP51: 0 | AEQ51: 0 | AER51: 0 | AES51: 0 | AET51: 0 | AEU51: 0 | AEV51: 0 | AEW51: 0 | AEX51: 0 | AEY51: 0 | AEZ51: 0 | AFA51: 0 | AFB51: 0 | AFC51: 0 | AFD51: 0 | AFE51: 0 | AFF51: 0 | AFG51: 0 | AFH51: 0 | AFI51: 0
A52: 0 | B52: 38 | C52: ='LAC103'!D52 -> 0 | D52: ='LAC103'!E52 ->  | E52: ='LAC103'!F52 ->  | IY52: =LAC102_S_CSS!FK52+LAC102_S_PEI!DQ52 -> 0 | IZ52: =LAC102_S_CSS!FL52+LAC102_S_PEI!DR52 -> 0 | JA52: =LAC102_S_CSS!FM52+LAC102_S_PEI!DS52 -> 0 | JB52: =LAC102_S_CSS!FN52+LAC102_S_PEI!DT52 -> 0 | JC52: =LAC102_S_CSS!FO52+LAC102_S_PEI!DU52 -> 0 | JD52: =LAC102_S_CSS!FP52+LAC102_S_PEI!DV52 -> 0 | JE52: =LAC102_S_CSS!FQ52+LAC102_S_PEI!DW52 -> 0 | JF52: =LAC102_S_CSS!FR52+LAC102_S_PEI!DX52 -> 0 | JG52: =LAC102_S_CSS!FS52+LAC102_S_PEI!DY52 -> 0 | JH52: =LAC102_S_CSS!FT52+LAC102_S_PEI!DZ52 -> 0 | JI52: =LAC102_S_CSS!FU52+LAC102_S_PEI!EA52 -> 0 | JJ52: =LAC102_S_CSS!FV52+LAC102_S_PEI!EB52 -> 0 | JK52: =LAC102_S_CSS!FW52+LAC102_S_PEI!EC52 -> 0 | JL52: =LAC102_S_CSS!FX52+LAC102_S_PEI!ED52 -> 0 | JM52: =LAC102_S_CSS!FY52+LAC102_S_PEI!EE52 -> 0 | JN52: =LAC102_S_CSS!FZ52+LAC102_S_PEI!EF52 -> 0 | JO52: =LAC102_S_CSS!GA52+LAC102_S_PEI!EG52 -> 0 | JP52: =LAC102_S_CSS!GB52+LAC102_S_PEI!EH52 -> 0 | JQ52: =LAC102_S_CSS!GC52+LAC102_S_PEI!EI52 -> 0 | JR52: =LAC102_S_CSS!GD52+LAC102_S_PEI!EJ52 -> 0 | JS52: =LAC102_S_CSS!GE52+LAC102_S_PEI!EK52 -> 0 | JT52: =LAC102_S_CSS!GF52+LAC102_S_PEI!EL52 -> 0 | JU52: =LAC102_S_CSS!GG52+LAC102_S_PEI!EM52 -> 0 | ABV52: =IF(ACS52-ADP52=0,ACS52,"ERROR") -> 0 | ABW52: 0 | ABX52: 0 | ABY52: 0 | ABZ52: 0 | ACA52: 0 | ACB52: 0 | ACC52: 0 | ACD52: 0 | ACE52: 0 | ACF52: 0 | ACG52: 0 | ACH52: 0 | ACI52: 0 | ACJ52: 0 | ACK52: 0 | ACL52: 0 | ACM52: 0 | ACN52: 0 | ACO52: 0 | ACP52: 0 | ACQ52: 0 | ACR52: 0 | ACS52: 0 | ACT52: 0 | ACU52: 0 | ACV52: 0 | ACW52: 0 | ACX52: 0 | ACY52: 0 | ACZ52: 0 | ADA52: 0 | ADB52: 0 | ADC52: 0 | ADD52: 0 | ADE52: 0 | ADF52: 0 | ADG52: 0 | ADH52: 0 | ADI52: 0 | ADJ52: 0 | ADK52: 0 | ADL52: 0 | ADM52: 0 | ADN52: 0 | ADO52: 0 | ADP52: =MH1901_Schedule_B!G57+MH1901_Schedule_B!F57 -> 0 | ADQ52: =MH1901_Schedule_B!I57+MH1901_Schedule_B!J57 -> 0 | ADR52: =MH1901_Schedule_B!L57+MH1901_Schedule_B!M57 -> 0 | ADS52: =MH1901_Schedule_B!O57 -> 0 | ADT52: =MH1901_Schedule_B!Q57 -> 0 | ADU52: =MH1901_Schedule_B!S57 -> 0 | ADV52: =MH1901_Schedule_B!U57 -> 0 | ADW52: =MH1901_Schedule_B!W57 -> 0 | ADX52: =MH1901_Schedule_B!Y57 -> 0 | ADY52: =MH1901_Schedule_B!AA57 -> 0 | ADZ52: =MH1901_Schedule_B!AC57+MH1901_Schedule_B!AI57 -> 0 | AEA52: =MH1901_Schedule_B!AE57+MH1901_Schedule_B!AK57 -> 0 | AEB52: =MH1901_Schedule_B!AG57+MH1901_Schedule_B!AM57 -> 0 | AEC52: =MH1901_Schedule_B!AO57 -> 0 | AED52: =MH1901_Schedule_B!AQ57 -> 0 | AEE52: =MH1901_Schedule_B!AS57 -> 0 | AEF52: =MH1901_Schedule_B!AU57 -> 0 | AEG52: =MH1901_Schedule_B!BE57 -> 0 | AEH52: =MH1901_Schedule_B!BG57 -> 0 | AEI52: =MH1901_Schedule_B!AW57 -> 0 | AEJ52: =MH1901_Schedule_B!AY57 -> 0 | AEK52: =MH1901_Schedule_B!BA57 -> 0 | AEL52: =MH1901_Schedule_B!BC57 -> 0 | AEM52: 0 | AEN52: 0 | AEO52: 0 | AEP52: 0 | AEQ52: 0 | AER52: 0 | AES52: 0 | AET52: 0 | AEU52: 0 | AEV52: 0 | AEW52: 0 | AEX52: 0 | AEY52: 0 | AEZ52: 0 | AFA52: 0 | AFB52: 0 | AFC52: 0 | AFD52: 0 | AFE52: 0 | AFF52: 0 | AFG52: 0 | AFH52: 0 | AFI52: 0
A53: 0 | B53: 39 | C53: ='LAC103'!D53 -> 0 | D53: ='LAC103'!E53 ->  | E53: ='LAC103'!F53 ->  | IY53: =LAC102_S_CSS!FK53+LAC102_S_PEI!DQ53 -> 0 | IZ53: =LAC102_S_CSS!FL53+LAC102_S_PEI!DR53 -> 0 | JA53: =LAC102_S_CSS!FM53+LAC102_S_PEI!DS53 -> 0 | JB53: =LAC102_S_CSS!FN53+LAC102_S_PEI!DT53 -> 0 | JC53: =LAC102_S_CSS!FO53+LAC102_S_PEI!DU53 -> 0 | JD53: =LAC102_S_CSS!FP53+LAC102_S_PEI!DV53 -> 0 | JE53: =LAC102_S_CSS!FQ53+LAC102_S_PEI!DW53 -> 0 | JF53: =LAC102_S_CSS!FR53+LAC102_S_PEI!DX53 -> 0 | JG53: =LAC102_S_CSS!FS53+LAC102_S_PEI!DY53 -> 0 | JH53: =LAC102_S_CSS!FT53+LAC102_S_PEI!DZ53 -> 0 | JI53: =LAC102_S_CSS!FU53+LAC102_S_PEI!EA53 -> 0 | JJ53: =LAC102_S_CSS!FV53+LAC102_S_PEI!EB53 -> 0 | JK53: =LAC102_S_CSS!FW53+LAC102_S_PEI!EC53 -> 0 | JL53: =LAC102_S_CSS!FX53+LAC102_S_PEI!ED53 -> 0 | JM53: =LAC102_S_CSS!FY53+LAC102_S_PEI!EE53 -> 0 | JN53: =LAC102_S_CSS!FZ53+LAC102_S_PEI!EF53 -> 0 | JO53: =LAC102_S_CSS!GA53+LAC102_S_PEI!EG53 -> 0 | JP53: =LAC102_S_CSS!GB53+LAC102_S_PEI!EH53 -> 0 | JQ53: =LAC102_S_CSS!GC53+LAC102_S_PEI!EI53 -> 0 | JR53: =LAC102_S_CSS!GD53+LAC102_S_PEI!EJ53 -> 0 | JS53: =LAC102_S_CSS!GE53+LAC102_S_PEI!EK53 -> 0 | JT53: =LAC102_S_CSS!GF53+LAC102_S_PEI!EL53 -> 0 | JU53: =LAC102_S_CSS!GG53+LAC102_S_PEI!EM53 -> 0 | ABV53: 0 | ABW53: 0 | ABX53: 0 | ABY53: 0 | ABZ53: 0 | ACA53: 0 | ACB53: 0 | ACC53: 0 | ACD53: 0 | ACE53: 0 | ACF53: 0 | ACG53: 0 | ACH53: 0 | ACI53: 0 | ACJ53: 0 | ACK53: 0 | ACL53: 0 | ACM53: 0 | ACN53: 0 | ACO53: 0 | ACP53: 0 | ACQ53: 0 | ACR53: 0 | ACS53: 0 | ACT53: 0 | ACU53: 0 | ACV53: 0 | ACW53: 0 | ACX53: 0 | ACY53: 0 | ACZ53: 0 | ADA53: 0 | ADB53: 0 | ADC53: 0 | ADD53: 0 | ADE53: 0 | ADF53: 0 | ADG53: 0 | ADH53: 0 | ADI53: 0 | ADJ53: 0 | ADK53: 0 | ADL53: 0 | ADM53: 0 | ADN53: 0 | ADO53: 0 | ADP53: =MH1901_Schedule_B!G58+MH1901_Schedule_B!F58 -> 0 | ADQ53: =MH1901_Schedule_B!I58+MH1901_Schedule_B!J58 -> 0 | ADR53: =MH1901_Schedule_B!L58+MH1901_Schedule_B!M58 -> 0 | ADS53: =MH1901_Schedule_B!O58 -> 0 | ADT53: =MH1901_Schedule_B!Q58 -> 0 | ADU53: =MH1901_Schedule_B!S58 -> 0 | ADV53: =MH1901_Schedule_B!U58 -> 0 | ADW53: =MH1901_Schedule_B!W58 -> 0 | ADX53: =MH1901_Schedule_B!Y58 -> 0 | ADY53: =MH1901_Schedule_B!AA58 -> 0 | ADZ53: =MH1901_Schedule_B!AC58+MH1901_Schedule_B!AI58 -> 0 | AEA53: =MH1901_Schedule_B!AE58+MH1901_Schedule_B!AK58 -> 0 | AEB53: =MH1901_Schedule_B!AG58+MH1901_Schedule_B!AM58 -> 0 | AEC53: =MH1901_Schedule_B!AO58 -> 0 | AED53: =MH1901_Schedule_B!AQ58 -> 0 | AEE53: =MH1901_Schedule_B!AS58 -> 0 | AEF53: =MH1901_Schedule_B!AU58 -> 0 | AEG53: =MH1901_Schedule_B!BE58 -> 0 | AEH53: =MH1901_Schedule_B!BG58 -> 0 | AEI53: =MH1901_Schedule_B!AW58 -> 0 | AEJ53: =MH1901_Schedule_B!AY58 -> 0 | AEK53: =MH1901_Schedule_B!BA58 -> 0 | AEL53: =MH1901_Schedule_B!BC58 -> 0 | AEM53: 0 | AEN53: 0 | AEO53: 0 | AEP53: 0 | AEQ53: 0 | AER53: 0 | AES53: 0 | AET53: 0 | AEU53: 0 | AEV53: 0 | AEW53: 0 | AEX53: 0 | AEY53: 0 | AEZ53: 0 | AFA53: 0 | AFB53: 0 | AFC53: 0 | AFD53: 0 | AFE53: 0 | AFF53: 0 | AFG53: 0 | AFH53: 0 | AFI53: 0
A54: 0 | B54: 40 | C54: ='LAC103'!D54 -> 0 | D54: ='LAC103'!E54 ->  | E54: ='LAC103'!F54 ->  | IY54: =LAC102_S_CSS!FK54+LAC102_S_PEI!DQ54 -> 0 | IZ54: =LAC102_S_CSS!FL54+LAC102_S_PEI!DR54 -> 0 | JA54: =LAC102_S_CSS!FM54+LAC102_S_PEI!DS54 -> 0 | JB54: =LAC102_S_CSS!FN54+LAC102_S_PEI!DT54 -> 0 | JC54: =LAC102_S_CSS!FO54+LAC102_S_PEI!DU54 -> 0 | JD54: =LAC102_S_CSS!FP54+LAC102_S_PEI!DV54 -> 0 | JE54: =LAC102_S_CSS!FQ54+LAC102_S_PEI!DW54 -> 0 | JF54: =LAC102_S_CSS!FR54+LAC102_S_PEI!DX54 -> 0 | JG54: =LAC102_S_CSS!FS54+LAC102_S_PEI!DY54 -> 0 | JH54: =LAC102_S_CSS!FT54+LAC102_S_PEI!DZ54 -> 0 | JI54: =LAC102_S_CSS!FU54+LAC102_S_PEI!EA54 -> 0 | JJ54: =LAC102_S_CSS!FV54+LAC102_S_PEI!EB54 -> 0 | JK54: =LAC102_S_CSS!FW54+LAC102_S_PEI!EC54 -> 0 | JL54: =LAC102_S_CSS!FX54+LAC102_S_PEI!ED54 -> 0 | JM54: =LAC102_S_CSS!FY54+LAC102_S_PEI!EE54 -> 0 | JN54: =LAC102_S_CSS!FZ54+LAC102_S_PEI!EF54 -> 0 | JO54: =LAC102_S_CSS!GA54+LAC102_S_PEI!EG54 -> 0 | JP54: =LAC102_S_CSS!GB54+LAC102_S_PEI!EH54 -> 0 | JQ54: =LAC102_S_CSS!GC54+LAC102_S_PEI!EI54 -> 0 | JR54: =LAC102_S_CSS!GD54+LAC102_S_PEI!EJ54 -> 0 | JS54: =LAC102_S_CSS!GE54+LAC102_S_PEI!EK54 -> 0 | JT54: =LAC102_S_CSS!GF54+LAC102_S_PEI!EL54 -> 0 | JU54: =LAC102_S_CSS!GG54+LAC102_S_PEI!EM54 -> 0 | ABV54: 0 | ABW54: 0 | ABX54: 0 | ABY54: 0 | ABZ54: 0 | ACA54: 0 | ACB54: 0 | ACC54: 0 | ACD54: 0 | ACE54: 0 | ACF54: 0 | ACG54: 0 | ACH54: 0 | ACI54: 0 | ACJ54: 0 | ACK54: 0 | ACL54: 0 | ACM54: 0 | ACN54: 0 | ACO54: 0 | ACP54: 0 | ACQ54: 0 | ACR54: 0 | ACS54: 0 | ACT54: 0 | ACU54: 0 | ACV54: 0 | ACW54: 0 | ACX54: 0 | ACY54: 0 | ACZ54: 0 | ADA54: 0 | ADB54: 0 | ADC54: 0 | ADD54: 0 | ADE54: 0 | ADF54: 0 | ADG54: 0 | ADH54: 0 | ADI54: 0 | ADJ54: 0 | ADK54: 0 | ADL54: 0 | ADM54: 0 | ADN54: 0 | ADO54: 0 | ADP54: =MH1901_Schedule_B!G59+MH1901_Schedule_B!F59 -> 0 | ADQ54: =MH1901_Schedule_B!I59+MH1901_Schedule_B!J59 -> 0 | ADR54: =MH1901_Schedule_B!L59+MH1901_Schedule_B!M59 -> 0 | ADS54: =MH1901_Schedule_B!O59 -> 0 | ADT54: =MH1901_Schedule_B!Q59 -> 0 | ADU54: =MH1901_Schedule_B!S59 -> 0 | ADV54: =MH1901_Schedule_B!U59 -> 0 | ADW54: =MH1901_Schedule_B!W59 -> 0 | ADX54: =MH1901_Schedule_B!Y59 -> 0 | ADY54: =MH1901_Schedule_B!AA59 -> 0 | ADZ54: =MH1901_Schedule_B!AC59+MH1901_Schedule_B!AI59 -> 0 | AEA54: =MH1901_Schedule_B!AE59+MH1901_Schedule_B!AK59 -> 0 | AEB54: =MH1901_Schedule_B!AG59+MH1901_Schedule_B!AM59 -> 0 | AEC54: =MH1901_Schedule_B!AO59 -> 0 | AED54: =MH1901_Schedule_B!AQ59 -> 0 | AEE54: =MH1901_Schedule_B!AS59 -> 0 | AEF54: =MH1901_Schedule_B!AU59 -> 0 | AEG54: =MH1901_Schedule_B!BE59 -> 0 | AEH54: =MH1901_Schedule_B!BG59 -> 0 | AEI54: =MH1901_Schedule_B!AW59 -> 0 | AEJ54: =MH1901_Schedule_B!AY59 -> 0 | AEK54: =MH1901_Schedule_B!BA59 -> 0 | AEL54: =MH1901_Schedule_B!BC59 -> 0 | AEM54: 0 | AEN54: 0 | AEO54: 0 | AEP54: 0 | AEQ54: 0 | AER54: 0 | AES54: 0 | AET54: 0 | AEU54: 0 | AEV54: 0 | AEW54: 0 | AEX54: 0 | AEY54: 0 | AEZ54: 0 | AFA54: 0 | AFB54: 0 | AFC54: 0 | AFD54: 0 | AFE54: 0 | AFF54: 0 | AFG54: 0 | AFH54: 0 | AFI54: 0
A55: 0 | B55: 41 | C55: ='LAC103'!D55 -> 0 | D55: ='LAC103'!E55 ->  | E55: ='LAC103'!F55 ->  | IY55: =LAC102_S_CSS!FK55+LAC102_S_PEI!DQ55 -> 0 | IZ55: =LAC102_S_CSS!FL55+LAC102_S_PEI!DR55 -> 0 | JA55: =LAC102_S_CSS!FM55+LAC102_S_PEI!DS55 -> 0 | JB55: =LAC102_S_CSS!FN55+LAC102_S_PEI!DT55 -> 0 | JC55: =LAC102_S_CSS!FO55+LAC102_S_PEI!DU55 -> 0 | JD55: =LAC102_S_CSS!FP55+LAC102_S_PEI!DV55 -> 0 | JE55: =LAC102_S_CSS!FQ55+LAC102_S_PEI!DW55 -> 0 | JF55: =LAC102_S_CSS!FR55+LAC102_S_PEI!DX55 -> 0 | JG55: =LAC102_S_CSS!FS55+LAC102_S_PEI!DY55 -> 0 | JH55: =LAC102_S_CSS!FT55+LAC102_S_PEI!DZ55 -> 0 | JI55: =LAC102_S_CSS!FU55+LAC102_S_PEI!EA55 -> 0 | JJ55: =LAC102_S_CSS!FV55+LAC102_S_PEI!EB55 -> 0 | JK55: =LAC102_S_CSS!FW55+LAC102_S_PEI!EC55 -> 0 | JL55: =LAC102_S_CSS!FX55+LAC102_S_PEI!ED55 -> 0 | JM55: =LAC102_S_CSS!FY55+LAC102_S_PEI!EE55 -> 0 | JN55: =LAC102_S_CSS!FZ55+LAC102_S_PEI!EF55 -> 0 | JO55: =LAC102_S_CSS!GA55+LAC102_S_PEI!EG55 -> 0 | JP55: =LAC102_S_CSS!GB55+LAC102_S_PEI!EH55 -> 0 | JQ55: =LAC102_S_CSS!GC55+LAC102_S_PEI!EI55 -> 0 | JR55: =LAC102_S_CSS!GD55+LAC102_S_PEI!EJ55 -> 0 | JS55: =LAC102_S_CSS!GE55+LAC102_S_PEI!EK55 -> 0 | JT55: =LAC102_S_CSS!GF55+LAC102_S_PEI!EL55 -> 0 | JU55: =LAC102_S_CSS!GG55+LAC102_S_PEI!EM55 -> 0 | ABV55: 0 | ABW55: 0 | ABX55: 0 | ABY55: 0 | ABZ55: 0 | ACA55: 0 | ACB55: 0 | ACC55: 0 | ACD55: 0 | ACE55: 0 | ACF55: 0 | ACG55: 0 | ACH55: 0 | ACI55: 0 | ACJ55: 0 | ACK55: 0 | ACL55: 0 | ACM55: 0 | ACN55: 0 | ACO55: 0 | ACP55: 0 | ACQ55: 0 | ACR55: 0 | ACS55: 0 | ACT55: 0 | ACU55: 0 | ACV55: 0 | ACW55: 0 | ACX55: 0 | ACY55: 0 | ACZ55: 0 | ADA55: 0 | ADB55: 0 | ADC55: 0 | ADD55: 0 | ADE55: 0 | ADF55: 0 | ADG55: 0 | ADH55: 0 | ADI55: 0 | ADJ55: 0 | ADK55: 0 | ADL55: 0 | ADM55: 0 | ADN55: 0 | ADO55: 0 | ADP55: =MH1901_Schedule_B!G60+MH1901_Schedule_B!F60 -> 0 | ADQ55: =MH1901_Schedule_B!I60+MH1901_Schedule_B!J60 -> 0 | ADR55: =MH1901_Schedule_B!L60+MH1901_Schedule_B!M60 -> 0 | ADS55: =MH1901_Schedule_B!O60 -> 0 | ADT55: =MH1901_Schedule_B!Q60 -> 0 | ADU55: =MH1901_Schedule_B!S60 -> 0 | ADV55: =MH1901_Schedule_B!U60 -> 0 | ADW55: =MH1901_Schedule_B!W60 -> 0 | ADX55: =MH1901_Schedule_B!Y60 -> 0 | ADY55: =MH1901_Schedule_B!AA60 -> 0 | ADZ55: =MH1901_Schedule_B!AC60+MH1901_Schedule_B!AI60 -> 0 | AEA55: =MH1901_Schedule_B!AE60+MH1901_Schedule_B!AK60 -> 0 | AEB55: =MH1901_Schedule_B!AG60+MH1901_Schedule_B!AM60 -> 0 | AEC55: =MH1901_Schedule_B!AO60 -> 0 | AED55: =MH1901_Schedule_B!AQ60 -> 0 | AEE55: =MH1901_Schedule_B!AS60 -> 0 | AEF55: =MH1901_Schedule_B!AU60 -> 0 | AEG55: =MH1901_Schedule_B!BE60 -> 0 | AEH55: =MH1901_Schedule_B!BG60 -> 0 | AEI55: =MH1901_Schedule_B!AW60 -> 0 | AEJ55: =MH1901_Schedule_B!AY60 -> 0 | AEK55: =MH1901_Schedule_B!BA60 -> 0 | AEL55: =MH1901_Schedule_B!BC60 -> 0 | AEM55: 0 | AEN55: 0 | AEO55: 0 | AEP55: 0 | AEQ55: 0 | AER55: 0 | AES55: 0 | AET55: 0 | AEU55: 0 | AEV55: 0 | AEW55: 0 | AEX55: 0 | AEY55: 0 | AEZ55: 0 | AFA55: 0 | AFB55: 0 | AFC55: 0 | AFD55: 0 | AFE55: 0 | AFF55: 0 | AFG55: 0 | AFH55: 0 | AFI55: 0
A56: 0 | B56: 42 | C56: ='LAC103'!D56 -> 0 | D56: ='LAC103'!E56 ->  | E56: ='LAC103'!F56 ->  | IY56: =LAC102_S_CSS!FK56+LAC102_S_PEI!DQ56 -> 0 | IZ56: =LAC102_S_CSS!FL56+LAC102_S_PEI!DR56 -> 0 | JA56: =LAC102_S_CSS!FM56+LAC102_S_PEI!DS56 -> 0 | JB56: =LAC102_S_CSS!FN56+LAC102_S_PEI!DT56 -> 0 | JC56: =LAC102_S_CSS!FO56+LAC102_S_PEI!DU56 -> 0 | JD56: =LAC102_S_CSS!FP56+LAC102_S_PEI!DV56 -> 0 | JE56: =LAC102_S_CSS!FQ56+LAC102_S_PEI!DW56 -> 0 | JF56: =LAC102_S_CSS!FR56+LAC102_S_PEI!DX56 -> 0 | JG56: =LAC102_S_CSS!FS56+LAC102_S_PEI!DY56 -> 0 | JH56: =LAC102_S_CSS!FT56+LAC102_S_PEI!DZ56 -> 0 | JI56: =LAC102_S_CSS!FU56+LAC102_S_PEI!EA56 -> 0 | JJ56: =LAC102_S_CSS!FV56+LAC102_S_PEI!EB56 -> 0 | JK56: =LAC102_S_CSS!FW56+LAC102_S_PEI!EC56 -> 0 | JL56: =LAC102_S_CSS!FX56+LAC102_S_PEI!ED56 -> 0 | JM56: =LAC102_S_CSS!FY56+LAC102_S_PEI!EE56 -> 0 | JN56: =LAC102_S_CSS!FZ56+LAC102_S_PEI!EF56 -> 0 | JO56: =LAC102_S_CSS!GA56+LAC102_S_PEI!EG56 -> 0 | JP56: =LAC102_S_CSS!GB56+LAC102_S_PEI!EH56 -> 0 | JQ56: =LAC102_S_CSS!GC56+LAC102_S_PEI!EI56 -> 0 | JR56: =LAC102_S_CSS!GD56+LAC102_S_PEI!EJ56 -> 0 | JS56: =LAC102_S_CSS!GE56+LAC102_S_PEI!EK56 -> 0 | JT56: =LAC102_S_CSS!GF56+LAC102_S_PEI!EL56 -> 0 | JU56: =LAC102_S_CSS!GG56+LAC102_S_PEI!EM56 -> 0 | ABV56: 0 | ABW56: 0 | ABX56: 0 | ABY56: 0 | ABZ56: 0 | ACA56: 0 | ACB56: 0 | ACC56: 0 | ACD56: 0 | ACE56: 0 | ACF56: 0 | ACG56: 0 | ACH56: 0 | ACI56: 0 | ACJ56: 0 | ACK56: 0 | ACL56: 0 | ACM56: 0 | ACN56: 0 | ACO56: 0 | ACP56: 0 | ACQ56: 0 | ACR56: 0 | ACS56: 0 | ACT56: 0 | ACU56: 0 | ACV56: 0 | ACW56: 0 | ACX56: 0 | ACY56: 0 | ACZ56: 0 | ADA56: 0 | ADB56: 0 | ADC56: 0 | ADD56: 0 | ADE56: 0 | ADF56: 0 | ADG56: 0 | ADH56: 0 | ADI56: 0 | ADJ56: 0 | ADK56: 0 | ADL56: 0 | ADM56: 0 | ADN56: 0 | ADO56: 0 | ADP56: =MH1901_Schedule_B!G61+MH1901_Schedule_B!F61 -> 0 | ADQ56: =MH1901_Schedule_B!I61+MH1901_Schedule_B!J61 -> 0 | ADR56: =MH1901_Schedule_B!L61+MH1901_Schedule_B!M61 -> 0 | ADS56: =MH1901_Schedule_B!O61 -> 0 | ADT56: =MH1901_Schedule_B!Q61 -> 0 | ADU56: =MH1901_Schedule_B!S61 -> 0 | ADV56: =MH1901_Schedule_B!U61 -> 0 | ADW56: =MH1901_Schedule_B!W61 -> 0 | ADX56: =MH1901_Schedule_B!Y61 -> 0 | ADY56: =MH1901_Schedule_B!AA61 -> 0 | ADZ56: =MH1901_Schedule_B!AC61+MH1901_Schedule_B!AI61 -> 0 | AEA56: =MH1901_Schedule_B!AE61+MH1901_Schedule_B!AK61 -> 0 | AEB56: =MH1901_Schedule_B!AG61+MH1901_Schedule_B!AM61 -> 0 | AEC56: =MH1901_Schedule_B!AO61 -> 0 | AED56: =MH1901_Schedule_B!AQ61 -> 0 | AEE56: =MH1901_Schedule_B!AS61 -> 0 | AEF56: =MH1901_Schedule_B!AU61 -> 0 | AEG56: =MH1901_Schedule_B!BE61 -> 0 | AEH56: =MH1901_Schedule_B!BG61 -> 0 | AEI56: =MH1901_Schedule_B!AW61 -> 0 | AEJ56: =MH1901_Schedule_B!AY61 -> 0 | AEK56: =MH1901_Schedule_B!BA61 -> 0 | AEL56: =MH1901_Schedule_B!BC61 -> 0 | AEM56: 0 | AEN56: 0 | AEO56: 0 | AEP56: 0 | AEQ56: 0 | AER56: 0 | AES56: 0 | AET56: 0 | AEU56: 0 | AEV56: 0 | AEW56: 0 | AEX56: 0 | AEY56: 0 | AEZ56: 0 | AFA56: 0 | AFB56: 0 | AFC56: 0 | AFD56: 0 | AFE56: 0 | AFF56: 0 | AFG56: 0 | AFH56: 0 | AFI56: 0
A57: 0 | B57: 43 | C57: ='LAC103'!D57 -> 0 | D57: ='LAC103'!E57 ->  | E57: ='LAC103'!F57 ->  | IY57: =LAC102_S_CSS!FK57+LAC102_S_PEI!DQ57 -> 0 | IZ57: =LAC102_S_CSS!FL57+LAC102_S_PEI!DR57 -> 0 | JA57: =LAC102_S_CSS!FM57+LAC102_S_PEI!DS57 -> 0 | JB57: =LAC102_S_CSS!FN57+LAC102_S_PEI!DT57 -> 0 | JC57: =LAC102_S_CSS!FO57+LAC102_S_PEI!DU57 -> 0 | JD57: =LAC102_S_CSS!FP57+LAC102_S_PEI!DV57 -> 0 | JE57: =LAC102_S_CSS!FQ57+LAC102_S_PEI!DW57 -> 0 | JF57: =LAC102_S_CSS!FR57+LAC102_S_PEI!DX57 -> 0 | JG57: =LAC102_S_CSS!FS57+LAC102_S_PEI!DY57 -> 0 | JH57: =LAC102_S_CSS!FT57+LAC102_S_PEI!DZ57 -> 0 | JI57: =LAC102_S_CSS!FU57+LAC102_S_PEI!EA57 -> 0 | JJ57: =LAC102_S_CSS!FV57+LAC102_S_PEI!EB57 -> 0 | JK57: =LAC102_S_CSS!FW57+LAC102_S_PEI!EC57 -> 0 | JL57: =LAC102_S_CSS!FX57+LAC102_S_PEI!ED57 -> 0 | JM57: =LAC102_S_CSS!FY57+LAC102_S_PEI!EE57 -> 0 | JN57: =LAC102_S_CSS!FZ57+LAC102_S_PEI!EF57 -> 0 | JO57: =LAC102_S_CSS!GA57+LAC102_S_PEI!EG57 -> 0 | JP57: =LAC102_S_CSS!GB57+LAC102_S_PEI!EH57 -> 0 | JQ57: =LAC102_S_CSS!GC57+LAC102_S_PEI!EI57 -> 0 | JR57: =LAC102_S_CSS!GD57+LAC102_S_PEI!EJ57 -> 0 | JS57: =LAC102_S_CSS!GE57+LAC102_S_PEI!EK57 -> 0 | JT57: =LAC102_S_CSS!GF57+LAC102_S_PEI!EL57 -> 0 | JU57: =LAC102_S_CSS!GG57+LAC102_S_PEI!EM57 -> 0 | ABV57: 0 | ABW57: 0 | ABX57: 0 | ABY57: 0 | ABZ57: 0 | ACA57: 0 | ACB57: 0 | ACC57: 0 | ACD57: 0 | ACE57: 0 | ACF57: 0 | ACG57: 0 | ACH57: 0 | ACI57: 0 | ACJ57: 0 | ACK57: 0 | ACL57: 0 | ACM57: 0 | ACN57: 0 | ACO57: 0 | ACP57: 0 | ACQ57: 0 | ACR57: 0 | ACS57: 0 | ACT57: 0 | ACU57: 0 | ACV57: 0 | ACW57: 0 | ACX57: 0 | ACY57: 0 | ACZ57: 0 | ADA57: 0 | ADB57: 0 | ADC57: 0 | ADD57: 0 | ADE57: 0 | ADF57: 0 | ADG57: 0 | ADH57: 0 | ADI57: 0 | ADJ57: 0 | ADK57: 0 | ADL57: 0 | ADM57: 0 | ADN57: 0 | ADO57: 0 | ADP57: =MH1901_Schedule_B!G62+MH1901_Schedule_B!F62 -> 0 | ADQ57: =MH1901_Schedule_B!I62+MH1901_Schedule_B!J62 -> 0 | ADR57: =MH1901_Schedule_B!L62+MH1901_Schedule_B!M62 -> 0 | ADS57: =MH1901_Schedule_B!O62 -> 0 | ADT57: =MH1901_Schedule_B!Q62 -> 0 | ADU57: =MH1901_Schedule_B!S62 -> 0 | ADV57: =MH1901_Schedule_B!U62 -> 0 | ADW57: =MH1901_Schedule_B!W62 -> 0 | ADX57: =MH1901_Schedule_B!Y62 -> 0 | ADY57: =MH1901_Schedule_B!AA62 -> 0 | ADZ57: =MH1901_Schedule_B!AC62+MH1901_Schedule_B!AI62 -> 0 | AEA57: =MH1901_Schedule_B!AE62+MH1901_Schedule_B!AK62 -> 0 | AEB57: =MH1901_Schedule_B!AG62+MH1901_Schedule_B!AM62 -> 0 | AEC57: =MH1901_Schedule_B!AO62 -> 0 | AED57: =MH1901_Schedule_B!AQ62 -> 0 | AEE57: =MH1901_Schedule_B!AS62 -> 0 | AEF57: =MH1901_Schedule_B!AU62 -> 0 | AEG57: =MH1901_Schedule_B!BE62 -> 0 | AEH57: =MH1901_Schedule_B!BG62 -> 0 | AEI57: =MH1901_Schedule_B!AW62 -> 0 | AEJ57: =MH1901_Schedule_B!AY62 -> 0 | AEK57: =MH1901_Schedule_B!BA62 -> 0 | AEL57: =MH1901_Schedule_B!BC62 -> 0 | AEM57: 0 | AEN57: 0 | AEO57: 0 | AEP57: 0 | AEQ57: 0 | AER57: 0 | AES57: 0 | AET57: 0 | AEU57: 0 | AEV57: 0 | AEW57: 0 | AEX57: 0 | AEY57: 0 | AEZ57: 0 | AFA57: 0 | AFB57: 0 | AFC57: 0 | AFD57: 0 | AFE57: 0 | AFF57: 0 | AFG57: 0 | AFH57: 0 | AFI57: 0
A58: 0 | B58: 44 | C58: ='LAC103'!D58 -> 0 | D58: ='LAC103'!E58 ->  | E58: ='LAC103'!F58 ->  | IY58: =LAC102_S_CSS!FK58+LAC102_S_PEI!DQ58 -> 0 | IZ58: =LAC102_S_CSS!FL58+LAC102_S_PEI!DR58 -> 0 | JA58: =LAC102_S_CSS!FM58+LAC102_S_PEI!DS58 -> 0 | JB58: =LAC102_S_CSS!FN58+LAC102_S_PEI!DT58 -> 0 | JC58: =LAC102_S_CSS!FO58+LAC102_S_PEI!DU58 -> 0 | JD58: =LAC102_S_CSS!FP58+LAC102_S_PEI!DV58 -> 0 | JE58: =LAC102_S_CSS!FQ58+LAC102_S_PEI!DW58 -> 0 | JF58: =LAC102_S_CSS!FR58+LAC102_S_PEI!DX58 -> 0 | JG58: =LAC102_S_CSS!FS58+LAC102_S_PEI!DY58 -> 0 | JH58: =LAC102_S_CSS!FT58+LAC102_S_PEI!DZ58 -> 0 | JI58: =LAC102_S_CSS!FU58+LAC102_S_PEI!EA58 -> 0 | JJ58: =LAC102_S_CSS!FV58+LAC102_S_PEI!EB58 -> 0 | JK58: =LAC102_S_CSS!FW58+LAC102_S_PEI!EC58 -> 0 | JL58: =LAC102_S_CSS!FX58+LAC102_S_PEI!ED58 -> 0 | JM58: =LAC102_S_CSS!FY58+LAC102_S_PEI!EE58 -> 0 | JN58: =LAC102_S_CSS!FZ58+LAC102_S_PEI!EF58 -> 0 | JO58: =LAC102_S_CSS!GA58+LAC102_S_PEI!EG58 -> 0 | JP58: =LAC102_S_CSS!GB58+LAC102_S_PEI!EH58 -> 0 | JQ58: =LAC102_S_CSS!GC58+LAC102_S_PEI!EI58 -> 0 | JR58: =LAC102_S_CSS!GD58+LAC102_S_PEI!EJ58 -> 0 | JS58: =LAC102_S_CSS!GE58+LAC102_S_PEI!EK58 -> 0 | JT58: =LAC102_S_CSS!GF58+LAC102_S_PEI!EL58 -> 0 | JU58: =LAC102_S_CSS!GG58+LAC102_S_PEI!EM58 -> 0 | ABV58: 0 | ABW58: 0 | ABX58: 0 | ABY58: 0 | ABZ58: 0 | ACA58: 0 | ACB58: 0 | ACC58: 0 | ACD58: 0 | ACE58: 0 | ACF58: 0 | ACG58: 0 | ACH58: 0 | ACI58: 0 | ACJ58: 0 | ACK58: 0 | ACL58: 0 | ACM58: 0 | ACN58: 0 | ACO58: 0 | ACP58: 0 | ACQ58: 0 | ACR58: 0 | ACS58: 0 | ACT58: 0 | ACU58: 0 | ACV58: 0 | ACW58: 0 | ACX58: 0 | ACY58: 0 | ACZ58: 0 | ADA58: 0 | ADB58: 0 | ADC58: 0 | ADD58: 0 | ADE58: 0 | ADF58: 0 | ADG58: 0 | ADH58: 0 | ADI58: 0 | ADJ58: 0 | ADK58: 0 | ADL58: 0 | ADM58: 0 | ADN58: 0 | ADO58: 0 | ADP58: =MH1901_Schedule_B!G63+MH1901_Schedule_B!F63 -> 0 | ADQ58: =MH1901_Schedule_B!I63+MH1901_Schedule_B!J63 -> 0 | ADR58: =MH1901_Schedule_B!L63+MH1901_Schedule_B!M63 -> 0 | ADS58: =MH1901_Schedule_B!O63 -> 0 | ADT58: =MH1901_Schedule_B!Q63 -> 0 | ADU58: =MH1901_Schedule_B!S63 -> 0 | ADV58: =MH1901_Schedule_B!U63 -> 0 | ADW58: =MH1901_Schedule_B!W63 -> 0 | ADX58: =MH1901_Schedule_B!Y63 -> 0 | ADY58: =MH1901_Schedule_B!AA63 -> 0 | ADZ58: =MH1901_Schedule_B!AC63+MH1901_Schedule_B!AI63 -> 0 | AEA58: =MH1901_Schedule_B!AE63+MH1901_Schedule_B!AK63 -> 0 | AEB58: =MH1901_Schedule_B!AG63+MH1901_Schedule_B!AM63 -> 0 | AEC58: =MH1901_Schedule_B!AO63 -> 0 | AED58: =MH1901_Schedule_B!AQ63 -> 0 | AEE58: =MH1901_Schedule_B!AS63 -> 0 | AEF58: =MH1901_Schedule_B!AU63 -> 0 | AEG58: =MH1901_Schedule_B!BE63 -> 0 | AEH58: =MH1901_Schedule_B!BG63 -> 0 | AEI58: =MH1901_Schedule_B!AW63 -> 0 | AEJ58: =MH1901_Schedule_B!AY63 -> 0 | AEK58: =MH1901_Schedule_B!BA63 -> 0 | AEL58: =MH1901_Schedule_B!BC63 -> 0 | AEM58: 0 | AEN58: 0 | AEO58: 0 | AEP58: 0 | AEQ58: 0 | AER58: 0 | AES58: 0 | AET58: 0 | AEU58: 0 | AEV58: 0 | AEW58: 0 | AEX58: 0 | AEY58: 0 | AEZ58: 0 | AFA58: 0 | AFB58: 0 | AFC58: 0 | AFD58: 0 | AFE58: 0 | AFF58: 0 | AFG58: 0 | AFH58: 0 | AFI58: 0
A59: 0 | B59: 45 | C59: ='LAC103'!D59 -> 0 | D59: ='LAC103'!E59 ->  | E59: ='LAC103'!F59 ->  | IY59: =LAC102_S_CSS!FK59+LAC102_S_PEI!DQ59 -> 0 | IZ59: =LAC102_S_CSS!FL59+LAC102_S_PEI!DR59 -> 0 | JA59: =LAC102_S_CSS!FM59+LAC102_S_PEI!DS59 -> 0 | JB59: =LAC102_S_CSS!FN59+LAC102_S_PEI!DT59 -> 0 | JC59: =LAC102_S_CSS!FO59+LAC102_S_PEI!DU59 -> 0 | JD59: =LAC102_S_CSS!FP59+LAC102_S_PEI!DV59 -> 0 | JE59: =LAC102_S_CSS!FQ59+LAC102_S_PEI!DW59 -> 0 | JF59: =LAC102_S_CSS!FR59+LAC102_S_PEI!DX59 -> 0 | JG59: =LAC102_S_CSS!FS59+LAC102_S_PEI!DY59 -> 0 | JH59: =LAC102_S_CSS!FT59+LAC102_S_PEI!DZ59 -> 0 | JI59: =LAC102_S_CSS!FU59+LAC102_S_PEI!EA59 -> 0 | JJ59: =LAC102_S_CSS!FV59+LAC102_S_PEI!EB59 -> 0 | JK59: =LAC102_S_CSS!FW59+LAC102_S_PEI!EC59 -> 0 | JL59: =LAC102_S_CSS!FX59+LAC102_S_PEI!ED59 -> 0 | JM59: =LAC102_S_CSS!FY59+LAC102_S_PEI!EE59 -> 0 | JN59: =LAC102_S_CSS!FZ59+LAC102_S_PEI!EF59 -> 0 | JO59: =LAC102_S_CSS!GA59+LAC102_S_PEI!EG59 -> 0 | JP59: =LAC102_S_CSS!GB59+LAC102_S_PEI!EH59 -> 0 | JQ59: =LAC102_S_CSS!GC59+LAC102_S_PEI!EI59 -> 0 | JR59: =LAC102_S_CSS!GD59+LAC102_S_PEI!EJ59 -> 0 | JS59: =LAC102_S_CSS!GE59+LAC102_S_PEI!EK59 -> 0 | JT59: =LAC102_S_CSS!GF59+LAC102_S_PEI!EL59 -> 0 | JU59: =LAC102_S_CSS!GG59+LAC102_S_PEI!EM59 -> 0 | ABV59: 0 | ABW59: 0 | ABX59: 0 | ABY59: 0 | ABZ59: 0 | ACA59: 0 | ACB59: 0 | ACC59: 0 | ACD59: 0 | ACE59: 0 | ACF59: 0 | ACG59: 0 | ACH59: 0 | ACI59: 0 | ACJ59: 0 | ACK59: 0 | ACL59: 0 | ACM59: 0 | ACN59: 0 | ACO59: 0 | ACP59: 0 | ACQ59: 0 | ACR59: 0 | ACS59: 0 | ACT59: 0 | ACU59: 0 | ACV59: 0 | ACW59: 0 | ACX59: 0 | ACY59: 0 | ACZ59: 0 | ADA59: 0 | ADB59: 0 | ADC59: 0 | ADD59: 0 | ADE59: 0 | ADF59: 0 | ADG59: 0 | ADH59: 0 | ADI59: 0 | ADJ59: 0 | ADK59: 0 | ADL59: 0 | ADM59: 0 | ADN59: 0 | ADO59: 0 | ADP59: =MH1901_Schedule_B!G64+MH1901_Schedule_B!F64 -> 0 | ADQ59: =MH1901_Schedule_B!I64+MH1901_Schedule_B!J64 -> 0 | ADR59: =MH1901_Schedule_B!L64+MH1901_Schedule_B!M64 -> 0 | ADS59: =MH1901_Schedule_B!O64 -> 0 | ADT59: =MH1901_Schedule_B!Q64 -> 0 | ADU59: =MH1901_Schedule_B!S64 -> 0 | ADV59: =MH1901_Schedule_B!U64 -> 0 | ADW59: =MH1901_Schedule_B!W64 -> 0 | ADX59: =MH1901_Schedule_B!Y64 -> 0 | ADY59: =MH1901_Schedule_B!AA64 -> 0 | ADZ59: =MH1901_Schedule_B!AC64+MH1901_Schedule_B!AI64 -> 0 | AEA59: =MH1901_Schedule_B!AE64+MH1901_Schedule_B!AK64 -> 0 | AEB59: =MH1901_Schedule_B!AG64+MH1901_Schedule_B!AM64 -> 0 | AEC59: =MH1901_Schedule_B!AO64 -> 0 | AED59: =MH1901_Schedule_B!AQ64 -> 0 | AEE59: =MH1901_Schedule_B!AS64 -> 0 | AEF59: =MH1901_Schedule_B!AU64 -> 0 | AEG59: =MH1901_Schedule_B!BE64 -> 0 | AEH59: =MH1901_Schedule_B!BG64 -> 0 | AEI59: =MH1901_Schedule_B!AW64 -> 0 | AEJ59: =MH1901_Schedule_B!AY64 -> 0 | AEK59: =MH1901_Schedule_B!BA64 -> 0 | AEL59: =MH1901_Schedule_B!BC64 -> 0 | AEM59: 0 | AEN59: 0 | AEO59: 0 | AEP59: 0 | AEQ59: 0 | AER59: 0 | AES59: 0 | AET59: 0 | AEU59: 0 | AEV59: 0 | AEW59: 0 | AEX59: 0 | AEY59: 0 | AEZ59: 0 | AFA59: 0 | AFB59: 0 | AFC59: 0 | AFD59: 0 | AFE59: 0 | AFF59: 0 | AFG59: 0 | AFH59: 0 | AFI59: 0
A60: 0 | B60: 46 | C60: ='LAC103'!D60 -> 0 | D60: ='LAC103'!E60 ->  | E60: ='LAC103'!F60 ->  | IY60: =LAC102_S_CSS!FK60+LAC102_S_PEI!DQ60 -> 0 | IZ60: =LAC102_S_CSS!FL60+LAC102_S_PEI!DR60 -> 0 | JA60: =LAC102_S_CSS!FM60+LAC102_S_PEI!DS60 -> 0 | JB60: =LAC102_S_CSS!FN60+LAC102_S_PEI!DT60 -> 0 | JC60: =LAC102_S_CSS!FO60+LAC102_S_PEI!DU60 -> 0 | JD60: =LAC102_S_CSS!FP60+LAC102_S_PEI!DV60 -> 0 | JE60: =LAC102_S_CSS!FQ60+LAC102_S_PEI!DW60 -> 0 | JF60: =LAC102_S_CSS!FR60+LAC102_S_PEI!DX60 -> 0 | JG60: =LAC102_S_CSS!FS60+LAC102_S_PEI!DY60 -> 0 | JH60: =LAC102_S_CSS!FT60+LAC102_S_PEI!DZ60 -> 0 | JI60: =LAC102_S_CSS!FU60+LAC102_S_PEI!EA60 -> 0 | JJ60: =LAC102_S_CSS!FV60+LAC102_S_PEI!EB60 -> 0 | JK60: =LAC102_S_CSS!FW60+LAC102_S_PEI!EC60 -> 0 | JL60: =LAC102_S_CSS!FX60+LAC102_S_PEI!ED60 -> 0 | JM60: =LAC102_S_CSS!FY60+LAC102_S_PEI!EE60 -> 0 | JN60: =LAC102_S_CSS!FZ60+LAC102_S_PEI!EF60 -> 0 | JO60: =LAC102_S_CSS!GA60+LAC102_S_PEI!EG60 -> 0 | JP60: =LAC102_S_CSS!GB60+LAC102_S_PEI!EH60 -> 0 | JQ60: =LAC102_S_CSS!GC60+LAC102_S_PEI!EI60 -> 0 | JR60: =LAC102_S_CSS!GD60+LAC102_S_PEI!EJ60 -> 0 | JS60: =LAC102_S_CSS!GE60+LAC102_S_PEI!EK60 -> 0 | JT60: =LAC102_S_CSS!GF60+LAC102_S_PEI!EL60 -> 0 | JU60: =LAC102_S_CSS!GG60+LAC102_S_PEI!EM60 -> 0 | ABV60: 0 | ABW60: 0 | ABX60: 0 | ABY60: 0 | ABZ60: 0 | ACA60: 0 | ACB60: 0 | ACC60: 0 | ACD60: 0 | ACE60: 0 | ACF60: 0 | ACG60: 0 | ACH60: 0 | ACI60: 0 | ACJ60: 0 | ACK60: 0 | ACL60: 0 | ACM60: 0 | ACN60: 0 | ACO60: 0 | ACP60: 0 | ACQ60: 0 | ACR60: 0 | ACS60: 0 | ACT60: 0 | ACU60: 0 | ACV60: 0 | ACW60: 0 | ACX60: 0 | ACY60: 0 | ACZ60: 0 | ADA60: 0 | ADB60: 0 | ADC60: 0 | ADD60: 0 | ADE60: 0 | ADF60: 0 | ADG60: 0 | ADH60: 0 | ADI60: 0 | ADJ60: 0 | ADK60: 0 | ADL60: 0 | ADM60: 0 | ADN60: 0 | ADO60: 0 | ADP60: =MH1901_Schedule_B!G65+MH1901_Schedule_B!F65 -> 0 | ADQ60: =MH1901_Schedule_B!I65+MH1901_Schedule_B!J65 -> 0 | ADR60: =MH1901_Schedule_B!L65+MH1901_Schedule_B!M65 -> 0 | ADS60: =MH1901_Schedule_B!O65 -> 0 | ADT60: =MH1901_Schedule_B!Q65 -> 0 | ADU60: =MH1901_Schedule_B!S65 -> 0 | ADV60: =MH1901_Schedule_B!U65 -> 0 | ADW60: =MH1901_Schedule_B!W65 -> 0 | ADX60: =MH1901_Schedule_B!Y65 -> 0 | ADY60: =MH1901_Schedule_B!AA65 -> 0 | ADZ60: =MH1901_Schedule_B!AC65+MH1901_Schedule_B!AI65 -> 0 | AEA60: =MH1901_Schedule_B!AE65+MH1901_Schedule_B!AK65 -> 0 | AEB60: =MH1901_Schedule_B!AG65+MH1901_Schedule_B!AM65 -> 0 | AEC60: =MH1901_Schedule_B!AO65 -> 0 | AED60: =MH1901_Schedule_B!AQ65 -> 0 | AEE60: =MH1901_Schedule_B!AS65 -> 0 | AEF60: =MH1901_Schedule_B!AU65 -> 0 | AEG60: =MH1901_Schedule_B!BE65 -> 0 | AEH60: =MH1901_Schedule_B!BG65 -> 0 | AEI60: =MH1901_Schedule_B!AW65 -> 0 | AEJ60: =MH1901_Schedule_B!AY65 -> 0 | AEK60: =MH1901_Schedule_B!BA65 -> 0 | AEL60: =MH1901_Schedule_B!BC65 -> 0 | AEM60: 0 | AEN60: 0 | AEO60: 0 | AEP60: 0 | AEQ60: 0 | AER60: 0 | AES60: 0 | AET60: 0 | AEU60: 0 | AEV60: 0 | AEW60: 0 | AEX60: 0 | AEY60: 0 | AEZ60: 0 | AFA60: 0 | AFB60: 0 | AFC60: 0 | AFD60: 0 | AFE60: 0 | AFF60: 0 | AFG60: 0 | AFH60: 0 | AFI60: 0
A61: 0 | B61: 47 | C61: ='LAC103'!D61 -> 0 | D61: ='LAC103'!E61 ->  | E61: ='LAC103'!F61 ->  | IY61: =LAC102_S_CSS!FK61+LAC102_S_PEI!DQ61 -> 0 | IZ61: =LAC102_S_CSS!FL61+LAC102_S_PEI!DR61 -> 0 | JA61: =LAC102_S_CSS!FM61+LAC102_S_PEI!DS61 -> 0 | JB61: =LAC102_S_CSS!FN61+LAC102_S_PEI!DT61 -> 0 | JC61: =LAC102_S_CSS!FO61+LAC102_S_PEI!DU61 -> 0 | JD61: =LAC102_S_CSS!FP61+LAC102_S_PEI!DV61 -> 0 | JE61: =LAC102_S_CSS!FQ61+LAC102_S_PEI!DW61 -> 0 | JF61: =LAC102_S_CSS!FR61+LAC102_S_PEI!DX61 -> 0 | JG61: =LAC102_S_CSS!FS61+LAC102_S_PEI!DY61 -> 0 | JH61: =LAC102_S_CSS!FT61+LAC102_S_PEI!DZ61 -> 0 | JI61: =LAC102_S_CSS!FU61+LAC102_S_PEI!EA61 -> 0 | JJ61: =LAC102_S_CSS!FV61+LAC102_S_PEI!EB61 -> 0 | JK61: =LAC102_S_CSS!FW61+LAC102_S_PEI!EC61 -> 0 | JL61: =LAC102_S_CSS!FX61+LAC102_S_PEI!ED61 -> 0 | JM61: =LAC102_S_CSS!FY61+LAC102_S_PEI!EE61 -> 0 | JN61: =LAC102_S_CSS!FZ61+LAC102_S_PEI!EF61 -> 0 | JO61: =LAC102_S_CSS!GA61+LAC102_S_PEI!EG61 -> 0 | JP61: =LAC102_S_CSS!GB61+LAC102_S_PEI!EH61 -> 0 | JQ61: =LAC102_S_CSS!GC61+LAC102_S_PEI!EI61 -> 0 | JR61: =LAC102_S_CSS!GD61+LAC102_S_PEI!EJ61 -> 0 | JS61: =LAC102_S_CSS!GE61+LAC102_S_PEI!EK61 -> 0 | JT61: =LAC102_S_CSS!GF61+LAC102_S_PEI!EL61 -> 0 | JU61: =LAC102_S_CSS!GG61+LAC102_S_PEI!EM61 -> 0 | ABV61: 0 | ABW61: 0 | ABX61: 0 | ABY61: 0 | ABZ61: 0 | ACA61: 0 | ACB61: 0 | ACC61: 0 | ACD61: 0 | ACE61: 0 | ACF61: 0 | ACG61: 0 | ACH61: 0 | ACI61: 0 | ACJ61: 0 | ACK61: 0 | ACL61: 0 | ACM61: 0 | ACN61: 0 | ACO61: 0 | ACP61: 0 | ACQ61: 0 | ACR61: 0 | ACS61: 0 | ACT61: 0 | ACU61: 0 | ACV61: 0 | ACW61: 0 | ACX61: 0 | ACY61: 0 | ACZ61: 0 | ADA61: 0 | ADB61: 0 | ADC61: 0 | ADD61: 0 | ADE61: 0 | ADF61: 0 | ADG61: 0 | ADH61: =SUM(U61,AR61,BO61,CL61,DI61,EF61,FZ61,HT61,IQ61,JN61,KK61,LH61,AAI61,ABF61,GW61,ME61,FC61,ZL61,NB61,NY61,OV61,PS61,QP61,RM61,SJ61,TG61,UD61,VA61,VX61,WU61,YO61,XR61) -> 0 | ADI61: 0 | ADJ61: 0 | ADK61: 0 | ADL61: 0 | ADM61: 0 | ADN61: 0 | ADO61: 0 | ADP61: =MH1901_Schedule_B!G66+MH1901_Schedule_B!F66 -> 0 | ADQ61: =MH1901_Schedule_B!I66+MH1901_Schedule_B!J66 -> 0 | ADR61: =MH1901_Schedule_B!L66+MH1901_Schedule_B!M66 -> 0 | ADS61: =MH1901_Schedule_B!O66 -> 0 | ADT61: =MH1901_Schedule_B!Q66 -> 0 | ADU61: =MH1901_Schedule_B!S66 -> 0 | ADV61: =MH1901_Schedule_B!U66 -> 0 | ADW61: =MH1901_Schedule_B!W66 -> 0 | ADX61: =MH1901_Schedule_B!Y66 -> 0 | ADY61: =MH1901_Schedule_B!AA66 -> 0 | ADZ61: =MH1901_Schedule_B!AC66+MH1901_Schedule_B!AI66 -> 0 | AEA61: =MH1901_Schedule_B!AE66+MH1901_Schedule_B!AK66 -> 0 | AEB61: =MH1901_Schedule_B!AG66+MH1901_Schedule_B!AM66 -> 0 | AEC61: =MH1901_Schedule_B!AO66 -> 0 | AED61: =MH1901_Schedule_B!AQ66 -> 0 | AEE61: =MH1901_Schedule_B!AS66 -> 0 | AEF61: =MH1901_Schedule_B!AU66 -> 0 | AEG61: =MH1901_Schedule_B!BE66 -> 0 | AEH61: =MH1901_Schedule_B!BG66 -> 0 | AEI61: =MH1901_Schedule_B!AW66 -> 0 | AEJ61: =MH1901_Schedule_B!AY66 -> 0 | AEK61: =MH1901_Schedule_B!BA66 -> 0 | AEL61: =MH1901_Schedule_B!BC66 -> 0 | AEM61: 0 | AEN61: 0 | AEO61: 0 | AEP61: 0 | AEQ61: 0 | AER61: 0 | AES61: 0 | AET61: 0 | AEU61: 0 | AEV61: 0 | AEW61: 0 | AEX61: 0 | AEY61: 0 | AEZ61: 0 | AFA61: 0 | AFB61: =ADH61-AEE61 -> 0 | AFC61: 0 | AFD61: 0 | AFE61: 0 | AFF61: 0 | AFG61: 0 | AFH61: 0 | AFI61: 0
A62: 0 | B62: 48 | C62: ='LAC103'!D62 -> 0 | D62: ='LAC103'!E62 ->  | E62: ='LAC103'!F62 ->  | IY62: =LAC102_S_CSS!FK62+LAC102_S_PEI!DQ62 -> 0 | IZ62: =LAC102_S_CSS!FL62+LAC102_S_PEI!DR62 -> 0 | JA62: =LAC102_S_CSS!FM62+LAC102_S_PEI!DS62 -> 0 | JB62: =LAC102_S_CSS!FN62+LAC102_S_PEI!DT62 -> 0 | JC62: =LAC102_S_CSS!FO62+LAC102_S_PEI!DU62 -> 0 | JD62: =LAC102_S_CSS!FP62+LAC102_S_PEI!DV62 -> 0 | JE62: =LAC102_S_CSS!FQ62+LAC102_S_PEI!DW62 -> 0 | JF62: =LAC102_S_CSS!FR62+LAC102_S_PEI!DX62 -> 0 | JG62: =LAC102_S_CSS!FS62+LAC102_S_PEI!DY62 -> 0 | JH62: =LAC102_S_CSS!FT62+LAC102_S_PEI!DZ62 -> 0 | JI62: =LAC102_S_CSS!FU62+LAC102_S_PEI!EA62 -> 0 | JJ62: =LAC102_S_CSS!FV62+LAC102_S_PEI!EB62 -> 0 | JK62: =LAC102_S_CSS!FW62+LAC102_S_PEI!EC62 -> 0 | JL62: =LAC102_S_CSS!FX62+LAC102_S_PEI!ED62 -> 0 | JM62: =LAC102_S_CSS!FY62+LAC102_S_PEI!EE62 -> 0 | JN62: =LAC102_S_CSS!FZ62+LAC102_S_PEI!EF62 -> 0 | JO62: =LAC102_S_CSS!GA62+LAC102_S_PEI!EG62 -> 0 | JP62: =LAC102_S_CSS!GB62+LAC102_S_PEI!EH62 -> 0 | JQ62: =LAC102_S_CSS!GC62+LAC102_S_PEI!EI62 -> 0 | JR62: =LAC102_S_CSS!GD62+LAC102_S_PEI!EJ62 -> 0 | JS62: =LAC102_S_CSS!GE62+LAC102_S_PEI!EK62 -> 0 | JT62: =LAC102_S_CSS!GF62+LAC102_S_PEI!EL62 -> 0 | JU62: =LAC102_S_CSS!GG62+LAC102_S_PEI!EM62 -> 0 | ABV62: 0 | ABW62: 0 | ABX62: 0 | ABY62: 0 | ABZ62: 0 | ACA62: 0 | ACB62: 0 | ACC62: 0 | ACD62: 0 | ACE62: 0 | ACF62: 0 | ACG62: 0 | ACH62: 0 | ACI62: 0 | ACJ62: 0 | ACK62: 0 | ACL62: 0 | ACM62: 0 | ACN62: 0 | ACO62: 0 | ACP62: 0 | ACQ62: 0 | ACR62: 0 | ACS62: =SUM(F62,AC62,AZ62,BW62,CT62,DQ62,FK62,HE62,IB62,IY62,JV62,KS62,ZT62,AAQ62,GH62,LP62,EN62,YW62,MM62,NJ62,OG62,PD62,QA62,QX62,RU62,SR62,TO62,UL62,VI62,WF62,XZ62,XC62) -> 0 | ACT62: 0 | ACU62: 0 | ACV62: 0 | ACW62: 0 | ACX62: 0 | ACY62: 0 | ACZ62: 0 | ADA62: 0 | ADB62: 0 | ADC62: 0 | ADD62: 0 | ADE62: 0 | ADF62: 0 | ADG62: 0 | ADH62: 0 | ADI62: 0 | ADJ62: 0 | ADK62: 0 | ADL62: 0 | ADM62: 0 | ADN62: 0 | ADO62: 0 | ADP62: =MH1901_Schedule_B!G67+MH1901_Schedule_B!F67 -> 0 | ADQ62: =MH1901_Schedule_B!I67+MH1901_Schedule_B!J67 -> 0 | ADR62: =MH1901_Schedule_B!L67+MH1901_Schedule_B!M67 -> 0 | ADS62: =MH1901_Schedule_B!O67 -> 0 | ADT62: =MH1901_Schedule_B!Q67 -> 0 | ADU62: =MH1901_Schedule_B!S67 -> 0 | ADV62: =MH1901_Schedule_B!U67 -> 0 | ADW62: =MH1901_Schedule_B!W67 -> 0 | ADX62: =MH1901_Schedule_B!Y67 -> 0 | ADY62: =MH1901_Schedule_B!AA67 -> 0 | ADZ62: =MH1901_Schedule_B!AC67+MH1901_Schedule_B!AI67 -> 0 | AEA62: =MH1901_Schedule_B!AE67+MH1901_Schedule_B!AK67 -> 0 | AEB62: =MH1901_Schedule_B!AG67+MH1901_Schedule_B!AM67 -> 0 | AEC62: =MH1901_Schedule_B!AO67 -> 0 | AED62: =MH1901_Schedule_B!AQ67 -> 0 | AEE62: =MH1901_Schedule_B!AS67 -> 0 | AEF62: =MH1901_Schedule_B!AU67 -> 0 | AEG62: =MH1901_Schedule_B!BE67 -> 0 | AEH62: =MH1901_Schedule_B!BG67 -> 0 | AEI62: =MH1901_Schedule_B!AW67 -> 0 | AEJ62: =MH1901_Schedule_B!AY67 -> 0 | AEK62: =MH1901_Schedule_B!BA67 -> 0 | AEL62: =MH1901_Schedule_B!BC67 -> 0 | AEM62: =ACS62-ADP62 -> 0 | AEN62: 0 | AEO62: 0 | AEP62: 0 | AEQ62: 0 | AER62: 0 | AES62: 0 | AET62: 0 | AEU62: 0 | AEV62: 0 | AEW62: 0 | AEX62: 0 | AEY62: 0 | AEZ62: 0 | AFA62: 0 | AFB62: 0 | AFC62: 0 | AFD62: 0 | AFE62: 0 | AFF62: 0 | AFG62: 0 | AFH62: 0 | AFI62: 0
A63: 0 | B63: 49 | C63: ='LAC103'!D63 -> 0 | D63: ='LAC103'!E63 ->  | E63: ='LAC103'!F63 ->  | IY63: =LAC102_S_CSS!FK63+LAC102_S_PEI!DQ63 -> 0 | IZ63: =LAC102_S_CSS!FL63+LAC102_S_PEI!DR63 -> 0 | JA63: =LAC102_S_CSS!FM63+LAC102_S_PEI!DS63 -> 0 | JB63: =LAC102_S_CSS!FN63+LAC102_S_PEI!DT63 -> 0 | JC63: =LAC102_S_CSS!FO63+LAC102_S_PEI!DU63 -> 0 | JD63: =LAC102_S_CSS!FP63+LAC102_S_PEI!DV63 -> 0 | JE63: =LAC102_S_CSS!FQ63+LAC102_S_PEI!DW63 -> 0 | JF63: =LAC102_S_CSS!FR63+LAC102_S_PEI!DX63 -> 0 | JG63: =LAC102_S_CSS!FS63+LAC102_S_PEI!DY63 -> 0 | JH63: =LAC102_S_CSS!FT63+LAC102_S_PEI!DZ63 -> 0 | JI63: =LAC102_S_CSS!FU63+LAC102_S_PEI!EA63 -> 0 | JJ63: =LAC102_S_CSS!FV63+LAC102_S_PEI!EB63 -> 0 | JK63: =LAC102_S_CSS!FW63+LAC102_S_PEI!EC63 -> 0 | JL63: =LAC102_S_CSS!FX63+LAC102_S_PEI!ED63 -> 0 | JM63: =LAC102_S_CSS!FY63+LAC102_S_PEI!EE63 -> 0 | JN63: =LAC102_S_CSS!FZ63+LAC102_S_PEI!EF63 -> 0 | JO63: =LAC102_S_CSS!GA63+LAC102_S_PEI!EG63 -> 0 | JP63: =LAC102_S_CSS!GB63+LAC102_S_PEI!EH63 -> 0 | JQ63: =LAC102_S_CSS!GC63+LAC102_S_PEI!EI63 -> 0 | JR63: =LAC102_S_CSS!GD63+LAC102_S_PEI!EJ63 -> 0 | JS63: =LAC102_S_CSS!GE63+LAC102_S_PEI!EK63 -> 0 | JT63: =LAC102_S_CSS!GF63+LAC102_S_PEI!EL63 -> 0 | JU63: =LAC102_S_CSS!GG63+LAC102_S_PEI!EM63 -> 0 | ABV63: 0 | ABW63: 0 | ABX63: 0 | ABY63: 0 | ABZ63: 0 | ACA63: 0 | ACB63: 0 | ACC63: 0 | ACD63: 0 | ACE63: 0 | ACF63: 0 | ACG63: 0 | ACH63: 0 | ACI63: 0 | ACJ63: 0 | ACK63: 0 | ACL63: 0 | ACM63: 0 | ACN63: 0 | ACO63: 0 | ACP63: 0 | ACQ63: 0 | ACR63: 0 | ACS63: 0 | ACT63: 0 | ACU63: 0 | ACV63: 0 | ACW63: 0 | ACX63: 0 | ACY63: 0 | ACZ63: 0 | ADA63: 0 | ADB63: 0 | ADC63: 0 | ADD63: 0 | ADE63: 0 | ADF63: 0 | ADG63: 0 | ADH63: 0 | ADI63: 0 | ADJ63: 0 | ADK63: 0 | ADL63: 0 | ADM63: 0 | ADN63: 0 | ADO63: 0 | ADP63: =MH1901_Schedule_B!G68+MH1901_Schedule_B!F68 -> 0 | ADQ63: =MH1901_Schedule_B!I68+MH1901_Schedule_B!J68 -> 0 | ADR63: =MH1901_Schedule_B!L68+MH1901_Schedule_B!M68 -> 0 | ADS63: =MH1901_Schedule_B!O68 -> 0 | ADT63: =MH1901_Schedule_B!Q68 -> 0 | ADU63: =MH1901_Schedule_B!S68 -> 0 | ADV63: =MH1901_Schedule_B!U68 -> 0 | ADW63: =MH1901_Schedule_B!W68 -> 0 | ADX63: =MH1901_Schedule_B!Y68 -> 0 | ADY63: =MH1901_Schedule_B!AA68 -> 0 | ADZ63: =MH1901_Schedule_B!AC68+MH1901_Schedule_B!AI68 -> 0 | AEA63: =MH1901_Schedule_B!AE68+MH1901_Schedule_B!AK68 -> 0 | AEB63: =MH1901_Schedule_B!AG68+MH1901_Schedule_B!AM68 -> 0 | AEC63: =MH1901_Schedule_B!AO68 -> 0 | AED63: =MH1901_Schedule_B!AQ68 -> 0 | AEE63: =MH1901_Schedule_B!AS68 -> 0 | AEF63: =MH1901_Schedule_B!AU68 -> 0 | AEG63: =MH1901_Schedule_B!BE68 -> 0 | AEH63: =MH1901_Schedule_B!BG68 -> 0 | AEI63: =MH1901_Schedule_B!AW68 -> 0 | AEJ63: =MH1901_Schedule_B!AY68 -> 0 | AEK63: =MH1901_Schedule_B!BA68 -> 0 | AEL63: =MH1901_Schedule_B!BC68 -> 0 | AEM63: 0 | AEN63: 0 | AEO63: 0 | AEP63: 0 | AEQ63: 0 | AER63: 0 | AES63: 0 | AET63: 0 | AEU63: 0 | AEV63: 0 | AEW63: 0 | AEX63: 0 | AEY63: 0 | AEZ63: 0 | AFA63: 0 | AFB63: 0 | AFC63: 0 | AFD63: 0 | AFE63: 0 | AFF63: 0 | AFG63: 0 | AFH63: 0 | AFI63: 0
A64: 0 | B64: 50 | C64: ='LAC103'!D64 -> 0 | D64: ='LAC103'!E64 ->  | E64: ='LAC103'!F64 ->  | IY64: =LAC102_S_CSS!FK64+LAC102_S_PEI!DQ64 -> 0 | IZ64: =LAC102_S_CSS!FL64+LAC102_S_PEI!DR64 -> 0 | JA64: =LAC102_S_CSS!FM64+LAC102_S_PEI!DS64 -> 0 | JB64: =LAC102_S_CSS!FN64+LAC102_S_PEI!DT64 -> 0 | JC64: =LAC102_S_CSS!FO64+LAC102_S_PEI!DU64 -> 0 | JD64: =LAC102_S_CSS!FP64+LAC102_S_PEI!DV64 -> 0 | JE64: =LAC102_S_CSS!FQ64+LAC102_S_PEI!DW64 -> 0 | JF64: =LAC102_S_CSS!FR64+LAC102_S_PEI!DX64 -> 0 | JG64: =LAC102_S_CSS!FS64+LAC102_S_PEI!DY64 -> 0 | JH64: =LAC102_S_CSS!FT64+LAC102_S_PEI!DZ64 -> 0 | JI64: =LAC102_S_CSS!FU64+LAC102_S_PEI!EA64 -> 0 | JJ64: =LAC102_S_CSS!FV64+LAC102_S_PEI!EB64 -> 0 | JK64: =LAC102_S_CSS!FW64+LAC102_S_PEI!EC64 -> 0 | JL64: =LAC102_S_CSS!FX64+LAC102_S_PEI!ED64 -> 0 | JM64: =LAC102_S_CSS!FY64+LAC102_S_PEI!EE64 -> 0 | JN64: =LAC102_S_CSS!FZ64+LAC102_S_PEI!EF64 -> 0 | JO64: =LAC102_S_CSS!GA64+LAC102_S_PEI!EG64 -> 0 | JP64: =LAC102_S_CSS!GB64+LAC102_S_PEI!EH64 -> 0 | JQ64: =LAC102_S_CSS!GC64+LAC102_S_PEI!EI64 -> 0 | JR64: =LAC102_S_CSS!GD64+LAC102_S_PEI!EJ64 -> 0 | JS64: =LAC102_S_CSS!GE64+LAC102_S_PEI!EK64 -> 0 | JT64: =LAC102_S_CSS!GF64+LAC102_S_PEI!EL64 -> 0 | JU64: =LAC102_S_CSS!GG64+LAC102_S_PEI!EM64 -> 0 | ABV64: 0 | ABW64: 0 | ABX64: 0 | ABY64: 0 | ABZ64: 0 | ACA64: 0 | ACB64: 0 | ACC64: 0 | ACD64: 0 | ACE64: 0 | ACF64: 0 | ACG64: 0 | ACH64: 0 | ACI64: 0 | ACJ64: 0 | ACK64: 0 | ACL64: 0 | ACM64: 0 | ACN64: 0 | ACO64: 0 | ACP64: 0 | ACQ64: 0 | ACR64: 0 | ACS64: 0 | ACT64: 0 | ACU64: 0 | ACV64: 0 | ACW64: 0 | ACX64: 0 | ACY64: 0 | ACZ64: 0 | ADA64: 0 | ADB64: 0 | ADC64: 0 | ADD64: 0 | ADE64: 0 | ADF64: 0 | ADG64: 0 | ADH64: 0 | ADI64: 0 | ADJ64: 0 | ADK64: 0 | ADL64: 0 | ADM64: 0 | ADN64: 0 | ADO64: 0 | ADP64: =MH1901_Schedule_B!G69+MH1901_Schedule_B!F69 -> 0 | ADQ64: =MH1901_Schedule_B!I69+MH1901_Schedule_B!J69 -> 0 | ADR64: =MH1901_Schedule_B!L69+MH1901_Schedule_B!M69 -> 0 | ADS64: =MH1901_Schedule_B!O69 -> 0 | ADT64: =MH1901_Schedule_B!Q69 -> 0 | ADU64: =MH1901_Schedule_B!S69 -> 0 | ADV64: =MH1901_Schedule_B!U69 -> 0 | ADW64: =MH1901_Schedule_B!W69 -> 0 | ADX64: =MH1901_Schedule_B!Y69 -> 0 | ADY64: =MH1901_Schedule_B!AA69 -> 0 | ADZ64: =MH1901_Schedule_B!AC69+MH1901_Schedule_B!AI69 -> 0 | AEA64: =MH1901_Schedule_B!AE69+MH1901_Schedule_B!AK69 -> 0 | AEB64: =MH1901_Schedule_B!AG69+MH1901_Schedule_B!AM69 -> 0 | AEC64: =MH1901_Schedule_B!AO69 -> 0 | AED64: =MH1901_Schedule_B!AQ69 -> 0 | AEE64: =MH1901_Schedule_B!AS69 -> 0 | AEF64: =MH1901_Schedule_B!AU69 -> 0 | AEG64: =MH1901_Schedule_B!BE69 -> 0 | AEH64: =MH1901_Schedule_B!BG69 -> 0 | AEI64: =MH1901_Schedule_B!AW69 -> 0 | AEJ64: =MH1901_Schedule_B!AY69 -> 0 | AEK64: =MH1901_Schedule_B!BA69 -> 0 | AEL64: =MH1901_Schedule_B!BC69 -> 0 | AEM64: 0 | AEN64: 0 | AEO64: 0 | AEP64: 0 | AEQ64: 0 | AER64: 0 | AES64: 0 | AET64: 0 | AEU64: 0 | AEV64: 0 | AEW64: 0 | AEX64: 0 | AEY64: 0 | AEZ64: 0 | AFA64: 0 | AFB64: 0 | AFC64: 0 | AFD64: 0 | AFE64: 0 | AFF64: 0 | AFG64: 0 | AFH64: 0 | AFI64: 0
A65: 0 | B65: 51 | C65: ='LAC103'!D65 -> 0 | D65: ='LAC103'!E65 ->  | E65: ='LAC103'!F65 ->  | IY65: =LAC102_S_CSS!FK65+LAC102_S_PEI!DQ65 -> 0 | IZ65: =LAC102_S_CSS!FL65+LAC102_S_PEI!DR65 -> 0 | JA65: =LAC102_S_CSS!FM65+LAC102_S_PEI!DS65 -> 0 | JB65: =LAC102_S_CSS!FN65+LAC102_S_PEI!DT65 -> 0 | JC65: =LAC102_S_CSS!FO65+LAC102_S_PEI!DU65 -> 0 | JD65: =LAC102_S_CSS!FP65+LAC102_S_PEI!DV65 -> 0 | JE65: =LAC102_S_CSS!FQ65+LAC102_S_PEI!DW65 -> 0 | JF65: =LAC102_S_CSS!FR65+LAC102_S_PEI!DX65 -> 0 | JG65: =LAC102_S_CSS!FS65+LAC102_S_PEI!DY65 -> 0 | JH65: =LAC102_S_CSS!FT65+LAC102_S_PEI!DZ65 -> 0 | JI65: =LAC102_S_CSS!FU65+LAC102_S_PEI!EA65 -> 0 | JJ65: =LAC102_S_CSS!FV65+LAC102_S_PEI!EB65 -> 0 | JK65: =LAC102_S_CSS!FW65+LAC102_S_PEI!EC65 -> 0 | JL65: =LAC102_S_CSS!FX65+LAC102_S_PEI!ED65 -> 0 | JM65: =LAC102_S_CSS!FY65+LAC102_S_PEI!EE65 -> 0 | JN65: =LAC102_S_CSS!FZ65+LAC102_S_PEI!EF65 -> 0 | JO65: =LAC102_S_CSS!GA65+LAC102_S_PEI!EG65 -> 0 | JP65: =LAC102_S_CSS!GB65+LAC102_S_PEI!EH65 -> 0 | JQ65: =LAC102_S_CSS!GC65+LAC102_S_PEI!EI65 -> 0 | JR65: =LAC102_S_CSS!GD65+LAC102_S_PEI!EJ65 -> 0 | JS65: =LAC102_S_CSS!GE65+LAC102_S_PEI!EK65 -> 0 | JT65: =LAC102_S_CSS!GF65+LAC102_S_PEI!EL65 -> 0 | JU65: =LAC102_S_CSS!GG65+LAC102_S_PEI!EM65 -> 0 | ABV65: 0 | ABW65: 0 | ABX65: 0 | ABY65: 0 | ABZ65: 0 | ACA65: 0 | ACB65: 0 | ACC65: 0 | ACD65: 0 | ACE65: 0 | ACF65: 0 | ACG65: 0 | ACH65: 0 | ACI65: 0 | ACJ65: 0 | ACK65: 0 | ACL65: 0 | ACM65: 0 | ACN65: 0 | ACO65: 0 | ACP65: 0 | ACQ65: 0 | ACR65: 0 | ACS65: 0 | ACT65: 0 | ACU65: 0 | ACV65: 0 | ACW65: 0 | ACX65: 0 | ACY65: 0 | ACZ65: 0 | ADA65: 0 | ADB65: 0 | ADC65: 0 | ADD65: 0 | ADE65: 0 | ADF65: 0 | ADG65: 0 | ADH65: 0 | ADI65: 0 | ADJ65: 0 | ADK65: 0 | ADL65: 0 | ADM65: 0 | ADN65: 0 | ADO65: 0 | ADP65: =MH1901_Schedule_B!G70+MH1901_Schedule_B!F70 -> 0 | ADQ65: =MH1901_Schedule_B!I70+MH1901_Schedule_B!J70 -> 0 | ADR65: =MH1901_Schedule_B!L70+MH1901_Schedule_B!M70 -> 0 | ADS65: =MH1901_Schedule_B!O70 -> 0 | ADT65: =MH1901_Schedule_B!Q70 -> 0 | ADU65: =MH1901_Schedule_B!S70 -> 0 | ADV65: =MH1901_Schedule_B!U70 -> 0 | ADW65: =MH1901_Schedule_B!W70 -> 0 | ADX65: =MH1901_Schedule_B!Y70 -> 0 | ADY65: =MH1901_Schedule_B!AA70 -> 0 | ADZ65: =MH1901_Schedule_B!AC70+MH1901_Schedule_B!AI70 -> 0 | AEA65: =MH1901_Schedule_B!AE70+MH1901_Schedule_B!AK70 -> 0 | AEB65: =MH1901_Schedule_B!AG70+MH1901_Schedule_B!AM70 -> 0 | AEC65: =MH1901_Schedule_B!AO70 -> 0 | AED65: =MH1901_Schedule_B!AQ70 -> 0 | AEE65: =MH1901_Schedule_B!AS70 -> 0 | AEF65: =MH1901_Schedule_B!AU70 -> 0 | AEG65: =MH1901_Schedule_B!BE70 -> 0 | AEH65: =MH1901_Schedule_B!BG70 -> 0 | AEI65: =MH1901_Schedule_B!AW70 -> 0 | AEJ65: =MH1901_Schedule_B!AY70 -> 0 | AEK65: =MH1901_Schedule_B!BA70 -> 0 | AEL65: =MH1901_Schedule_B!BC70 -> 0 | AEM65: 0 | AEN65: 0 | AEO65: 0 | AEP65: 0 | AEQ65: 0 | AER65: 0 | AES65: 0 | AET65: 0 | AEU65: 0 | AEV65: 0 | AEW65: 0 | AEX65: 0 | AEY65: 0 | AEZ65: 0 | AFA65: 0 | AFB65: 0 | AFC65: 0 | AFD65: 0 | AFE65: 0 | AFF65: 0 | AFG65: 0 | AFH65: 0 | AFI65: 0
A66: 0 | B66: 52 | C66: ='LAC103'!D66 -> 0 | D66: ='LAC103'!E66 ->  | E66: ='LAC103'!F66 ->  | IY66: =LAC102_S_CSS!FK66+LAC102_S_PEI!DQ66 -> 0 | IZ66: =LAC102_S_CSS!FL66+LAC102_S_PEI!DR66 -> 0 | JA66: =LAC102_S_CSS!FM66+LAC102_S_PEI!DS66 -> 0 | JB66: =LAC102_S_CSS!FN66+LAC102_S_PEI!DT66 -> 0 | JC66: =LAC102_S_CSS!FO66+LAC102_S_PEI!DU66 -> 0 | JD66: =LAC102_S_CSS!FP66+LAC102_S_PEI!DV66 -> 0 | JE66: =LAC102_S_CSS!FQ66+LAC102_S_PEI!DW66 -> 0 | JF66: =LAC102_S_CSS!FR66+LAC102_S_PEI!DX66 -> 0 | JG66: =LAC102_S_CSS!FS66+LAC102_S_PEI!DY66 -> 0 | JH66: =LAC102_S_CSS!FT66+LAC102_S_PEI!DZ66 -> 0 | JI66: =LAC102_S_CSS!FU66+LAC102_S_PEI!EA66 -> 0 | JJ66: =LAC102_S_CSS!FV66+LAC102_S_PEI!EB66 -> 0 | JK66: =LAC102_S_CSS!FW66+LAC102_S_PEI!EC66 -> 0 | JL66: =LAC102_S_CSS!FX66+LAC102_S_PEI!ED66 -> 0 | JM66: =LAC102_S_CSS!FY66+LAC102_S_PEI!EE66 -> 0 | JN66: =LAC102_S_CSS!FZ66+LAC102_S_PEI!EF66 -> 0 | JO66: =LAC102_S_CSS!GA66+LAC102_S_PEI!EG66 -> 0 | JP66: =LAC102_S_CSS!GB66+LAC102_S_PEI!EH66 -> 0 | JQ66: =LAC102_S_CSS!GC66+LAC102_S_PEI!EI66 -> 0 | JR66: =LAC102_S_CSS!GD66+LAC102_S_PEI!EJ66 -> 0 | JS66: =LAC102_S_CSS!GE66+LAC102_S_PEI!EK66 -> 0 | JT66: =LAC102_S_CSS!GF66+LAC102_S_PEI!EL66 -> 0 | JU66: =LAC102_S_CSS!GG66+LAC102_S_PEI!EM66 -> 0 | ABV66: 0 | ABW66: 0 | ABX66: 0 | ABY66: 0 | ABZ66: 0 | ACA66: 0 | ACB66: 0 | ACC66: 0 | ACD66: 0 | ACE66: 0 | ACF66: 0 | ACG66: 0 | ACH66: 0 | ACI66: 0 | ACJ66: 0 | ACK66: 0 | ACL66: 0 | ACM66: 0 | ACN66: 0 | ACO66: 0 | ACP66: 0 | ACQ66: 0 | ACR66: 0 | ACS66: 0 | ACT66: 0 | ACU66: 0 | ACV66: 0 | ACW66: 0 | ACX66: 0 | ACY66: 0 | ACZ66: 0 | ADA66: 0 | ADB66: 0 | ADC66: 0 | ADD66: 0 | ADE66: 0 | ADF66: 0 | ADG66: 0 | ADH66: 0 | ADI66: 0 | ADJ66: 0 | ADK66: 0 | ADL66: 0 | ADM66: 0 | ADN66: 0 | ADO66: 0 | ADP66: =MH1901_Schedule_B!G71+MH1901_Schedule_B!F71 -> 0 | ADQ66: =MH1901_Schedule_B!I71+MH1901_Schedule_B!J71 -> 0 | ADR66: =MH1901_Schedule_B!L71+MH1901_Schedule_B!M71 -> 0 | ADS66: =MH1901_Schedule_B!O71 -> 0 | ADT66: =MH1901_Schedule_B!Q71 -> 0 | ADU66: =MH1901_Schedule_B!S71 -> 0 | ADV66: =MH1901_Schedule_B!U71 -> 0 | ADW66: =MH1901_Schedule_B!W71 -> 0 | ADX66: =MH1901_Schedule_B!Y71 -> 0 | ADY66: =MH1901_Schedule_B!AA71 -> 0 | ADZ66: =MH1901_Schedule_B!AC71+MH1901_Schedule_B!AI71 -> 0 | AEA66: =MH1901_Schedule_B!AE71+MH1901_Schedule_B!AK71 -> 0 | AEB66: =MH1901_Schedule_B!AG71+MH1901_Schedule_B!AM71 -> 0 | AEC66: =MH1901_Schedule_B!AO71 -> 0 | AED66: =MH1901_Schedule_B!AQ71 -> 0 | AEE66: =MH1901_Schedule_B!AS71 -> 0 | AEF66: =MH1901_Schedule_B!AU71 -> 0 | AEG66: =MH1901_Schedule_B!BE71 -> 0 | AEH66: =MH1901_Schedule_B!BG71 -> 0 | AEI66: =MH1901_Schedule_B!AW71 -> 0 | AEJ66: =MH1901_Schedule_B!AY71 -> 0 | AEK66: =MH1901_Schedule_B!BA71 -> 0 | AEL66: =MH1901_Schedule_B!BC71 -> 0 | AEM66: 0 | AEN66: 0 | AEO66: 0 | AEP66: 0 | AEQ66: 0 | AER66: 0 | AES66: 0 | AET66: 0 | AEU66: 0 | AEV66: 0 | AEW66: 0 | AEX66: 0 | AEY66: 0 | AEZ66: 0 | AFA66: 0 | AFB66: 0 | AFC66: 0 | AFD66: 0 | AFE66: 0 | AFF66: 0 | AFG66: 0 | AFH66: 0 | AFI66: 0
A67: 0 | B67: 53 | C67: ='LAC103'!D67 -> 0 | D67: ='LAC103'!E67 ->  | E67: ='LAC103'!F67 ->  | IY67: =LAC102_S_CSS!FK67+LAC102_S_PEI!DQ67 -> 0 | IZ67: =LAC102_S_CSS!FL67+LAC102_S_PEI!DR67 -> 0 | JA67: =LAC102_S_CSS!FM67+LAC102_S_PEI!DS67 -> 0 | JB67: =LAC102_S_CSS!FN67+LAC102_S_PEI!DT67 -> 0 | JC67: =LAC102_S_CSS!FO67+LAC102_S_PEI!DU67 -> 0 | JD67: =LAC102_S_CSS!FP67+LAC102_S_PEI!DV67 -> 0 | JE67: =LAC102_S_CSS!FQ67+LAC102_S_PEI!DW67 -> 0 | JF67: =LAC102_S_CSS!FR67+LAC102_S_PEI!DX67 -> 0 | JG67: =LAC102_S_CSS!FS67+LAC102_S_PEI!DY67 -> 0 | JH67: =LAC102_S_CSS!FT67+LAC102_S_PEI!DZ67 -> 0 | JI67: =LAC102_S_CSS!FU67+LAC102_S_PEI!EA67 -> 0 | JJ67: =LAC102_S_CSS!FV67+LAC102_S_PEI!EB67 -> 0 | JK67: =LAC102_S_CSS!FW67+LAC102_S_PEI!EC67 -> 0 | JL67: =LAC102_S_CSS!FX67+LAC102_S_PEI!ED67 -> 0 | JM67: =LAC102_S_CSS!FY67+LAC102_S_PEI!EE67 -> 0 | JN67: =LAC102_S_CSS!FZ67+LAC102_S_PEI!EF67 -> 0 | JO67: =LAC102_S_CSS!GA67+LAC102_S_PEI!EG67 -> 0 | JP67: =LAC102_S_CSS!GB67+LAC102_S_PEI!EH67 -> 0 | JQ67: =LAC102_S_CSS!GC67+LAC102_S_PEI!EI67 -> 0 | JR67: =LAC102_S_CSS!GD67+LAC102_S_PEI!EJ67 -> 0 | JS67: =LAC102_S_CSS!GE67+LAC102_S_PEI!EK67 -> 0 | JT67: =LAC102_S_CSS!GF67+LAC102_S_PEI!EL67 -> 0 | JU67: =LAC102_S_CSS!GG67+LAC102_S_PEI!EM67 -> 0 | ABV67: 0 | ABW67: 0 | ABX67: 0 | ABY67: 0 | ABZ67: 0 | ACA67: 0 | ACB67: 0 | ACC67: 0 | ACD67: 0 | ACE67: 0 | ACF67: 0 | ACG67: 0 | ACH67: 0 | ACI67: 0 | ACJ67: 0 | ACK67: 0 | ACL67: 0 | ACM67: 0 | ACN67: 0 | ACO67: 0 | ACP67: 0 | ACQ67: 0 | ACR67: 0 | ACS67: 0 | ACT67: 0 | ACU67: 0 | ACV67: 0 | ACW67: 0 | ACX67: 0 | ACY67: 0 | ACZ67: 0 | ADA67: 0 | ADB67: 0 | ADC67: 0 | ADD67: 0 | ADE67: 0 | ADF67: 0 | ADG67: 0 | ADH67: 0 | ADI67: 0 | ADJ67: 0 | ADK67: 0 | ADL67: 0 | ADM67: 0 | ADN67: 0 | ADO67: 0 | ADP67: =MH1901_Schedule_B!G72+MH1901_Schedule_B!F72 -> 0 | ADQ67: =MH1901_Schedule_B!I72+MH1901_Schedule_B!J72 -> 0 | ADR67: =MH1901_Schedule_B!L72+MH1901_Schedule_B!M72 -> 0 | ADS67: =MH1901_Schedule_B!O72 -> 0 | ADT67: =MH1901_Schedule_B!Q72 -> 0 | ADU67: =MH1901_Schedule_B!S72 -> 0 | ADV67: =MH1901_Schedule_B!U72 -> 0 | ADW67: =MH1901_Schedule_B!W72 -> 0 | ADX67: =MH1901_Schedule_B!Y72 -> 0 | ADY67: =MH1901_Schedule_B!AA72 -> 0 | ADZ67: =MH1901_Schedule_B!AC72+MH1901_Schedule_B!AI72 -> 0 | AEA67: =MH1901_Schedule_B!AE72+MH1901_Schedule_B!AK72 -> 0 | AEB67: =MH1901_Schedule_B!AG72+MH1901_Schedule_B!AM72 -> 0 | AEC67: =MH1901_Schedule_B!AO72 -> 0 | AED67: =MH1901_Schedule_B!AQ72 -> 0 | AEE67: =MH1901_Schedule_B!AS72 -> 0 | AEF67: =MH1901_Schedule_B!AU72 -> 0 | AEG67: =MH1901_Schedule_B!BE72 -> 0 | AEH67: =MH1901_Schedule_B!BG72 -> 0 | AEI67: =MH1901_Schedule_B!AW72 -> 0 | AEJ67: =MH1901_Schedule_B!AY72 -> 0 | AEK67: =MH1901_Schedule_B!BA72 -> 0 | AEL67: =MH1901_Schedule_B!BC72 -> 0 | AEM67: 0 | AEN67: 0 | AEO67: 0 | AEP67: 0 | AEQ67: 0 | AER67: 0 | AES67: 0 | AET67: 0 | AEU67: 0 | AEV67: 0 | AEW67: 0 | AEX67: 0 | AEY67: 0 | AEZ67: 0 | AFA67: 0 | AFB67: 0 | AFC67: 0 | AFD67: 0 | AFE67: 0 | AFF67: 0 | AFG67: 0 | AFH67: 0 | AFI67: 0
A68: 0 | B68: 54 | C68: ='LAC103'!D68 -> 0 | D68: ='LAC103'!E68 ->  | E68: ='LAC103'!F68 ->  | IY68: =LAC102_S_CSS!FK68+LAC102_S_PEI!DQ68 -> 0 | IZ68: =LAC102_S_CSS!FL68+LAC102_S_PEI!DR68 -> 0 | JA68: =LAC102_S_CSS!FM68+LAC102_S_PEI!DS68 -> 0 | JB68: =LAC102_S_CSS!FN68+LAC102_S_PEI!DT68 -> 0 | JC68: =LAC102_S_CSS!FO68+LAC102_S_PEI!DU68 -> 0 | JD68: =LAC102_S_CSS!FP68+LAC102_S_PEI!DV68 -> 0 | JE68: =LAC102_S_CSS!FQ68+LAC102_S_PEI!DW68 -> 0 | JF68: =LAC102_S_CSS!FR68+LAC102_S_PEI!DX68 -> 0 | JG68: =LAC102_S_CSS!FS68+LAC102_S_PEI!DY68 -> 0 | JH68: =LAC102_S_CSS!FT68+LAC102_S_PEI!DZ68 -> 0 | JI68: =LAC102_S_CSS!FU68+LAC102_S_PEI!EA68 -> 0 | JJ68: =LAC102_S_CSS!FV68+LAC102_S_PEI!EB68 -> 0 | JK68: =LAC102_S_CSS!FW68+LAC102_S_PEI!EC68 -> 0 | JL68: =LAC102_S_CSS!FX68+LAC102_S_PEI!ED68 -> 0 | JM68: =LAC102_S_CSS!FY68+LAC102_S_PEI!EE68 -> 0 | JN68: =LAC102_S_CSS!FZ68+LAC102_S_PEI!EF68 -> 0 | JO68: =LAC102_S_CSS!GA68+LAC102_S_PEI!EG68 -> 0 | JP68: =LAC102_S_CSS!GB68+LAC102_S_PEI!EH68 -> 0 | JQ68: =LAC102_S_CSS!GC68+LAC102_S_PEI!EI68 -> 0 | JR68: =LAC102_S_CSS!GD68+LAC102_S_PEI!EJ68 -> 0 | JS68: =LAC102_S_CSS!GE68+LAC102_S_PEI!EK68 -> 0 | JT68: =LAC102_S_CSS!GF68+LAC102_S_PEI!EL68 -> 0 | JU68: =LAC102_S_CSS!GG68+LAC102_S_PEI!EM68 -> 0 | ABV68: 0 | ABW68: 0 | ABX68: 0 | ABY68: 0 | ABZ68: 0 | ACA68: 0 | ACB68: 0 | ACC68: 0 | ACD68: 0 | ACE68: 0 | ACF68: 0 | ACG68: 0 | ACH68: 0 | ACI68: 0 | ACJ68: 0 | ACK68: 0 | ACL68: 0 | ACM68: 0 | ACN68: 0 | ACO68: 0 | ACP68: 0 | ACQ68: 0 | ACR68: 0 | ACS68: 0 | ACT68: 0 | ACU68: 0 | ACV68: 0 | ACW68: 0 | ACX68: 0 | ACY68: 0 | ACZ68: 0 | ADA68: 0 | ADB68: 0 | ADC68: 0 | ADD68: 0 | ADE68: 0 | ADF68: 0 | ADG68: 0 | ADH68: 0 | ADI68: 0 | ADJ68: 0 | ADK68: 0 | ADL68: 0 | ADM68: 0 | ADN68: 0 | ADO68: 0 | ADP68: =MH1901_Schedule_B!G73+MH1901_Schedule_B!F73 -> 0 | ADQ68: =MH1901_Schedule_B!I73+MH1901_Schedule_B!J73 -> 0 | ADR68: =MH1901_Schedule_B!L73+MH1901_Schedule_B!M73 -> 0 | ADS68: =MH1901_Schedule_B!O73 -> 0 | ADT68: =MH1901_Schedule_B!Q73 -> 0 | ADU68: =MH1901_Schedule_B!S73 -> 0 | ADV68: =MH1901_Schedule_B!U73 -> 0 | ADW68: =MH1901_Schedule_B!W73 -> 0 | ADX68: =MH1901_Schedule_B!Y73 -> 0 | ADY68: =MH1901_Schedule_B!AA73 -> 0 | ADZ68: =MH1901_Schedule_B!AC73+MH1901_Schedule_B!AI73 -> 0 | AEA68: =MH1901_Schedule_B!AE73+MH1901_Schedule_B!AK73 -> 0 | AEB68: =MH1901_Schedule_B!AG73+MH1901_Schedule_B!AM73 -> 0 | AEC68: =MH1901_Schedule_B!AO73 -> 0 | AED68: =MH1901_Schedule_B!AQ73 -> 0 | AEE68: =MH1901_Schedule_B!AS73 -> 0 | AEF68: =MH1901_Schedule_B!AU73 -> 0 | AEG68: =MH1901_Schedule_B!BE73 -> 0 | AEH68: =MH1901_Schedule_B!BG73 -> 0 | AEI68: =MH1901_Schedule_B!AW73 -> 0 | AEJ68: =MH1901_Schedule_B!AY73 -> 0 | AEK68: =MH1901_Schedule_B!BA73 -> 0 | AEL68: =MH1901_Schedule_B!BC73 -> 0 | AEM68: 0 | AEN68: 0 | AEO68: 0 | AEP68: 0 | AEQ68: 0 | AER68: 0 | AES68: 0 | AET68: 0 | AEU68: 0 | AEV68: 0 | AEW68: 0 | AEX68: 0 | AEY68: 0 | AEZ68: 0 | AFA68: 0 | AFB68: 0 | AFC68: 0 | AFD68: 0 | AFE68: 0 | AFF68: 0 | AFG68: 0 | AFH68: 0 | AFI68: 0
A69: 0 | B69: 55 | C69: ='LAC103'!D69 -> 0 | D69: ='LAC103'!E69 ->  | E69: ='LAC103'!F69 ->  | IY69: =LAC102_S_CSS!FK69+LAC102_S_PEI!DQ69 -> 0 | IZ69: =LAC102_S_CSS!FL69+LAC102_S_PEI!DR69 -> 0 | JA69: =LAC102_S_CSS!FM69+LAC102_S_PEI!DS69 -> 0 | JB69: =LAC102_S_CSS!FN69+LAC102_S_PEI!DT69 -> 0 | JC69: =LAC102_S_CSS!FO69+LAC102_S_PEI!DU69 -> 0 | JD69: =LAC102_S_CSS!FP69+LAC102_S_PEI!DV69 -> 0 | JE69: =LAC102_S_CSS!FQ69+LAC102_S_PEI!DW69 -> 0 | JF69: =LAC102_S_CSS!FR69+LAC102_S_PEI!DX69 -> 0 | JG69: =LAC102_S_CSS!FS69+LAC102_S_PEI!DY69 -> 0 | JH69: =LAC102_S_CSS!FT69+LAC102_S_PEI!DZ69 -> 0 | JI69: =LAC102_S_CSS!FU69+LAC102_S_PEI!EA69 -> 0 | JJ69: =LAC102_S_CSS!FV69+LAC102_S_PEI!EB69 -> 0 | JK69: =LAC102_S_CSS!FW69+LAC102_S_PEI!EC69 -> 0 | JL69: =LAC102_S_CSS!FX69+LAC102_S_PEI!ED69 -> 0 | JM69: =LAC102_S_CSS!FY69+LAC102_S_PEI!EE69 -> 0 | JN69: =LAC102_S_CSS!FZ69+LAC102_S_PEI!EF69 -> 0 | JO69: =LAC102_S_CSS!GA69+LAC102_S_PEI!EG69 -> 0 | JP69: =LAC102_S_CSS!GB69+LAC102_S_PEI!EH69 -> 0 | JQ69: =LAC102_S_CSS!GC69+LAC102_S_PEI!EI69 -> 0 | JR69: =LAC102_S_CSS!GD69+LAC102_S_PEI!EJ69 -> 0 | JS69: =LAC102_S_CSS!GE69+LAC102_S_PEI!EK69 -> 0 | JT69: =LAC102_S_CSS!GF69+LAC102_S_PEI!EL69 -> 0 | JU69: =LAC102_S_CSS!GG69+LAC102_S_PEI!EM69 -> 0 | ABV69: 0 | ABW69: 0 | ABX69: 0 | ABY69: 0 | ABZ69: 0 | ACA69: 0 | ACB69: 0 | ACC69: 0 | ACD69: 0 | ACE69: 0 | ACF69: 0 | ACG69: 0 | ACH69: 0 | ACI69: 0 | ACJ69: 0 | ACK69: 0 | ACL69: 0 | ACM69: 0 | ACN69: 0 | ACO69: 0 | ACP69: 0 | ACQ69: 0 | ACR69: 0 | ACS69: 0 | ACT69: 0 | ACU69: 0 | ACV69: 0 | ACW69: 0 | ACX69: 0 | ACY69: 0 | ACZ69: 0 | ADA69: 0 | ADB69: 0 | ADC69: 0 | ADD69: 0 | ADE69: 0 | ADF69: 0 | ADG69: 0 | ADH69: 0 | ADI69: 0 | ADJ69: 0 | ADK69: 0 | ADL69: 0 | ADM69: 0 | ADN69: 0 | ADO69: 0 | ADP69: =MH1901_Schedule_B!G74+MH1901_Schedule_B!F74 -> 0 | ADQ69: =MH1901_Schedule_B!I74+MH1901_Schedule_B!J74 -> 0 | ADR69: =MH1901_Schedule_B!L74+MH1901_Schedule_B!M74 -> 0 | ADS69: =MH1901_Schedule_B!O74 -> 0 | ADT69: =MH1901_Schedule_B!Q74 -> 0 | ADU69: =MH1901_Schedule_B!S74 -> 0 | ADV69: =MH1901_Schedule_B!U74 -> 0 | ADW69: =MH1901_Schedule_B!W74 -> 0 | ADX69: =MH1901_Schedule_B!Y74 -> 0 | ADY69: =MH1901_Schedule_B!AA74 -> 0 | ADZ69: =MH1901_Schedule_B!AC74+MH1901_Schedule_B!AI74 -> 0 | AEA69: =MH1901_Schedule_B!AE74+MH1901_Schedule_B!AK74 -> 0 | AEB69: =MH1901_Schedule_B!AG74+MH1901_Schedule_B!AM74 -> 0 | AEC69: =MH1901_Schedule_B!AO74 -> 0 | AED69: =MH1901_Schedule_B!AQ74 -> 0 | AEE69: =MH1901_Schedule_B!AS74 -> 0 | AEF69: =MH1901_Schedule_B!AU74 -> 0 | AEG69: =MH1901_Schedule_B!BE74 -> 0 | AEH69: =MH1901_Schedule_B!BG74 -> 0 | AEI69: =MH1901_Schedule_B!AW74 -> 0 | AEJ69: =MH1901_Schedule_B!AY74 -> 0 | AEK69: =MH1901_Schedule_B!BA74 -> 0 | AEL69: =MH1901_Schedule_B!BC74 -> 0 | AEM69: 0 | AEN69: 0 | AEO69: 0 | AEP69: 0 | AEQ69: 0 | AER69: 0 | AES69: 0 | AET69: 0 | AEU69: 0 | AEV69: 0 | AEW69: 0 | AEX69: 0 | AEY69: 0 | AEZ69: 0 | AFA69: 0 | AFB69: 0 | AFC69: 0 | AFD69: 0 | AFE69: 0 | AFF69: 0 | AFG69: 0 | AFH69: 0 | AFI69: 0
A70: 0 | B70: 56 | C70: ='LAC103'!D70 -> 0 | D70: ='LAC103'!E70 ->  | E70: ='LAC103'!F70 ->  | IY70: =LAC102_S_CSS!FK70+LAC102_S_PEI!DQ70 -> 0 | IZ70: =LAC102_S_CSS!FL70+LAC102_S_PEI!DR70 -> 0 | JA70: =LAC102_S_CSS!FM70+LAC102_S_PEI!DS70 -> 0 | JB70: =LAC102_S_CSS!FN70+LAC102_S_PEI!DT70 -> 0 | JC70: =LAC102_S_CSS!FO70+LAC102_S_PEI!DU70 -> 0 | JD70: =LAC102_S_CSS!FP70+LAC102_S_PEI!DV70 -> 0 | JE70: =LAC102_S_CSS!FQ70+LAC102_S_PEI!DW70 -> 0 | JF70: =LAC102_S_CSS!FR70+LAC102_S_PEI!DX70 -> 0 | JG70: =LAC102_S_CSS!FS70+LAC102_S_PEI!DY70 -> 0 | JH70: =LAC102_S_CSS!FT70+LAC102_S_PEI!DZ70 -> 0 | JI70: =LAC102_S_CSS!FU70+LAC102_S_PEI!EA70 -> 0 | JJ70: =LAC102_S_CSS!FV70+LAC102_S_PEI!EB70 -> 0 | JK70: =LAC102_S_CSS!FW70+LAC102_S_PEI!EC70 -> 0 | JL70: =LAC102_S_CSS!FX70+LAC102_S_PEI!ED70 -> 0 | JM70: =LAC102_S_CSS!FY70+LAC102_S_PEI!EE70 -> 0 | JN70: =LAC102_S_CSS!FZ70+LAC102_S_PEI!EF70 -> 0 | JO70: =LAC102_S_CSS!GA70+LAC102_S_PEI!EG70 -> 0 | JP70: =LAC102_S_CSS!GB70+LAC102_S_PEI!EH70 -> 0 | JQ70: =LAC102_S_CSS!GC70+LAC102_S_PEI!EI70 -> 0 | JR70: =LAC102_S_CSS!GD70+LAC102_S_PEI!EJ70 -> 0 | JS70: =LAC102_S_CSS!GE70+LAC102_S_PEI!EK70 -> 0 | JT70: =LAC102_S_CSS!GF70+LAC102_S_PEI!EL70 -> 0 | JU70: =LAC102_S_CSS!GG70+LAC102_S_PEI!EM70 -> 0 | ABV70: 0 | ABW70: 0 | ABX70: 0 | ABY70: 0 | ABZ70: 0 | ACA70: 0 | ACB70: 0 | ACC70: 0 | ACD70: 0 | ACE70: 0 | ACF70: 0 | ACG70: 0 | ACH70: 0 | ACI70: 0 | ACJ70: 0 | ACK70: 0 | ACL70: 0 | ACM70: 0 | ACN70: 0 | ACO70: 0 | ACP70: 0 | ACQ70: 0 | ACR70: 0 | ACS70: 0 | ACT70: 0 | ACU70: 0 | ACV70: 0 | ACW70: 0 | ACX70: 0 | ACY70: 0 | ACZ70: 0 | ADA70: 0 | ADB70: 0 | ADC70: 0 | ADD70: 0 | ADE70: 0 | ADF70: 0 | ADG70: 0 | ADH70: 0 | ADI70: 0 | ADJ70: 0 | ADK70: 0 | ADL70: 0 | ADM70: 0 | ADN70: 0 | ADO70: 0 | ADP70: =MH1901_Schedule_B!G75+MH1901_Schedule_B!F75 -> 0 | ADQ70: =MH1901_Schedule_B!I75+MH1901_Schedule_B!J75 -> 0 | ADR70: =MH1901_Schedule_B!L75+MH1901_Schedule_B!M75 -> 0 | ADS70: =MH1901_Schedule_B!O75 -> 0 | ADT70: =MH1901_Schedule_B!Q75 -> 0 | ADU70: =MH1901_Schedule_B!S75 -> 0 | ADV70: =MH1901_Schedule_B!U75 -> 0 | ADW70: =MH1901_Schedule_B!W75 -> 0 | ADX70: =MH1901_Schedule_B!Y75 -> 0 | ADY70: =MH1901_Schedule_B!AA75 -> 0 | ADZ70: =MH1901_Schedule_B!AC75+MH1901_Schedule_B!AI75 -> 0 | AEA70: =MH1901_Schedule_B!AE75+MH1901_Schedule_B!AK75 -> 0 | AEB70: =MH1901_Schedule_B!AG75+MH1901_Schedule_B!AM75 -> 0 | AEC70: =MH1901_Schedule_B!AO75 -> 0 | AED70: =MH1901_Schedule_B!AQ75 -> 0 | AEE70: =MH1901_Schedule_B!AS75 -> 0 | AEF70: =MH1901_Schedule_B!AU75 -> 0 | AEG70: =MH1901_Schedule_B!BE75 -> 0 | AEH70: =MH1901_Schedule_B!BG75 -> 0 | AEI70: =MH1901_Schedule_B!AW75 -> 0 | AEJ70: =MH1901_Schedule_B!AY75 -> 0 | AEK70: =MH1901_Schedule_B!BA75 -> 0 | AEL70: =MH1901_Schedule_B!BC75 -> 0 | AEM70: 0 | AEN70: 0 | AEO70: 0 | AEP70: 0 | AEQ70: 0 | AER70: 0 | AES70: 0 | AET70: 0 | AEU70: 0 | AEV70: 0 | AEW70: 0 | AEX70: 0 | AEY70: 0 | AEZ70: 0 | AFA70: 0 | AFB70: 0 | AFC70: 0 | AFD70: 0 | AFE70: 0 | AFF70: 0 | AFG70: 0 | AFH70: 0 | AFI70: 0
A71: 0 | B71: 57 | C71: ='LAC103'!D71 -> 0 | D71: ='LAC103'!E71 ->  | E71: ='LAC103'!F71 ->  | IY71: =LAC102_S_CSS!FK71+LAC102_S_PEI!DQ71 -> 0 | IZ71: =LAC102_S_CSS!FL71+LAC102_S_PEI!DR71 -> 0 | JA71: =LAC102_S_CSS!FM71+LAC102_S_PEI!DS71 -> 0 | JB71: =LAC102_S_CSS!FN71+LAC102_S_PEI!DT71 -> 0 | JC71: =LAC102_S_CSS!FO71+LAC102_S_PEI!DU71 -> 0 | JD71: =LAC102_S_CSS!FP71+LAC102_S_PEI!DV71 -> 0 | JE71: =LAC102_S_CSS!FQ71+LAC102_S_PEI!DW71 -> 0 | JF71: =LAC102_S_CSS!FR71+LAC102_S_PEI!DX71 -> 0 | JG71: =LAC102_S_CSS!FS71+LAC102_S_PEI!DY71 -> 0 | JH71: =LAC102_S_CSS!FT71+LAC102_S_PEI!DZ71 -> 0 | JI71: =LAC102_S_CSS!FU71+LAC102_S_PEI!EA71 -> 0 | JJ71: =LAC102_S_CSS!FV71+LAC102_S_PEI!EB71 -> 0 | JK71: =LAC102_S_CSS!FW71+LAC102_S_PEI!EC71 -> 0 | JL71: =LAC102_S_CSS!FX71+LAC102_S_PEI!ED71 -> 0 | JM71: =LAC102_S_CSS!FY71+LAC102_S_PEI!EE71 -> 0 | JN71: =LAC102_S_CSS!FZ71+LAC102_S_PEI!EF71 -> 0 | JO71: =LAC102_S_CSS!GA71+LAC102_S_PEI!EG71 -> 0 | JP71: =LAC102_S_CSS!GB71+LAC102_S_PEI!EH71 -> 0 | JQ71: =LAC102_S_CSS!GC71+LAC102_S_PEI!EI71 -> 0 | JR71: =LAC102_S_CSS!GD71+LAC102_S_PEI!EJ71 -> 0 | JS71: =LAC102_S_CSS!GE71+LAC102_S_PEI!EK71 -> 0 | JT71: =LAC102_S_CSS!GF71+LAC102_S_PEI!EL71 -> 0 | JU71: =LAC102_S_CSS!GG71+LAC102_S_PEI!EM71 -> 0 | ABV71: 0 | ABW71: 0 | ABX71: 0 | ABY71: 0 | ABZ71: 0 | ACA71: 0 | ACB71: 0 | ACC71: 0 | ACD71: =IF(ADA71-ADX71=0,ADA71,"ERROR") -> 0 | ACE71: 0 | ACF71: 0 | ACG71: 0 | ACH71: 0 | ACI71: 0 | ACJ71: 0 | ACK71: 0 | ACL71: 0 | ACM71: 0 | ACN71: 0 | ACO71: 0 | ACP71: 0 | ACQ71: 0 | ACR71: 0 | ACS71: 0 | ACT71: 0 | ACU71: 0 | ACV71: 0 | ACW71: 0 | ACX71: 0 | ACY71: 0 | ACZ71: 0 | ADA71: 0 | ADB71: 0 | ADC71: 0 | ADD71: 0 | ADE71: 0 | ADF71: 0 | ADG71: 0 | ADH71: 0 | ADI71: 0 | ADJ71: 0 | ADK71: 0 | ADL71: 0 | ADM71: 0 | ADN71: 0 | ADO71: 0 | ADP71: =MH1901_Schedule_B!G76+MH1901_Schedule_B!F76 -> 0 | ADQ71: =MH1901_Schedule_B!I76+MH1901_Schedule_B!J76 -> 0 | ADR71: =MH1901_Schedule_B!L76+MH1901_Schedule_B!M76 -> 0 | ADS71: =MH1901_Schedule_B!O76 -> 0 | ADT71: =MH1901_Schedule_B!Q76 -> 0 | ADU71: =MH1901_Schedule_B!S76 -> 0 | ADV71: =MH1901_Schedule_B!U76 -> 0 | ADW71: =MH1901_Schedule_B!W76 -> 0 | ADX71: =MH1901_Schedule_B!Y76 -> 0 | ADY71: =MH1901_Schedule_B!AA76 -> 0 | ADZ71: =MH1901_Schedule_B!AC76+MH1901_Schedule_B!AI76 -> 0 | AEA71: =MH1901_Schedule_B!AE76+MH1901_Schedule_B!AK76 -> 0 | AEB71: =MH1901_Schedule_B!AG76+MH1901_Schedule_B!AM76 -> 0 | AEC71: =MH1901_Schedule_B!AO76 -> 0 | AED71: =MH1901_Schedule_B!AQ76 -> 0 | AEE71: =MH1901_Schedule_B!AS76 -> 0 | AEF71: =MH1901_Schedule_B!AU76 -> 0 | AEG71: =MH1901_Schedule_B!BE76 -> 0 | AEH71: =MH1901_Schedule_B!BG76 -> 0 | AEI71: =MH1901_Schedule_B!AW76 -> 0 | AEJ71: =MH1901_Schedule_B!AY76 -> 0 | AEK71: =MH1901_Schedule_B!BA76 -> 0 | AEL71: =MH1901_Schedule_B!BC76 -> 0 | AEM71: 0 | AEN71: 0 | AEO71: 0 | AEP71: 0 | AEQ71: 0 | AER71: 0 | AES71: 0 | AET71: 0 | AEU71: 0 | AEV71: 0 | AEW71: 0 | AEX71: 0 | AEY71: 0 | AEZ71: 0 | AFA71: 0 | AFB71: 0 | AFC71: 0 | AFD71: 0 | AFE71: 0 | AFF71: 0 | AFG71: 0 | AFH71: 0 | AFI71: 0
